Workbook

Sheet CONTROLS
A1: ;l;
B4: Change Model Inputs & Assumptions | C4: Model Management
B5: Inputs | C5: Run
B6: Define Classifiers | C6: Error Locator
B7: Define External Allocators | C7: Collapse Model
B8: Define Internal Allocators | C8: Expand Model
B9: Alter Account Data & Select Factors | C9: Print Summary
C10: Print All
B14: Created by Navigant Consulting, Inc. 2006

Sheet INPUTS
A1: Global Inputs
B3: Model Choice | E3: Functions
A5: 1 | B5: Actual Test Year | E5: Name | F5: Description
A6: 2 | B6: Restated Test Year | E6: F_PRODU | F6: Gas Supply
A7: 3 | B7: Proforma Test Year | E7: F_STORG | F7: Storage
A8: 4 | B8: Proposed Test Year | E8: F_TRANS | F8: Transmission
E9: F_DISTR | F9: Distribution
E10: F_GASSP | F10: Gas Costs
B11: Model Choice | C11: 4 | E11: F_SALES | F11: Sales Specific Costs
E12: F_TRNSP | F12: Transport Specific Costs
B13: Rate Classes | E13: ~ | F13: ~
E14: ~ | F14: ~
B15: Rate Class | C15: Description | E15: ~ | F15: ~
A16: 1 | B16: R - 23, 16, 53 | C16: Residential (16,23,53)
A17: 2 | B17: C&I-31, 31T | C17: Comm. & Indus. (31,31T) | E17: Unit Costs
A18: 3 | B18: C&I-41, 41T | C18: Large Volume (41,41T) | E18: Classifier | F18: Factor Name
A19: 4 | B19: 85, 85T | C19: Interruptible (85, 85T) | E19: =IF(D18="~","~",INPUTS!$C$35) -> Demand | F19: PDAY
A20: 5 | B20: 86,86T | C20: Limited Interruptible (86, 86T) | E20: =IF(D18="~","~",INPUTS!$C$36) -> Commodity | F20: COM_1
A21: 6 | B21: 87, 87T | C21: Non-Exclusive Interruptible (87, 87T) | E21: =IF(D18="~","~",INPUTS!$C$37) -> Customer | F21: CUST
A22: 7 | B22: Contracts | C22: Contracts | E22: =IF(D18="~","~",INPUTS!$C$38) -> Direct Sales | F22: CUSTXT
A23: 8 | B23: Rentals | C23: Rentals | E23: =IF(D18="~","~",INPUTS!$C$39) -> Direct Transport | F23: TRANSCUS
A24: 9 | B24: ~ | C24: ~ | E24: =IF(D18="~","~",INPUTS!$C$40) -> ~ | F24: ~
A25: 10 | B25: ~ | C25: ~
A26: 11 | B26: ~ | C26: ~
A27: 12 | B27: ~ | C27: ~ | E27: Rate of Return
A28: 13 | B28: ~ | C28: ~ | F28: Percent
A29: 14 | B29: ~ | C29: ~ | E29: ROR | F29: =ROUND(F30*F32,4)+ROUND(F31*F33,4) -> 0.0744
A30: 15 | B30: ~ | C30: ~ | E30: Debt Ratio | F30: ='[1]COC, Def, ConvF'!$F$12 -> 0.515
E31: Equity Ratio | F31: ='[1]COC, Def, ConvF'!$F$13 -> 0.485
B32: Classifers | E32: Cost of Debt | F32: ='[1]COC, Def, ConvF'!$G$12 -> 0.05495145631
E33: Cost of Equity | F33: ='[1]COC, Def, ConvF'!$G$13 -> 0.095
B34: Name | C34: Description | E34: ROD | F34: =ROUND(F30*F32, 4) -> 0.0283
B35: DEM | C35: Demand | E35: ROE | F35: =ROUND(F31*ROD, 4) -> 0.0137
B36: COM | C36: Commodity
B37: CUS | C37: Customer | E37: Income Tax
B38: DIRS | C38: Direct Sales | E38: State Income Tax | F38: 0
B39: DIRT | C39: Direct Transport | E39: Federal Income Tax | F39: 0.21
B40: ~ | C40: ~ | E40: Effective Tax Rate | F40: =((1-STAX)*FTAX)+STAX -> 0.21
E45: Uncollectible
E46: Residential | F46: 0
E47: Sml. Business | F47: 0
E48: Other | F48: 0
E50: Revenue Conversion Factors
E51: All | F51: 0.62045
B53: Revenue Targets by Rate Class and Case
C55: =+A5 -> 1 | D55: =+A6 -> 2 | E55: =+A7 -> 3 | F55: =+A8 -> 4 | G55: =+A9 -> 0
C56: =+B5 -> Actual Test Year | D56: =+B6 -> Restated Test Year | E56: =+B7 -> Proforma Test Year | F56: =+B8 -> Proposed Test Year | G56: =+B9 -> 0
B57: =+B15 -> Rate Class
A58: 1 | B58: =+B16 -> R - 23, 16, 53 | F58: ='[2]Rate Spread'!Q13 -> 379229801.9
A59: 2 | B59: =+B17 -> C&I-31, 31T | F59: ='[2]Rate Spread'!Q14 -> 122340894.7
A60: 3 | B60: C&I-41, 41T | F60: ='[2]Rate Spread'!Q15 -> 21493184.54
A61: 4 | B61: 85, 85T | F61: ='[2]Rate Spread'!Q16 -> 9391882.14
A62: 5 | B62: 86,86T | F62: ='[2]Rate Spread'!Q17 -> 2062215.48
A63: 6 | B63: 87, 87T | F63: ='[2]Rate Spread'!Q18 -> 6051460.07
A64: 7 | B64: Contracts | F64: ='[2]Rate Spread'!Q19 -> 1757519.521
A65: 8 | B65: Rentals | F65: ='[2]Rate Spread'!Q20 -> 4866556.64
A66: 9 | B66: ~
A67: 10 | B67: ~
A68: 11 | B68: ~
A69: 12 | B69: ~
A70: 13 | B70: ~
A71: 14 | B71: ~
A72: 15 | B72: ~
C73: =SUM(C58:C72) -> 0 | D73: =SUM(D58:D72) -> 0 | E73: =SUM(E58:E72) -> 0 | F73: =SUM(F58:F72) -> 547193515 | G73: =SUM(G58:G72) -> 0

Sheet CLASSIFIERS
A1: Classifiers
A3: Name | B3: Description | C3: Total | D3: =INPUTS!$B$35 -> DEM | E3: =INPUTS!$B$36 -> COM | F3: =INPUTS!$B$37 -> CUS | G3: =INPUTS!$B$38 -> DIRS | H3: =INPUTS!$B$39 -> DIRT | I3: =INPUTS!$B$40 -> ~
A4: DEM | B4: Demand | C4: =SUM(D4:I4) -> 1 | D4: 1
A5: COM | B5: Commodity | C5: 1 | E5: 1
A6: CUS | B6: Customer | C6: 1 | F6: 1
A7: DIRS | B7: Direct Sales | C7: =SUM(D7:I7) -> 1 | G7: 1
A8: DIRT | B8: Direct Transport | C8: 1 | H8: 1
A9: ~ | B9: ~ | C9: 0
A10: ~ | B10: ~ | C10: 0
A11: ~ | B11: ~ | C11: =SUM(D11:I11) -> 0
A12: ~ | B12: ~ | C12: =SUM(D12:I12) -> 0
A13: ~ | B13: ~ | C13: =SUM(D13:I13) -> 0
A14: ~ | B14: ~ | C14: 0
A15: ~ | B15: ~ | C15: 0
A16: ~ | B16: ~ | C16: 0
A17: ~ | B17: ~ | C17: 0
A18: ~ | B18: ~ | C18: 0
A19: ~ | B19: ~ | C19: 0
A20: ~ | B20: ~ | C20: 0

Sheet EXTERNAL
A1: External Allocators
A3: Name | B3: Description | C3: Classifier | D3: Total | E3: =INPUTS!$C$16 -> Residential (16,23,53) | F3: =INPUTS!$C$17 -> Comm. & Indus. (31,31T) | G3: =INPUTS!$C$18 -> Large Volume (41,41T) | H3: =INPUTS!$C$19 -> Interruptible (85, 85T) | I3: =INPUTS!$C$20 -> Limited Interruptible (86, 86T) | J3: =INPUTS!$C$21 -> Non-Exclusive Interruptible (87, 87T) | K3: =INPUTS!$C$22 -> Contracts | L3: =INPUTS!$C$23 -> Rentals | M3: =INPUTS!$C$24 -> ~ | N3: =INPUTS!$C$25 -> ~ | O3: =INPUTS!$C$26 -> ~ | P3: =INPUTS!$C$27 -> ~ | Q3: =INPUTS!$C$28 -> ~ | R3: =INPUTS!$C$29 -> ~ | S3: =INPUTS!$C$30 -> ~
A5: CUSTOMER EXTERNAL ALLOCATORS
A7: CUST | B7: Average Customers | C7: CUS | E7: =IF(E8=0,0,E8/$D8) -> 0.9295532727 | F7: =IF(F8=0,0,F8/$D8) -> 0.06824934271 | G7: 0.001735395087 | H7: 0.0001573071741 | I7: 0.0002745852904 | J7: 1.805822151e-05 | K7: 1.203881434e-05 | L7: 0 | M7: 0 | N7: 0 | O7: 0 | P7: 0 | Q7: 0 | R7: 0 | S7: 0
A8: =IF(A7="~","~","") ->  | D8: =SUM(E8:S8) -> 830646.5833 | E8: =INDEX([3]EXTERNAL!$A$3:$O$185, MATCH($A7, [3]EXTERNAL!$A$3:$A$185, 0)+1, MATCH(E$3, [3]EXTERNAL!$A$3:$O$3, 0)) -> 772130.25 | F8: =INDEX([3]EXTERNAL!$A$3:$O$185, MATCH($A7, [3]EXTERNAL!$A$3:$A$185, 0)+1, MATCH(F$3, [3]EXTERNAL!$A$3:$O$3, 0)) -> 56691.08333 | G8: =INDEX([3]EXTERNAL!$A$3:$O$185, MATCH($A7, [3]EXTERNAL!$A$3:$A$185, 0)+1, MATCH(G$3, [3]EXTERNAL!$A$3:$O$3, 0)) -> 1441.5 | H8: =INDEX([3]EXTERNAL!$A$3:$O$185, MATCH($A7, [3]EXTERNAL!$A$3:$A$185, 0)+1, MATCH(H$3, [3]EXTERNAL!$A$3:$O$3, 0)) -> 130.6666667 | I8: =INDEX([3]EXTERNAL!$A$3:$O$185, MATCH($A7, [3]EXTERNAL!$A$3:$A$185, 0)+1, MATCH(I$3, [3]EXTERNAL!$A$3:$O$3, 0)) -> 228.0833333 | J8: =INDEX([3]EXTERNAL!$A$3:$O$185, MATCH($A7, [3]EXTERNAL!$A$3:$A$185, 0)+1, MATCH(J$3, [3]EXTERNAL!$A$3:$O$3, 0)) -> 15 | K8: =INDEX([3]EXTERNAL!$A$3:$O$185, MATCH($A7, [3]EXTERNAL!$A$3:$A$185, 0)+1, MATCH(K$3, [3]EXTERNAL!$A$3:$O$3, 0)) -> 10 | L8: =INDEX([3]EXTERNAL!$A$3:$O$185, MATCH($A7, [3]EXTERNAL!$A$3:$A$185, 0)+1, MATCH(L$3, [3]EXTERNAL!$A$3:$O$3, 0)) -> 0
A9: =IF(A8="~","~","") -> 
A10: CUSTXT | B10: Customers (excl. transport) | C10: CUS | E10: =IF(E11=0,0,E11/$D11) -> 0.9298147428 | F10: 0.06826542937 | G10: 0.001607433089 | H10: 3.421992029e-05 | I10: 0.0002721537356 | J10: 6.021100344e-06 | K10: 0 | L10: 0 | M10: 0 | N10: 0 | O10: 0 | P10: 0 | Q10: 0 | R10: 0 | S10: 0
A11: =IF(A10="~","~","") ->  | D11: =SUM(E11:S11) -> 830413 | E11: =INDEX([3]EXTERNAL!$A$3:$O$185, MATCH($A10, [3]EXTERNAL!$A$3:$A$185, 0)+1, MATCH(E$3, [3]EXTERNAL!$A$3:$O$3, 0)) -> 772130.25 | F11: =INDEX([3]EXTERNAL!$A$3:$O$185, MATCH($A10, [3]EXTERNAL!$A$3:$A$185, 0)+1, MATCH(F$3, [3]EXTERNAL!$A$3:$O$3, 0)) -> 56688.5 | G11: =INDEX([3]EXTERNAL!$A$3:$O$185, MATCH($A10, [3]EXTERNAL!$A$3:$A$185, 0)+1, MATCH(G$3, [3]EXTERNAL!$A$3:$O$3, 0)) -> 1334.833333 | H11: =INDEX([3]EXTERNAL!$A$3:$O$185, MATCH($A10, [3]EXTERNAL!$A$3:$A$185, 0)+1, MATCH(H$3, [3]EXTERNAL!$A$3:$O$3, 0)) -> 28.41666667 | I11: =INDEX([3]EXTERNAL!$A$3:$O$185, MATCH($A10, [3]EXTERNAL!$A$3:$A$185, 0)+1, MATCH(I$3, [3]EXTERNAL!$A$3:$O$3, 0)) -> 226 | J11: =INDEX([3]EXTERNAL!$A$3:$O$185, MATCH($A10, [3]EXTERNAL!$A$3:$A$185, 0)+1, MATCH(J$3, [3]EXTERNAL!$A$3:$O$3, 0)) -> 5 | K11: =INDEX([3]EXTERNAL!$A$3:$O$185, MATCH($A10, [3]EXTERNAL!$A$3:$A$185, 0)+1, MATCH(K$3, [3]EXTERNAL!$A$3:$O$3, 0)) -> 0 | L11: =INDEX([3]EXTERNAL!$A$3:$O$185, MATCH($A10, [3]EXTERNAL!$A$3:$A$185, 0)+1, MATCH(L$3, [3]EXTERNAL!$A$3:$O$3, 0)) -> 0
A12: =IF(A11="~","~","") -> 
A13: DIR_CUSTXT | B13: Customers (excl. transport) | C13: DIRS | E13: =IF(E14=0,0,E14/$D14) -> 0.9298147428 | F13: 0.06826542937 | G13: 0.001607433089 | H13: 3.421992029e-05 | I13: 0.0002721537356 | J13: 6.021100344e-06 | K13: 0 | L13: 0 | M13: 0 | N13: 0 | O13: 0 | P13: 0 | Q13: 0 | R13: 0 | S13: 0
A14: =IF(A13="~","~","") ->  | D14: =SUM(E14:S14) -> 830413 | E14: =INDEX([3]EXTERNAL!$A$3:$O$185, MATCH($A13, [3]EXTERNAL!$A$3:$A$185, 0)+1, MATCH(E$3, [3]EXTERNAL!$A$3:$O$3, 0)) -> 772130.25 | F14: =INDEX([3]EXTERNAL!$A$3:$O$185, MATCH($A13, [3]EXTERNAL!$A$3:$A$185, 0)+1, MATCH(F$3, [3]EXTERNAL!$A$3:$O$3, 0)) -> 56688.5 | G14: =INDEX([3]EXTERNAL!$A$3:$O$185, MATCH($A13, [3]EXTERNAL!$A$3:$A$185, 0)+1, MATCH(G$3, [3]EXTERNAL!$A$3:$O$3, 0)) -> 1334.833333 | H14: =INDEX([3]EXTERNAL!$A$3:$O$185, MATCH($A13, [3]EXTERNAL!$A$3:$A$185, 0)+1, MATCH(H$3, [3]EXTERNAL!$A$3:$O$3, 0)) -> 28.41666667 | I14: =INDEX([3]EXTERNAL!$A$3:$O$185, MATCH($A13, [3]EXTERNAL!$A$3:$A$185, 0)+1, MATCH(I$3, [3]EXTERNAL!$A$3:$O$3, 0)) -> 226 | J14: =INDEX([3]EXTERNAL!$A$3:$O$185, MATCH($A13, [3]EXTERNAL!$A$3:$A$185, 0)+1, MATCH(J$3, [3]EXTERNAL!$A$3:$O$3, 0)) -> 5 | K14: =INDEX([3]EXTERNAL!$A$3:$O$185, MATCH($A13, [3]EXTERNAL!$A$3:$A$185, 0)+1, MATCH(K$3, [3]EXTERNAL!$A$3:$O$3, 0)) -> 0 | L14: =INDEX([3]EXTERNAL!$A$3:$O$185, MATCH($A13, [3]EXTERNAL!$A$3:$A$185, 0)+1, MATCH(L$3, [3]EXTERNAL!$A$3:$O$3, 0)) -> 0
A15: =IF(A14="~","~","") -> 
A16: MTRS_CUS | B16: Customer Meters - Acc 381 | C16: CUS | E16: =IF(E17=0,0,E17/$D17) -> 0.7918362423 | F16: 0.2040743606 | G16: 0.004045419654 | H16: 2.296053514e-05 | I16: 1.336338199e-05 | J16: 0 | K16: 7.653511713e-06 | L16: 0 | M16: 0 | N16: 0 | O16: 0 | P16: 0 | Q16: 0 | R16: 0 | S16: 0
A17: =IF(A16="~","~","") ->  | D17: =SUM(E17:S17) -> 195367310.6 | E17: =INDEX([3]EXTERNAL!$A$3:$O$185, MATCH($A16, [3]EXTERNAL!$A$3:$A$185, 0)+1, MATCH(E$3, [3]EXTERNAL!$A$3:$O$3, 0)) -> 154698917.1 | F17: =INDEX([3]EXTERNAL!$A$3:$O$185, MATCH($A16, [3]EXTERNAL!$A$3:$A$185, 0)+1, MATCH(F$3, [3]EXTERNAL!$A$3:$O$3, 0)) -> 39869459 | G17: =INDEX([3]EXTERNAL!$A$3:$O$185, MATCH($A16, [3]EXTERNAL!$A$3:$A$185, 0)+1, MATCH(G$3, [3]EXTERNAL!$A$3:$O$3, 0)) -> 790342.758 | H17: =INDEX([3]EXTERNAL!$A$3:$O$185, MATCH($A16, [3]EXTERNAL!$A$3:$A$185, 0)+1, MATCH(H$3, [3]EXTERNAL!$A$3:$O$3, 0)) -> 4485.738 | I17: =INDEX([3]EXTERNAL!$A$3:$O$185, MATCH($A16, [3]EXTERNAL!$A$3:$A$185, 0)+1, MATCH(I$3, [3]EXTERNAL!$A$3:$O$3, 0)) -> 2610.768 | J17: =INDEX([3]EXTERNAL!$A$3:$O$185, MATCH($A16, [3]EXTERNAL!$A$3:$A$185, 0)+1, MATCH(J$3, [3]EXTERNAL!$A$3:$O$3, 0)) -> 0 | K17: =INDEX([3]EXTERNAL!$A$3:$O$185, MATCH($A16, [3]EXTERNAL!$A$3:$A$185, 0)+1, MATCH(K$3, [3]EXTERNAL!$A$3:$O$3, 0)) -> 1495.246 | L17: =INDEX([3]EXTERNAL!$A$3:$O$185, MATCH($A16, [3]EXTERNAL!$A$3:$A$185, 0)+1, MATCH(L$3, [3]EXTERNAL!$A$3:$O$3, 0)) -> 0
A18: =IF(A17="~","~","") -> 
A19: MTRS_INST | B19: Meters Installation - Acc 382 | C19: CUS | E19: =IF(E20=0,0,E20/$D20) -> 0.9279834458 | F19: 0.0713815976 | G19: 0.0006270196723 | H19: 3.401553376e-06 | I19: 3.401553376e-06 | J19: 0 | K19: 1.133851125e-06 | L19: 0 | M19: 0 | N19: 0 | O19: 0 | P19: 0 | Q19: 0 | R19: 0 | S19: 0
A20: =IF(A19="~","~","") ->  | D20: =SUM(E20:S20) -> 39708916.8 | E20: =INDEX([3]EXTERNAL!$A$3:$O$185, MATCH($A19, [3]EXTERNAL!$A$3:$A$185, 0)+1, MATCH(E$3, [3]EXTERNAL!$A$3:$O$3, 0)) -> 36849217.44 | F20: =INDEX([3]EXTERNAL!$A$3:$O$185, MATCH($A19, [3]EXTERNAL!$A$3:$A$185, 0)+1, MATCH(F$3, [3]EXTERNAL!$A$3:$O$3, 0)) -> 2834485.92 | G20: =INDEX([3]EXTERNAL!$A$3:$O$185, MATCH($A19, [3]EXTERNAL!$A$3:$A$185, 0)+1, MATCH(G$3, [3]EXTERNAL!$A$3:$O$3, 0)) -> 24898.272 | H20: =INDEX([3]EXTERNAL!$A$3:$O$185, MATCH($A19, [3]EXTERNAL!$A$3:$A$185, 0)+1, MATCH(H$3, [3]EXTERNAL!$A$3:$O$3, 0)) -> 135.072 | I20: =INDEX([3]EXTERNAL!$A$3:$O$185, MATCH($A19, [3]EXTERNAL!$A$3:$A$185, 0)+1, MATCH(I$3, [3]EXTERNAL!$A$3:$O$3, 0)) -> 135.072 | J20: =INDEX([3]EXTERNAL!$A$3:$O$185, MATCH($A19, [3]EXTERNAL!$A$3:$A$185, 0)+1, MATCH(J$3, [3]EXTERNAL!$A$3:$O$3, 0)) -> 0 | K20: =INDEX([3]EXTERNAL!$A$3:$O$185, MATCH($A19, [3]EXTERNAL!$A$3:$A$185, 0)+1, MATCH(K$3, [3]EXTERNAL!$A$3:$O$3, 0)) -> 45.024 | L20: =INDEX([3]EXTERNAL!$A$3:$O$185, MATCH($A19, [3]EXTERNAL!$A$3:$A$185, 0)+1, MATCH(L$3, [3]EXTERNAL!$A$3:$O$3, 0)) -> 0
A21: =IF(A20="~","~","") -> 
A22: MTRS_385 | B22: Regulators - Acc 385 | C22: CUS | E22: =IF(E23=0,0,E23/$D23) -> 0.004480485732 | F22: 0.5242189942 | G22: 0.2840154354 | H22: 0.1132821901 | I22: 0.02650462977 | J22: 0.02858497024 | K22: 0.01891329466 | L22: 0 | M22: 0 | N22: 0 | O22: 0 | P22: 0 | Q22: 0 | R22: 0 | S22: 0
A23: =IF(A22="~","~","") ->  | D23: =SUM(E23:S23) -> 37545089.99 | E23: =INDEX([3]EXTERNAL!$A$3:$O$185, MATCH($A22, [3]EXTERNAL!$A$3:$A$185, 0)+1, MATCH(E$3, [3]EXTERNAL!$A$3:$O$3, 0)) -> 168220.24 | F23: =INDEX([3]EXTERNAL!$A$3:$O$185, MATCH($A22, [3]EXTERNAL!$A$3:$A$185, 0)+1, MATCH(F$3, [3]EXTERNAL!$A$3:$O$3, 0)) -> 19681849.31 | G23: =INDEX([3]EXTERNAL!$A$3:$O$185, MATCH($A22, [3]EXTERNAL!$A$3:$A$185, 0)+1, MATCH(G$3, [3]EXTERNAL!$A$3:$O$3, 0)) -> 10663385.08 | H23: =INDEX([3]EXTERNAL!$A$3:$O$185, MATCH($A22, [3]EXTERNAL!$A$3:$A$185, 0)+1, MATCH(H$3, [3]EXTERNAL!$A$3:$O$3, 0)) -> 4253190.02 | I23: =INDEX([3]EXTERNAL!$A$3:$O$185, MATCH($A22, [3]EXTERNAL!$A$3:$A$185, 0)+1, MATCH(I$3, [3]EXTERNAL!$A$3:$O$3, 0)) -> 995118.71 | J23: =INDEX([3]EXTERNAL!$A$3:$O$185, MATCH($A22, [3]EXTERNAL!$A$3:$A$185, 0)+1, MATCH(J$3, [3]EXTERNAL!$A$3:$O$3, 0)) -> 1073225.28 | K23: =INDEX([3]EXTERNAL!$A$3:$O$185, MATCH($A22, [3]EXTERNAL!$A$3:$A$185, 0)+1, MATCH(K$3, [3]EXTERNAL!$A$3:$O$3, 0)) -> 710101.35 | L23: =INDEX([3]EXTERNAL!$A$3:$O$185, MATCH($A22, [3]EXTERNAL!$A$3:$A$185, 0)+1, MATCH(L$3, [3]EXTERNAL!$A$3:$O$3, 0)) -> 0
A24: =IF(A23="~","~","") -> 
A25: SERV | B25: Services | C25: CUS | E25: =IF(E26=0,0,E26/$D26) -> 0.5809775308 | F25: =IF(F26=0,0,F26/$D26) -> 0.4105742954 | G25: =IF(G26=0,0,G26/$D26) -> 0.007294060917 | H25: =IF(H26=0,0,H26/$D26) -> 0 | I25: =IF(I26=0,0,I26/$D26) -> 0.001154112888 | J25: =IF(J26=0,0,J26/$D26) -> 0 | K25: 0 | L25: 0 | M25: 0 | N25: 0 | O25: 0 | P25: 0 | Q25: 0 | R25: 0 | S25: 0
A26: =IF(A25="~","~","") ->  | D26: =SUM(E26:S26) -> 1329019.126 | E26: =INDEX([3]EXTERNAL!$A$3:$O$185, MATCH($A25, [3]EXTERNAL!$A$3:$A$185, 0)+1, MATCH(E$3, [3]EXTERNAL!$A$3:$O$3, 0)) -> 772130.25 | F26: =INDEX([3]EXTERNAL!$A$3:$O$185, MATCH($A25, [3]EXTERNAL!$A$3:$A$185, 0)+1, MATCH(F$3, [3]EXTERNAL!$A$3:$O$3, 0)) -> 545661.091 | G26: =INDEX([3]EXTERNAL!$A$3:$O$185, MATCH($A25, [3]EXTERNAL!$A$3:$A$185, 0)+1, MATCH(G$3, [3]EXTERNAL!$A$3:$O$3, 0)) -> 9693.946462 | H26: =INDEX([3]EXTERNAL!$A$3:$O$185, MATCH($A25, [3]EXTERNAL!$A$3:$A$185, 0)+1, MATCH(H$3, [3]EXTERNAL!$A$3:$O$3, 0)) -> 0 | I26: =INDEX([3]EXTERNAL!$A$3:$O$185, MATCH($A25, [3]EXTERNAL!$A$3:$A$185, 0)+1, MATCH(I$3, [3]EXTERNAL!$A$3:$O$3, 0)) -> 1533.838101 | J26: =INDEX([3]EXTERNAL!$A$3:$O$185, MATCH($A25, [3]EXTERNAL!$A$3:$A$185, 0)+1, MATCH(J$3, [3]EXTERNAL!$A$3:$O$3, 0)) -> 0 | K26: =INDEX([3]EXTERNAL!$A$3:$O$185, MATCH($A25, [3]EXTERNAL!$A$3:$A$185, 0)+1, MATCH(K$3, [3]EXTERNAL!$A$3:$O$3, 0)) -> 0 | L26: =INDEX([3]EXTERNAL!$A$3:$O$185, MATCH($A25, [3]EXTERNAL!$A$3:$A$185, 0)+1, MATCH(L$3, [3]EXTERNAL!$A$3:$O$3, 0)) -> 0
A27: =IF(A26="~","~","") -> 
A28: DIR_380 | B28: Distr. Plant - Services | C28: CUS | E28: =IF(E29=0,0,E29/$D29) -> 0 | F28: 0 | G28: 0 | H28: 0.7666334218 | I28: 0 | J28: 0.09866172991 | K28: 0.1347048483 | L28: 0 | M28: 0 | N28: 0 | O28: 0 | P28: 0 | Q28: 0 | R28: 0 | S28: 0
A29: =IF(A28="~","~","") ->  | D29: =SUM(E29:S29) -> 11129875.24 | E29: =INDEX([3]EXTERNAL!$A$3:$O$185, MATCH($A28, [3]EXTERNAL!$A$3:$A$185, 0)+1, MATCH(E$3, [3]EXTERNAL!$A$3:$O$3, 0)) -> 0 | F29: =INDEX([3]EXTERNAL!$A$3:$O$185, MATCH($A28, [3]EXTERNAL!$A$3:$A$185, 0)+1, MATCH(F$3, [3]EXTERNAL!$A$3:$O$3, 0)) -> 0 | G29: =INDEX([3]EXTERNAL!$A$3:$O$185, MATCH($A28, [3]EXTERNAL!$A$3:$A$185, 0)+1, MATCH(G$3, [3]EXTERNAL!$A$3:$O$3, 0)) -> 0 | H29: =INDEX([3]EXTERNAL!$A$3:$O$185, MATCH($A28, [3]EXTERNAL!$A$3:$A$185, 0)+1, MATCH(H$3, [3]EXTERNAL!$A$3:$O$3, 0)) -> 8532534.342 | I29: =INDEX([3]EXTERNAL!$A$3:$O$185, MATCH($A28, [3]EXTERNAL!$A$3:$A$185, 0)+1, MATCH(I$3, [3]EXTERNAL!$A$3:$O$3, 0)) -> 0 | J29: =INDEX([3]EXTERNAL!$A$3:$O$185, MATCH($A28, [3]EXTERNAL!$A$3:$A$185, 0)+1, MATCH(J$3, [3]EXTERNAL!$A$3:$O$3, 0)) -> 1098092.745 | K29: =INDEX([3]EXTERNAL!$A$3:$O$185, MATCH($A28, [3]EXTERNAL!$A$3:$A$185, 0)+1, MATCH(K$3, [3]EXTERNAL!$A$3:$O$3, 0)) -> 1499248.156 | L29: =INDEX([3]EXTERNAL!$A$3:$O$185, MATCH($A28, [3]EXTERNAL!$A$3:$A$185, 0)+1, MATCH(L$3, [3]EXTERNAL!$A$3:$O$3, 0)) -> 0
A30: =IF(A29="~","~","") -> 
A31: ~ | E31: =IF(E32=0,0,E32/$D32) -> 0 | F31: 0 | G31: 0 | H31: 0 | I31: 0 | J31: 0 | K31: 0 | L31: 0 | M31: 0 | N31: 0 | O31: 0 | P31: 0 | Q31: 0 | R31: 0 | S31: 0
A32: =IF(A31="~","~","") -> ~ | D32: =SUM(E32:S32) -> 0
A33: =IF(A32="~","~","") -> ~
A34: DIR_252 | B34: Cust. Adv. in Aid of Construction (# cust) | C34: CUS | E34: =IF(E35=0,0,E35/$D35) -> 0.929982915 | F34: 0.06828088776 | G34: 0.001736197192 | H34: 0 | I34: 0 | J34: 0 | K34: 0 | L34: 0 | M34: 0 | N34: 0 | O34: 0 | P34: 0 | Q34: 0 | R34: 0 | S34: 0
A35: =IF(A34="~","~","") ->  | D35: =SUM(E35:S35) -> 830262.8333 | E35: =INDEX([3]EXTERNAL!$A$3:$O$185, MATCH($A34, [3]EXTERNAL!$A$3:$A$185, 0)+1, MATCH(E$3, [3]EXTERNAL!$A$3:$O$3, 0)) -> 772130.25 | F35: =INDEX([3]EXTERNAL!$A$3:$O$185, MATCH($A34, [3]EXTERNAL!$A$3:$A$185, 0)+1, MATCH(F$3, [3]EXTERNAL!$A$3:$O$3, 0)) -> 56691.08333 | G35: =INDEX([3]EXTERNAL!$A$3:$O$185, MATCH($A34, [3]EXTERNAL!$A$3:$A$185, 0)+1, MATCH(G$3, [3]EXTERNAL!$A$3:$O$3, 0)) -> 1441.5 | H35: =INDEX([3]EXTERNAL!$A$3:$O$185, MATCH($A34, [3]EXTERNAL!$A$3:$A$185, 0)+1, MATCH(H$3, [3]EXTERNAL!$A$3:$O$3, 0)) -> 0 | I35: =INDEX([3]EXTERNAL!$A$3:$O$185, MATCH($A34, [3]EXTERNAL!$A$3:$A$185, 0)+1, MATCH(I$3, [3]EXTERNAL!$A$3:$O$3, 0)) -> 0 | J35: =INDEX([3]EXTERNAL!$A$3:$O$185, MATCH($A34, [3]EXTERNAL!$A$3:$A$185, 0)+1, MATCH(J$3, [3]EXTERNAL!$A$3:$O$3, 0)) -> 0 | K35: =INDEX([3]EXTERNAL!$A$3:$O$185, MATCH($A34, [3]EXTERNAL!$A$3:$A$185, 0)+1, MATCH(K$3, [3]EXTERNAL!$A$3:$O$3, 0)) -> 0 | L35: =INDEX([3]EXTERNAL!$A$3:$O$185, MATCH($A34, [3]EXTERNAL!$A$3:$A$185, 0)+1, MATCH(L$3, [3]EXTERNAL!$A$3:$O$3, 0)) -> 0
A36: =IF(A35="~","~","") -> 
A37: DIR_386 | B37: Rental Property | C37: CUS | E37: =IF(E38=0,0,E38/$D38) -> 0 | F37: 0 | G37: 0 | H37: 0 | I37: 0 | J37: 0 | K37: 0 | L37: 1 | M37: 0 | N37: 0 | O37: 0 | P37: 0 | Q37: 0 | R37: 0 | S37: 0
A38: =IF(A37="~","~","") ->  | D38: =SUM(E38:S38) -> 1 | E38: =INDEX([3]EXTERNAL!$A$3:$O$185, MATCH($A37, [3]EXTERNAL!$A$3:$A$185, 0)+1, MATCH(E$3, [3]EXTERNAL!$A$3:$O$3, 0)) -> 0 | F38: =INDEX([3]EXTERNAL!$A$3:$O$185, MATCH($A37, [3]EXTERNAL!$A$3:$A$185, 0)+1, MATCH(F$3, [3]EXTERNAL!$A$3:$O$3, 0)) -> 0 | G38: =INDEX([3]EXTERNAL!$A$3:$O$185, MATCH($A37, [3]EXTERNAL!$A$3:$A$185, 0)+1, MATCH(G$3, [3]EXTERNAL!$A$3:$O$3, 0)) -> 0 | H38: =INDEX([3]EXTERNAL!$A$3:$O$185, MATCH($A37, [3]EXTERNAL!$A$3:$A$185, 0)+1, MATCH(H$3, [3]EXTERNAL!$A$3:$O$3, 0)) -> 0 | I38: =INDEX([3]EXTERNAL!$A$3:$O$185, MATCH($A37, [3]EXTERNAL!$A$3:$A$185, 0)+1, MATCH(I$3, [3]EXTERNAL!$A$3:$O$3, 0)) -> 0 | J38: =INDEX([3]EXTERNAL!$A$3:$O$185, MATCH($A37, [3]EXTERNAL!$A$3:$A$185, 0)+1, MATCH(J$3, [3]EXTERNAL!$A$3:$O$3, 0)) -> 0 | K38: =INDEX([3]EXTERNAL!$A$3:$O$185, MATCH($A37, [3]EXTERNAL!$A$3:$A$185, 0)+1, MATCH(K$3, [3]EXTERNAL!$A$3:$O$3, 0)) -> 0 | L38: =INDEX([3]EXTERNAL!$A$3:$O$185, MATCH($A37, [3]EXTERNAL!$A$3:$A$185, 0)+1, MATCH(L$3, [3]EXTERNAL!$A$3:$O$3, 0)) -> 1
A39: =IF(A38="~","~","") -> 
A40: DIR_908 | B40: Direct Cust. Service Assignment to Rentals_908 | C40: CUS | E40: =IF(E41=0,0,E41/$D41) -> 0 | F40: 0 | G40: 0 | H40: 0 | I40: 0 | J40: 0 | K40: 0 | L40: 1 | M40: 0 | N40: 0 | O40: 0 | P40: 0 | Q40: 0 | R40: 0 | S40: 0
A41: =IF(A40="~","~","") ->  | D41: =SUM(E41:S41) -> 127083.7831 | E41: =INDEX([3]EXTERNAL!$A$3:$O$185, MATCH($A40, [3]EXTERNAL!$A$3:$A$185, 0)+1, MATCH(E$3, [3]EXTERNAL!$A$3:$O$3, 0)) -> 0 | F41: =INDEX([3]EXTERNAL!$A$3:$O$185, MATCH($A40, [3]EXTERNAL!$A$3:$A$185, 0)+1, MATCH(F$3, [3]EXTERNAL!$A$3:$O$3, 0)) -> 0 | G41: =INDEX([3]EXTERNAL!$A$3:$O$185, MATCH($A40, [3]EXTERNAL!$A$3:$A$185, 0)+1, MATCH(G$3, [3]EXTERNAL!$A$3:$O$3, 0)) -> 0 | H41: =INDEX([3]EXTERNAL!$A$3:$O$185, MATCH($A40, [3]EXTERNAL!$A$3:$A$185, 0)+1, MATCH(H$3, [3]EXTERNAL!$A$3:$O$3, 0)) -> 0 | I41: =INDEX([3]EXTERNAL!$A$3:$O$185, MATCH($A40, [3]EXTERNAL!$A$3:$A$185, 0)+1, MATCH(I$3, [3]EXTERNAL!$A$3:$O$3, 0)) -> 0 | J41: =INDEX([3]EXTERNAL!$A$3:$O$185, MATCH($A40, [3]EXTERNAL!$A$3:$A$185, 0)+1, MATCH(J$3, [3]EXTERNAL!$A$3:$O$3, 0)) -> 0 | K41: =INDEX([3]EXTERNAL!$A$3:$O$185, MATCH($A40, [3]EXTERNAL!$A$3:$A$185, 0)+1, MATCH(K$3, [3]EXTERNAL!$A$3:$O$3, 0)) -> 0 | L41: =INDEX([3]EXTERNAL!$A$3:$O$185, MATCH($A40, [3]EXTERNAL!$A$3:$A$185, 0)+1, MATCH(L$3, [3]EXTERNAL!$A$3:$O$3, 0)) -> 127083.7831
A42: =IF(A41="~","~","") -> 
A43: DIR_DSALES | B43: Direct Distr. Assignment to Sales | C43: DIRS | E43: =IF(E44=0,0,E44/$D44) -> 0.006307405326 | F43: 0.5622331338 | G43: 0.1718102527 | H43: 0.009022231925 | I43: 0.02739667692 | J43: 0.001398279188 | K43: 0 | L43: 0.2218320202 | M43: 0 | N43: 0 | O43: 0 | P43: 0 | Q43: 0 | R43: 0 | S43: 0
A44: =IF(A43="~","~","") ->  | D44: =SUM(E44:S44) -> 1455992.06 | E44: =INDEX([3]EXTERNAL!$A$3:$O$185, MATCH($A43, [3]EXTERNAL!$A$3:$A$185, 0)+1, MATCH(E$3, [3]EXTERNAL!$A$3:$O$3, 0)) -> 9183.532074 | F44: =INDEX([3]EXTERNAL!$A$3:$O$185, MATCH($A43, [3]EXTERNAL!$A$3:$A$185, 0)+1, MATCH(F$3, [3]EXTERNAL!$A$3:$O$3, 0)) -> 818606.9786 | G44: =INDEX([3]EXTERNAL!$A$3:$O$185, MATCH($A43, [3]EXTERNAL!$A$3:$A$185, 0)+1, MATCH(G$3, [3]EXTERNAL!$A$3:$O$3, 0)) -> 250154.3638 | H44: =INDEX([3]EXTERNAL!$A$3:$O$185, MATCH($A43, [3]EXTERNAL!$A$3:$A$185, 0)+1, MATCH(H$3, [3]EXTERNAL!$A$3:$O$3, 0)) -> 13136.29805 | I44: =INDEX([3]EXTERNAL!$A$3:$O$185, MATCH($A43, [3]EXTERNAL!$A$3:$A$185, 0)+1, MATCH(I$3, [3]EXTERNAL!$A$3:$O$3, 0)) -> 39889.34406 | J44: =INDEX([3]EXTERNAL!$A$3:$O$185, MATCH($A43, [3]EXTERNAL!$A$3:$A$185, 0)+1, MATCH(J$3, [3]EXTERNAL!$A$3:$O$3, 0)) -> 2035.883396 | K44: =INDEX([3]EXTERNAL!$A$3:$O$185, MATCH($A43, [3]EXTERNAL!$A$3:$A$185, 0)+1, MATCH(K$3, [3]EXTERNAL!$A$3:$O$3, 0)) -> 0 | L44: =INDEX([3]EXTERNAL!$A$3:$O$185, MATCH($A43, [3]EXTERNAL!$A$3:$A$185, 0)+1, MATCH(L$3, [3]EXTERNAL!$A$3:$O$3, 0)) -> 322985.66
A45: =IF(A44="~","~","") -> 
A46: DIR_DTRNSP | B46: Direct Distr. Assignment to Transport | C46: DIRT | E46: =IF(E47=0,0,E47/$D47) -> 0 | F46: 0.007299120319 | G46: 0.3855317608 | H46: 0.4702749808 | I46: 0.01364266062 | J46: 0.05121585427 | K46: 0.07203562317 | L46: 0 | M46: 0 | N46: 0 | O46: 0 | P46: 0 | Q46: 0 | R46: 0 | S46: 0
A47: =IF(A46="~","~","") ->  | D47: =SUM(E47:S47) -> 108368.93 | E47: =INDEX([3]EXTERNAL!$A$3:$O$185, MATCH($A46, [3]EXTERNAL!$A$3:$A$185, 0)+1, MATCH(E$3, [3]EXTERNAL!$A$3:$O$3, 0)) -> 0 | F47: =INDEX([3]EXTERNAL!$A$3:$O$185, MATCH($A46, [3]EXTERNAL!$A$3:$A$185, 0)+1, MATCH(F$3, [3]EXTERNAL!$A$3:$O$3, 0)) -> 790.9978588 | G47: =INDEX([3]EXTERNAL!$A$3:$O$185, MATCH($A46, [3]EXTERNAL!$A$3:$A$185, 0)+1, MATCH(G$3, [3]EXTERNAL!$A$3:$O$3, 0)) -> 41779.66439 | H47: =INDEX([3]EXTERNAL!$A$3:$O$185, MATCH($A46, [3]EXTERNAL!$A$3:$A$185, 0)+1, MATCH(H$3, [3]EXTERNAL!$A$3:$O$3, 0)) -> 50963.19647 | I47: =INDEX([3]EXTERNAL!$A$3:$O$185, MATCH($A46, [3]EXTERNAL!$A$3:$A$185, 0)+1, MATCH(I$3, [3]EXTERNAL!$A$3:$O$3, 0)) -> 1478.440533 | J47: =INDEX([3]EXTERNAL!$A$3:$O$185, MATCH($A46, [3]EXTERNAL!$A$3:$A$185, 0)+1, MATCH(J$3, [3]EXTERNAL!$A$3:$O$3, 0)) -> 5550.207325 | K47: =INDEX([3]EXTERNAL!$A$3:$O$185, MATCH($A46, [3]EXTERNAL!$A$3:$A$185, 0)+1, MATCH(K$3, [3]EXTERNAL!$A$3:$O$3, 0)) -> 7806.423404 | L47: =INDEX([3]EXTERNAL!$A$3:$O$185, MATCH($A46, [3]EXTERNAL!$A$3:$A$185, 0)+1, MATCH(L$3, [3]EXTERNAL!$A$3:$O$3, 0)) -> 0
A48: =IF(A47="~","~","") -> 
A49: DIR_CASALES | B49: Direct Cust. Acct. Assignment to Sales | C49: DIRS | E49: =IF(E50=0,0,E50/$D50) -> 0.8796370883 | F49: 0.08606252812 | G49: 0.01039405076 | H49: 0.003965572752 | I49: 0.001509399516 | J49: 0.008217772158 | K49: 0 | L49: 0.01021358838 | M49: 0 | N49: 0 | O49: 0 | P49: 0 | Q49: 0 | R49: 0 | S49: 0
A50: =IF(A49="~","~","") ->  | D50: =SUM(E50:S50) -> 5789976.685 | E50: =INDEX([3]EXTERNAL!$A$3:$O$185, MATCH($A49, [3]EXTERNAL!$A$3:$A$185, 0)+1, MATCH(E$3, [3]EXTERNAL!$A$3:$O$3, 0)) -> 5093078.233 | F50: =INDEX([3]EXTERNAL!$A$3:$O$185, MATCH($A49, [3]EXTERNAL!$A$3:$A$185, 0)+1, MATCH(F$3, [3]EXTERNAL!$A$3:$O$3, 0)) -> 498300.0312 | G50: =INDEX([3]EXTERNAL!$A$3:$O$185, MATCH($A49, [3]EXTERNAL!$A$3:$A$185, 0)+1, MATCH(G$3, [3]EXTERNAL!$A$3:$O$3, 0)) -> 60181.31157 | H50: =INDEX([3]EXTERNAL!$A$3:$O$185, MATCH($A49, [3]EXTERNAL!$A$3:$A$185, 0)+1, MATCH(H$3, [3]EXTERNAL!$A$3:$O$3, 0)) -> 22960.57377 | I50: =INDEX([3]EXTERNAL!$A$3:$O$185, MATCH($A49, [3]EXTERNAL!$A$3:$A$185, 0)+1, MATCH(I$3, [3]EXTERNAL!$A$3:$O$3, 0)) -> 8739.388005 | J50: =INDEX([3]EXTERNAL!$A$3:$O$185, MATCH($A49, [3]EXTERNAL!$A$3:$A$185, 0)+1, MATCH(J$3, [3]EXTERNAL!$A$3:$O$3, 0)) -> 47580.7092 | K50: =INDEX([3]EXTERNAL!$A$3:$O$185, MATCH($A49, [3]EXTERNAL!$A$3:$A$185, 0)+1, MATCH(K$3, [3]EXTERNAL!$A$3:$O$3, 0)) -> 0 | L50: =INDEX([3]EXTERNAL!$A$3:$O$185, MATCH($A49, [3]EXTERNAL!$A$3:$A$185, 0)+1, MATCH(L$3, [3]EXTERNAL!$A$3:$O$3, 0)) -> 59136.43857 | M50: 0 | N50: 0 | O50: 0
A51: =IF(A50="~","~","") -> 
A52: DIR_CATRNSP | B52: Direct Cust. Acct. Assignment to Transport | C52: DIRT | E52: =IF(E53=0,0,E53/$D53) -> 0 | F52: 0.0001961017984 | G52: 0.04732225757 | H52: 0.1654725915 | I52: 0.001704562496 | J52: 0.521353878 | K52: 0.2639506086 | L52: 0 | M52: 0 | N52: 0 | O52: 0 | P52: 0 | Q52: 0 | R52: 0 | S52: 0
A53: =IF(A52="~","~","") ->  | D53: =SUM(E53:S53) -> 281427.7582 | E53: =INDEX([3]EXTERNAL!$A$3:$O$185, MATCH($A52, [3]EXTERNAL!$A$3:$A$185, 0)+1, MATCH(E$3, [3]EXTERNAL!$A$3:$O$3, 0)) -> 0 | F53: =INDEX([3]EXTERNAL!$A$3:$O$185, MATCH($A52, [3]EXTERNAL!$A$3:$A$185, 0)+1, MATCH(F$3, [3]EXTERNAL!$A$3:$O$3, 0)) -> 55.18848952 | G53: =INDEX([3]EXTERNAL!$A$3:$O$185, MATCH($A52, [3]EXTERNAL!$A$3:$A$185, 0)+1, MATCH(G$3, [3]EXTERNAL!$A$3:$O$3, 0)) -> 13317.79686 | H53: =INDEX([3]EXTERNAL!$A$3:$O$185, MATCH($A52, [3]EXTERNAL!$A$3:$A$185, 0)+1, MATCH(H$3, [3]EXTERNAL!$A$3:$O$3, 0)) -> 46568.58048 | I53: =INDEX([3]EXTERNAL!$A$3:$O$185, MATCH($A52, [3]EXTERNAL!$A$3:$A$185, 0)+1, MATCH(I$3, [3]EXTERNAL!$A$3:$O$3, 0)) -> 479.7112021 | J53: =INDEX([3]EXTERNAL!$A$3:$O$185, MATCH($A52, [3]EXTERNAL!$A$3:$A$185, 0)+1, MATCH(J$3, [3]EXTERNAL!$A$3:$O$3, 0)) -> 146723.4531 | K53: =INDEX([3]EXTERNAL!$A$3:$O$185, MATCH($A52, [3]EXTERNAL!$A$3:$A$185, 0)+1, MATCH(K$3, [3]EXTERNAL!$A$3:$O$3, 0)) -> 74283.02808 | L53: =INDEX([3]EXTERNAL!$A$3:$O$185, MATCH($A52, [3]EXTERNAL!$A$3:$A$185, 0)+1, MATCH(L$3, [3]EXTERNAL!$A$3:$O$3, 0)) -> 0
A54: =IF(A53="~","~","") -> 
A55: TRANSCUS | B55: Transport Customers | C55: DIRT | E55: =IF(E56=0,0,E56/$D56) -> 0 | F55: 0.01105957902 | G55: 0.4566535854 | H55: 0.4377452729 | I55: 0.008919015341 | J55: 0.04281127364 | K55: 0.04281127364 | L55: 0 | M55: 0 | N55: 0 | O55: 0 | P55: 0 | Q55: 0 | R55: 0 | S55: 0
A56: =IF(A55="~","~","") ->  | D56: =SUM(E56:S56) -> 233.5833333 | E56: =INDEX([3]EXTERNAL!$A$3:$O$185, MATCH($A55, [3]EXTERNAL!$A$3:$A$185, 0)+1, MATCH(E$3, [3]EXTERNAL!$A$3:$O$3, 0)) -> 0 | F56: =INDEX([3]EXTERNAL!$A$3:$O$185, MATCH($A55, [3]EXTERNAL!$A$3:$A$185, 0)+1, MATCH(F$3, [3]EXTERNAL!$A$3:$O$3, 0)) -> 2.583333333 | G56: =INDEX([3]EXTERNAL!$A$3:$O$185, MATCH($A55, [3]EXTERNAL!$A$3:$A$185, 0)+1, MATCH(G$3, [3]EXTERNAL!$A$3:$O$3, 0)) -> 106.6666667 | H56: =INDEX([3]EXTERNAL!$A$3:$O$185, MATCH($A55, [3]EXTERNAL!$A$3:$A$185, 0)+1, MATCH(H$3, [3]EXTERNAL!$A$3:$O$3, 0)) -> 102.25 | I56: =INDEX([3]EXTERNAL!$A$3:$O$185, MATCH($A55, [3]EXTERNAL!$A$3:$A$185, 0)+1, MATCH(I$3, [3]EXTERNAL!$A$3:$O$3, 0)) -> 2.083333333 | J56: =INDEX([3]EXTERNAL!$A$3:$O$185, MATCH($A55, [3]EXTERNAL!$A$3:$A$185, 0)+1, MATCH(J$3, [3]EXTERNAL!$A$3:$O$3, 0)) -> 10 | K56: =INDEX([3]EXTERNAL!$A$3:$O$185, MATCH($A55, [3]EXTERNAL!$A$3:$A$185, 0)+1, MATCH(K$3, [3]EXTERNAL!$A$3:$O$3, 0)) -> 10 | L56: =INDEX([3]EXTERNAL!$A$3:$O$185, MATCH($A55, [3]EXTERNAL!$A$3:$A$185, 0)+1, MATCH(L$3, [3]EXTERNAL!$A$3:$O$3, 0)) -> 0 | O56: =O8-O11 -> 0 | P56: =P8-P11 -> 0 | Q56: =Q8-Q11 -> 0 | R56: =R8-R11 -> 0 | S56: =S8-S11 -> 0
A57: =IF(A56="~","~","") -> 
A58: SALES_902 | B58: Sales Meter Reading Costs | C58: DIRS | E58: =IF(E59=0,0,E59/$D59) -> 0.9208587197 | F58: 0.07689884278 | G58: 0.00187788673 | H58: 6.750940912e-06 | I58: 0.0003555495547 | J58: 2.250313637e-06 | K58: 0 | L58: 0 | M58: 0 | N58: 0 | O58: 0 | P58: 0 | Q58: 0 | R58: 0 | S58: 0
A59: =IF(A58="~","~","") ->  | D59: =SUM(E59:S59) -> 8016464.871 | E59: =INDEX([3]EXTERNAL!$A$3:$O$185, MATCH($A58, [3]EXTERNAL!$A$3:$A$185, 0)+1, MATCH(E$3, [3]EXTERNAL!$A$3:$O$3, 0)) -> 7382031.577 | F59: =INDEX([3]EXTERNAL!$A$3:$O$185, MATCH($A58, [3]EXTERNAL!$A$3:$A$185, 0)+1, MATCH(F$3, [3]EXTERNAL!$A$3:$O$3, 0)) -> 616456.8717 | G59: =INDEX([3]EXTERNAL!$A$3:$O$185, MATCH($A58, [3]EXTERNAL!$A$3:$A$185, 0)+1, MATCH(G$3, [3]EXTERNAL!$A$3:$O$3, 0)) -> 15054.01301 | H59: =INDEX([3]EXTERNAL!$A$3:$O$185, MATCH($A58, [3]EXTERNAL!$A$3:$A$185, 0)+1, MATCH(H$3, [3]EXTERNAL!$A$3:$O$3, 0)) -> 54.11868067 | I59: =INDEX([3]EXTERNAL!$A$3:$O$185, MATCH($A58, [3]EXTERNAL!$A$3:$A$185, 0)+1, MATCH(I$3, [3]EXTERNAL!$A$3:$O$3, 0)) -> 2850.250515 | J59: =INDEX([3]EXTERNAL!$A$3:$O$185, MATCH($A58, [3]EXTERNAL!$A$3:$A$185, 0)+1, MATCH(J$3, [3]EXTERNAL!$A$3:$O$3, 0)) -> 18.03956022 | K59: =INDEX([3]EXTERNAL!$A$3:$O$185, MATCH($A58, [3]EXTERNAL!$A$3:$A$185, 0)+1, MATCH(K$3, [3]EXTERNAL!$A$3:$O$3, 0)) -> 0 | L59: =INDEX([3]EXTERNAL!$A$3:$O$185, MATCH($A58, [3]EXTERNAL!$A$3:$A$185, 0)+1, MATCH(L$3, [3]EXTERNAL!$A$3:$O$3, 0)) -> 0
A60: =IF(A59="~","~","") -> 
A61: TRANS_902 | B61: Transport Meter Reading Costs | C61: DIRT | E61: =IF(E62=0,0,E62/$D62) -> 0 | F61: 0.007792207792 | G61: 0.3792207792 | H61: 0.4675324675 | I61: 0.01818181818 | J61: 0.04935064935 | K61: 0.07792207792 | L61: 0 | M61: 0 | N61: 0 | O61: 0 | P61: 0 | Q61: 0 | R61: 0 | S61: 0
A62: =IF(A61="~","~","") ->  | D62: =SUM(E62:S62) -> 3472.615343 | E62: =INDEX([3]EXTERNAL!$A$3:$O$185, MATCH($A61, [3]EXTERNAL!$A$3:$A$185, 0)+1, MATCH(E$3, [3]EXTERNAL!$A$3:$O$3, 0)) -> 0 | F62: =INDEX([3]EXTERNAL!$A$3:$O$185, MATCH($A61, [3]EXTERNAL!$A$3:$A$185, 0)+1, MATCH(F$3, [3]EXTERNAL!$A$3:$O$3, 0)) -> 27.05934033 | G62: =INDEX([3]EXTERNAL!$A$3:$O$185, MATCH($A61, [3]EXTERNAL!$A$3:$A$185, 0)+1, MATCH(G$3, [3]EXTERNAL!$A$3:$O$3, 0)) -> 1316.887896 | H62: =INDEX([3]EXTERNAL!$A$3:$O$185, MATCH($A61, [3]EXTERNAL!$A$3:$A$185, 0)+1, MATCH(H$3, [3]EXTERNAL!$A$3:$O$3, 0)) -> 1623.56042 | I62: =INDEX([3]EXTERNAL!$A$3:$O$185, MATCH($A61, [3]EXTERNAL!$A$3:$A$185, 0)+1, MATCH(I$3, [3]EXTERNAL!$A$3:$O$3, 0)) -> 63.13846078 | J62: =INDEX([3]EXTERNAL!$A$3:$O$185, MATCH($A61, [3]EXTERNAL!$A$3:$A$185, 0)+1, MATCH(J$3, [3]EXTERNAL!$A$3:$O$3, 0)) -> 171.3758221 | K62: =INDEX([3]EXTERNAL!$A$3:$O$185, MATCH($A61, [3]EXTERNAL!$A$3:$A$185, 0)+1, MATCH(K$3, [3]EXTERNAL!$A$3:$O$3, 0)) -> 270.5934033 | L62: =INDEX([3]EXTERNAL!$A$3:$O$185, MATCH($A61, [3]EXTERNAL!$A$3:$A$185, 0)+1, MATCH(L$3, [3]EXTERNAL!$A$3:$O$3, 0)) -> 0
A63: =IF(A62="~","~","") -> 
A64: DIR_904 | B64: Uncollectibles | C64: CUS | E64: =IF(E65=0,0,E65/$D65) -> 0.8494525874 | F64: =IF(F65=0,0,F65/$D65) -> 0.09489367851 | G64: =IF(G65=0,0,G65/$D65) -> 0 | H64: 0 | I64: 3.411613299e-05 | J64: 0 | K64: 0 | L64: 0.05561961791 | M64: 0 | N64: 0 | O64: 0 | P64: 0 | Q64: 0 | R64: 0 | S64: 0
A65: =IF(A64="~","~","") ->  | D65: =SUM(E65:S65) -> 4878337.18 | E65: =INDEX([3]EXTERNAL!$A$3:$O$185, MATCH($A64, [3]EXTERNAL!$A$3:$A$185, 0)+1, MATCH(E$3, [3]EXTERNAL!$A$3:$O$3, 0)) -> 4143916.14 | F65: =INDEX([3]EXTERNAL!$A$3:$O$185, MATCH($A64, [3]EXTERNAL!$A$3:$A$185, 0)+1, MATCH(F$3, [3]EXTERNAL!$A$3:$O$3, 0)) -> 462923.36 | G65: =INDEX([3]EXTERNAL!$A$3:$O$185, MATCH($A64, [3]EXTERNAL!$A$3:$A$185, 0)+1, MATCH(G$3, [3]EXTERNAL!$A$3:$O$3, 0)) -> 0 | H65: =INDEX([3]EXTERNAL!$A$3:$O$185, MATCH($A64, [3]EXTERNAL!$A$3:$A$185, 0)+1, MATCH(H$3, [3]EXTERNAL!$A$3:$O$3, 0)) -> 0 | I65: =INDEX([3]EXTERNAL!$A$3:$O$185, MATCH($A64, [3]EXTERNAL!$A$3:$A$185, 0)+1, MATCH(I$3, [3]EXTERNAL!$A$3:$O$3, 0)) -> 166.43 | J65: =INDEX([3]EXTERNAL!$A$3:$O$185, MATCH($A64, [3]EXTERNAL!$A$3:$A$185, 0)+1, MATCH(J$3, [3]EXTERNAL!$A$3:$O$3, 0)) -> 0 | K65: =INDEX([3]EXTERNAL!$A$3:$O$185, MATCH($A64, [3]EXTERNAL!$A$3:$A$185, 0)+1, MATCH(K$3, [3]EXTERNAL!$A$3:$O$3, 0)) -> 0 | L65: =INDEX([3]EXTERNAL!$A$3:$O$185, MATCH($A64, [3]EXTERNAL!$A$3:$A$185, 0)+1, MATCH(L$3, [3]EXTERNAL!$A$3:$O$3, 0)) -> 271331.25
A66: =IF(A65="~","~","") -> 
A67: DIR_235 | B67: Customer Deposit | C67: CUS | E67: =IF(E68=0,0,E68/$D68) -> 0.7623496198 | F67: 0.2124421717 | G67: 0.01093991576 | H67: 0 | I67: 0.001904751934 | J67: 0 | K67: 0 | L67: 0.01236354076 | M67: 0 | N67: 0 | O67: 0 | P67: 0 | Q67: 0 | R67: 0 | S67: 0
A68: =IF(A67="~","~","") ->  | D68: =SUM(E68:S68) -> 5209602.27 | E68: =INDEX([3]EXTERNAL!$A$3:$O$185, MATCH($A67, [3]EXTERNAL!$A$3:$A$185, 0)+1, MATCH(E$3, [3]EXTERNAL!$A$3:$O$3, 0)) -> 3971538.31 | F68: =INDEX([3]EXTERNAL!$A$3:$O$185, MATCH($A67, [3]EXTERNAL!$A$3:$A$185, 0)+1, MATCH(F$3, [3]EXTERNAL!$A$3:$O$3, 0)) -> 1106739.22 | G68: =INDEX([3]EXTERNAL!$A$3:$O$185, MATCH($A67, [3]EXTERNAL!$A$3:$A$185, 0)+1, MATCH(G$3, [3]EXTERNAL!$A$3:$O$3, 0)) -> 56992.61 | H68: =INDEX([3]EXTERNAL!$A$3:$O$185, MATCH($A67, [3]EXTERNAL!$A$3:$A$185, 0)+1, MATCH(H$3, [3]EXTERNAL!$A$3:$O$3, 0)) -> 0 | I68: =INDEX([3]EXTERNAL!$A$3:$O$185, MATCH($A67, [3]EXTERNAL!$A$3:$A$185, 0)+1, MATCH(I$3, [3]EXTERNAL!$A$3:$O$3, 0)) -> 9923 | J68: =INDEX([3]EXTERNAL!$A$3:$O$185, MATCH($A67, [3]EXTERNAL!$A$3:$A$185, 0)+1, MATCH(J$3, [3]EXTERNAL!$A$3:$O$3, 0)) -> 0 | K68: =INDEX([3]EXTERNAL!$A$3:$O$185, MATCH($A67, [3]EXTERNAL!$A$3:$A$185, 0)+1, MATCH(K$3, [3]EXTERNAL!$A$3:$O$3, 0)) -> 0 | L68: =INDEX([3]EXTERNAL!$A$3:$O$185, MATCH($A67, [3]EXTERNAL!$A$3:$A$185, 0)+1, MATCH(L$3, [3]EXTERNAL!$A$3:$O$3, 0)) -> 64409.13
A69: =IF(A68="~","~","") -> 
A70: DIR920_TRNSPT | B70: Acct. 920 Direct Assignment to Transport | C70: DIRT | E70: =IF(E71=0,0,E71/$D71) -> 0 | F70: 0 | G70: 0 | H70: 0 | I70: 0 | J70: 0 | K70: 0 | L70: 0 | M70: 0 | N70: 0 | O70: 0 | P70: 0 | Q70: 0 | R70: 0 | S70: 0
A71: =IF(A70="~","~","") ->  | D71: =SUM(E71:S71) -> 0 | E71: =INDEX([3]EXTERNAL!$A$3:$O$185, MATCH($A70, [3]EXTERNAL!$A$3:$A$185, 0)+1, MATCH(E$3, [3]EXTERNAL!$A$3:$O$3, 0)) -> 0 | F71: =INDEX([3]EXTERNAL!$A$3:$O$185, MATCH($A70, [3]EXTERNAL!$A$3:$A$185, 0)+1, MATCH(F$3, [3]EXTERNAL!$A$3:$O$3, 0)) -> 0 | G71: =INDEX([3]EXTERNAL!$A$3:$O$185, MATCH($A70, [3]EXTERNAL!$A$3:$A$185, 0)+1, MATCH(G$3, [3]EXTERNAL!$A$3:$O$3, 0)) -> 0 | H71: =INDEX([3]EXTERNAL!$A$3:$O$185, MATCH($A70, [3]EXTERNAL!$A$3:$A$185, 0)+1, MATCH(H$3, [3]EXTERNAL!$A$3:$O$3, 0)) -> 0 | I71: =INDEX([3]EXTERNAL!$A$3:$O$185, MATCH($A70, [3]EXTERNAL!$A$3:$A$185, 0)+1, MATCH(I$3, [3]EXTERNAL!$A$3:$O$3, 0)) -> 0 | J71: =INDEX([3]EXTERNAL!$A$3:$O$185, MATCH($A70, [3]EXTERNAL!$A$3:$A$185, 0)+1, MATCH(J$3, [3]EXTERNAL!$A$3:$O$3, 0)) -> 0 | K71: =INDEX([3]EXTERNAL!$A$3:$O$185, MATCH($A70, [3]EXTERNAL!$A$3:$A$185, 0)+1, MATCH(K$3, [3]EXTERNAL!$A$3:$O$3, 0)) -> 0 | L71: =INDEX([3]EXTERNAL!$A$3:$O$185, MATCH($A70, [3]EXTERNAL!$A$3:$A$185, 0)+1, MATCH(L$3, [3]EXTERNAL!$A$3:$O$3, 0)) -> 0
A72: =IF(A71="~","~","") -> 
A73: DIR921_TRNSPT | B73: Acct. 921 Direct Assignment to Transport | C73: DIRT | E73: =IF(E74=0,0,E74/$D74) -> 0 | F73: 0 | G73: 0 | H73: 0 | I73: 0 | J73: 0 | K73: 0 | L73: 0 | M73: 0 | N73: 0 | O73: 0 | P73: 0 | Q73: 0 | R73: 0 | S73: 0
A74: =IF(A73="~","~","") ->  | D74: =SUM(E74:S74) -> 0 | E74: =INDEX([3]EXTERNAL!$A$3:$O$185, MATCH($A73, [3]EXTERNAL!$A$3:$A$185, 0)+1, MATCH(E$3, [3]EXTERNAL!$A$3:$O$3, 0)) -> 0 | F74: =INDEX([3]EXTERNAL!$A$3:$O$185, MATCH($A73, [3]EXTERNAL!$A$3:$A$185, 0)+1, MATCH(F$3, [3]EXTERNAL!$A$3:$O$3, 0)) -> 0 | G74: =INDEX([3]EXTERNAL!$A$3:$O$185, MATCH($A73, [3]EXTERNAL!$A$3:$A$185, 0)+1, MATCH(G$3, [3]EXTERNAL!$A$3:$O$3, 0)) -> 0 | H74: =INDEX([3]EXTERNAL!$A$3:$O$185, MATCH($A73, [3]EXTERNAL!$A$3:$A$185, 0)+1, MATCH(H$3, [3]EXTERNAL!$A$3:$O$3, 0)) -> 0 | I74: =INDEX([3]EXTERNAL!$A$3:$O$185, MATCH($A73, [3]EXTERNAL!$A$3:$A$185, 0)+1, MATCH(I$3, [3]EXTERNAL!$A$3:$O$3, 0)) -> 0 | J74: =INDEX([3]EXTERNAL!$A$3:$O$185, MATCH($A73, [3]EXTERNAL!$A$3:$A$185, 0)+1, MATCH(J$3, [3]EXTERNAL!$A$3:$O$3, 0)) -> 0 | K74: =INDEX([3]EXTERNAL!$A$3:$O$185, MATCH($A73, [3]EXTERNAL!$A$3:$A$185, 0)+1, MATCH(K$3, [3]EXTERNAL!$A$3:$O$3, 0)) -> 0 | L74: =INDEX([3]EXTERNAL!$A$3:$O$185, MATCH($A73, [3]EXTERNAL!$A$3:$A$185, 0)+1, MATCH(L$3, [3]EXTERNAL!$A$3:$O$3, 0)) -> 0
A75: =IF(A74="~","~","") -> 
A76: DIR926_SALES | B76: Acct. 926 Direct Assignment to Sales | C76: DIRS | E76: =IF(E77=0,0,E77/$D77) -> 0.5795756277 | F76: 0.2944401198 | G76: 0.08679094363 | H76: 0.01069168679 | I76: 0.01367713853 | J76: 0.01482448356 | K76: 0 | L76: 0 | M76: 0 | N76: 0 | O76: 0 | P76: 0 | Q76: 0 | R76: 0 | S76: 0
A77: =IF(A76="~","~","") ->  | D77: =SUM(E77:S77) -> 799286.3676 | E77: =INDEX([3]EXTERNAL!$A$3:$O$185, MATCH($A76, [3]EXTERNAL!$A$3:$A$185, 0)+1, MATCH(E$3, [3]EXTERNAL!$A$3:$O$3, 0)) -> 463246.8981 | F77: =INDEX([3]EXTERNAL!$A$3:$O$185, MATCH($A76, [3]EXTERNAL!$A$3:$A$185, 0)+1, MATCH(F$3, [3]EXTERNAL!$A$3:$O$3, 0)) -> 235341.9738 | G77: =INDEX([3]EXTERNAL!$A$3:$O$185, MATCH($A76, [3]EXTERNAL!$A$3:$A$185, 0)+1, MATCH(G$3, [3]EXTERNAL!$A$3:$O$3, 0)) -> 69370.81807 | H77: =INDEX([3]EXTERNAL!$A$3:$O$185, MATCH($A76, [3]EXTERNAL!$A$3:$A$185, 0)+1, MATCH(H$3, [3]EXTERNAL!$A$3:$O$3, 0)) -> 8545.7195 | I77: =INDEX([3]EXTERNAL!$A$3:$O$185, MATCH($A76, [3]EXTERNAL!$A$3:$A$185, 0)+1, MATCH(I$3, [3]EXTERNAL!$A$3:$O$3, 0)) -> 10931.95037 | J77: =INDEX([3]EXTERNAL!$A$3:$O$185, MATCH($A76, [3]EXTERNAL!$A$3:$A$185, 0)+1, MATCH(J$3, [3]EXTERNAL!$A$3:$O$3, 0)) -> 11849.00761 | K77: =INDEX([3]EXTERNAL!$A$3:$O$185, MATCH($A76, [3]EXTERNAL!$A$3:$A$185, 0)+1, MATCH(K$3, [3]EXTERNAL!$A$3:$O$3, 0)) -> 0 | L77: =INDEX([3]EXTERNAL!$A$3:$O$185, MATCH($A76, [3]EXTERNAL!$A$3:$A$185, 0)+1, MATCH(L$3, [3]EXTERNAL!$A$3:$O$3, 0)) -> 0
A78: =IF(A77="~","~","") -> 
A79: DIR926_TRNSPT | B79: Acct. 926 Direct Assignment to Transport | C79: DIRT | E79: =IF(E80=0,0,E80/$D80) -> 0 | F79: 0.002124041895 | G79: 0.1395069988 | H79: 0.248563542 | I79: 0.004918206469 | J79: 0.3931970644 | K79: 0.2116901464 | L79: 0 | M79: 0 | N79: 0 | O79: 0 | P79: 0 | Q79: 0 | R79: 0 | S79: 0
A80: =IF(A79="~","~","") ->  | D80: =SUM(E80:S80) -> 92481.45351 | E80: =INDEX([3]EXTERNAL!$A$3:$O$185, MATCH($A79, [3]EXTERNAL!$A$3:$A$185, 0)+1, MATCH(E$3, [3]EXTERNAL!$A$3:$O$3, 0)) -> 0 | F80: =INDEX([3]EXTERNAL!$A$3:$O$185, MATCH($A79, [3]EXTERNAL!$A$3:$A$185, 0)+1, MATCH(F$3, [3]EXTERNAL!$A$3:$O$3, 0)) -> 196.4344818 | G80: =INDEX([3]EXTERNAL!$A$3:$O$185, MATCH($A79, [3]EXTERNAL!$A$3:$A$185, 0)+1, MATCH(G$3, [3]EXTERNAL!$A$3:$O$3, 0)) -> 12901.81002 | H80: =INDEX([3]EXTERNAL!$A$3:$O$185, MATCH($A79, [3]EXTERNAL!$A$3:$A$185, 0)+1, MATCH(H$3, [3]EXTERNAL!$A$3:$O$3, 0)) -> 22987.51765 | I80: =INDEX([3]EXTERNAL!$A$3:$O$185, MATCH($A79, [3]EXTERNAL!$A$3:$A$185, 0)+1, MATCH(I$3, [3]EXTERNAL!$A$3:$O$3, 0)) -> 454.842883 | J80: =INDEX([3]EXTERNAL!$A$3:$O$185, MATCH($A79, [3]EXTERNAL!$A$3:$A$185, 0)+1, MATCH(J$3, [3]EXTERNAL!$A$3:$O$3, 0)) -> 36363.43604 | K80: =INDEX([3]EXTERNAL!$A$3:$O$185, MATCH($A79, [3]EXTERNAL!$A$3:$A$185, 0)+1, MATCH(K$3, [3]EXTERNAL!$A$3:$O$3, 0)) -> 19577.41244 | L80: =INDEX([3]EXTERNAL!$A$3:$O$185, MATCH($A79, [3]EXTERNAL!$A$3:$A$185, 0)+1, MATCH(L$3, [3]EXTERNAL!$A$3:$O$3, 0)) -> 0
A81: =IF(A80="~","~","") -> 
A82: DIR408_SALES | B82: Acct. 408 Direct Assignment to Sales | C82: DIRS | E82: =IF(E83=0,0,E83/$D83) -> 0.5799138172 | F82: 0.2942349116 | G82: 0.08669116381 | H82: 0.01068100848 | I82: 0.01366270375 | J82: 0.01481639511 | K82: 0 | L82: 0 | M82: 0 | N82: 0 | O82: 0 | P82: 0 | Q82: 0 | R82: 0 | S82: 0
A83: =IF(A82="~","~","") ->  | D83: =SUM(E83:S83) -> 213764.8632 | E83: =INDEX([3]EXTERNAL!$A$3:$O$185, MATCH($A82, [3]EXTERNAL!$A$3:$A$185, 0)+1, MATCH(E$3, [3]EXTERNAL!$A$3:$O$3, 0)) -> 123965.1978 | F83: =INDEX([3]EXTERNAL!$A$3:$O$185, MATCH($A82, [3]EXTERNAL!$A$3:$A$185, 0)+1, MATCH(F$3, [3]EXTERNAL!$A$3:$O$3, 0)) -> 62897.08563 | G83: =INDEX([3]EXTERNAL!$A$3:$O$185, MATCH($A82, [3]EXTERNAL!$A$3:$A$185, 0)+1, MATCH(G$3, [3]EXTERNAL!$A$3:$O$3, 0)) -> 18531.52477 | H83: =INDEX([3]EXTERNAL!$A$3:$O$185, MATCH($A82, [3]EXTERNAL!$A$3:$A$185, 0)+1, MATCH(H$3, [3]EXTERNAL!$A$3:$O$3, 0)) -> 2283.224316 | I83: =INDEX([3]EXTERNAL!$A$3:$O$185, MATCH($A82, [3]EXTERNAL!$A$3:$A$185, 0)+1, MATCH(I$3, [3]EXTERNAL!$A$3:$O$3, 0)) -> 2920.605999 | J83: =INDEX([3]EXTERNAL!$A$3:$O$185, MATCH($A82, [3]EXTERNAL!$A$3:$A$185, 0)+1, MATCH(J$3, [3]EXTERNAL!$A$3:$O$3, 0)) -> 3167.224672 | K83: =INDEX([3]EXTERNAL!$A$3:$O$185, MATCH($A82, [3]EXTERNAL!$A$3:$A$185, 0)+1, MATCH(K$3, [3]EXTERNAL!$A$3:$O$3, 0)) -> 0 | L83: =INDEX([3]EXTERNAL!$A$3:$O$185, MATCH($A82, [3]EXTERNAL!$A$3:$A$185, 0)+1, MATCH(L$3, [3]EXTERNAL!$A$3:$O$3, 0)) -> 0
A84: =IF(A83="~","~","") -> 
A85: DIR408_TRNSPT | B85: Acct. 408 Direct Assignment to Transport | C85: DIRT | E85: =IF(E86=0,0,E86/$D86) -> 0 | F85: 0.002121876364 | G85: 0.1394003059 | H85: 0.2484807934 | I85: 0.00491554877 | J85: 0.393335128 | K85: 0.2117463476 | L85: 0 | M85: 0 | N85: 0 | O85: 0 | P85: 0 | Q85: 0 | R85: 0 | S85: 0
A86: =IF(A85="~","~","") ->  | D86: =SUM(E86:S86) -> 24711.72068 | E86: =INDEX([3]EXTERNAL!$A$3:$O$185, MATCH($A85, [3]EXTERNAL!$A$3:$A$185, 0)+1, MATCH(E$3, [3]EXTERNAL!$A$3:$O$3, 0)) -> 0 | F86: =INDEX([3]EXTERNAL!$A$3:$O$185, MATCH($A85, [3]EXTERNAL!$A$3:$A$185, 0)+1, MATCH(F$3, [3]EXTERNAL!$A$3:$O$3, 0)) -> 52.43521602 | G86: =INDEX([3]EXTERNAL!$A$3:$O$185, MATCH($A85, [3]EXTERNAL!$A$3:$A$185, 0)+1, MATCH(G$3, [3]EXTERNAL!$A$3:$O$3, 0)) -> 3444.821423 | H86: =INDEX([3]EXTERNAL!$A$3:$O$185, MATCH($A85, [3]EXTERNAL!$A$3:$A$185, 0)+1, MATCH(H$3, [3]EXTERNAL!$A$3:$O$3, 0)) -> 6140.38796 | I86: =INDEX([3]EXTERNAL!$A$3:$O$185, MATCH($A85, [3]EXTERNAL!$A$3:$A$185, 0)+1, MATCH(I$3, [3]EXTERNAL!$A$3:$O$3, 0)) -> 121.4716682 | J86: =INDEX([3]EXTERNAL!$A$3:$O$185, MATCH($A85, [3]EXTERNAL!$A$3:$A$185, 0)+1, MATCH(J$3, [3]EXTERNAL!$A$3:$O$3, 0)) -> 9719.987817 | K86: =INDEX([3]EXTERNAL!$A$3:$O$185, MATCH($A85, [3]EXTERNAL!$A$3:$A$185, 0)+1, MATCH(K$3, [3]EXTERNAL!$A$3:$O$3, 0)) -> 5232.616596 | L86: =INDEX([3]EXTERNAL!$A$3:$O$185, MATCH($A85, [3]EXTERNAL!$A$3:$A$185, 0)+1, MATCH(L$3, [3]EXTERNAL!$A$3:$O$3, 0)) -> 0
A87: =IF(A86="~","~","") -> 
A88: ~ | B88: ~ | E88: =IF(E89=0,0,E89/$D89) -> 0 | F88: 0 | G88: 0 | H88: 0 | I88: 0 | J88: 0 | K88: 0 | L88: 0 | M88: 0 | N88: 0 | O88: 0 | P88: 0 | Q88: 0 | R88: 0 | S88: 0
A89: =IF(A88="~","~","") -> ~ | D89: =SUM(E89:S89) -> 0 | K89: 0
A90: =IF(A89="~","~","") -> ~
A92: COMMODITY EXTERNAL ALLOCATORS
A94: OTHREV | B94: Other Operating Revenue | C94: COM | E94: =IF(E95=0,0,E95/$D95) -> 0.9544633555 | F94: 0.03808127624 | G94: -0.003456381879 | H94: -0.02834242232 | I94: -3.192554922e-05 | J94: 0 | K94: 0 | L94: 0.03928609796 | M94: 0 | N94: 0 | O94: 0 | P94: 0 | Q94: 0 | R94: 0 | S94: 0
A95: =IF(A94="~","~","") ->  | D95: =SUM(E95:S95) -> 3546060.096 | E95: =INDEX([3]EXTERNAL!$A$3:$O$185, MATCH($A94, [3]EXTERNAL!$A$3:$A$185, 0)+1, MATCH(E$3, [3]EXTERNAL!$A$3:$O$3, 0)) -> 3384584.418 | F95: =INDEX([3]EXTERNAL!$A$3:$O$185, MATCH($A94, [3]EXTERNAL!$A$3:$A$185, 0)+1, MATCH(F$3, [3]EXTERNAL!$A$3:$O$3, 0)) -> 135038.4941 | G95: =INDEX([3]EXTERNAL!$A$3:$O$185, MATCH($A94, [3]EXTERNAL!$A$3:$A$185, 0)+1, MATCH(G$3, [3]EXTERNAL!$A$3:$O$3, 0)) -> -12256.53786 | H95: =INDEX([3]EXTERNAL!$A$3:$O$185, MATCH($A94, [3]EXTERNAL!$A$3:$A$185, 0)+1, MATCH(H$3, [3]EXTERNAL!$A$3:$O$3, 0)) -> -100503.9328 | I95: =INDEX([3]EXTERNAL!$A$3:$O$185, MATCH($A94, [3]EXTERNAL!$A$3:$A$185, 0)+1, MATCH(I$3, [3]EXTERNAL!$A$3:$O$3, 0)) -> -113.2099162 | J95: =INDEX([3]EXTERNAL!$A$3:$O$185, MATCH($A94, [3]EXTERNAL!$A$3:$A$185, 0)+1, MATCH(J$3, [3]EXTERNAL!$A$3:$O$3, 0)) -> 0 | K95: =INDEX([3]EXTERNAL!$A$3:$O$185, MATCH($A94, [3]EXTERNAL!$A$3:$A$185, 0)+1, MATCH(K$3, [3]EXTERNAL!$A$3:$O$3, 0)) -> 0 | L95: =INDEX([3]EXTERNAL!$A$3:$O$185, MATCH($A94, [3]EXTERNAL!$A$3:$A$185, 0)+1, MATCH(L$3, [3]EXTERNAL!$A$3:$O$3, 0)) -> 139310.8643
A96: =IF(A95="~","~","") -> 
A97: SALESREV | B97: Sales Margin Revenue | C97: COM | E97: =IF(E98=0,0,E98/$D98) -> 0.7348881897 | F97: 0.218316138 | G97: 0.03591537563 | H97: 0.003682549548 | I97: 0.004656814687 | J97: 0.002540932454 | K97: 0 | L97: 0 | M97: 0 | N97: 0 | O97: 0 | P97: 0 | Q97: 0 | R97: 0 | S97: 0
A98: =IF(A97="~","~","") ->  | D98: =SUM(E98:S98) -> 427599407.3 | E98: =INDEX([3]EXTERNAL!$A$3:$O$185, MATCH($A97, [3]EXTERNAL!$A$3:$A$185, 0)+1, MATCH(E$3, [3]EXTERNAL!$A$3:$O$3, 0)) -> 314237754.4 | F98: =INDEX([3]EXTERNAL!$A$3:$O$185, MATCH($A97, [3]EXTERNAL!$A$3:$A$185, 0)+1, MATCH(F$3, [3]EXTERNAL!$A$3:$O$3, 0)) -> 93351851.2 | G98: =INDEX([3]EXTERNAL!$A$3:$O$185, MATCH($A97, [3]EXTERNAL!$A$3:$A$185, 0)+1, MATCH(G$3, [3]EXTERNAL!$A$3:$O$3, 0)) -> 15357393.33 | H98: =INDEX([3]EXTERNAL!$A$3:$O$185, MATCH($A97, [3]EXTERNAL!$A$3:$A$185, 0)+1, MATCH(H$3, [3]EXTERNAL!$A$3:$O$3, 0)) -> 1574656.004 | I98: =INDEX([3]EXTERNAL!$A$3:$O$185, MATCH($A97, [3]EXTERNAL!$A$3:$A$185, 0)+1, MATCH(I$3, [3]EXTERNAL!$A$3:$O$3, 0)) -> 1991251.2 | J98: =INDEX([3]EXTERNAL!$A$3:$O$185, MATCH($A97, [3]EXTERNAL!$A$3:$A$185, 0)+1, MATCH(J$3, [3]EXTERNAL!$A$3:$O$3, 0)) -> 1086501.212 | K98: =INDEX([3]EXTERNAL!$A$3:$O$185, MATCH($A97, [3]EXTERNAL!$A$3:$A$185, 0)+1, MATCH(K$3, [3]EXTERNAL!$A$3:$O$3, 0)) -> 0 | L98: =INDEX([3]EXTERNAL!$A$3:$O$185, MATCH($A97, [3]EXTERNAL!$A$3:$A$185, 0)+1, MATCH(L$3, [3]EXTERNAL!$A$3:$O$3, 0)) -> 0
A99: =IF(A98="~","~","") -> 
A100: STRREV | B100: Sales, Transportation and Rental Margin Revenue | C100: COM | E100: =IF(E101=0,0,E101/$D101) -> 0.6982387255 | F100: 0.2074767188 | G100: 0.0432826148 | H100: 0.01891311996 | I100: 0.00458224134 | J100: 0.01026276613 | K100: 0.003819445969 | L100: 0.0134243675 | M100: 0 | N100: 0 | O100: 0 | P100: 0 | Q100: 0 | R100: 0 | S100: 0
A101: =IF(A100="~","~","") ->  | D101: =SUM(E101:S101) -> 450043434.8 | E101: =E110 -> 314237754.4 | F101: =F110 -> 93373535.17 | G101: 19479056.63 | H101: 8511725.471 | I101: 2062207.632 | J101: 4618690.519 | K101: 1718916.583 | L101: 6041548.46
A102: =IF(A101="~","~","") -> 
A103: ~ | E103: =IF(E104=0,0,E104/$D104) -> 0 | F103: 0 | G103: 0 | H103: 0 | I103: 0 | J103: 0 | K103: 0 | L103: 0 | M103: 0 | N103: 0 | O103: 0 | P103: 0 | Q103: 0 | R103: 0 | S103: 0
A104: =IF(A103="~","~","") -> ~ | B104: 0 | D104: =SUM(E104:S104) -> 0
A105: =IF(A104="~","~","") -> ~
A106: TRANSREV | B106: Margin Revenue from Transportation for Others | C106: COM | E106: =IF(E107=0,0,E107/$D107) -> 0 | F106: 0.001321993413 | G106: 0.2512829484 | H106: 0.42292811 | I106: 0.004325957752 | J106: 0.2153448448 | K106: 0.1047961456 | L106: 0 | M106: 0 | N106: 0 | O106: 0 | P106: 0 | Q106: 0 | R106: 0 | S106: 0
A107: =IF(A106="~","~","") ->  | D107: =SUM(E107:S107) -> 16402479.06 | E107: =INDEX([3]EXTERNAL!$A$3:$O$185, MATCH($A106, [3]EXTERNAL!$A$3:$A$185, 0)+1, MATCH(E$3, [3]EXTERNAL!$A$3:$O$3, 0)) -> 0 | F107: =INDEX([3]EXTERNAL!$A$3:$O$185, MATCH($A106, [3]EXTERNAL!$A$3:$A$185, 0)+1, MATCH(F$3, [3]EXTERNAL!$A$3:$O$3, 0)) -> 21683.96927 | G107: =INDEX([3]EXTERNAL!$A$3:$O$185, MATCH($A106, [3]EXTERNAL!$A$3:$A$185, 0)+1, MATCH(G$3, [3]EXTERNAL!$A$3:$O$3, 0)) -> 4121663.298 | H107: =INDEX([3]EXTERNAL!$A$3:$O$185, MATCH($A106, [3]EXTERNAL!$A$3:$A$185, 0)+1, MATCH(H$3, [3]EXTERNAL!$A$3:$O$3, 0)) -> 6937069.466 | I107: =INDEX([3]EXTERNAL!$A$3:$O$185, MATCH($A106, [3]EXTERNAL!$A$3:$A$185, 0)+1, MATCH(I$3, [3]EXTERNAL!$A$3:$O$3, 0)) -> 70956.43143 | J107: =INDEX([3]EXTERNAL!$A$3:$O$185, MATCH($A106, [3]EXTERNAL!$A$3:$A$185, 0)+1, MATCH(J$3, [3]EXTERNAL!$A$3:$O$3, 0)) -> 3532189.307 | K107: =INDEX([3]EXTERNAL!$A$3:$O$185, MATCH($A106, [3]EXTERNAL!$A$3:$A$185, 0)+1, MATCH(K$3, [3]EXTERNAL!$A$3:$O$3, 0)) -> 1718916.583 | L107: =INDEX([3]EXTERNAL!$A$3:$O$185, MATCH($A106, [3]EXTERNAL!$A$3:$A$185, 0)+1, MATCH(L$3, [3]EXTERNAL!$A$3:$O$3, 0)) -> 0
A108: =IF(A107="~","~","") -> 
A109: STREV | B109: Sales & Transportation Margin Revenue | C109: COM | E109: =IF(E110=0,0,E110/$D110) -> 0.7077396831 | F109: 0.2102998614 | G109: 0.04387156278 | H109: 0.01917047141 | I109: 0.00464459205 | J109: 0.01040241193 | K109: 0.003871417298 | L109: 0 | M109: 0 | N109: 0 | O109: 0 | P109: 0 | Q109: 0 | R109: 0 | S109: 0
A110: =IF(A109="~","~","") ->  | D110: =SUM(E110:S110) -> 444001886.4 | E110: =E98+E107 -> 314237754.4 | F110: 93373535.17 | G110: 19479056.63 | H110: 8511725.471 | I110: 2062207.632 | J110: 4618690.519 | K110: 1718916.583 | L110: 0
A111: =IF(A110="~","~","") -> 
A112: COM_1 | B112: Weather Normalized Volumes | C112: COM | E112: =IF(E113=0,0,E113/$D113) -> 0.5114207319 | F112: 0.1965715427 | G112: 0.07246594691 | H112: 0.07635158671 | I112: 0.008183038268 | J112: 0.1039013909 | K112: 0.03110576266 | L112: 0 | M112: 0 | N112: 0 | O112: 0 | P112: 0 | Q112: 0 | R112: 0 | S112: 0
A113: =IF(A112="~","~","") ->  | D113: =SUM(E113:S113) -> 1191304269 | E113: =INDEX([3]EXTERNAL!$A$3:$O$185, MATCH($A112, [3]EXTERNAL!$A$3:$A$185, 0)+1, MATCH(E$3, [3]EXTERNAL!$A$3:$O$3, 0)) -> 609257701.2 | F113: =INDEX([3]EXTERNAL!$A$3:$O$185, MATCH($A112, [3]EXTERNAL!$A$3:$A$185, 0)+1, MATCH(F$3, [3]EXTERNAL!$A$3:$O$3, 0)) -> 234176518.1 | G113: =INDEX([3]EXTERNAL!$A$3:$O$185, MATCH($A112, [3]EXTERNAL!$A$3:$A$185, 0)+1, MATCH(G$3, [3]EXTERNAL!$A$3:$O$3, 0)) -> 86328991.91 | H113: =INDEX([3]EXTERNAL!$A$3:$O$185, MATCH($A112, [3]EXTERNAL!$A$3:$A$185, 0)+1, MATCH(H$3, [3]EXTERNAL!$A$3:$O$3, 0)) -> 90957971.2 | I113: =INDEX([3]EXTERNAL!$A$3:$O$185, MATCH($A112, [3]EXTERNAL!$A$3:$A$185, 0)+1, MATCH(I$3, [3]EXTERNAL!$A$3:$O$3, 0)) -> 9748488.423 | J113: =INDEX([3]EXTERNAL!$A$3:$O$185, MATCH($A112, [3]EXTERNAL!$A$3:$A$185, 0)+1, MATCH(J$3, [3]EXTERNAL!$A$3:$O$3, 0)) -> 123778170.5 | K113: =INDEX([3]EXTERNAL!$A$3:$O$185, MATCH($A112, [3]EXTERNAL!$A$3:$A$185, 0)+1, MATCH(K$3, [3]EXTERNAL!$A$3:$O$3, 0)) -> 37056427.85 | L113: =INDEX([3]EXTERNAL!$A$3:$O$185, MATCH($A112, [3]EXTERNAL!$A$3:$A$185, 0)+1, MATCH(L$3, [3]EXTERNAL!$A$3:$O$3, 0)) -> 0
A114: =IF(A113="~","~","") -> 
A115: COM1XT_COM | B115: Weather Normalized Volumes (excl. Transportation) | C115: COM | E115: =IF(E116=0,0,E116/$D116) -> 0.6358666918 | F115: 0.244366099 | G115: 0.06871203679 | H115: 0.01689128021 | I115: 0.009807617759 | J115: 0.02435627443 | K115: 0 | L115: 0 | M115: 0 | N115: 0 | O115: 0 | P115: 0 | Q115: 0 | R115: 0 | S115: 0
A116: =IF(A115="~","~","") ->  | D116: =SUM(E116:S116) -> 958153193.2 | E116: =INDEX([3]EXTERNAL!$A$3:$O$185, MATCH($A115, [3]EXTERNAL!$A$3:$A$185, 0)+1, MATCH(E$3, [3]EXTERNAL!$A$3:$O$3, 0)) -> 609257701.2 | F116: =INDEX([3]EXTERNAL!$A$3:$O$185, MATCH($A115, [3]EXTERNAL!$A$3:$A$185, 0)+1, MATCH(F$3, [3]EXTERNAL!$A$3:$O$3, 0)) -> 234140158.1 | G116: =INDEX([3]EXTERNAL!$A$3:$O$185, MATCH($A115, [3]EXTERNAL!$A$3:$A$185, 0)+1, MATCH(G$3, [3]EXTERNAL!$A$3:$O$3, 0)) -> 65836657.46 | H116: =INDEX([3]EXTERNAL!$A$3:$O$185, MATCH($A115, [3]EXTERNAL!$A$3:$A$185, 0)+1, MATCH(H$3, [3]EXTERNAL!$A$3:$O$3, 0)) -> 16184434.07 | I116: =INDEX([3]EXTERNAL!$A$3:$O$185, MATCH($A115, [3]EXTERNAL!$A$3:$A$185, 0)+1, MATCH(I$3, [3]EXTERNAL!$A$3:$O$3, 0)) -> 9397200.273 | J116: =INDEX([3]EXTERNAL!$A$3:$O$185, MATCH($A115, [3]EXTERNAL!$A$3:$A$185, 0)+1, MATCH(J$3, [3]EXTERNAL!$A$3:$O$3, 0)) -> 23337042.12 | K116: =INDEX([3]EXTERNAL!$A$3:$O$185, MATCH($A115, [3]EXTERNAL!$A$3:$A$185, 0)+1, MATCH(K$3, [3]EXTERNAL!$A$3:$O$3, 0)) -> 0 | L116: =INDEX([3]EXTERNAL!$A$3:$O$185, MATCH($A115, [3]EXTERNAL!$A$3:$A$185, 0)+1, MATCH(L$3, [3]EXTERNAL!$A$3:$O$3, 0)) -> 0
A117: =IF(A116="~","~","") -> 
A118: COM1GS | B118: Weather Normalized Volumes | C118: COM | E118: =IF(E119=0,0,E119/$D119) -> 0.5114207319 | F118: 0.1965715427 | G118: 0.07246594691 | H118: 0.07635158671 | I118: 0.008183038268 | J118: 0.1039013909 | K118: 0.03110576266 | L118: 0 | M118: 0 | N118: 0 | O118: 0 | P118: 0 | Q118: 0 | R118: 0 | S118: 0
A119: =IF(A118="~","~","") ->  | D119: =SUM(E119:S119) -> 1191304269 | E119: =E113 -> 609257701.2 | F119: 234176518.1 | G119: 86328991.91 | H119: 90957971.2 | I119: 9748488.423 | J119: 123778170.5 | K119: 37056427.85 | L119: 0
A120: =IF(A119="~","~","") -> 
A121: A_MAINS | B121: Average for Mains | C121: COM | E121: =IF(E122=0,0,E122/$D122) -> 0.5656232342 | F121: 0.2174050147 | G121: 0.08014619022 | H121: 0.06858587786 | I121: 0.007350742629 | J121: 0.05956311365 | K121: 0.001325826723 | L121: 0 | M121: 0 | N121: 0 | O121: 0 | P121: 0 | Q121: 0 | R121: 0 | S121: 0
A122: =IF(A121="~","~","") ->  | D122: =SUM(E122:S122) -> 629907969.7 | E122: =INDEX([3]EXTERNAL!$A$3:$O$185, MATCH($A121, [3]EXTERNAL!$A$3:$A$185, 0)+1, MATCH(E$3, [3]EXTERNAL!$A$3:$O$3, 0)) -> 356290583 | F122: =INDEX([3]EXTERNAL!$A$3:$O$185, MATCH($A121, [3]EXTERNAL!$A$3:$A$185, 0)+1, MATCH(F$3, [3]EXTERNAL!$A$3:$O$3, 0)) -> 136945151.4 | G122: =INDEX([3]EXTERNAL!$A$3:$O$185, MATCH($A121, [3]EXTERNAL!$A$3:$A$185, 0)+1, MATCH(G$3, [3]EXTERNAL!$A$3:$O$3, 0)) -> 50484723.95 | H122: =INDEX([3]EXTERNAL!$A$3:$O$185, MATCH($A121, [3]EXTERNAL!$A$3:$A$185, 0)+1, MATCH(H$3, [3]EXTERNAL!$A$3:$O$3, 0)) -> 43202791.07 | I122: =INDEX([3]EXTERNAL!$A$3:$O$185, MATCH($A121, [3]EXTERNAL!$A$3:$A$185, 0)+1, MATCH(I$3, [3]EXTERNAL!$A$3:$O$3, 0)) -> 4630291.365 | J122: =INDEX([3]EXTERNAL!$A$3:$O$185, MATCH($A121, [3]EXTERNAL!$A$3:$A$185, 0)+1, MATCH(J$3, [3]EXTERNAL!$A$3:$O$3, 0)) -> 37519279.99 | K122: =INDEX([3]EXTERNAL!$A$3:$O$185, MATCH($A121, [3]EXTERNAL!$A$3:$A$185, 0)+1, MATCH(K$3, [3]EXTERNAL!$A$3:$O$3, 0)) -> 835148.8194 | L122: =INDEX([3]EXTERNAL!$A$3:$O$185, MATCH($A121, [3]EXTERNAL!$A$3:$A$185, 0)+1, MATCH(L$3, [3]EXTERNAL!$A$3:$O$3, 0)) -> 0
A123: =IF(A122="~","~","") -> 
A125: DEMAND EXTERNAL ALLOCATORS
A127: PAVG | B127: Peak and Average | C127: DEM | E127: =IF(E128=0,0,E128/$D128) -> 0.6376046003 | F127: 0.2318326471 | G127: 0.0500603312 | H127: 0.02888168364 | I127: 0.003116012982 | J127: 0.03509716475 | K127: 0.01340755999 | L127: 0 | M127: 0 | N127: 0 | O127: 0 | P127: 0 | Q127: 0 | R127: 0 | S127: 0
A128: =IF(A127="~","~","") ->  | D128: =SUM(E128:S128) -> 1.000064432 | E128: =INDEX([3]EXTERNAL!$A$3:$O$185, MATCH($A127, [3]EXTERNAL!$A$3:$A$185, 0)+1, MATCH(E$3, [3]EXTERNAL!$A$3:$O$3, 0)) -> 0.6376456827 | F128: =INDEX([3]EXTERNAL!$A$3:$O$185, MATCH($A127, [3]EXTERNAL!$A$3:$A$185, 0)+1, MATCH(F$3, [3]EXTERNAL!$A$3:$O$3, 0)) -> 0.2318475846 | G128: =INDEX([3]EXTERNAL!$A$3:$O$185, MATCH($A127, [3]EXTERNAL!$A$3:$A$185, 0)+1, MATCH(G$3, [3]EXTERNAL!$A$3:$O$3, 0)) -> 0.0500635567 | H128: =INDEX([3]EXTERNAL!$A$3:$O$185, MATCH($A127, [3]EXTERNAL!$A$3:$A$185, 0)+1, MATCH(H$3, [3]EXTERNAL!$A$3:$O$3, 0)) -> 0.02888354456 | I128: =INDEX([3]EXTERNAL!$A$3:$O$185, MATCH($A127, [3]EXTERNAL!$A$3:$A$185, 0)+1, MATCH(I$3, [3]EXTERNAL!$A$3:$O$3, 0)) -> 0.003116213755 | J128: =INDEX([3]EXTERNAL!$A$3:$O$185, MATCH($A127, [3]EXTERNAL!$A$3:$A$185, 0)+1, MATCH(J$3, [3]EXTERNAL!$A$3:$O$3, 0)) -> 0.03509942614 | K128: =INDEX([3]EXTERNAL!$A$3:$O$185, MATCH($A127, [3]EXTERNAL!$A$3:$A$185, 0)+1, MATCH(K$3, [3]EXTERNAL!$A$3:$O$3, 0)) -> 0.01340842387 | L128: =INDEX([3]EXTERNAL!$A$3:$O$185, MATCH($A127, [3]EXTERNAL!$A$3:$A$185, 0)+1, MATCH(L$3, [3]EXTERNAL!$A$3:$O$3, 0)) -> 0
A129: =IF(A128="~","~","") -> 
A130: P_MAINS | B130: Peak for Mains | C130: DEM | E130: =IF(E131=0,0,E131/$D131) -> 0.7017158922 | F130: 0.2501117494 | G130: 0.0396662525 | H130: 0.005276635309 | I130: 0.000584910057 | J130: 0.001318733776 | K130: 0.001325826723 | L130: 0 | M130: 0 | N130: 0 | O130: 0 | P130: 0 | Q130: 0 | R130: 0 | S130: 0
A131: =IF(A130="~","~","") ->  | D131: =SUM(E131:S131) -> 1325345270 | E131: =INDEX([3]EXTERNAL!$A$3:$O$185, MATCH($A130, [3]EXTERNAL!$A$3:$A$185, 0)+1, MATCH(E$3, [3]EXTERNAL!$A$3:$O$3, 0)) -> 930015839 | F131: =INDEX([3]EXTERNAL!$A$3:$O$185, MATCH($A130, [3]EXTERNAL!$A$3:$A$185, 0)+1, MATCH(F$3, [3]EXTERNAL!$A$3:$O$3, 0)) -> 331484424.1 | G131: =INDEX([3]EXTERNAL!$A$3:$O$185, MATCH($A130, [3]EXTERNAL!$A$3:$A$185, 0)+1, MATCH(G$3, [3]EXTERNAL!$A$3:$O$3, 0)) -> 52571480.14 | H131: =INDEX([3]EXTERNAL!$A$3:$O$185, MATCH($A130, [3]EXTERNAL!$A$3:$A$185, 0)+1, MATCH(H$3, [3]EXTERNAL!$A$3:$O$3, 0)) -> 6993363.65 | I131: =INDEX([3]EXTERNAL!$A$3:$O$185, MATCH($A130, [3]EXTERNAL!$A$3:$A$185, 0)+1, MATCH(I$3, [3]EXTERNAL!$A$3:$O$3, 0)) -> 775207.7777 | J131: =INDEX([3]EXTERNAL!$A$3:$O$185, MATCH($A130, [3]EXTERNAL!$A$3:$A$185, 0)+1, MATCH(J$3, [3]EXTERNAL!$A$3:$O$3, 0)) -> 1747777.573 | K131: =INDEX([3]EXTERNAL!$A$3:$O$185, MATCH($A130, [3]EXTERNAL!$A$3:$A$185, 0)+1, MATCH(K$3, [3]EXTERNAL!$A$3:$O$3, 0)) -> 1757178.177 | L131: =INDEX([3]EXTERNAL!$A$3:$O$185, MATCH($A130, [3]EXTERNAL!$A$3:$A$185, 0)+1, MATCH(L$3, [3]EXTERNAL!$A$3:$O$3, 0)) -> 0
A132: =IF(A131="~","~","") -> 
A133: ~ | E133: =IF(E134=0,0,E134/$D134) -> 0 | F133: 0 | G133: 0 | H133: 0 | I133: 0 | J133: 0 | K133: 0 | L133: 0 | M133: 0 | N133: 0 | O133: 0 | P133: 0 | Q133: 0 | R133: 0 | S133: 0
A134: =IF(A133="~","~","") -> ~ | B134: =INPUTS!$B$5 -> Actual Test Year | D134: =SUM(E134:S134) -> 0
A135: =IF(A134="~","~","") -> ~
A136: ~ | E136: =IF(E137=0,0,E137/$D137) -> 0 | F136: 0 | G136: 0 | H136: 0 | I136: 0 | J136: 0 | K136: 0 | L136: 0 | M136: 0 | N136: 0 | O136: 0 | P136: 0 | Q136: 0 | R136: 0 | S136: 0
A137: =IF(A136="~","~","") -> ~ | B137: =INPUTS!$B$5 -> Actual Test Year | D137: =SUM(E137:S137) -> 0
A138: =IF(A137="~","~","") -> ~
A139: PDAY | B139: Peak Day (Design Day) | C139: DEM | E139: =IF(E140=0,0,E140/$D140) -> 0.6976141375 | F139: 0.2486497659 | G139: 0.03943439051 | H139: 0.006271023425 | I139: 0.0006951370436 | J139: 0.002362433225 | K139: 0.004973112442 | L139: 0 | M139: 0 | N139: 0 | O139: 0 | P139: 0 | Q139: 0 | R139: 0 | S139: 0
A140: =IF(A139="~","~","") ->  | D140: =SUM(E140:S140) -> 10131080 | E140: =INDEX([3]EXTERNAL!$A$3:$O$185, MATCH($A139, [3]EXTERNAL!$A$3:$A$185, 0)+1, MATCH(E$3, [3]EXTERNAL!$A$3:$O$3, 0)) -> 7067584.636 | F140: =INDEX([3]EXTERNAL!$A$3:$O$185, MATCH($A139, [3]EXTERNAL!$A$3:$A$185, 0)+1, MATCH(F$3, [3]EXTERNAL!$A$3:$O$3, 0)) -> 2519090.67 | G140: =INDEX([3]EXTERNAL!$A$3:$O$185, MATCH($A139, [3]EXTERNAL!$A$3:$A$185, 0)+1, MATCH(G$3, [3]EXTERNAL!$A$3:$O$3, 0)) -> 399512.965 | H140: =INDEX([3]EXTERNAL!$A$3:$O$185, MATCH($A139, [3]EXTERNAL!$A$3:$A$185, 0)+1, MATCH(H$3, [3]EXTERNAL!$A$3:$O$3, 0)) -> 63532.24 | I140: =INDEX([3]EXTERNAL!$A$3:$O$185, MATCH($A139, [3]EXTERNAL!$A$3:$A$185, 0)+1, MATCH(I$3, [3]EXTERNAL!$A$3:$O$3, 0)) -> 7042.489 | J140: =INDEX([3]EXTERNAL!$A$3:$O$185, MATCH($A139, [3]EXTERNAL!$A$3:$A$185, 0)+1, MATCH(J$3, [3]EXTERNAL!$A$3:$O$3, 0)) -> 23934 | K140: =INDEX([3]EXTERNAL!$A$3:$O$185, MATCH($A139, [3]EXTERNAL!$A$3:$A$185, 0)+1, MATCH(K$3, [3]EXTERNAL!$A$3:$O$3, 0)) -> 50383 | L140: =INDEX([3]EXTERNAL!$A$3:$O$185, MATCH($A139, [3]EXTERNAL!$A$3:$A$185, 0)+1, MATCH(L$3, [3]EXTERNAL!$A$3:$O$3, 0)) -> 0
A141: =IF(A140="~","~","") -> 
A142: PDAYXT | B142: Peak Day (excl. transport) | C142: DEM | E142: =IF(E143=0,0,E143/$D143) -> 0.7138175481 | F142: =IF(F143=0,0,F143/$D143) -> 0.254425128 | G142: 0.03043689302 | H142: 0.0006848970842 | I142: 0.0006355338211 | J142: 0 | K142: 0 | L142: 0 | M142: 0 | N142: 0 | O142: 0 | P142: 0 | Q142: 0 | R142: 0 | S142: 0
A143: =IF(A142="~","~","") ->  | D143: =SUM(E143:S143) -> 9901108 | E143: =INDEX([3]EXTERNAL!$A$3:$O$185, MATCH($A142, [3]EXTERNAL!$A$3:$A$185, 0)+1, MATCH(E$3, [3]EXTERNAL!$A$3:$O$3, 0)) -> 7067584.636 | F143: =INDEX([3]EXTERNAL!$A$3:$O$185, MATCH($A142, [3]EXTERNAL!$A$3:$A$185, 0)+1, MATCH(F$3, [3]EXTERNAL!$A$3:$O$3, 0)) -> 2519090.67 | G143: =INDEX([3]EXTERNAL!$A$3:$O$185, MATCH($A142, [3]EXTERNAL!$A$3:$A$185, 0)+1, MATCH(G$3, [3]EXTERNAL!$A$3:$O$3, 0)) -> 301358.965 | H143: =INDEX([3]EXTERNAL!$A$3:$O$185, MATCH($A142, [3]EXTERNAL!$A$3:$A$185, 0)+1, MATCH(H$3, [3]EXTERNAL!$A$3:$O$3, 0)) -> 6781.24 | I143: =INDEX([3]EXTERNAL!$A$3:$O$185, MATCH($A142, [3]EXTERNAL!$A$3:$A$185, 0)+1, MATCH(I$3, [3]EXTERNAL!$A$3:$O$3, 0)) -> 6292.489 | J143: =INDEX([3]EXTERNAL!$A$3:$O$185, MATCH($A142, [3]EXTERNAL!$A$3:$A$185, 0)+1, MATCH(J$3, [3]EXTERNAL!$A$3:$O$3, 0)) -> 0 | K143: =INDEX([3]EXTERNAL!$A$3:$O$185, MATCH($A142, [3]EXTERNAL!$A$3:$A$185, 0)+1, MATCH(K$3, [3]EXTERNAL!$A$3:$O$3, 0)) -> 0 | L143: =INDEX([3]EXTERNAL!$A$3:$O$185, MATCH($A142, [3]EXTERNAL!$A$3:$A$185, 0)+1, MATCH(L$3, [3]EXTERNAL!$A$3:$O$3, 0)) -> 0
A144: =IF(A143="~","~","") -> 
A145: SEAS3_DEM | B145: Seasonal 3 | C145: DEM | E145: =IF(E146=0,0,E146/$D146) -> 0.7032070321 | F145: 0.226502265 | G145: 0.042600426 | H145: 0.006610066101 | I145: 0.008330083301 | J145: 0.0127501275 | K145: 0 | L145: 0 | M145: 0 | N145: 0 | O145: 0 | P145: 0 | Q145: 0 | R145: 0 | S145: 0
A146: =IF(A145="~","~","") ->  | D146: =SUM(E146:S146) -> 0.99999 | E146: =INDEX([3]EXTERNAL!$A$3:$O$185, MATCH($A145, [3]EXTERNAL!$A$3:$A$185, 0)+1, MATCH(E$3, [3]EXTERNAL!$A$3:$O$3, 0)) -> 0.7032 | F146: =INDEX([3]EXTERNAL!$A$3:$O$185, MATCH($A145, [3]EXTERNAL!$A$3:$A$185, 0)+1, MATCH(F$3, [3]EXTERNAL!$A$3:$O$3, 0)) -> 0.2265 | G146: =INDEX([3]EXTERNAL!$A$3:$O$185, MATCH($A145, [3]EXTERNAL!$A$3:$A$185, 0)+1, MATCH(G$3, [3]EXTERNAL!$A$3:$O$3, 0)) -> 0.0426 | H146: =INDEX([3]EXTERNAL!$A$3:$O$185, MATCH($A145, [3]EXTERNAL!$A$3:$A$185, 0)+1, MATCH(H$3, [3]EXTERNAL!$A$3:$O$3, 0)) -> 0.00661 | I146: =INDEX([3]EXTERNAL!$A$3:$O$185, MATCH($A145, [3]EXTERNAL!$A$3:$A$185, 0)+1, MATCH(I$3, [3]EXTERNAL!$A$3:$O$3, 0)) -> 0.00833 | J146: =INDEX([3]EXTERNAL!$A$3:$O$185, MATCH($A145, [3]EXTERNAL!$A$3:$A$185, 0)+1, MATCH(J$3, [3]EXTERNAL!$A$3:$O$3, 0)) -> 0.01275 | K146: =INDEX([3]EXTERNAL!$A$3:$O$185, MATCH($A145, [3]EXTERNAL!$A$3:$A$185, 0)+1, MATCH(K$3, [3]EXTERNAL!$A$3:$O$3, 0)) -> 0 | L146: =INDEX([3]EXTERNAL!$A$3:$O$185, MATCH($A145, [3]EXTERNAL!$A$3:$A$185, 0)+1, MATCH(L$3, [3]EXTERNAL!$A$3:$O$3, 0)) -> 0
A147: =IF(A146="~","~","") -> 
A148: LNGMAINS | B148: Peak Day (excl. transport) | C148: DIRS | E148: =IF(E149=0,0,E149/$D149) -> 0.7138175481 | F148: 0.254425128 | G148: 0.03043689302 | H148: 0.0006848970842 | I148: 0.0006355338211 | J148: 0 | K148: 0 | L148: 0 | M148: 0 | N148: 0 | O148: 0 | P148: 0 | Q148: 0 | R148: 0 | S148: 0
D149: =SUM(E149:S149) -> 9901108 | E149: =E143 -> 7067584.636 | F149: =F143 -> 2519090.67 | G149: 301358.965 | H149: 6781.24 | I149: 6292.489 | J149: 0 | K149: 0 | L149: 0
A151: ~ | B151: ~ | E151: =IF(E152=0,0,E152/$D152) -> 0 | F151: 0 | G151: 0 | H151: 0 | I151: 0 | J151: 0 | K151: 0 | L151: 0 | M151: 0 | N151: 0 | O151: 0 | P151: 0 | Q151: 0 | R151: 0 | S151: 0
A152: =IF(A151="~","~","") -> ~ | D152: =SUM(E152:S152) -> 0
A153: =IF(A152="~","~","") -> ~
A154: ~ | E154: =IF(E155=0,0,E155/$D155) -> 0 | F154: 0 | G154: 0 | H154: 0 | I154: 0 | J154: 0 | K154: 0 | L154: 0 | M154: 0 | N154: 0 | O154: 0 | P154: 0 | Q154: 0 | R154: 0 | S154: 0
A155: =IF(A154="~","~","") -> ~ | B155: =INPUTS!$B$5 -> Actual Test Year | D155: =SUM(E155:S155) -> 0
A156: =IF(A155="~","~","") -> ~
A157: ~ | E157: =IF(E158=0,0,E158/$D158) -> 0 | F157: 0 | G157: 0 | H157: 0 | I157: 0 | J157: 0 | K157: 0 | L157: 0 | M157: 0 | N157: 0 | O157: 0 | P157: 0 | Q157: 0 | R157: 0 | S157: 0
A158: =IF(A157="~","~","") -> ~ | B158: =INPUTS!$B$5 -> Actual Test Year | D158: =SUM(E158:S158) -> 0
A159: =IF(A158="~","~","") -> ~
A160: ~ | E160: =IF(E161=0,0,E161/$D161) -> 0 | F160: 0 | G160: 0 | H160: 0 | I160: 0 | J160: 0 | K160: 0 | L160: 0 | M160: 0 | N160: 0 | O160: 0 | P160: 0 | Q160: 0 | R160: 0 | S160: 0
A161: =IF(A160="~","~","") -> ~ | B161: =INPUTS!$B$5 -> Actual Test Year | D161: =SUM(E161:S161) -> 0
A162: =IF(A161="~","~","") -> ~
A163: COM1XT_DEM | B163: Weather Normalized Volumes x Transport | C163: DEM | E163: =IF(E164=0,0,E164/$D164) -> 0.6358666918 | F163: 0.244366099 | G163: 0.06871203679 | H163: 0.01689128021 | I163: 0.009807617759 | J163: 0.02435627443 | K163: 0 | L163: 0 | M163: 0 | N163: 0 | O163: 0 | P163: 0 | Q163: 0 | R163: 0 | S163: 0
A164: =IF(A163="~","~","") ->  | D164: =SUM(E164:S164) -> 958153193.2 | E164: =E116 -> 609257701.2 | F164: 234140158.1 | G164: 65836657.46 | H164: 16184434.07 | I164: 9397200.273 | J164: 23337042.12 | K164: 0 | L164: 0
A165: =IF(#REF!="~","~","") -> 

Sheet INTERNAL
A1: Internal Allocators
C2: Line Ref. | D2: =FUNCALLOC!E2 -> 4 | E2: =FUNCALLOC!F2 -> 5 | F2: =FUNCALLOC!G2 -> 6 | G2: =FUNCALLOC!H2 -> 7 | H2: =FUNCALLOC!I2 -> 8 | I2: =FUNCALLOC!J2 -> 9 | J2: =FUNCALLOC!K2 -> 10 | K2: =FUNCALLOC!L2 -> 11 | L2: =FUNCALLOC!M2 -> 12 | M2: =FUNCALLOC!N2 -> 13 | N2: =FUNCALLOC!O2 -> 14 | O2: =FUNCALLOC!P2 -> 15 | P2: =FUNCALLOC!Q2 -> 16 | Q2: =FUNCALLOC!R2 -> 17 | R2: =FUNCALLOC!S2 -> 18 | S2: =FUNCALLOC!T2 -> 19 | T2: =FUNCALLOC!U2 -> 20 | U2: =FUNCALLOC!V2 -> 21 | V2: =FUNCALLOC!W2 -> 22 | W2: =FUNCALLOC!X2 -> 23 | X2: =FUNCALLOC!Y2 -> 24 | Y2: =FUNCALLOC!Z2 -> 25 | Z2: =FUNCALLOC!AA2 -> 26 | AA2: =FUNCALLOC!AB2 -> 27 | AB2: =FUNCALLOC!AC2 -> 28 | AC2: =FUNCALLOC!AD2 -> 29 | AD2: =FUNCALLOC!AE2 -> 30 | AE2: =FUNCALLOC!AF2 -> 31 | AF2: =FUNCALLOC!AG2 -> 32 | AG2: =FUNCALLOC!AH2 -> 33 | AH2: =FUNCALLOC!AI2 -> 34 | AI2: =FUNCALLOC!AJ2 -> 35 | AJ2: =FUNCALLOC!AK2 -> 36 | AK2: =FUNCALLOC!AL2 -> 37 | AL2: =FUNCALLOC!AM2 -> 38 | AM2: =FUNCALLOC!AN2 -> 39 | AN2: =FUNCALLOC!AO2 -> 40 | AO2: =FUNCALLOC!AP2 -> 41 | AP2: =FUNCALLOC!AQ2 -> 42 | AQ2: =FUNCALLOC!AR2 -> 43 | AR2: =FUNCALLOC!AS2 -> 44 | AS2: =FUNCALLOC!AT2 -> 45 | AT2: =FUNCALLOC!AU2 -> 46 | AU2: =FUNCALLOC!AV2 -> 47 | AV2: =FUNCALLOC!AW2 -> 48 | AW2: =FUNCALLOC!AX2 -> 49 | AX2: =FUNCALLOC!AY2 -> 50 | AY2: =FUNCALLOC!AZ2 -> 51 | AZ2: =FUNCALLOC!BA2 -> 52 | BA2: =FUNCALLOC!BB2 -> 53 | BB2: =FUNCALLOC!BC2 -> 54 | BC2: =FUNCALLOC!BD2 -> 55 | BD2: =FUNCALLOC!BE2 -> 56 | BE2: =FUNCALLOC!BF2 -> 57 | BF2: =FUNCALLOC!BG2 -> 58 | BG2: =FUNCALLOC!BI2 -> 60
A3: Name | B3: Description | C3: Total | D3: =FUNCALLOC!E3 -> F_PRODU_PDAYXT | E3: =FUNCALLOC!F3 -> F_STORG_SEAS3_DEM | F3: =FUNCALLOC!G3 -> F_DISTR_P_MAINS | G3: =FUNCALLOC!H3 -> F_DISTR_PDAY | H3: =FUNCALLOC!I3 -> F_TRANS_PAVG | I3: =FUNCALLOC!J3 -> F_DISTR_PAVG | J3: =FUNCALLOC!K3 -> F_STORG_COM_1 | K3: =FUNCALLOC!L3 -> F_DISTR_A_MAINS | L3: =FUNCALLOC!M3 -> F_DISTR_COM_1 | M3: =FUNCALLOC!N3 -> F_PRODU_COM_1 | N3: =FUNCALLOC!O3 -> F_PRODU_COM1XT_COM | O3: =FUNCALLOC!P3 -> F_DISTR_STRREV | P3: =FUNCALLOC!Q3 -> F_DISTR_OTHREV | Q3: =FUNCALLOC!R3 -> F_DISTR_STREV | R3: =FUNCALLOC!S3 -> F_DISTR_SERV | S3: =FUNCALLOC!T3 -> F_DISTR_DIR_380 | T3: =FUNCALLOC!U3 -> F_DISTR_MTRS_CUS | U3: =FUNCALLOC!V3 -> F_DISTR_MTRS_INST | V3: =FUNCALLOC!W3 -> F_DISTR_MTRS_385 | W3: =FUNCALLOC!X3 -> F_DISTR_DIR_386 | X3: =FUNCALLOC!Y3 -> F_DISTR_DIR_252 | Y3: =FUNCALLOC!Z3 -> F_DISTR_DIR_235 | Z3: =FUNCALLOC!AA3 -> F_DISTR_CUST | AA3: =FUNCALLOC!AB3 -> F_DISTR_DIR_904 | AB3: =FUNCALLOC!AC3 -> F_DISTR_DIR_908 | AC3: =FUNCALLOC!AD3 -> F_DISTR_CUSTXT | AD3: =FUNCALLOC!AE3 -> F_STORG_LNGMAINS | AE3: =FUNCALLOC!AF3 -> F_SALES_DIR_DSALES | AF3: =FUNCALLOC!AG3 -> F_SALES_SALES_902 | AG3: =FUNCALLOC!AH3 -> F_SALES_DIR_CASALES | AH3: =FUNCALLOC!AI3 -> F_SALES_DIR_CUSTXT | AI3: =FUNCALLOC!AJ3 -> F_SALES_DIR926_SALES | AJ3: =FUNCALLOC!AK3 -> F_SALES_DIR408_SALES | AK3: =FUNCALLOC!AL3 -> F_TRNSP_DIR_DTRNSP | AL3: =FUNCALLOC!AM3 -> F_TRNSP_TRANS_902 | AM3: =FUNCALLOC!AN3 -> F_TRNSP_DIR_CATRNSP | AN3: =FUNCALLOC!AO3 -> F_TRNSP_DIR920_TRNSPT | AO3: =FUNCALLOC!AP3 -> F_TRNSP_DIR921_TRNSPT | AP3: =FUNCALLOC!AQ3 -> F_TRNSP_DIR926_TRNSPT | AQ3: =FUNCALLOC!AR3 -> F_TRNSP_DIR408_TRNSPT | AR3: =FUNCALLOC!AS3 -> ~ | AS3: =FUNCALLOC!AT3 -> ~ | AT3: =FUNCALLOC!AU3 -> ~ | AU3: =FUNCALLOC!AV3 -> ~ | AV3: =FUNCALLOC!AW3 -> ~ | AW3: =FUNCALLOC!AX3 -> ~ | AX3: =FUNCALLOC!AY3 -> ~ | AY3: =FUNCALLOC!AZ3 -> ~ | AZ3: =FUNCALLOC!BA3 -> ~ | BA3: =FUNCALLOC!BB3 -> ~ | BB3: =FUNCALLOC!BC3 -> ~ | BC3: =FUNCALLOC!BD3 -> ~ | BD3: =FUNCALLOC!BE3 -> ~ | BE3: =FUNCALLOC!BF3 -> ~ | BF3: =FUNCALLOC!BG3 -> ~ | BG3: =FUNCALLOC!BI3 -> ~
A4: INDUSMR | B4: Industrial Measurement & Regulation (Acct. 385) | C4: =SUM(D4:BG4) -> 43475000 | D4: =SUM(FUNCALLOC!E77:E77) -> 0 | E4: =SUM(FUNCALLOC!F77:F77) -> 0 | F4: =SUM(FUNCALLOC!G77:G77) -> 0 | G4: =SUM(FUNCALLOC!H77:H77) -> 0 | H4: =SUM(FUNCALLOC!I77:I77) -> 0 | I4: =SUM(FUNCALLOC!J77:J77) -> 0 | J4: =SUM(FUNCALLOC!K77:K77) -> 0 | K4: =SUM(FUNCALLOC!L77:L77) -> 0 | L4: =SUM(FUNCALLOC!M77:M77) -> 0 | M4: =SUM(FUNCALLOC!N77:N77) -> 0 | N4: =SUM(FUNCALLOC!O77:O77) -> 0 | O4: =SUM(FUNCALLOC!P77:P77) -> 0 | P4: =SUM(FUNCALLOC!Q77:Q77) -> 0 | Q4: =SUM(FUNCALLOC!R77:R77) -> 0 | R4: =SUM(FUNCALLOC!S77:S77) -> 0 | S4: =SUM(FUNCALLOC!T77:T77) -> 0 | T4: =SUM(FUNCALLOC!U77:U77) -> 0 | U4: =SUM(FUNCALLOC!V77:V77) -> 0 | V4: =SUM(FUNCALLOC!W77:W77) -> 43475000 | W4: =SUM(FUNCALLOC!X77:X77) -> 0 | X4: =SUM(FUNCALLOC!Y77:Y77) -> 0 | Y4: =SUM(FUNCALLOC!Z77:Z77) -> 0 | Z4: =SUM(FUNCALLOC!AA77:AA77) -> 0 | AA4: =SUM(FUNCALLOC!AB77:AB77) -> 0 | AB4: =SUM(FUNCALLOC!AC77:AC77) -> 0 | AC4: =SUM(FUNCALLOC!AD77:AD77) -> 0 | AD4: =SUM(FUNCALLOC!AE77:AE77) -> 0 | AE4: =SUM(FUNCALLOC!AF77:AF77) -> 0 | AF4: =SUM(FUNCALLOC!AG77:AG77) -> 0 | AG4: =SUM(FUNCALLOC!AH77:AH77) -> 0 | AH4: =SUM(FUNCALLOC!AI77:AI77) -> 0 | AI4: =SUM(FUNCALLOC!AJ77:AJ77) -> 0 | AJ4: =SUM(FUNCALLOC!AK77:AK77) -> 0 | AK4: =SUM(FUNCALLOC!AL77:AL77) -> 0 | AL4: =SUM(FUNCALLOC!AM77:AM77) -> 0 | AM4: =SUM(FUNCALLOC!AN77:AN77) -> 0 | AN4: =SUM(FUNCALLOC!AO77:AO77) -> 0 | AO4: =SUM(FUNCALLOC!AP77:AP77) -> 0 | AP4: =SUM(FUNCALLOC!AQ77:AQ77) -> 0 | AQ4: =SUM(FUNCALLOC!AR77:AR77) -> 0 | AR4: =SUM(FUNCALLOC!AS77:AS77) -> 0 | AS4: =SUM(FUNCALLOC!AT77:AT77) -> 0 | AT4: =SUM(FUNCALLOC!AU77:AU77) -> 0 | AU4: =SUM(FUNCALLOC!AV77:AV77) -> 0 | AV4: =SUM(FUNCALLOC!AW77:AW77) -> 0 | AW4: =SUM(FUNCALLOC!AX77:AX77) -> 0 | AX4: =SUM(FUNCALLOC!AY77:AY77) -> 0 | AY4: =SUM(FUNCALLOC!AZ77:AZ77) -> 0 | AZ4: =SUM(FUNCALLOC!BA77:BA77) -> 0 | BA4: =SUM(FUNCALLOC!BB77:BB77) -> 0 | BB4: =SUM(FUNCALLOC!BC77:BC77) -> 0 | BC4: =SUM(FUNCALLOC!BD77:BD77) -> 0 | BD4: =SUM(FUNCALLOC!BE77:BE77) -> 0 | BE4: =SUM(FUNCALLOC!BF77:BF77) -> 0 | BF4: =SUM(FUNCALLOC!BG77:BG77) -> 0 | BG4: =SUM(FUNCALLOC!BI77:BI77) -> 0
D5: =IF((D4=0)*OR($C4=0),0,D4/$C4) -> 0 | E5: 0 | F5: 0 | G5: 0 | H5: 0 | I5: 0 | J5: 0 | K5: 0 | L5: 0 | M5: 0 | N5: 0 | O5: 0 | P5: 0 | Q5: 0 | R5: 0 | S5: 0 | T5: 0 | U5: 0 | V5: 1 | W5: 0 | X5: 0 | Y5: 0 | Z5: 0 | AA5: 0 | AB5: 0 | AC5: 0 | AD5: 0 | AE5: 0 | AF5: 0 | AG5: 0 | AH5: 0 | AI5: 0 | AJ5: 0 | AK5: 0 | AL5: 0 | AM5: 0 | AN5: 0 | AO5: 0 | AP5: 0 | AQ5: 0 | AR5: =IF((AR4=0)*OR($C4=0),0,AR4/$C4) -> 0 | AS5: 0 | AT5: 0 | AU5: 0 | AV5: 0 | AW5: 0 | AX5: 0 | AY5: 0 | AZ5: 0 | BA5: 0 | BB5: 0 | BC5: 0 | BD5: 0 | BE5: 0 | BF5: 0 | BG5: 0
A7: MRHREG | B7: Meters & House Regulators (Accts. 381 & 383) | C7: =SUM(D7:BG7) -> 149864614 | D7: =FUNCALLOC!E73+FUNCALLOC!E75 -> 0 | E7: =FUNCALLOC!F73+FUNCALLOC!F75 -> 0 | F7: =FUNCALLOC!G73+FUNCALLOC!G75 -> 0 | G7: =FUNCALLOC!H73+FUNCALLOC!H75 -> 0 | H7: =FUNCALLOC!I73+FUNCALLOC!I75 -> 0 | I7: =FUNCALLOC!J73+FUNCALLOC!J75 -> 0 | J7: =FUNCALLOC!K73+FUNCALLOC!K75 -> 0 | K7: =FUNCALLOC!L73+FUNCALLOC!L75 -> 0 | L7: =FUNCALLOC!M73+FUNCALLOC!M75 -> 0 | M7: =FUNCALLOC!N73+FUNCALLOC!N75 -> 0 | N7: =FUNCALLOC!O73+FUNCALLOC!O75 -> 0 | O7: =FUNCALLOC!P73+FUNCALLOC!P75 -> 0 | P7: =FUNCALLOC!Q73+FUNCALLOC!Q75 -> 0 | Q7: =FUNCALLOC!R73+FUNCALLOC!R75 -> 0 | R7: =FUNCALLOC!S73+FUNCALLOC!S75 -> 0 | S7: =FUNCALLOC!T73+FUNCALLOC!T75 -> 0 | T7: =FUNCALLOC!U73+FUNCALLOC!U75 -> 149864614 | U7: =FUNCALLOC!V73+FUNCALLOC!V75 -> 0 | V7: =FUNCALLOC!W73+FUNCALLOC!W75 -> 0 | W7: =FUNCALLOC!X73+FUNCALLOC!X75 -> 0 | X7: =FUNCALLOC!Y73+FUNCALLOC!Y75 -> 0 | Y7: =FUNCALLOC!Z73+FUNCALLOC!Z75 -> 0 | Z7: =FUNCALLOC!AA73+FUNCALLOC!AA75 -> 0 | AA7: =FUNCALLOC!AB73+FUNCALLOC!AB75 -> 0 | AB7: =FUNCALLOC!AC73+FUNCALLOC!AC75 -> 0 | AC7: =FUNCALLOC!AD73+FUNCALLOC!AD75 -> 0 | AD7: =FUNCALLOC!AE73+FUNCALLOC!AE75 -> 0 | AE7: =FUNCALLOC!AF73+FUNCALLOC!AF75 -> 0 | AF7: =FUNCALLOC!AG73+FUNCALLOC!AG75 -> 0 | AG7: =FUNCALLOC!AH73+FUNCALLOC!AH75 -> 0 | AH7: =FUNCALLOC!AI73+FUNCALLOC!AI75 -> 0 | AI7: =FUNCALLOC!AJ73+FUNCALLOC!AJ75 -> 0 | AJ7: =FUNCALLOC!AK73+FUNCALLOC!AK75 -> 0 | AK7: =FUNCALLOC!AL73+FUNCALLOC!AL75 -> 0 | AL7: =FUNCALLOC!AM73+FUNCALLOC!AM75 -> 0 | AM7: =FUNCALLOC!AN73+FUNCALLOC!AN75 -> 0 | AN7: =FUNCALLOC!AO73+FUNCALLOC!AO75 -> 0 | AO7: =FUNCALLOC!AP73+FUNCALLOC!AP75 -> 0 | AP7: =FUNCALLOC!AQ73+FUNCALLOC!AQ75 -> 0 | AQ7: =FUNCALLOC!AR73+FUNCALLOC!AR75 -> 0 | AR7: =FUNCALLOC!AS73+FUNCALLOC!AS75 -> 0 | AS7: =FUNCALLOC!AT73+FUNCALLOC!AT75 -> 0 | AT7: =FUNCALLOC!AU73+FUNCALLOC!AU75 -> 0 | AU7: =FUNCALLOC!AV73+FUNCALLOC!AV75 -> 0 | AV7: =FUNCALLOC!AW73+FUNCALLOC!AW75 -> 0 | AW7: =FUNCALLOC!AX73+FUNCALLOC!AX75 -> 0 | AX7: =FUNCALLOC!AY73+FUNCALLOC!AY75 -> 0 | AY7: =FUNCALLOC!AZ73+FUNCALLOC!AZ75 -> 0 | AZ7: =FUNCALLOC!BA73+FUNCALLOC!BA75 -> 0 | BA7: =FUNCALLOC!BB73+FUNCALLOC!BB75 -> 0 | BB7: =FUNCALLOC!BC73+FUNCALLOC!BC75 -> 0 | BC7: =FUNCALLOC!BD73+FUNCALLOC!BD75 -> 0 | BD7: =FUNCALLOC!BE73+FUNCALLOC!BE75 -> 0 | BE7: =FUNCALLOC!BF73+FUNCALLOC!BF75 -> 0 | BF7: =FUNCALLOC!BG73+FUNCALLOC!BG75 -> 0 | BG7: =FUNCALLOC!BI73+FUNCALLOC!BI75 -> 0
D8: =IF((D7=0)*OR($C7=0),0,D7/$C7) -> 0 | E8: 0 | F8: 0 | G8: 0 | H8: 0 | I8: 0 | J8: 0 | K8: 0 | L8: 0 | M8: 0 | N8: 0 | O8: 0 | P8: 0 | Q8: 0 | R8: 0 | S8: 0 | T8: 1 | U8: 0 | V8: 0 | W8: 0 | X8: 0 | Y8: 0 | Z8: 0 | AA8: 0 | AB8: 0 | AC8: 0 | AD8: 0 | AE8: 0 | AF8: 0 | AG8: 0 | AH8: 0 | AI8: 0 | AJ8: =IF((AJ7=0)*OR($C7=0),0,AJ7/$C7) -> 0 | AK8: 0 | AL8: 0 | AM8: 0 | AN8: 0 | AO8: 0 | AP8: 0 | AQ8: 0 | AR8: =IF((AR7=0)*OR($C7=0),0,AR7/$C7) -> 0 | AS8: 0 | AT8: 0 | AU8: 0 | AV8: 0 | AW8: 0 | AX8: 0 | AY8: 0 | AZ8: 0 | BA8: 0 | BB8: 0 | BC8: 0 | BD8: 0 | BE8: 0 | BF8: 0 | BG8: 0
A10: CUSINSTL | B10: Customer Installation (Accts. 382 & 384) | C10: =SUM(D10:BG10) -> 265925000 | D10: =FUNCALLOC!E74+FUNCALLOC!E76 -> 0 | E10: =FUNCALLOC!F74+FUNCALLOC!F76 -> 0 | F10: =FUNCALLOC!G74+FUNCALLOC!G76 -> 0 | G10: =FUNCALLOC!H74+FUNCALLOC!H76 -> 0 | H10: =FUNCALLOC!I74+FUNCALLOC!I76 -> 0 | I10: =FUNCALLOC!J74+FUNCALLOC!J76 -> 0 | J10: =FUNCALLOC!K74+FUNCALLOC!K76 -> 0 | K10: =FUNCALLOC!L74+FUNCALLOC!L76 -> 0 | L10: =FUNCALLOC!M74+FUNCALLOC!M76 -> 0 | M10: =FUNCALLOC!N74+FUNCALLOC!N76 -> 0 | N10: =FUNCALLOC!O74+FUNCALLOC!O76 -> 0 | O10: =FUNCALLOC!P74+FUNCALLOC!P76 -> 0 | P10: =FUNCALLOC!Q74+FUNCALLOC!Q76 -> 0 | Q10: =FUNCALLOC!R74+FUNCALLOC!R76 -> 0 | R10: =FUNCALLOC!S74+FUNCALLOC!S76 -> 0 | S10: =FUNCALLOC!T74+FUNCALLOC!T76 -> 0 | T10: =FUNCALLOC!U74+FUNCALLOC!U76 -> 83089000 | U10: =FUNCALLOC!V74+FUNCALLOC!V76 -> 182836000 | V10: =FUNCALLOC!W74+FUNCALLOC!W76 -> 0 | W10: =FUNCALLOC!X74+FUNCALLOC!X76 -> 0 | X10: =FUNCALLOC!Y74+FUNCALLOC!Y76 -> 0 | Y10: =FUNCALLOC!Z74+FUNCALLOC!Z76 -> 0 | Z10: =FUNCALLOC!AA74+FUNCALLOC!AA76 -> 0 | AA10: =FUNCALLOC!AB74+FUNCALLOC!AB76 -> 0 | AB10: =FUNCALLOC!AC74+FUNCALLOC!AC76 -> 0 | AC10: =FUNCALLOC!AD74+FUNCALLOC!AD76 -> 0 | AD10: =FUNCALLOC!AE74+FUNCALLOC!AE76 -> 0 | AE10: =FUNCALLOC!AF74+FUNCALLOC!AF76 -> 0 | AF10: =FUNCALLOC!AG74+FUNCALLOC!AG76 -> 0 | AG10: =FUNCALLOC!AH74+FUNCALLOC!AH76 -> 0 | AH10: =FUNCALLOC!AI74+FUNCALLOC!AI76 -> 0 | AI10: =FUNCALLOC!AJ74+FUNCALLOC!AJ76 -> 0 | AJ10: =FUNCALLOC!AK74+FUNCALLOC!AK76 -> 0 | AK10: =FUNCALLOC!AL74+FUNCALLOC!AL76 -> 0 | AL10: =FUNCALLOC!AM74+FUNCALLOC!AM76 -> 0 | AM10: =FUNCALLOC!AN74+FUNCALLOC!AN76 -> 0 | AN10: =FUNCALLOC!AO74+FUNCALLOC!AO76 -> 0 | AO10: =FUNCALLOC!AP74+FUNCALLOC!AP76 -> 0 | AP10: =FUNCALLOC!AQ74+FUNCALLOC!AQ76 -> 0 | AQ10: =FUNCALLOC!AR74+FUNCALLOC!AR76 -> 0 | AR10: =FUNCALLOC!AS74+FUNCALLOC!AS76 -> 0 | AS10: =FUNCALLOC!AT74+FUNCALLOC!AT76 -> 0 | AT10: =FUNCALLOC!AU74+FUNCALLOC!AU76 -> 0 | AU10: =FUNCALLOC!AV74+FUNCALLOC!AV76 -> 0 | AV10: =FUNCALLOC!AW74+FUNCALLOC!AW76 -> 0 | AW10: =FUNCALLOC!AX74+FUNCALLOC!AX76 -> 0 | AX10: =FUNCALLOC!AY74+FUNCALLOC!AY76 -> 0 | AY10: =FUNCALLOC!AZ74+FUNCALLOC!AZ76 -> 0 | AZ10: =FUNCALLOC!BA74+FUNCALLOC!BA76 -> 0 | BA10: =FUNCALLOC!BB74+FUNCALLOC!BB76 -> 0 | BB10: =FUNCALLOC!BC74+FUNCALLOC!BC76 -> 0 | BC10: =FUNCALLOC!BD74+FUNCALLOC!BD76 -> 0 | BD10: =FUNCALLOC!BE74+FUNCALLOC!BE76 -> 0 | BE10: =FUNCALLOC!BF74+FUNCALLOC!BF76 -> 0 | BF10: =FUNCALLOC!BG74+FUNCALLOC!BG76 -> 0 | BG10: =FUNCALLOC!BI74+FUNCALLOC!BI76 -> 0
D11: =IF((D10=0)*OR($C10=0),0,D10/$C10) -> 0 | E11: 0 | F11: 0 | G11: 0 | H11: 0 | I11: 0 | J11: 0 | K11: 0 | L11: 0 | M11: 0 | N11: 0 | O11: 0 | P11: 0 | Q11: 0 | R11: 0 | S11: 0 | T11: 0.3124527592 | U11: 0.6875472408 | V11: 0 | W11: 0 | X11: 0 | Y11: 0 | Z11: 0 | AA11: 0 | AB11: 0 | AC11: 0 | AD11: 0 | AE11: 0 | AF11: 0 | AG11: 0 | AH11: 0 | AI11: 0 | AJ11: =IF((AJ10=0)*OR($C10=0),0,AJ10/$C10) -> 0 | AK11: 0 | AL11: 0 | AM11: 0 | AN11: 0 | AO11: 0 | AP11: 0 | AQ11: 0 | AR11: =IF((AR10=0)*OR($C10=0),0,AR10/$C10) -> 0 | AS11: 0 | AT11: 0 | AU11: 0 | AV11: 0 | AW11: 0 | AX11: 0 | AY11: 0 | AZ11: 0 | BA11: 0 | BB11: 0 | BC11: 0 | BD11: 0 | BE11: 0 | BF11: 0 | BG11: 0
A13: PLT | B13: Plant - Prod., Stor.(x JP Bal.), Trans., Distr. | C13: =SUM(D13:BG13) -> 3947019309 | D13: =FUNCALLOC!E28+SUM(FUNCALLOC!E32:'FUNCALLOC'!E39)+FUNCALLOC!E49+FUNCALLOC!E60+FUNCALLOC!E83 -> 8382000 | E13: =FUNCALLOC!F28+SUM(FUNCALLOC!F32:'FUNCALLOC'!F39)+FUNCALLOC!F49+FUNCALLOC!F60+FUNCALLOC!F83 -> 52399250 | F13: =FUNCALLOC!G28+SUM(FUNCALLOC!G32:'FUNCALLOC'!G39)+FUNCALLOC!G49+FUNCALLOC!G60+FUNCALLOC!G83 -> 1376980642 | G13: =FUNCALLOC!H28+SUM(FUNCALLOC!H32:'FUNCALLOC'!H39)+FUNCALLOC!H49+FUNCALLOC!H60+FUNCALLOC!H83 -> 88108835.7 | H13: =FUNCALLOC!I28+SUM(FUNCALLOC!I32:'FUNCALLOC'!I39)+FUNCALLOC!I49+FUNCALLOC!I60+FUNCALLOC!I83 -> 0 | I13: =FUNCALLOC!J28+SUM(FUNCALLOC!J32:'FUNCALLOC'!J39)+FUNCALLOC!J49+FUNCALLOC!J60+FUNCALLOC!J83 -> 0 | J13: =FUNCALLOC!K28+SUM(FUNCALLOC!K32:'FUNCALLOC'!K39)+FUNCALLOC!K49+FUNCALLOC!K60+FUNCALLOC!K83 -> 0 | K13: =FUNCALLOC!L28+SUM(FUNCALLOC!L32:'FUNCALLOC'!L39)+FUNCALLOC!L49+FUNCALLOC!L60+FUNCALLOC!L83 -> 654449146.1 | L13: =FUNCALLOC!M28+SUM(FUNCALLOC!M32:'FUNCALLOC'!M39)+FUNCALLOC!M49+FUNCALLOC!M60+FUNCALLOC!M83 -> 41876225.8 | M13: =FUNCALLOC!N28+SUM(FUNCALLOC!N32:'FUNCALLOC'!N39)+FUNCALLOC!N49+FUNCALLOC!N60+FUNCALLOC!N83 -> 0 | N13: =FUNCALLOC!O28+SUM(FUNCALLOC!O32:'FUNCALLOC'!O39)+FUNCALLOC!O49+FUNCALLOC!O60+FUNCALLOC!O83 -> 0 | O13: =FUNCALLOC!P28+SUM(FUNCALLOC!P32:'FUNCALLOC'!P39)+FUNCALLOC!P49+FUNCALLOC!P60+FUNCALLOC!P83 -> 0 | P13: =FUNCALLOC!Q28+SUM(FUNCALLOC!Q32:'FUNCALLOC'!Q39)+FUNCALLOC!Q49+FUNCALLOC!Q60+FUNCALLOC!Q83 -> 0 | Q13: =FUNCALLOC!R28+SUM(FUNCALLOC!R32:'FUNCALLOC'!R39)+FUNCALLOC!R49+FUNCALLOC!R60+FUNCALLOC!R83 -> 0 | R13: =FUNCALLOC!S28+SUM(FUNCALLOC!S32:'FUNCALLOC'!S39)+FUNCALLOC!S49+FUNCALLOC!S60+FUNCALLOC!S83 -> 1191478734 | S13: =FUNCALLOC!T28+SUM(FUNCALLOC!T32:'FUNCALLOC'!T39)+FUNCALLOC!T49+FUNCALLOC!T60+FUNCALLOC!T83 -> 11380006.91 | T13: =FUNCALLOC!U28+SUM(FUNCALLOC!U32:'FUNCALLOC'!U39)+FUNCALLOC!U49+FUNCALLOC!U60+FUNCALLOC!U83 -> 238188989.3 | U13: =FUNCALLOC!V28+SUM(FUNCALLOC!V32:'FUNCALLOC'!V39)+FUNCALLOC!V49+FUNCALLOC!V60+FUNCALLOC!V83 -> 186945037.3 | V13: =FUNCALLOC!W28+SUM(FUNCALLOC!W32:'FUNCALLOC'!W39)+FUNCALLOC!W49+FUNCALLOC!W60+FUNCALLOC!W83 -> 44452052.64 | W13: =FUNCALLOC!X28+SUM(FUNCALLOC!X32:'FUNCALLOC'!X39)+FUNCALLOC!X49+FUNCALLOC!X60+FUNCALLOC!X83 -> 20144000 | X13: =FUNCALLOC!Y28+SUM(FUNCALLOC!Y32:'FUNCALLOC'!Y39)+FUNCALLOC!Y49+FUNCALLOC!Y60+FUNCALLOC!Y83 -> 0 | Y13: =FUNCALLOC!Z28+SUM(FUNCALLOC!Z32:'FUNCALLOC'!Z39)+FUNCALLOC!Z49+FUNCALLOC!Z60+FUNCALLOC!Z83 -> 0 | Z13: =FUNCALLOC!AA28+SUM(FUNCALLOC!AA32:'FUNCALLOC'!AA39)+FUNCALLOC!AA49+FUNCALLOC!AA60+FUNCALLOC!AA83 -> 0 | AA13: =FUNCALLOC!AB28+SUM(FUNCALLOC!AB32:'FUNCALLOC'!AB39)+FUNCALLOC!AB49+FUNCALLOC!AB60+FUNCALLOC!AB83 -> 0 | AB13: =FUNCALLOC!AC28+SUM(FUNCALLOC!AC32:'FUNCALLOC'!AC39)+FUNCALLOC!AC49+FUNCALLOC!AC60+FUNCALLOC!AC83 -> 0 | AC13: =FUNCALLOC!AD28+SUM(FUNCALLOC!AD32:'FUNCALLOC'!AD39)+FUNCALLOC!AD49+FUNCALLOC!AD60+FUNCALLOC!AD83 -> 0 | AD13: =FUNCALLOC!AE28+SUM(FUNCALLOC!AE32:'FUNCALLOC'!AE39)+FUNCALLOC!AE49+FUNCALLOC!AE60+FUNCALLOC!AE83 -> 32234389.3 | AE13: =FUNCALLOC!AF28+SUM(FUNCALLOC!AF32:'FUNCALLOC'!AF39)+FUNCALLOC!AF49+FUNCALLOC!AF60+FUNCALLOC!AF83 -> 0 | AF13: =FUNCALLOC!AG28+SUM(FUNCALLOC!AG32:'FUNCALLOC'!AG39)+FUNCALLOC!AG49+FUNCALLOC!AG60+FUNCALLOC!AG83 -> 0 | AG13: =FUNCALLOC!AH28+SUM(FUNCALLOC!AH32:'FUNCALLOC'!AH39)+FUNCALLOC!AH49+FUNCALLOC!AH60+FUNCALLOC!AH83 -> 0 | AH13: =FUNCALLOC!AI28+SUM(FUNCALLOC!AI32:'FUNCALLOC'!AI39)+FUNCALLOC!AI49+FUNCALLOC!AI60+FUNCALLOC!AI83 -> 0 | AI13: =FUNCALLOC!AJ28+SUM(FUNCALLOC!AJ32:'FUNCALLOC'!AJ39)+FUNCALLOC!AJ49+FUNCALLOC!AJ60+FUNCALLOC!AJ83 -> 0 | AJ13: =FUNCALLOC!AK28+SUM(FUNCALLOC!AK32:'FUNCALLOC'!AK39)+FUNCALLOC!AK49+FUNCALLOC!AK60+FUNCALLOC!AK83 -> 0 | AK13: =FUNCALLOC!AL28+SUM(FUNCALLOC!AL32:'FUNCALLOC'!AL39)+FUNCALLOC!AL49+FUNCALLOC!AL60+FUNCALLOC!AL83 -> 0 | AL13: =FUNCALLOC!AM28+SUM(FUNCALLOC!AM32:'FUNCALLOC'!AM39)+FUNCALLOC!AM49+FUNCALLOC!AM60+FUNCALLOC!AM83 -> 0 | AM13: =FUNCALLOC!AN28+SUM(FUNCALLOC!AN32:'FUNCALLOC'!AN39)+FUNCALLOC!AN49+FUNCALLOC!AN60+FUNCALLOC!AN83 -> 0 | AN13: =FUNCALLOC!AO28+SUM(FUNCALLOC!AO32:'FUNCALLOC'!AO39)+FUNCALLOC!AO49+FUNCALLOC!AO60+FUNCALLOC!AO83 -> 0 | AO13: =FUNCALLOC!AP28+SUM(FUNCALLOC!AP32:'FUNCALLOC'!AP39)+FUNCALLOC!AP49+FUNCALLOC!AP60+FUNCALLOC!AP83 -> 0 | AP13: =FUNCALLOC!AQ28+SUM(FUNCALLOC!AQ32:'FUNCALLOC'!AQ39)+FUNCALLOC!AQ49+FUNCALLOC!AQ60+FUNCALLOC!AQ83 -> 0 | AQ13: =FUNCALLOC!AR28+SUM(FUNCALLOC!AR32:'FUNCALLOC'!AR39)+FUNCALLOC!AR49+FUNCALLOC!AR60+FUNCALLOC!AR83 -> 0 | AR13: =FUNCALLOC!AS28+SUM(FUNCALLOC!AS32:'FUNCALLOC'!AS39)+FUNCALLOC!AS49+FUNCALLOC!AS60+FUNCALLOC!AS83 -> 0 | AS13: =FUNCALLOC!AT28+SUM(FUNCALLOC!AT32:'FUNCALLOC'!AT39)+FUNCALLOC!AT49+FUNCALLOC!AT60+FUNCALLOC!AT83 -> 0 | AT13: =FUNCALLOC!AU28+SUM(FUNCALLOC!AU32:'FUNCALLOC'!AU39)+FUNCALLOC!AU49+FUNCALLOC!AU60+FUNCALLOC!AU83 -> 0 | AU13: =FUNCALLOC!AV28+SUM(FUNCALLOC!AV32:'FUNCALLOC'!AV39)+FUNCALLOC!AV49+FUNCALLOC!AV60+FUNCALLOC!AV83 -> 0 | AV13: =FUNCALLOC!AW28+SUM(FUNCALLOC!AW32:'FUNCALLOC'!AW39)+FUNCALLOC!AW49+FUNCALLOC!AW60+FUNCALLOC!AW83 -> 0 | AW13: =FUNCALLOC!AX28+SUM(FUNCALLOC!AX32:'FUNCALLOC'!AX39)+FUNCALLOC!AX49+FUNCALLOC!AX60+FUNCALLOC!AX83 -> 0 | AX13: =FUNCALLOC!AY28+SUM(FUNCALLOC!AY32:'FUNCALLOC'!AY39)+FUNCALLOC!AY49+FUNCALLOC!AY60+FUNCALLOC!AY83 -> 0 | AY13: =FUNCALLOC!AZ28+SUM(FUNCALLOC!AZ32:'FUNCALLOC'!AZ39)+FUNCALLOC!AZ49+FUNCALLOC!AZ60+FUNCALLOC!AZ83 -> 0 | AZ13: =FUNCALLOC!BA28+SUM(FUNCALLOC!BA32:'FUNCALLOC'!BA39)+FUNCALLOC!BA49+FUNCALLOC!BA60+FUNCALLOC!BA83 -> 0 | BA13: =FUNCALLOC!BB28+SUM(FUNCALLOC!BB32:'FUNCALLOC'!BB39)+FUNCALLOC!BB49+FUNCALLOC!BB60+FUNCALLOC!BB83 -> 0 | BB13: =FUNCALLOC!BC28+SUM(FUNCALLOC!BC32:'FUNCALLOC'!BC39)+FUNCALLOC!BC49+FUNCALLOC!BC60+FUNCALLOC!BC83 -> 0 | BC13: =FUNCALLOC!BD28+SUM(FUNCALLOC!BD32:'FUNCALLOC'!BD39)+FUNCALLOC!BD49+FUNCALLOC!BD60+FUNCALLOC!BD83 -> 0 | BD13: =FUNCALLOC!BE28+SUM(FUNCALLOC!BE32:'FUNCALLOC'!BE39)+FUNCALLOC!BE49+FUNCALLOC!BE60+FUNCALLOC!BE83 -> 0 | BE13: =FUNCALLOC!BF28+SUM(FUNCALLOC!BF32:'FUNCALLOC'!BF39)+FUNCALLOC!BF49+FUNCALLOC!BF60+FUNCALLOC!BF83 -> 0 | BF13: =FUNCALLOC!BG28+SUM(FUNCALLOC!BG32:'FUNCALLOC'!BG39)+FUNCALLOC!BG49+FUNCALLOC!BG60+FUNCALLOC!BG83 -> 0 | BG13: =FUNCALLOC!BI28+SUM(FUNCALLOC!BI32:'FUNCALLOC'!BI39)+FUNCALLOC!BI49+FUNCALLOC!BI60+FUNCALLOC!BI83 -> 0
D14: =IF((D13=0)*OR($C13=0),0,D13/$C13) -> 0.002123627817 | E14: 0.01327565079 | F14: 0.3488659503 | G14: 0.02232287932 | H14: 0 | I14: 0 | J14: 0 | K14: 0.165808448 | L14: 0.0106095822 | M14: 0 | N14: 0 | O14: 0 | P14: 0 | Q14: 0 | R14: 0.301867977 | S14: 0.002883190077 | T14: 0.06034654778 | U14: 0.04736359837 | V14: 0.01126218272 | W14: 0.005103598037 | X14: 0 | Y14: 0 | Z14: 0 | AA14: 0 | AB14: 0 | AC14: 0 | AD14: 0.008166767571 | AE14: 0 | AF14: 0 | AG14: 0 | AH14: 0 | AI14: 0 | AJ14: =IF((AJ13=0)*OR($C13=0),0,AJ13/$C13) -> 0 | AK14: 0 | AL14: 0 | AM14: 0 | AN14: 0 | AO14: 0 | AP14: 0 | AQ14: 0 | AR14: =IF((AR13=0)*OR($C13=0),0,AR13/$C13) -> 0 | AS14: 0 | AT14: 0 | AU14: 0 | AV14: 0 | AW14: 0 | AX14: 0 | AY14: 0 | AZ14: 0 | BA14: 0 | BB14: 0 | BC14: 0 | BD14: 0 | BE14: 0 | BF14: 0 | BG14: 0
A16: OML | B16: O&M Labor Expense (excluding JP Balancing Exp.) | C16: =SUM(D16:BG16) -> 37675624.83 | D16: =FUNCALLOC!E516 -> 93145.82781 | E16: =FUNCALLOC!F516 -> 936686.7369 | F16: =FUNCALLOC!G516 -> 6878242.844 | G16: =FUNCALLOC!H516 -> 0 | H16: =FUNCALLOC!I516 -> 0 | I16: =FUNCALLOC!J516 -> 2191225.336 | J16: =FUNCALLOC!K516 -> 0 | K16: =FUNCALLOC!L516 -> 3269080.202 | L16: =FUNCALLOC!M516 -> 344144.6775 | M16: =FUNCALLOC!N516 -> 0 | N16: =FUNCALLOC!O516 -> 0 | O16: =FUNCALLOC!P516 -> 0 | P16: =FUNCALLOC!Q516 -> 0 | Q16: =FUNCALLOC!R516 -> 0 | R16: =FUNCALLOC!S516 -> 5598807.158 | S16: =FUNCALLOC!T516 -> 53475.1165 | T16: =FUNCALLOC!U516 -> 5083679.427 | U16: =FUNCALLOC!V516 -> 3064415.253 | V16: =FUNCALLOC!W516 -> 884367.7638 | W16: =FUNCALLOC!X516 -> 0 | X16: =FUNCALLOC!Y516 -> 0 | Y16: =FUNCALLOC!Z516 -> 0 | Z16: =FUNCALLOC!AA516 -> 5379650.532 | AA16: =FUNCALLOC!AB516 -> 0 | AB16: =FUNCALLOC!AC516 -> 354290.1193 | AC16: =FUNCALLOC!AD516 -> 440523.1702 | AD16: =FUNCALLOC!AE516 -> 0 | AE16: =FUNCALLOC!AF516 -> 0 | AF16: =FUNCALLOC!AG516 -> 189019.2229 | AG16: =FUNCALLOC!AH516 -> 2781295.055 | AH16: =FUNCALLOC!AI516 -> 0 | AI16: =FUNCALLOC!AJ516 -> 0 | AJ16: =FUNCALLOC!AK516 -> 0 | AK16: =FUNCALLOC!AL516 -> 0 | AL16: =FUNCALLOC!AM516 -> 81.880363 | AM16: =FUNCALLOC!AN516 -> 133494.5053 | AN16: =FUNCALLOC!AO516 -> 0 | AO16: =FUNCALLOC!AP516 -> 0 | AP16: =FUNCALLOC!AQ516 -> 0 | AQ16: =FUNCALLOC!AR516 -> 0 | AR16: =FUNCALLOC!AS516 -> 0 | AS16: =FUNCALLOC!AT516 -> 0 | AT16: =FUNCALLOC!AU516 -> 0 | AU16: =FUNCALLOC!AV516 -> 0 | AV16: =FUNCALLOC!AW516 -> 0 | AW16: =FUNCALLOC!AX516 -> 0 | AX16: =FUNCALLOC!AY516 -> 0 | AY16: =FUNCALLOC!AZ516 -> 0 | AZ16: =FUNCALLOC!BA516 -> 0 | BA16: =FUNCALLOC!BB516 -> 0 | BB16: =FUNCALLOC!BC516 -> 0 | BC16: =FUNCALLOC!BD516 -> 0 | BD16: =FUNCALLOC!BE516 -> 0 | BE16: =FUNCALLOC!BF516 -> 0 | BF16: =FUNCALLOC!BG516 -> 0 | BG16: =FUNCALLOC!BI516 -> 0
D17: =IF((D16=0)*OR($C16=0),0,D16/$C16) -> 0.002472310101 | E17: 0.02486187664 | F17: 0.1825647982 | G17: 0 | H17: 0 | I17: 0.05816029187 | J17: 0 | K17: 0.08676910382 | L17: 0.009134411946 | M17: 0 | N17: 0 | O17: 0 | P17: 0 | Q17: 0 | R17: 0.1486055555 | S17: 0.001419355797 | T17: 0.1349328498 | U17: 0.08133681305 | V17: 0.02347320762 | W17: 0 | X17: 0 | Y17: 0 | Z17: 0.1427886215 | AA17: 0 | AB17: 0.009403695914 | AC17: 0.0116925246 | AD17: 0 | AE17: 0 | AF17: 0.005017016274 | AG17: 0.0738221348 | AH17: 0 | AI17: 0 | AJ17: =IF((AJ16=0)*OR($C16=0),0,AJ16/$C16) -> 0 | AK17: 0 | AL17: 2.173298077e-06 | AM17: 0.003543259228 | AN17: 0 | AO17: 0 | AP17: 0 | AQ17: 0 | AR17: =IF((AR16=0)*OR($C16=0),0,AR16/$C16) -> 0 | AS17: 0 | AT17: 0 | AU17: 0 | AV17: 0 | AW17: 0 | AX17: 0 | AY17: 0 | AZ17: 0 | BA17: 0 | BB17: 0 | BC17: 0 | BD17: 0 | BE17: 0 | BF17: 0 | BG17: 0
A19: PRODPT | B19: Production Plant | C19: =SUM(D19:BG19) -> 6075000 | D19: =FUNCALLOC!E18+FUNCALLOC!E19 -> 6075000 | E19: =FUNCALLOC!F18+FUNCALLOC!F19 -> 0 | F19: =FUNCALLOC!G18+FUNCALLOC!G19 -> 0 | G19: =FUNCALLOC!H18+FUNCALLOC!H19 -> 0 | H19: =FUNCALLOC!I18+FUNCALLOC!I19 -> 0 | I19: =FUNCALLOC!J18+FUNCALLOC!J19 -> 0 | J19: =FUNCALLOC!K18+FUNCALLOC!K19 -> 0 | K19: =FUNCALLOC!L18+FUNCALLOC!L19 -> 0 | L19: =FUNCALLOC!M18+FUNCALLOC!M19 -> 0 | M19: =FUNCALLOC!N18+FUNCALLOC!N19 -> 0 | N19: =FUNCALLOC!O18+FUNCALLOC!O19 -> 0 | O19: =FUNCALLOC!P18+FUNCALLOC!P19 -> 0 | P19: =FUNCALLOC!Q18+FUNCALLOC!Q19 -> 0 | Q19: =FUNCALLOC!R18+FUNCALLOC!R19 -> 0 | R19: =FUNCALLOC!S18+FUNCALLOC!S19 -> 0 | S19: =FUNCALLOC!T18+FUNCALLOC!T19 -> 0 | T19: =FUNCALLOC!U18+FUNCALLOC!U19 -> 0 | U19: =FUNCALLOC!V18+FUNCALLOC!V19 -> 0 | V19: =FUNCALLOC!W18+FUNCALLOC!W19 -> 0 | W19: =FUNCALLOC!X18+FUNCALLOC!X19 -> 0 | X19: =FUNCALLOC!Y18+FUNCALLOC!Y19 -> 0 | Y19: =FUNCALLOC!Z18+FUNCALLOC!Z19 -> 0 | Z19: =FUNCALLOC!AA18+FUNCALLOC!AA19 -> 0 | AA19: =FUNCALLOC!AB18+FUNCALLOC!AB19 -> 0 | AB19: =FUNCALLOC!AC18+FUNCALLOC!AC19 -> 0 | AC19: =FUNCALLOC!AD18+FUNCALLOC!AD19 -> 0 | AD19: =FUNCALLOC!AE18+FUNCALLOC!AE19 -> 0 | AE19: =FUNCALLOC!AF18+FUNCALLOC!AF19 -> 0 | AF19: =FUNCALLOC!AG18+FUNCALLOC!AG19 -> 0 | AG19: =FUNCALLOC!AH18+FUNCALLOC!AH19 -> 0 | AH19: =FUNCALLOC!AI18+FUNCALLOC!AI19 -> 0 | AI19: =FUNCALLOC!AJ18+FUNCALLOC!AJ19 -> 0 | AJ19: =FUNCALLOC!AK18+FUNCALLOC!AK19 -> 0 | AK19: =FUNCALLOC!AL18+FUNCALLOC!AL19 -> 0 | AL19: =FUNCALLOC!AM18+FUNCALLOC!AM19 -> 0 | AM19: =FUNCALLOC!AN18+FUNCALLOC!AN19 -> 0 | AN19: =FUNCALLOC!AO18+FUNCALLOC!AO19 -> 0 | AO19: =FUNCALLOC!AP18+FUNCALLOC!AP19 -> 0 | AP19: =FUNCALLOC!AQ18+FUNCALLOC!AQ19 -> 0 | AQ19: =FUNCALLOC!AR18+FUNCALLOC!AR19 -> 0 | AR19: =FUNCALLOC!AS18+FUNCALLOC!AS19 -> 0 | AS19: =FUNCALLOC!AT18+FUNCALLOC!AT19 -> 0 | AT19: =FUNCALLOC!AU18+FUNCALLOC!AU19 -> 0 | AU19: =FUNCALLOC!AV18+FUNCALLOC!AV19 -> 0 | AV19: =FUNCALLOC!AW18+FUNCALLOC!AW19 -> 0 | AW19: =FUNCALLOC!AX18+FUNCALLOC!AX19 -> 0 | AX19: =FUNCALLOC!AY18+FUNCALLOC!AY19 -> 0 | AY19: =FUNCALLOC!AZ18+FUNCALLOC!AZ19 -> 0 | AZ19: =FUNCALLOC!BA18+FUNCALLOC!BA19 -> 0 | BA19: =FUNCALLOC!BB18+FUNCALLOC!BB19 -> 0 | BB19: =FUNCALLOC!BC18+FUNCALLOC!BC19 -> 0 | BC19: =FUNCALLOC!BD18+FUNCALLOC!BD19 -> 0 | BD19: =FUNCALLOC!BE18+FUNCALLOC!BE19 -> 0 | BE19: =FUNCALLOC!BF18+FUNCALLOC!BF19 -> 0 | BF19: =FUNCALLOC!BG18+FUNCALLOC!BG19 -> 0 | BG19: =FUNCALLOC!BI18+FUNCALLOC!BI19 -> 0
D20: =IF((D19=0)*OR($C19=0),0,D19/$C19) -> 1 | E20: 0 | F20: 0 | G20: 0 | H20: 0 | I20: 0 | J20: 0 | K20: 0 | L20: 0 | M20: 0 | N20: 0 | O20: 0 | P20: 0 | Q20: 0 | R20: 0 | S20: 0 | T20: 0 | U20: 0 | V20: 0 | W20: 0 | X20: 0 | Y20: 0 | Z20: 0 | AA20: 0 | AB20: 0 | AC20: 0 | AD20: 0 | AE20: 0 | AF20: 0 | AG20: 0 | AH20: 0 | AI20: 0 | AJ20: =IF((AJ19=0)*OR($C19=0),0,AJ19/$C19) -> 0 | AK20: 0 | AL20: 0 | AM20: 0 | AN20: 0 | AO20: 0 | AP20: 0 | AQ20: 0 | AR20: =IF((AR19=0)*OR($C19=0),0,AR19/$C19) -> 0 | AS20: 0 | AT20: 0 | AU20: 0 | AV20: 0 | AW20: 0 | AX20: 0 | AY20: 0 | AZ20: 0 | BA20: 0 | BB20: 0 | BC20: 0 | BD20: 0 | BE20: 0 | BF20: 0 | BG20: 0
A22: TRANPT | B22: Transmission Plant | C22: =SUM(D22:BG22) -> 0 | D22: =SUM(FUNCALLOC!E54:E59) -> 0 | E22: =SUM(FUNCALLOC!F54:F59) -> 0 | F22: =SUM(FUNCALLOC!G54:G59) -> 0 | G22: =SUM(FUNCALLOC!H54:H59) -> 0 | H22: =SUM(FUNCALLOC!I54:I59) -> 0 | I22: =SUM(FUNCALLOC!J54:J59) -> 0 | J22: =SUM(FUNCALLOC!K54:K59) -> 0 | K22: =SUM(FUNCALLOC!L54:L59) -> 0 | L22: =SUM(FUNCALLOC!M54:M59) -> 0 | M22: =SUM(FUNCALLOC!N54:N59) -> 0 | N22: =SUM(FUNCALLOC!O54:O59) -> 0 | O22: =SUM(FUNCALLOC!P54:P59) -> 0 | P22: =SUM(FUNCALLOC!Q54:Q59) -> 0 | Q22: =SUM(FUNCALLOC!R54:R59) -> 0 | R22: =SUM(FUNCALLOC!S54:S59) -> 0 | S22: =SUM(FUNCALLOC!T54:T59) -> 0 | T22: =SUM(FUNCALLOC!U54:U59) -> 0 | U22: =SUM(FUNCALLOC!V54:V59) -> 0 | V22: =SUM(FUNCALLOC!W54:W59) -> 0 | W22: =SUM(FUNCALLOC!X54:X59) -> 0 | X22: =SUM(FUNCALLOC!Y54:Y59) -> 0 | Y22: =SUM(FUNCALLOC!Z54:Z59) -> 0 | Z22: =SUM(FUNCALLOC!AA54:AA59) -> 0 | AA22: =SUM(FUNCALLOC!AB54:AB59) -> 0 | AB22: =SUM(FUNCALLOC!AC54:AC59) -> 0 | AC22: =SUM(FUNCALLOC!AD54:AD59) -> 0 | AD22: =SUM(FUNCALLOC!AE54:AE59) -> 0 | AE22: =SUM(FUNCALLOC!AF54:AF59) -> 0 | AF22: =SUM(FUNCALLOC!AG54:AG59) -> 0 | AG22: =SUM(FUNCALLOC!AH54:AH59) -> 0 | AH22: =SUM(FUNCALLOC!AI54:AI59) -> 0 | AI22: =SUM(FUNCALLOC!AJ54:AJ59) -> 0 | AJ22: =SUM(FUNCALLOC!AK54:AK59) -> 0 | AK22: =SUM(FUNCALLOC!AL54:AL59) -> 0 | AL22: =SUM(FUNCALLOC!AM54:AM59) -> 0 | AM22: =SUM(FUNCALLOC!AN54:AN59) -> 0 | AN22: =SUM(FUNCALLOC!AO54:AO59) -> 0 | AO22: =SUM(FUNCALLOC!AP54:AP59) -> 0 | AP22: =SUM(FUNCALLOC!AQ54:AQ59) -> 0 | AQ22: =SUM(FUNCALLOC!AR54:AR59) -> 0 | AR22: =SUM(FUNCALLOC!AS54:AS59) -> 0 | AS22: =SUM(FUNCALLOC!AT54:AT59) -> 0 | AT22: =SUM(FUNCALLOC!AU54:AU59) -> 0 | AU22: =SUM(FUNCALLOC!AV54:AV59) -> 0 | AV22: =SUM(FUNCALLOC!AW54:AW59) -> 0 | AW22: =SUM(FUNCALLOC!AX54:AX59) -> 0 | AX22: =SUM(FUNCALLOC!AY54:AY59) -> 0 | AY22: =SUM(FUNCALLOC!AZ54:AZ59) -> 0 | AZ22: =SUM(FUNCALLOC!BA54:BA59) -> 0 | BA22: =SUM(FUNCALLOC!BB54:BB59) -> 0 | BB22: =SUM(FUNCALLOC!BC54:BC59) -> 0 | BC22: =SUM(FUNCALLOC!BD54:BD59) -> 0 | BD22: =SUM(FUNCALLOC!BE54:BE59) -> 0 | BE22: =SUM(FUNCALLOC!BF54:BF59) -> 0 | BF22: =SUM(FUNCALLOC!BG54:BG59) -> 0 | BG22: =SUM(FUNCALLOC!BI54:BI59) -> 0
D23: =IF((D22=0)*OR($C22=0),0,D22/$C22) -> 0 | E23: 0 | F23: 0 | G23: 0 | H23: 0 | I23: 0 | J23: 0 | K23: 0 | L23: 0 | M23: 0 | N23: 0 | O23: 0 | P23: 0 | Q23: 0 | R23: 0 | S23: 0 | T23: 0 | U23: 0 | V23: 0 | W23: 0 | X23: 0 | Y23: 0 | Z23: 0 | AA23: 0 | AB23: 0 | AC23: 0 | AD23: 0 | AE23: 0 | AF23: 0 | AG23: 0 | AH23: 0 | AI23: 0 | AJ23: =IF((AJ22=0)*OR($C22=0),0,AJ22/$C22) -> 0 | AK23: 0 | AL23: 0 | AM23: 0 | AN23: 0 | AO23: 0 | AP23: 0 | AQ23: 0 | AR23: =IF((AR22=0)*OR($C22=0),0,AR22/$C22) -> 0 | AS23: 0 | AT23: 0 | AU23: 0 | AV23: 0 | AW23: 0 | AX23: 0 | AY23: 0 | AZ23: 0 | BA23: 0 | BB23: 0 | BC23: 0 | BD23: 0 | BE23: 0 | BF23: 0 | BG23: 0
A25: DISTPT | B25: Distribution Plant excluding Rentals | C25: =SUM(D25:BG25) -> 3781117614 | D25: =SUM(FUNCALLOC!E66:E77) -> 0 | E25: =SUM(FUNCALLOC!F66:F77) -> 0 | F25: =SUM(FUNCALLOC!G66:G77) -> 1346714715 | G25: =SUM(FUNCALLOC!H66:H77) -> 86172210.37 | H25: =SUM(FUNCALLOC!I66:I77) -> 0 | I25: =SUM(FUNCALLOC!J66:J77) -> 0 | J25: =SUM(FUNCALLOC!K66:K77) -> 0 | K25: =SUM(FUNCALLOC!L66:L77) -> 640064405 | L25: =SUM(FUNCALLOC!M66:M77) -> 40955789.63 | M25: =SUM(FUNCALLOC!N66:N77) -> 0 | N25: =SUM(FUNCALLOC!O66:O77) -> 0 | O25: =SUM(FUNCALLOC!P66:P77) -> 0 | P25: =SUM(FUNCALLOC!Q66:Q77) -> 0 | Q25: =SUM(FUNCALLOC!R66:R77) -> 0 | R25: =SUM(FUNCALLOC!S66:S77) -> 1165290125 | S25: =SUM(FUNCALLOC!T66:T77) -> 11129875.24 | T25: =SUM(FUNCALLOC!U66:U77) -> 232953614 | U25: =SUM(FUNCALLOC!V66:V77) -> 182836000 | V25: =SUM(FUNCALLOC!W66:W77) -> 43475000 | W25: =SUM(FUNCALLOC!X66:X77) -> 0 | X25: =SUM(FUNCALLOC!Y66:Y77) -> 0 | Y25: =SUM(FUNCALLOC!Z66:Z77) -> 0 | Z25: =SUM(FUNCALLOC!AA66:AA77) -> 0 | AA25: =SUM(FUNCALLOC!AB66:AB77) -> 0 | AB25: =SUM(FUNCALLOC!AC66:AC77) -> 0 | AC25: =SUM(FUNCALLOC!AD66:AD77) -> 0 | AD25: =SUM(FUNCALLOC!AE66:AE77) -> 31525879.94 | AE25: =SUM(FUNCALLOC!AF66:AF77) -> 0 | AF25: =SUM(FUNCALLOC!AG66:AG77) -> 0 | AG25: =SUM(FUNCALLOC!AH66:AH77) -> 0 | AH25: =SUM(FUNCALLOC!AI66:AI77) -> 0 | AI25: =SUM(FUNCALLOC!AJ66:AJ77) -> 0 | AJ25: =SUM(FUNCALLOC!AK66:AK77) -> 0 | AK25: =SUM(FUNCALLOC!AL66:AL77) -> 0 | AL25: =SUM(FUNCALLOC!AM66:AM77) -> 0 | AM25: =SUM(FUNCALLOC!AN66:AN77) -> 0 | AN25: =SUM(FUNCALLOC!AO66:AO77) -> 0 | AO25: =SUM(FUNCALLOC!AP66:AP77) -> 0 | AP25: =SUM(FUNCALLOC!AQ66:AQ77) -> 0 | AQ25: =SUM(FUNCALLOC!AR66:AR77) -> 0 | AR25: =SUM(FUNCALLOC!AS66:AS77) -> 0 | AS25: =SUM(FUNCALLOC!AT66:AT77) -> 0 | AT25: =SUM(FUNCALLOC!AU66:AU77) -> 0 | AU25: =SUM(FUNCALLOC!AV66:AV77) -> 0 | AV25: =SUM(FUNCALLOC!AW66:AW77) -> 0 | AW25: =SUM(FUNCALLOC!AX66:AX77) -> 0 | AX25: =SUM(FUNCALLOC!AY66:AY77) -> 0 | AY25: =SUM(FUNCALLOC!AZ66:AZ77) -> 0 | AZ25: =SUM(FUNCALLOC!BA66:BA77) -> 0 | BA25: =SUM(FUNCALLOC!BB66:BB77) -> 0 | BB25: =SUM(FUNCALLOC!BC66:BC77) -> 0 | BC25: =SUM(FUNCALLOC!BD66:BD77) -> 0 | BD25: =SUM(FUNCALLOC!BE66:BE77) -> 0 | BE25: =SUM(FUNCALLOC!BF66:BF77) -> 0 | BF25: =SUM(FUNCALLOC!BG66:BG77) -> 0 | BG25: =SUM(FUNCALLOC!BI66:BI77) -> 0
D26: =IF((D25=0)*OR($C25=0),0,D25/$C25) -> 0 | E26: 0 | F26: 0.3561684276 | G26: 0.0227901428 | H26: 0 | I26: 0 | J26: 0 | K26: 0.1692791577 | L26: 0.01083166244 | M26: 0 | N26: 0 | O26: 0 | P26: 0 | Q26: 0 | R26: 0.3081866907 | S26: 0.002943541138 | T26: 0.06160972436 | U26: 0.04835501528 | V26: 0.01149792322 | W26: 0 | X26: 0 | Y26: 0 | Z26: 0 | AA26: 0 | AB26: 0 | AC26: 0 | AD26: 0.008337714707 | AE26: 0 | AF26: 0 | AG26: 0 | AH26: 0 | AI26: 0 | AJ26: =IF((AJ25=0)*OR($C25=0),0,AJ25/$C25) -> 0 | AK26: 0 | AL26: 0 | AM26: 0 | AN26: 0 | AO26: 0 | AP26: 0 | AQ26: 0 | AR26: =IF((AR25=0)*OR($C25=0),0,AR25/$C25) -> 0 | AS26: 0 | AT26: 0 | AU26: 0 | AV26: 0 | AW26: 0 | AX26: 0 | AY26: 0 | AZ26: 0 | BA26: 0 | BB26: 0 | BC26: 0 | BD26: 0 | BE26: 0 | BF26: 0 | BG26: 0
A28: PLTXR | B28: Plant excluding Rentals | C28: =SUM(D28:BG28) -> 3936950059 | D28: =FUNCALLOC!E28+FUNCALLOC!E40+FUNCALLOC!E49+FUNCALLOC!E60+FUNCALLOC!E83-FUNCALLOC!E78 -> 8382000 | E28: =FUNCALLOC!F28+FUNCALLOC!F40+FUNCALLOC!F49+FUNCALLOC!F60+FUNCALLOC!F83-FUNCALLOC!F78 -> 52399250 | F28: =FUNCALLOC!G28+FUNCALLOC!G40+FUNCALLOC!G49+FUNCALLOC!G60+FUNCALLOC!G83-FUNCALLOC!G78 -> 1376980642 | G28: =FUNCALLOC!H28+FUNCALLOC!H40+FUNCALLOC!H49+FUNCALLOC!H60+FUNCALLOC!H83-FUNCALLOC!H78 -> 88108835.7 | H28: =FUNCALLOC!I28+FUNCALLOC!I40+FUNCALLOC!I49+FUNCALLOC!I60+FUNCALLOC!I83-FUNCALLOC!I78 -> 0 | I28: =FUNCALLOC!J28+FUNCALLOC!J40+FUNCALLOC!J49+FUNCALLOC!J60+FUNCALLOC!J83-FUNCALLOC!J78 -> 0 | J28: =FUNCALLOC!K28+FUNCALLOC!K40+FUNCALLOC!K49+FUNCALLOC!K60+FUNCALLOC!K83-FUNCALLOC!K78 -> 10074750 | K28: =FUNCALLOC!L28+FUNCALLOC!L40+FUNCALLOC!L49+FUNCALLOC!L60+FUNCALLOC!L83-FUNCALLOC!L78 -> 654449146.1 | L28: =FUNCALLOC!M28+FUNCALLOC!M40+FUNCALLOC!M49+FUNCALLOC!M60+FUNCALLOC!M83-FUNCALLOC!M78 -> 41876225.8 | M28: =FUNCALLOC!N28+FUNCALLOC!N40+FUNCALLOC!N49+FUNCALLOC!N60+FUNCALLOC!N83-FUNCALLOC!N78 -> 0 | N28: =FUNCALLOC!O28+FUNCALLOC!O40+FUNCALLOC!O49+FUNCALLOC!O60+FUNCALLOC!O83-FUNCALLOC!O78 -> 0 | O28: =FUNCALLOC!P28+FUNCALLOC!P40+FUNCALLOC!P49+FUNCALLOC!P60+FUNCALLOC!P83-FUNCALLOC!P78 -> 0 | P28: =FUNCALLOC!Q28+FUNCALLOC!Q40+FUNCALLOC!Q49+FUNCALLOC!Q60+FUNCALLOC!Q83-FUNCALLOC!Q78 -> 0 | Q28: =FUNCALLOC!R28+FUNCALLOC!R40+FUNCALLOC!R49+FUNCALLOC!R60+FUNCALLOC!R83-FUNCALLOC!R78 -> 0 | R28: =FUNCALLOC!S28+FUNCALLOC!S40+FUNCALLOC!S49+FUNCALLOC!S60+FUNCALLOC!S83-FUNCALLOC!S78 -> 1191478734 | S28: =FUNCALLOC!T28+FUNCALLOC!T40+FUNCALLOC!T49+FUNCALLOC!T60+FUNCALLOC!T83-FUNCALLOC!T78 -> 11380006.91 | T28: =FUNCALLOC!U28+FUNCALLOC!U40+FUNCALLOC!U49+FUNCALLOC!U60+FUNCALLOC!U83-FUNCALLOC!U78 -> 238188989.3 | U28: =FUNCALLOC!V28+FUNCALLOC!V40+FUNCALLOC!V49+FUNCALLOC!V60+FUNCALLOC!V83-FUNCALLOC!V78 -> 186945037.3 | V28: =FUNCALLOC!W28+FUNCALLOC!W40+FUNCALLOC!W49+FUNCALLOC!W60+FUNCALLOC!W83-FUNCALLOC!W78 -> 44452052.64 | W28: =FUNCALLOC!X28+FUNCALLOC!X40+FUNCALLOC!X49+FUNCALLOC!X60+FUNCALLOC!X83-FUNCALLOC!X78 -> 0 | X28: =FUNCALLOC!Y28+FUNCALLOC!Y40+FUNCALLOC!Y49+FUNCALLOC!Y60+FUNCALLOC!Y83-FUNCALLOC!Y78 -> 0 | Y28: =FUNCALLOC!Z28+FUNCALLOC!Z40+FUNCALLOC!Z49+FUNCALLOC!Z60+FUNCALLOC!Z83-FUNCALLOC!Z78 -> 0 | Z28: =FUNCALLOC!AA28+FUNCALLOC!AA40+FUNCALLOC!AA49+FUNCALLOC!AA60+FUNCALLOC!AA83-FUNCALLOC!AA78 -> 0 | AA28: =FUNCALLOC!AB28+FUNCALLOC!AB40+FUNCALLOC!AB49+FUNCALLOC!AB60+FUNCALLOC!AB83-FUNCALLOC!AB78 -> 0 | AB28: =FUNCALLOC!AC28+FUNCALLOC!AC40+FUNCALLOC!AC49+FUNCALLOC!AC60+FUNCALLOC!AC83-FUNCALLOC!AC78 -> 0 | AC28: =FUNCALLOC!AD28+FUNCALLOC!AD40+FUNCALLOC!AD49+FUNCALLOC!AD60+FUNCALLOC!AD83-FUNCALLOC!AD78 -> 0 | AD28: =FUNCALLOC!AE28+FUNCALLOC!AE40+FUNCALLOC!AE49+FUNCALLOC!AE60+FUNCALLOC!AE83-FUNCALLOC!AE78 -> 32234389.3 | AE28: =FUNCALLOC!AF28+FUNCALLOC!AF40+FUNCALLOC!AF49+FUNCALLOC!AF60+FUNCALLOC!AF83-FUNCALLOC!AF78 -> 0 | AF28: =FUNCALLOC!AG28+FUNCALLOC!AG40+FUNCALLOC!AG49+FUNCALLOC!AG60+FUNCALLOC!AG83-FUNCALLOC!AG78 -> 0 | AG28: =FUNCALLOC!AH28+FUNCALLOC!AH40+FUNCALLOC!AH49+FUNCALLOC!AH60+FUNCALLOC!AH83-FUNCALLOC!AH78 -> 0 | AH28: =FUNCALLOC!AI28+FUNCALLOC!AI40+FUNCALLOC!AI49+FUNCALLOC!AI60+FUNCALLOC!AI83-FUNCALLOC!AI78 -> 0 | AI28: =FUNCALLOC!AJ28+FUNCALLOC!AJ40+FUNCALLOC!AJ49+FUNCALLOC!AJ60+FUNCALLOC!AJ83-FUNCALLOC!AJ78 -> 0 | AJ28: =FUNCALLOC!AK28+FUNCALLOC!AK40+FUNCALLOC!AK49+FUNCALLOC!AK60+FUNCALLOC!AK83-FUNCALLOC!AK78 -> 0 | AK28: =FUNCALLOC!AL28+FUNCALLOC!AL40+FUNCALLOC!AL49+FUNCALLOC!AL60+FUNCALLOC!AL83-FUNCALLOC!AL78 -> 0 | AL28: =FUNCALLOC!AM28+FUNCALLOC!AM40+FUNCALLOC!AM49+FUNCALLOC!AM60+FUNCALLOC!AM83-FUNCALLOC!AM78 -> 0 | AM28: =FUNCALLOC!AN28+FUNCALLOC!AN40+FUNCALLOC!AN49+FUNCALLOC!AN60+FUNCALLOC!AN83-FUNCALLOC!AN78 -> 0 | AN28: =FUNCALLOC!AO28+FUNCALLOC!AO40+FUNCALLOC!AO49+FUNCALLOC!AO60+FUNCALLOC!AO83-FUNCALLOC!AO78 -> 0 | AO28: =FUNCALLOC!AP28+FUNCALLOC!AP40+FUNCALLOC!AP49+FUNCALLOC!AP60+FUNCALLOC!AP83-FUNCALLOC!AP78 -> 0 | AP28: =FUNCALLOC!AQ28+FUNCALLOC!AQ40+FUNCALLOC!AQ49+FUNCALLOC!AQ60+FUNCALLOC!AQ83-FUNCALLOC!AQ78 -> 0 | AQ28: =FUNCALLOC!AR28+FUNCALLOC!AR40+FUNCALLOC!AR49+FUNCALLOC!AR60+FUNCALLOC!AR83-FUNCALLOC!AR78 -> 0 | AR28: =FUNCALLOC!AS28+FUNCALLOC!AS40+FUNCALLOC!AS49+FUNCALLOC!AS60+FUNCALLOC!AS83-FUNCALLOC!AS78 -> 0 | AS28: =FUNCALLOC!AT28+FUNCALLOC!AT40+FUNCALLOC!AT49+FUNCALLOC!AT60+FUNCALLOC!AT83-FUNCALLOC!AT78 -> 0 | AT28: =FUNCALLOC!AU28+FUNCALLOC!AU40+FUNCALLOC!AU49+FUNCALLOC!AU60+FUNCALLOC!AU83-FUNCALLOC!AU78 -> 0 | AU28: =FUNCALLOC!AV28+FUNCALLOC!AV40+FUNCALLOC!AV49+FUNCALLOC!AV60+FUNCALLOC!AV83-FUNCALLOC!AV78 -> 0 | AV28: =FUNCALLOC!AW28+FUNCALLOC!AW40+FUNCALLOC!AW49+FUNCALLOC!AW60+FUNCALLOC!AW83-FUNCALLOC!AW78 -> 0 | AW28: =FUNCALLOC!AX28+FUNCALLOC!AX40+FUNCALLOC!AX49+FUNCALLOC!AX60+FUNCALLOC!AX83-FUNCALLOC!AX78 -> 0 | AX28: =FUNCALLOC!AY28+FUNCALLOC!AY40+FUNCALLOC!AY49+FUNCALLOC!AY60+FUNCALLOC!AY83-FUNCALLOC!AY78 -> 0 | AY28: =FUNCALLOC!AZ28+FUNCALLOC!AZ40+FUNCALLOC!AZ49+FUNCALLOC!AZ60+FUNCALLOC!AZ83-FUNCALLOC!AZ78 -> 0 | AZ28: =FUNCALLOC!BA28+FUNCALLOC!BA40+FUNCALLOC!BA49+FUNCALLOC!BA60+FUNCALLOC!BA83-FUNCALLOC!BA78 -> 0 | BA28: =FUNCALLOC!BB28+FUNCALLOC!BB40+FUNCALLOC!BB49+FUNCALLOC!BB60+FUNCALLOC!BB83-FUNCALLOC!BB78 -> 0 | BB28: =FUNCALLOC!BC28+FUNCALLOC!BC40+FUNCALLOC!BC49+FUNCALLOC!BC60+FUNCALLOC!BC83-FUNCALLOC!BC78 -> 0 | BC28: =FUNCALLOC!BD28+FUNCALLOC!BD40+FUNCALLOC!BD49+FUNCALLOC!BD60+FUNCALLOC!BD83-FUNCALLOC!BD78 -> 0 | BD28: =FUNCALLOC!BE28+FUNCALLOC!BE40+FUNCALLOC!BE49+FUNCALLOC!BE60+FUNCALLOC!BE83-FUNCALLOC!BE78 -> 0 | BE28: =FUNCALLOC!BF28+FUNCALLOC!BF40+FUNCALLOC!BF49+FUNCALLOC!BF60+FUNCALLOC!BF83-FUNCALLOC!BF78 -> 0 | BF28: =FUNCALLOC!BG28+FUNCALLOC!BG40+FUNCALLOC!BG49+FUNCALLOC!BG60+FUNCALLOC!BG83-FUNCALLOC!BG78 -> 0 | BG28: =FUNCALLOC!BI28+FUNCALLOC!BI40+FUNCALLOC!BI49+FUNCALLOC!BI60+FUNCALLOC!BI83-FUNCALLOC!BI78 -> 0
D29: =IF((D28=0)*OR($C28=0),0,D28/$C28) -> 0.002129059265 | E29: 0.01330960495 | F29: 0.3497582193 | G29: 0.02237997292 | H29: 0 | I29: 0 | J29: 0.002559024079 | K29: 0.1662325242 | L29: 0.01063671755 | M29: 0 | N29: 0 | O29: 0 | P29: 0 | Q29: 0 | R29: 0.3026400427 | S29: 0.002890564202 | T29: 0.06050089174 | U29: 0.04748473679 | V29: 0.01129098718 | W29: 0 | X29: 0 | Y29: 0 | Z29: 0 | AA29: 0 | AB29: 0 | AC29: 0 | AD29: 0.008187655117 | AE29: 0 | AF29: 0 | AG29: 0 | AH29: 0 | AI29: 0 | AJ29: 0 | AK29: 0 | AL29: 0 | AM29: 0 | AN29: 0 | AO29: 0 | AP29: 0 | AQ29: 0 | AR29: =IF((AR28=0)*OR($C28=0),0,AR28/$C28) -> 0 | AS29: 0 | AT29: 0 | AU29: 0 | AV29: 0 | AW29: 0 | AX29: 0 | AY29: 0 | AZ29: 0 | BA29: 0 | BB29: 0 | BC29: 0 | BD29: 0 | BE29: 0 | BF29: 0 | BG29: 0
A31: PROD_OML | B31: Production O&M Labor Exp. (Accounts 717 - 742) | C31: =SUM(D31:BG31) -> 93145.82781 | D31: =SUM(FUNCALLOC!E402:E409) -> 93145.82781 | E31: =SUM(FUNCALLOC!F402:F409) -> 0 | F31: =SUM(FUNCALLOC!G402:G409) -> 0 | G31: =SUM(FUNCALLOC!H402:H409) -> 0 | H31: =SUM(FUNCALLOC!I402:I409) -> 0 | I31: =SUM(FUNCALLOC!J402:J409) -> 0 | J31: =SUM(FUNCALLOC!K402:K409) -> 0 | K31: =SUM(FUNCALLOC!L402:L409) -> 0 | L31: =SUM(FUNCALLOC!M402:M409) -> 0 | M31: =SUM(FUNCALLOC!N402:N409) -> 0 | N31: =SUM(FUNCALLOC!O402:O409) -> 0 | O31: =SUM(FUNCALLOC!P402:P409) -> 0 | P31: =SUM(FUNCALLOC!Q402:Q409) -> 0 | Q31: =SUM(FUNCALLOC!R402:R409) -> 0 | R31: =SUM(FUNCALLOC!S402:S409) -> 0 | S31: =SUM(FUNCALLOC!T402:T409) -> 0 | T31: =SUM(FUNCALLOC!U402:U409) -> 0 | U31: =SUM(FUNCALLOC!V402:V409) -> 0 | V31: =SUM(FUNCALLOC!W402:W409) -> 0 | W31: =SUM(FUNCALLOC!X402:X409) -> 0 | X31: =SUM(FUNCALLOC!Y402:Y409) -> 0 | Y31: =SUM(FUNCALLOC!Z402:Z409) -> 0 | Z31: =SUM(FUNCALLOC!AA402:AA409) -> 0 | AA31: =SUM(FUNCALLOC!AB402:AB409) -> 0 | AB31: =SUM(FUNCALLOC!AC402:AC409) -> 0 | AC31: =SUM(FUNCALLOC!AD402:AD409) -> 0 | AD31: =SUM(FUNCALLOC!AE402:AE409) -> 0 | AE31: =SUM(FUNCALLOC!AF402:AF409) -> 0 | AF31: =SUM(FUNCALLOC!AG402:AG409) -> 0 | AG31: =SUM(FUNCALLOC!AH402:AH409) -> 0 | AH31: =SUM(FUNCALLOC!AI402:AI409) -> 0 | AI31: =SUM(FUNCALLOC!AJ402:AJ409) -> 0 | AJ31: =SUM(FUNCALLOC!AK402:AK409) -> 0 | AK31: =SUM(FUNCALLOC!AL402:AL409) -> 0 | AL31: =SUM(FUNCALLOC!AM402:AM409) -> 0 | AM31: =SUM(FUNCALLOC!AN402:AN409) -> 0 | AN31: =SUM(FUNCALLOC!AO402:AO409) -> 0 | AO31: =SUM(FUNCALLOC!AP402:AP409) -> 0 | AP31: =SUM(FUNCALLOC!AQ402:AQ409) -> 0 | AQ31: =SUM(FUNCALLOC!AR402:AR409) -> 0 | AR31: =SUM(FUNCALLOC!AS402:AS409) -> 0 | AS31: =SUM(FUNCALLOC!AT402:AT409) -> 0 | AT31: =SUM(FUNCALLOC!AU402:AU409) -> 0 | AU31: =SUM(FUNCALLOC!AV402:AV409) -> 0 | AV31: =SUM(FUNCALLOC!AW402:AW409) -> 0 | AW31: =SUM(FUNCALLOC!AX402:AX409) -> 0 | AX31: =SUM(FUNCALLOC!AY402:AY409) -> 0 | AY31: =SUM(FUNCALLOC!AZ402:AZ409) -> 0 | AZ31: =SUM(FUNCALLOC!BA402:BA409) -> 0 | BA31: =SUM(FUNCALLOC!BB402:BB409) -> 0 | BB31: =SUM(FUNCALLOC!BC402:BC409) -> 0 | BC31: =SUM(FUNCALLOC!BD402:BD409) -> 0 | BD31: =SUM(FUNCALLOC!BE402:BE409) -> 0 | BE31: =SUM(FUNCALLOC!BF402:BF409) -> 0 | BF31: =SUM(FUNCALLOC!BG402:BG409) -> 0 | BG31: =SUM(FUNCALLOC!BI402:BI409) -> 0
D32: =IF((D31=0)*OR($C31=0),0,D31/$C31) -> 1 | E32: 0 | F32: 0 | G32: 0 | H32: 0 | I32: 0 | J32: 0 | K32: 0 | L32: 0 | M32: 0 | N32: 0 | O32: 0 | P32: 0 | Q32: 0 | R32: 0 | S32: 0 | T32: 0 | U32: 0 | V32: 0 | W32: 0 | X32: 0 | Y32: 0 | Z32: 0 | AA32: 0 | AB32: 0 | AC32: 0 | AD32: 0 | AE32: 0 | AF32: 0 | AG32: 0 | AH32: 0 | AI32: 0 | AJ32: 0 | AK32: 0 | AL32: 0 | AM32: 0 | AN32: 0 | AO32: 0 | AP32: 0 | AQ32: 0 | AR32: =IF((AR31=0)*OR($C31=0),0,AR31/$C31) -> 0 | AS32: 0 | AT32: 0 | AU32: 0 | AV32: 0 | AW32: 0 | AX32: 0 | AY32: 0 | AZ32: 0 | BA32: 0 | BB32: 0 | BC32: 0 | BD32: 0 | BE32: 0 | BF32: 0 | BG32: 0
A34: GAS | B34: Gas Costs | C34: =SUM(D34:BG34) -> 0 | D34: =FUNCALLOC!E633 -> 0 | E34: =FUNCALLOC!F633 -> 0 | F34: =FUNCALLOC!G633 -> 0 | G34: =FUNCALLOC!H633 -> 0 | H34: =FUNCALLOC!I633 -> 0 | I34: =FUNCALLOC!J633 -> 0 | J34: =FUNCALLOC!K633 -> 0 | K34: =FUNCALLOC!L633 -> 0 | L34: =FUNCALLOC!M633 -> 0 | M34: =FUNCALLOC!N633 -> 0 | N34: =FUNCALLOC!O633 -> 0 | O34: =FUNCALLOC!P633 -> 0 | P34: =FUNCALLOC!Q633 -> 0 | Q34: =FUNCALLOC!R633 -> 0 | R34: =FUNCALLOC!S633 -> 0 | S34: =FUNCALLOC!T633 -> 0 | T34: =FUNCALLOC!U633 -> 0 | U34: =FUNCALLOC!V633 -> 0 | V34: =FUNCALLOC!W633 -> 0 | W34: =FUNCALLOC!X633 -> 0 | X34: =FUNCALLOC!Y633 -> 0 | Y34: =FUNCALLOC!Z633 -> 0 | Z34: =FUNCALLOC!AA633 -> 0 | AA34: =FUNCALLOC!AB633 -> 0 | AB34: =FUNCALLOC!AC633 -> 0 | AC34: =FUNCALLOC!AD633 -> 0 | AD34: =FUNCALLOC!AE633 -> 0 | AE34: =FUNCALLOC!AF633 -> 0 | AF34: =FUNCALLOC!AG633 -> 0 | AG34: =FUNCALLOC!AH633 -> 0 | AH34: =FUNCALLOC!AI633 -> 0 | AI34: =FUNCALLOC!AJ633 -> 0 | AJ34: =FUNCALLOC!AK633 -> 0 | AK34: =FUNCALLOC!AL633 -> 0 | AL34: =FUNCALLOC!AM633 -> 0 | AM34: =FUNCALLOC!AN633 -> 0 | AN34: =FUNCALLOC!AO633 -> 0 | AO34: =FUNCALLOC!AP633 -> 0 | AP34: =FUNCALLOC!AQ633 -> 0 | AQ34: =FUNCALLOC!AR633 -> 0 | AR34: =FUNCALLOC!AS633 -> 0 | AS34: =FUNCALLOC!AT633 -> 0 | AT34: =FUNCALLOC!AU633 -> 0 | AU34: =FUNCALLOC!AV633 -> 0 | AV34: =FUNCALLOC!AW633 -> 0 | AW34: =FUNCALLOC!AX633 -> 0 | AX34: =FUNCALLOC!AY633 -> 0 | AY34: =FUNCALLOC!AZ633 -> 0 | AZ34: =FUNCALLOC!BA633 -> 0 | BA34: =FUNCALLOC!BB633 -> 0 | BB34: =FUNCALLOC!BC633 -> 0 | BC34: =FUNCALLOC!BD633 -> 0 | BD34: =FUNCALLOC!BE633 -> 0 | BE34: =FUNCALLOC!BF633 -> 0 | BF34: =FUNCALLOC!BG633 -> 0 | BG34: =FUNCALLOC!BI633 -> 0
D35: =IF((D34=0)*OR($C34=0),0,D34/$C34) -> 0 | E35: 0 | F35: 0 | G35: 0 | H35: 0 | I35: 0 | J35: 0 | K35: 0 | L35: 0 | M35: 0 | N35: 0 | O35: 0 | P35: 0 | Q35: 0 | R35: 0 | S35: 0 | T35: 0 | U35: 0 | V35: 0 | W35: 0 | X35: 0 | Y35: 0 | Z35: 0 | AA35: 0 | AB35: 0 | AC35: 0 | AD35: 0 | AE35: 0 | AF35: 0 | AG35: 0 | AH35: 0 | AI35: 0 | AJ35: 0 | AK35: 0 | AL35: 0 | AM35: 0 | AN35: 0 | AO35: 0 | AP35: 0 | AQ35: 0 | AR35: =IF((AR34=0)*OR($C34=0),0,AR34/$C34) -> 0 | AS35: 0 | AT35: 0 | AU35: 0 | AV35: 0 | AW35: 0 | AX35: 0 | AY35: 0 | AZ35: 0 | BA35: 0 | BB35: 0 | BC35: 0 | BD35: 0 | BE35: 0 | BF35: 0 | BG35: 0
A37: STORPT | B37: Underground Storage Plant | C37: =SUM(D37:BG37) -> 37900250 | D37: =SUM(FUNCALLOC!E32:E39) -> 0 | E37: =SUM(FUNCALLOC!F32:F39) -> 37900250 | F37: =SUM(FUNCALLOC!G32:G39) -> 0 | G37: =SUM(FUNCALLOC!H32:H39) -> 0 | H37: =SUM(FUNCALLOC!I32:I39) -> 0 | I37: =SUM(FUNCALLOC!J32:J39) -> 0 | J37: =SUM(FUNCALLOC!K32:K39) -> 0 | K37: =SUM(FUNCALLOC!L32:L39) -> 0 | L37: =SUM(FUNCALLOC!M32:M39) -> 0 | M37: =SUM(FUNCALLOC!N32:N39) -> 0 | N37: =SUM(FUNCALLOC!O32:O39) -> 0 | O37: =SUM(FUNCALLOC!P32:P39) -> 0 | P37: =SUM(FUNCALLOC!Q32:Q39) -> 0 | Q37: =SUM(FUNCALLOC!R32:R39) -> 0 | R37: =SUM(FUNCALLOC!S32:S39) -> 0 | S37: =SUM(FUNCALLOC!T32:T39) -> 0 | T37: =SUM(FUNCALLOC!U32:U39) -> 0 | U37: =SUM(FUNCALLOC!V32:V39) -> 0 | V37: =SUM(FUNCALLOC!W32:W39) -> 0 | W37: =SUM(FUNCALLOC!X32:X39) -> 0 | X37: =SUM(FUNCALLOC!Y32:Y39) -> 0 | Y37: =SUM(FUNCALLOC!Z32:Z39) -> 0 | Z37: =SUM(FUNCALLOC!AA32:AA39) -> 0 | AA37: =SUM(FUNCALLOC!AB32:AB39) -> 0 | AB37: =SUM(FUNCALLOC!AC32:AC39) -> 0 | AC37: =SUM(FUNCALLOC!AD32:AD39) -> 0 | AD37: =SUM(FUNCALLOC!AE32:AE39) -> 0 | AE37: =SUM(FUNCALLOC!AF32:AF39) -> 0 | AF37: =SUM(FUNCALLOC!AG32:AG39) -> 0 | AG37: =SUM(FUNCALLOC!AH32:AH39) -> 0 | AH37: =SUM(FUNCALLOC!AI32:AI39) -> 0 | AI37: =SUM(FUNCALLOC!AJ32:AJ39) -> 0 | AJ37: =SUM(FUNCALLOC!AK32:AK39) -> 0 | AK37: =SUM(FUNCALLOC!AL32:AL39) -> 0 | AL37: =SUM(FUNCALLOC!AM32:AM39) -> 0 | AM37: =SUM(FUNCALLOC!AN32:AN39) -> 0 | AN37: =SUM(FUNCALLOC!AO32:AO39) -> 0 | AO37: =SUM(FUNCALLOC!AP32:AP39) -> 0 | AP37: =SUM(FUNCALLOC!AQ32:AQ39) -> 0 | AQ37: =SUM(FUNCALLOC!AR32:AR39) -> 0 | AR37: =SUM(FUNCALLOC!AS32:AS39) -> 0 | AS37: =SUM(FUNCALLOC!AT32:AT39) -> 0 | AT37: =SUM(FUNCALLOC!AU32:AU39) -> 0 | AU37: =SUM(FUNCALLOC!AV32:AV39) -> 0 | AV37: =SUM(FUNCALLOC!AW32:AW39) -> 0 | AW37: =SUM(FUNCALLOC!AX32:AX39) -> 0 | AX37: =SUM(FUNCALLOC!AY32:AY39) -> 0 | AY37: =SUM(FUNCALLOC!AZ32:AZ39) -> 0 | AZ37: =SUM(FUNCALLOC!BA32:BA39) -> 0 | BA37: =SUM(FUNCALLOC!BB32:BB39) -> 0 | BB37: =SUM(FUNCALLOC!BC32:BC39) -> 0 | BC37: =SUM(FUNCALLOC!BD32:BD39) -> 0 | BD37: =SUM(FUNCALLOC!BE32:BE39) -> 0 | BE37: =SUM(FUNCALLOC!BF32:BF39) -> 0 | BF37: =SUM(FUNCALLOC!BG32:BG39) -> 0 | BG37: =SUM(FUNCALLOC!BI32:BI39) -> 0
D38: =IF((D37=0)*OR($C37=0),0,D37/$C37) -> 0 | E38: 1 | F38: 0 | G38: 0 | H38: 0 | I38: 0 | J38: 0 | K38: 0 | L38: 0 | M38: 0 | N38: 0 | O38: 0 | P38: 0 | Q38: 0 | R38: 0 | S38: 0 | T38: 0 | U38: 0 | V38: 0 | W38: 0 | X38: 0 | Y38: 0 | Z38: 0 | AA38: 0 | AB38: 0 | AC38: 0 | AD38: 0 | AE38: 0 | AF38: 0 | AG38: 0 | AH38: 0 | AI38: 0 | AJ38: 0 | AK38: 0 | AL38: 0 | AM38: 0 | AN38: 0 | AO38: 0 | AP38: 0 | AQ38: 0 | AR38: =IF((AR37=0)*OR($C37=0),0,AR37/$C37) -> 0 | AS38: 0 | AT38: 0 | AU38: 0 | AV38: 0 | AW38: 0 | AX38: 0 | AY38: 0 | AZ38: 0 | BA38: 0 | BB38: 0 | BC38: 0 | BD38: 0 | BE38: 0 | BF38: 0 | BG38: 0
A40: DIST_OML | B40: Distribution O&M Labor Exp. (Accounts 871 - 894) | C40: =SUM(D40:BG40) -> 25409950.35 | D40: =SUM(FUNCALLOC!E454:E474) -> 0 | E40: =SUM(FUNCALLOC!F454:F474) -> 0 | F40: =SUM(FUNCALLOC!G454:G474) -> 6386268.621 | G40: =SUM(FUNCALLOC!H454:H474) -> 0 | H40: =SUM(FUNCALLOC!I454:I474) -> 0 | I40: =SUM(FUNCALLOC!J454:J474) -> 2034495.426 | J40: =SUM(FUNCALLOC!K454:K474) -> 0 | K40: =SUM(FUNCALLOC!L454:L474) -> 3035255.484 | L40: =SUM(FUNCALLOC!M454:M474) -> 319529.334 | M40: =SUM(FUNCALLOC!N454:N474) -> 0 | N40: =SUM(FUNCALLOC!O454:O474) -> 0 | O40: =SUM(FUNCALLOC!P454:P474) -> 0 | P40: =SUM(FUNCALLOC!Q454:Q474) -> 0 | Q40: =SUM(FUNCALLOC!R454:R474) -> 0 | R40: =SUM(FUNCALLOC!S454:S474) -> 5198346.043 | S40: =SUM(FUNCALLOC!T454:T474) -> 49650.24735 | T40: =SUM(FUNCALLOC!U454:U474) -> 4720063.415 | U40: =SUM(FUNCALLOC!V454:V474) -> 2845229.431 | V40: =SUM(FUNCALLOC!W454:W474) -> 821112.3434 | W40: =SUM(FUNCALLOC!X454:X474) -> 0 | X40: =SUM(FUNCALLOC!Y454:Y474) -> 0 | Y40: =SUM(FUNCALLOC!Z454:Z474) -> 0 | Z40: =SUM(FUNCALLOC!AA454:AA474) -> 0 | AA40: =SUM(FUNCALLOC!AB454:AB474) -> 0 | AB40: =SUM(FUNCALLOC!AC454:AC474) -> 0 | AC40: =SUM(FUNCALLOC!AD454:AD474) -> 0 | AD40: =SUM(FUNCALLOC!AE454:AE474) -> 0 | AE40: =SUM(FUNCALLOC!AF454:AF474) -> 0 | AF40: =SUM(FUNCALLOC!AG454:AG474) -> 0 | AG40: =SUM(FUNCALLOC!AH454:AH474) -> 0 | AH40: =SUM(FUNCALLOC!AI454:AI474) -> 0 | AI40: =SUM(FUNCALLOC!AJ454:AJ474) -> 0 | AJ40: =SUM(FUNCALLOC!AK454:AK474) -> 0 | AK40: =SUM(FUNCALLOC!AL454:AL474) -> 0 | AL40: =SUM(FUNCALLOC!AM454:AM474) -> 0 | AM40: =SUM(FUNCALLOC!AN454:AN474) -> 0 | AN40: =SUM(FUNCALLOC!AO454:AO474) -> 0 | AO40: =SUM(FUNCALLOC!AP454:AP474) -> 0 | AP40: =SUM(FUNCALLOC!AQ454:AQ474) -> 0 | AQ40: =SUM(FUNCALLOC!AR454:AR474) -> 0 | AR40: =SUM(FUNCALLOC!AS454:AS474) -> 0 | AS40: =SUM(FUNCALLOC!AT454:AT474) -> 0 | AT40: =SUM(FUNCALLOC!AU454:AU474) -> 0 | AU40: =SUM(FUNCALLOC!AV454:AV474) -> 0 | AV40: =SUM(FUNCALLOC!AW454:AW474) -> 0 | AW40: =SUM(FUNCALLOC!AX454:AX474) -> 0 | AX40: =SUM(FUNCALLOC!AY454:AY474) -> 0 | AY40: =SUM(FUNCALLOC!AZ454:AZ474) -> 0 | AZ40: =SUM(FUNCALLOC!BA454:BA474) -> 0 | BA40: =SUM(FUNCALLOC!BB454:BB474) -> 0 | BB40: =SUM(FUNCALLOC!BC454:BC474) -> 0 | BC40: =SUM(FUNCALLOC!BD454:BD474) -> 0 | BD40: =SUM(FUNCALLOC!BE454:BE474) -> 0 | BE40: =SUM(FUNCALLOC!BF454:BF474) -> 0 | BF40: =SUM(FUNCALLOC!BG454:BG474) -> 0 | BG40: =SUM(FUNCALLOC!BI454:BI474) -> 0
D41: =IF((D40=0)*OR($C40=0),0,D40/$C40) -> 0 | E41: 0 | F41: 0.2513294412 | G41: 0 | H41: 0 | I41: 0.08006687926 | J41: 0 | K41: 0.1194514528 | L41: 0.01257496885 | M41: 0 | N41: 0 | O41: 0 | P41: 0 | Q41: 0 | R41: 0.20457915 | S41: 0.001953968688 | T41: 0.185756499 | U41: 0.1119730418 | V41: 0.0323145985 | W41: 0 | X41: 0 | Y41: 0 | Z41: 0 | AA41: 0 | AB41: 0 | AC41: 0 | AD41: 0 | AE41: 0 | AF41: 0 | AG41: 0 | AH41: 0 | AI41: 0 | AJ41: 0 | AK41: 0 | AL41: 0 | AM41: 0 | AN41: 0 | AO41: 0 | AP41: 0 | AQ41: 0 | AR41: =IF((AR40=0)*OR($C40=0),0,AR40/$C40) -> 0 | AS41: 0 | AT41: 0 | AU41: 0 | AV41: 0 | AW41: 0 | AX41: 0 | AY41: 0 | AZ41: 0 | BA41: 0 | BB41: 0 | BC41: 0 | BD41: 0 | BE41: 0 | BF41: 0 | BG41: 0
A43: DMAINS | B43: Mains Plant (Account 376) | C43: =SUM(D43:BG43) -> 1986779120 | D43: =FUNCALLOC!E66+FUNCALLOC!E67 -> 0 | E43: =FUNCALLOC!F66+FUNCALLOC!F67 -> 0 | F43: =FUNCALLOC!G66+FUNCALLOC!G67 -> 1346714715 | G43: =FUNCALLOC!H66+FUNCALLOC!H67 -> 0 | H43: =FUNCALLOC!I66+FUNCALLOC!I67 -> 0 | I43: =FUNCALLOC!J66+FUNCALLOC!J67 -> 0 | J43: =FUNCALLOC!K66+FUNCALLOC!K67 -> 0 | K43: =FUNCALLOC!L66+FUNCALLOC!L67 -> 640064405 | L43: =FUNCALLOC!M66+FUNCALLOC!M67 -> 0 | M43: =FUNCALLOC!N66+FUNCALLOC!N67 -> 0 | N43: =FUNCALLOC!O66+FUNCALLOC!O67 -> 0 | O43: =FUNCALLOC!P66+FUNCALLOC!P67 -> 0 | P43: =FUNCALLOC!Q66+FUNCALLOC!Q67 -> 0 | Q43: =FUNCALLOC!R66+FUNCALLOC!R67 -> 0 | R43: =FUNCALLOC!S66+FUNCALLOC!S67 -> 0 | S43: =FUNCALLOC!T66+FUNCALLOC!T67 -> 0 | T43: =FUNCALLOC!U66+FUNCALLOC!U67 -> 0 | U43: =FUNCALLOC!V66+FUNCALLOC!V67 -> 0 | V43: =FUNCALLOC!W66+FUNCALLOC!W67 -> 0 | W43: =FUNCALLOC!X66+FUNCALLOC!X67 -> 0 | X43: =FUNCALLOC!Y66+FUNCALLOC!Y67 -> 0 | Y43: =FUNCALLOC!Z66+FUNCALLOC!Z67 -> 0 | Z43: =FUNCALLOC!AA66+FUNCALLOC!AA67 -> 0 | AA43: =FUNCALLOC!AB66+FUNCALLOC!AB67 -> 0 | AB43: =FUNCALLOC!AC66+FUNCALLOC!AC67 -> 0 | AC43: =FUNCALLOC!AD66+FUNCALLOC!AD67 -> 0 | AD43: =FUNCALLOC!AE66+FUNCALLOC!AE67 -> 0 | AE43: =FUNCALLOC!AF66+FUNCALLOC!AF67 -> 0 | AF43: =FUNCALLOC!AG66+FUNCALLOC!AG67 -> 0 | AG43: =FUNCALLOC!AH66+FUNCALLOC!AH67 -> 0 | AH43: =FUNCALLOC!AI66+FUNCALLOC!AI67 -> 0 | AI43: =FUNCALLOC!AJ66+FUNCALLOC!AJ67 -> 0 | AJ43: =FUNCALLOC!AK66+FUNCALLOC!AK67 -> 0 | AK43: =FUNCALLOC!AL66+FUNCALLOC!AL67 -> 0 | AL43: =FUNCALLOC!AM66+FUNCALLOC!AM67 -> 0 | AM43: =FUNCALLOC!AN66+FUNCALLOC!AN67 -> 0 | AN43: =FUNCALLOC!AO66+FUNCALLOC!AO67 -> 0 | AO43: =FUNCALLOC!AP66+FUNCALLOC!AP67 -> 0 | AP43: =FUNCALLOC!AQ66+FUNCALLOC!AQ67 -> 0 | AQ43: =FUNCALLOC!AR66+FUNCALLOC!AR67 -> 0 | AR43: =FUNCALLOC!AS66+FUNCALLOC!AS67 -> 0 | AS43: =FUNCALLOC!AT66+FUNCALLOC!AT67 -> 0 | AT43: =FUNCALLOC!AU66+FUNCALLOC!AU67 -> 0 | AU43: =FUNCALLOC!AV66+FUNCALLOC!AV67 -> 0 | AV43: =FUNCALLOC!AW66+FUNCALLOC!AW67 -> 0 | AW43: =FUNCALLOC!AX66+FUNCALLOC!AX67 -> 0 | AX43: =FUNCALLOC!AY66+FUNCALLOC!AY67 -> 0 | AY43: =FUNCALLOC!AZ66+FUNCALLOC!AZ67 -> 0 | AZ43: =FUNCALLOC!BA66+FUNCALLOC!BA67 -> 0 | BA43: =FUNCALLOC!BB66+FUNCALLOC!BB67 -> 0 | BB43: =FUNCALLOC!BC66+FUNCALLOC!BC67 -> 0 | BC43: =FUNCALLOC!BD66+FUNCALLOC!BD67 -> 0 | BD43: =FUNCALLOC!BE66+FUNCALLOC!BE67 -> 0 | BE43: =FUNCALLOC!BF66+FUNCALLOC!BF67 -> 0 | BF43: =FUNCALLOC!BG66+FUNCALLOC!BG67 -> 0 | BG43: =FUNCALLOC!BH66+FUNCALLOC!BH67 -> 0
D44: =IF((D43=0)*OR($C43=0),0,D43/$C43) -> 0 | E44: 0 | F44: 0.6778381661 | G44: 0 | H44: 0 | I44: 0 | J44: 0 | K44: 0.3221618339 | L44: 0 | M44: 0 | N44: 0 | O44: 0 | P44: 0 | Q44: 0 | R44: 0 | S44: 0 | T44: 0 | U44: 0 | V44: 0 | W44: 0 | X44: 0 | Y44: 0 | Z44: 0 | AA44: 0 | AB44: 0 | AC44: 0 | AD44: 0 | AE44: 0 | AF44: 0 | AG44: 0 | AH44: 0 | AI44: 0 | AJ44: 0 | AK44: 0 | AL44: 0 | AM44: 0 | AN44: 0 | AO44: 0 | AP44: 0 | AQ44: 0 | AR44: =IF((AR43=0)*OR($C43=0),0,AR43/$C43) -> 0 | AS44: 0 | AT44: 0 | AU44: 0 | AV44: 0 | AW44: 0 | AX44: 0 | AY44: 0 | AZ44: 0 | BA44: 0 | BB44: 0 | BC44: 0 | BD44: 0 | BE44: 0 | BF44: 0 | BG44: 0
A46: CUSTACC | B46: Customer Account Expense (Accounts 902 - 904) | C46: =SUM(D46:BG46) -> 14535545.06 | D46: =SUM(FUNCALLOC!E337:E340,FUNCALLOC!E344:E345) -> 0 | E46: =SUM(FUNCALLOC!F337:F340,FUNCALLOC!F344:F345) -> 0 | F46: =SUM(FUNCALLOC!G337:G340,FUNCALLOC!G344:G345) -> 0 | G46: =SUM(FUNCALLOC!H337:H340,FUNCALLOC!H344:H345) -> 0 | H46: =SUM(FUNCALLOC!I337:I340,FUNCALLOC!I344:I345) -> 0 | I46: =SUM(FUNCALLOC!J337:J340,FUNCALLOC!J344:J345) -> 0 | J46: =SUM(FUNCALLOC!K337:K340,FUNCALLOC!K344:K345) -> 0 | K46: =SUM(FUNCALLOC!L337:L340,FUNCALLOC!L344:L345) -> 0 | L46: =SUM(FUNCALLOC!M337:M340,FUNCALLOC!M344:M345) -> 0 | M46: =SUM(FUNCALLOC!N337:N340,FUNCALLOC!N344:N345) -> 0 | N46: =SUM(FUNCALLOC!O337:O340,FUNCALLOC!O344:O345) -> 0 | O46: =SUM(FUNCALLOC!P337:P340,FUNCALLOC!P344:P345) -> 0 | P46: =SUM(FUNCALLOC!Q337:Q340,FUNCALLOC!Q344:Q345) -> 0 | Q46: =SUM(FUNCALLOC!R337:R340,FUNCALLOC!R344:R345) -> 0 | R46: =SUM(FUNCALLOC!S337:S340,FUNCALLOC!S344:S345) -> 0 | S46: =SUM(FUNCALLOC!T337:T340,FUNCALLOC!T344:T345) -> 0 | T46: =SUM(FUNCALLOC!U337:U340,FUNCALLOC!U344:U345) -> 0 | U46: =SUM(FUNCALLOC!V337:V340,FUNCALLOC!V344:V345) -> 0 | V46: =SUM(FUNCALLOC!W337:W340,FUNCALLOC!W344:W345) -> 0 | W46: =SUM(FUNCALLOC!X337:X340,FUNCALLOC!X344:X345) -> 0 | X46: =SUM(FUNCALLOC!Y337:Y340,FUNCALLOC!Y344:Y345) -> 0 | Y46: =SUM(FUNCALLOC!Z337:Z340,FUNCALLOC!Z344:Z345) -> 0 | Z46: =SUM(FUNCALLOC!AA337:AA340,FUNCALLOC!AA344:AA345) -> 144783.5869 | AA46: =SUM(FUNCALLOC!AB337:AB340,FUNCALLOC!AB344:AB345) -> 0 | AB46: =SUM(FUNCALLOC!AC337:AC340,FUNCALLOC!AC344:AC345) -> 0 | AC46: =SUM(FUNCALLOC!AD337:AD340,FUNCALLOC!AD344:AD345) -> 0 | AD46: =SUM(FUNCALLOC!AE337:AE340,FUNCALLOC!AE344:AE345) -> 0 | AE46: =SUM(FUNCALLOC!AF337:AF340,FUNCALLOC!AF344:AF345) -> 0 | AF46: =SUM(FUNCALLOC!AG337:AG340,FUNCALLOC!AG344:AG345) -> 8384489.315 | AG46: =SUM(FUNCALLOC!AH337:AH340,FUNCALLOC!AH344:AH345) -> 6002640.123 | AH46: =SUM(FUNCALLOC!AI337:AI340,FUNCALLOC!AI344:AI345) -> 0 | AI46: =SUM(FUNCALLOC!AJ337:AJ340,FUNCALLOC!AJ344:AJ345) -> 0 | AJ46: =SUM(FUNCALLOC!AK337:AK340,FUNCALLOC!AK344:AK345) -> 0 | AK46: =SUM(FUNCALLOC!AL337:AL340,FUNCALLOC!AL344:AL345) -> 0 | AL46: =SUM(FUNCALLOC!AM337:AM340,FUNCALLOC!AM344:AM345) -> 3632.03815 | AM46: =SUM(FUNCALLOC!AN337:AN340,FUNCALLOC!AN344:AN345) -> 0 | AN46: =SUM(FUNCALLOC!AO337:AO340,FUNCALLOC!AO344:AO345) -> 0 | AO46: =SUM(FUNCALLOC!AP337:AP340,FUNCALLOC!AP344:AP345) -> 0 | AP46: =SUM(FUNCALLOC!AQ337:AQ340,FUNCALLOC!AQ344:AQ345) -> 0 | AQ46: =SUM(FUNCALLOC!AR337:AR340,FUNCALLOC!AR344:AR345) -> 0 | AR46: =SUM(FUNCALLOC!AS337:AS340,FUNCALLOC!AS344:AS345) -> 0 | AS46: =SUM(FUNCALLOC!AT337:AT340,FUNCALLOC!AT344:AT345) -> 0 | AT46: =SUM(FUNCALLOC!AU337:AU340,FUNCALLOC!AU344:AU345) -> 0 | AU46: =SUM(FUNCALLOC!AV337:AV340,FUNCALLOC!AV344:AV345) -> 0 | AV46: =SUM(FUNCALLOC!AW337:AW340,FUNCALLOC!AW344:AW345) -> 0 | AW46: =SUM(FUNCALLOC!AX337:AX340,FUNCALLOC!AX344:AX345) -> 0 | AX46: =SUM(FUNCALLOC!AY337:AY340,FUNCALLOC!AY344:AY345) -> 0 | AY46: =SUM(FUNCALLOC!AZ337:AZ340,FUNCALLOC!AZ344:AZ345) -> 0 | AZ46: =SUM(FUNCALLOC!BA337:BA340,FUNCALLOC!BA344:BA345) -> 0 | BA46: =SUM(FUNCALLOC!BB337:BB340,FUNCALLOC!BB344:BB345) -> 0 | BB46: =SUM(FUNCALLOC!BC337:BC340,FUNCALLOC!BC344:BC345) -> 0 | BC46: =SUM(FUNCALLOC!BD337:BD340,FUNCALLOC!BD344:BD345) -> 0 | BD46: =SUM(FUNCALLOC!BE337:BE340,FUNCALLOC!BE344:BE345) -> 0 | BE46: =SUM(FUNCALLOC!BF337:BF340,FUNCALLOC!BF344:BF345) -> 0 | BF46: =SUM(FUNCALLOC!BG337:BG340,FUNCALLOC!BG344:BG345) -> 0 | BG46: =SUM(FUNCALLOC!BH337:BH340,FUNCALLOC!BH344:BH345) -> 0
D47: =IF((D46=0)*OR($C46=0),0,D46/$C46) -> 0 | E47: 0 | F47: 0 | G47: 0 | H47: 0 | I47: 0 | J47: 0 | K47: 0 | L47: 0 | M47: 0 | N47: 0 | O47: 0 | P47: 0 | Q47: 0 | R47: 0 | S47: 0 | T47: 0 | U47: 0 | V47: 0 | W47: 0 | X47: 0 | Y47: 0 | Z47: 0.009960657566 | AA47: 0 | AB47: 0 | AC47: 0 | AD47: 0 | AE47: 0 | AF47: 0.5768266191 | AG47: 0.4129628505 | AH47: 0 | AI47: 0 | AJ47: 0 | AK47: 0 | AL47: 0.0002498728554 | AM47: 0 | AN47: 0 | AO47: 0 | AP47: 0 | AQ47: 0 | AR47: =IF((AR46=0)*OR($C46=0),0,AR46/$C46) -> 0 | AS47: 0 | AT47: 0 | AU47: 0 | AV47: 0 | AW47: 0 | AX47: 0 | AY47: 0 | AZ47: 0 | BA47: 0 | BB47: 0 | BC47: 0 | BD47: 0 | BE47: 0 | BF47: 0 | BG47: 0
A49: CSI | B49: Customer Service & Information Expense (Accounts 908 & 909) | C49: =SUM(D49:BG49) -> 2008264.991 | D49: =SUM(FUNCALLOC!E351:E354,FUNCALLOC!E356) -> 0 | E49: =SUM(FUNCALLOC!F351:F354,FUNCALLOC!F356) -> 0 | F49: =SUM(FUNCALLOC!G351:G354,FUNCALLOC!G356) -> 0 | G49: =SUM(FUNCALLOC!H351:H354,FUNCALLOC!H356) -> 0 | H49: =SUM(FUNCALLOC!I351:I354,FUNCALLOC!I356) -> 0 | I49: =SUM(FUNCALLOC!J351:J354,FUNCALLOC!J356) -> 0 | J49: =SUM(FUNCALLOC!K351:K354,FUNCALLOC!K356) -> 0 | K49: =SUM(FUNCALLOC!L351:L354,FUNCALLOC!L356) -> 0 | L49: =SUM(FUNCALLOC!M351:M354,FUNCALLOC!M356) -> 0 | M49: =SUM(FUNCALLOC!N351:N354,FUNCALLOC!N356) -> 0 | N49: =SUM(FUNCALLOC!O351:O354,FUNCALLOC!O356) -> 0 | O49: =SUM(FUNCALLOC!P351:P354,FUNCALLOC!P356) -> 0 | P49: =SUM(FUNCALLOC!Q351:Q354,FUNCALLOC!Q356) -> 0 | Q49: =SUM(FUNCALLOC!R351:R354,FUNCALLOC!R356) -> 0 | R49: =SUM(FUNCALLOC!S351:S354,FUNCALLOC!S356) -> 0 | S49: =SUM(FUNCALLOC!T351:T354,FUNCALLOC!T356) -> 0 | T49: =SUM(FUNCALLOC!U351:U354,FUNCALLOC!U356) -> 0 | U49: =SUM(FUNCALLOC!V351:V354,FUNCALLOC!V356) -> 0 | V49: =SUM(FUNCALLOC!W351:W354,FUNCALLOC!W356) -> 0 | W49: =SUM(FUNCALLOC!X351:X354,FUNCALLOC!X356) -> 0 | X49: =SUM(FUNCALLOC!Y351:Y354,FUNCALLOC!Y356) -> 0 | Y49: =SUM(FUNCALLOC!Z351:Z354,FUNCALLOC!Z356) -> 0 | Z49: =SUM(FUNCALLOC!AA351:AA354,FUNCALLOC!AA356) -> 116906.2739 | AA49: =SUM(FUNCALLOC!AB351:AB354,FUNCALLOC!AB356) -> 0 | AB49: =SUM(FUNCALLOC!AC351:AC354,FUNCALLOC!AC356) -> 463290.2285 | AC49: =SUM(FUNCALLOC!AD351:AD354,FUNCALLOC!AD356) -> 1428068.488 | AD49: =SUM(FUNCALLOC!AE351:AE354,FUNCALLOC!AE356) -> 0 | AE49: =SUM(FUNCALLOC!AF351:AF354,FUNCALLOC!AF356) -> 0 | AF49: =SUM(FUNCALLOC!AG351:AG354,FUNCALLOC!AG356) -> 0 | AG49: =SUM(FUNCALLOC!AH351:AH354,FUNCALLOC!AH356) -> 0 | AH49: =SUM(FUNCALLOC!AI351:AI354,FUNCALLOC!AI356) -> 0 | AI49: =SUM(FUNCALLOC!AJ351:AJ354,FUNCALLOC!AJ356) -> 0 | AJ49: =SUM(FUNCALLOC!AK351:AK354,FUNCALLOC!AK356) -> 0 | AK49: =SUM(FUNCALLOC!AL351:AL354,FUNCALLOC!AL356) -> 0 | AL49: =SUM(FUNCALLOC!AM351:AM354,FUNCALLOC!AM356) -> 0 | AM49: =SUM(FUNCALLOC!AN351:AN354,FUNCALLOC!AN356) -> 0 | AN49: =SUM(FUNCALLOC!AO351:AO354,FUNCALLOC!AO356) -> 0 | AO49: =SUM(FUNCALLOC!AP351:AP354,FUNCALLOC!AP356) -> 0 | AP49: =SUM(FUNCALLOC!AQ351:AQ354,FUNCALLOC!AQ356) -> 0 | AQ49: =SUM(FUNCALLOC!AR351:AR354,FUNCALLOC!AR356) -> 0 | AR49: =SUM(FUNCALLOC!AS351:AS354,FUNCALLOC!AS356) -> 0 | AS49: =SUM(FUNCALLOC!AT351:AT354,FUNCALLOC!AT356) -> 0 | AT49: =SUM(FUNCALLOC!AU351:AU354,FUNCALLOC!AU356) -> 0 | AU49: =SUM(FUNCALLOC!AV351:AV354,FUNCALLOC!AV356) -> 0 | AV49: =SUM(FUNCALLOC!AW351:AW354,FUNCALLOC!AW356) -> 0 | AW49: =SUM(FUNCALLOC!AX351:AX354,FUNCALLOC!AX356) -> 0 | AX49: =SUM(FUNCALLOC!AY351:AY354,FUNCALLOC!AY356) -> 0 | AY49: =SUM(FUNCALLOC!AZ351:AZ354,FUNCALLOC!AZ356) -> 0 | AZ49: =SUM(FUNCALLOC!BA351:BA354,FUNCALLOC!BA356) -> 0 | BA49: =SUM(FUNCALLOC!BB351:BB354,FUNCALLOC!BB356) -> 0 | BB49: =SUM(FUNCALLOC!BC353:BC354) -> 0 | BC49: =SUM(FUNCALLOC!BD353:BD354) -> 0 | BD49: =SUM(FUNCALLOC!BE353:BE354) -> 0 | BE49: =SUM(FUNCALLOC!BF353:BF354) -> 0 | BF49: =SUM(FUNCALLOC!BG353:BG354) -> 0 | BG49: =SUM(FUNCALLOC!BH353:BH354) -> 0
D50: =IF((D49=0)*OR($C49=0),0,D49/$C49) -> 0 | E50: 0 | F50: 0 | G50: 0 | H50: 0 | I50: 0 | J50: 0 | K50: 0 | L50: 0 | M50: 0 | N50: 0 | O50: 0 | P50: 0 | Q50: 0 | R50: 0 | S50: 0 | T50: 0 | U50: 0 | V50: 0 | W50: 0 | X50: 0 | Y50: 0 | Z50: 0.05821257377 | AA50: 0 | AB50: 0.2306917815 | AC50: 0.7110956447 | AD50: 0 | AE50: 0 | AF50: 0 | AG50: 0 | AH50: 0 | AI50: 0 | AJ50: 0 | AK50: 0 | AL50: 0 | AM50: 0 | AN50: 0 | AO50: 0 | AP50: 0 | AQ50: 0 | AR50: =IF((AR49=0)*OR($C49=0),0,AR49/$C49) -> 0 | AS50: 0 | AT50: 0 | AU50: 0 | AV50: 0 | AW50: 0 | AX50: 0 | AY50: 0 | AZ50: 0 | BA50: 0 | BB50: 0 | BC50: 0 | BD50: 0 | BE50: 0 | BF50: 0 | BG50: 0
A52: OM | B52: O&M Expenses Excluding Gas & A&G | C52: =SUM(D52:BG52) -> 85109251.4 | D52: =SUM(FUNCALLOC!E367,FUNCALLOC!E359,FUNCALLOC!E348,FUNCALLOC!E333,FUNCALLOC!E305,FUNCALLOC!E294,FUNCALLOC!E281,FUNCALLOC!E257,FUNCALLOC!E245)-SUM(FUNCALLOC!E341:'FUNCALLOC'!E342)-SUM(FUNCALLOC!E248:E250,FUNCALLOC!E253:E254) -> 175624.4428 | E52: =SUM(FUNCALLOC!F367,FUNCALLOC!F359,FUNCALLOC!F348,FUNCALLOC!F333,FUNCALLOC!F305,FUNCALLOC!F294,FUNCALLOC!F281,FUNCALLOC!F257,FUNCALLOC!F245)-SUM(FUNCALLOC!F341:'FUNCALLOC'!F342)-SUM(FUNCALLOC!F248:F250,FUNCALLOC!F253:F254) -> 2660307.029 | F52: =SUM(FUNCALLOC!G367,FUNCALLOC!G359,FUNCALLOC!G348,FUNCALLOC!G333,FUNCALLOC!G305,FUNCALLOC!G294,FUNCALLOC!G281,FUNCALLOC!G257,FUNCALLOC!G245)-SUM(FUNCALLOC!G341:'FUNCALLOC'!G342)-SUM(FUNCALLOC!G248:G250,FUNCALLOC!G253:G254) -> 18888541.18 | G52: =SUM(FUNCALLOC!H367,FUNCALLOC!H359,FUNCALLOC!H348,FUNCALLOC!H333,FUNCALLOC!H305,FUNCALLOC!H294,FUNCALLOC!H281,FUNCALLOC!H257,FUNCALLOC!H245)-SUM(FUNCALLOC!H341:'FUNCALLOC'!H342)-SUM(FUNCALLOC!H248:H250,FUNCALLOC!H253:H254) -> 0 | H52: =SUM(FUNCALLOC!I367,FUNCALLOC!I359,FUNCALLOC!I348,FUNCALLOC!I333,FUNCALLOC!I305,FUNCALLOC!I294,FUNCALLOC!I281,FUNCALLOC!I257,FUNCALLOC!I245)-SUM(FUNCALLOC!I341:'FUNCALLOC'!I342)-SUM(FUNCALLOC!I248:I250,FUNCALLOC!I253:I254) -> 2168.52 | I52: =SUM(FUNCALLOC!J367,FUNCALLOC!J359,FUNCALLOC!J348,FUNCALLOC!J333,FUNCALLOC!J305,FUNCALLOC!J294,FUNCALLOC!J281,FUNCALLOC!J257,FUNCALLOC!J245)-SUM(FUNCALLOC!J341:'FUNCALLOC'!J342)-SUM(FUNCALLOC!J248:J250,FUNCALLOC!J253:J254) -> 2990469.102 | J52: =SUM(FUNCALLOC!K367,FUNCALLOC!K359,FUNCALLOC!K348,FUNCALLOC!K333,FUNCALLOC!K305,FUNCALLOC!K294,FUNCALLOC!K281,FUNCALLOC!K257,FUNCALLOC!K245)-SUM(FUNCALLOC!K341:'FUNCALLOC'!K342)-SUM(FUNCALLOC!K248:K250,FUNCALLOC!K253:K254) -> 470499.9328 | K52: =SUM(FUNCALLOC!L367,FUNCALLOC!L359,FUNCALLOC!L348,FUNCALLOC!L333,FUNCALLOC!L305,FUNCALLOC!L294,FUNCALLOC!L281,FUNCALLOC!L257,FUNCALLOC!L245)-SUM(FUNCALLOC!L341:'FUNCALLOC'!L342)-SUM(FUNCALLOC!L248:L250,FUNCALLOC!L253:L254) -> 8977315.488 | L52: =SUM(FUNCALLOC!M367,FUNCALLOC!M359,FUNCALLOC!M348,FUNCALLOC!M333,FUNCALLOC!M305,FUNCALLOC!M294,FUNCALLOC!M281,FUNCALLOC!M257,FUNCALLOC!M245)-SUM(FUNCALLOC!M341:'FUNCALLOC'!M342)-SUM(FUNCALLOC!M248:M250,FUNCALLOC!M253:M254) -> 439788.8323 | M52: =SUM(FUNCALLOC!N367,FUNCALLOC!N359,FUNCALLOC!N348,FUNCALLOC!N333,FUNCALLOC!N305,FUNCALLOC!N294,FUNCALLOC!N281,FUNCALLOC!N257,FUNCALLOC!N245)-SUM(FUNCALLOC!N341:'FUNCALLOC'!N342)-SUM(FUNCALLOC!N248:N250,FUNCALLOC!N253:N254) -> -64440.99 | N52: =SUM(FUNCALLOC!O367,FUNCALLOC!O359,FUNCALLOC!O348,FUNCALLOC!O333,FUNCALLOC!O305,FUNCALLOC!O294,FUNCALLOC!O281,FUNCALLOC!O257,FUNCALLOC!O245)-SUM(FUNCALLOC!O341:'FUNCALLOC'!O342)-SUM(FUNCALLOC!O248:O250,FUNCALLOC!O253:O254) -> 654751.783 | O52: =SUM(FUNCALLOC!P367,FUNCALLOC!P359,FUNCALLOC!P348,FUNCALLOC!P333,FUNCALLOC!P305,FUNCALLOC!P294,FUNCALLOC!P281,FUNCALLOC!P257,FUNCALLOC!P245)-SUM(FUNCALLOC!P341:'FUNCALLOC'!P342)-SUM(FUNCALLOC!P248:P250,FUNCALLOC!P253:P254) -> 0 | P52: =SUM(FUNCALLOC!Q367,FUNCALLOC!Q359,FUNCALLOC!Q348,FUNCALLOC!Q333,FUNCALLOC!Q305,FUNCALLOC!Q294,FUNCALLOC!Q281,FUNCALLOC!Q257,FUNCALLOC!Q245)-SUM(FUNCALLOC!Q341:'FUNCALLOC'!Q342)-SUM(FUNCALLOC!Q248:Q250,FUNCALLOC!Q253:Q254) -> 0 | Q52: =SUM(FUNCALLOC!R367,FUNCALLOC!R359,FUNCALLOC!R348,FUNCALLOC!R333,FUNCALLOC!R305,FUNCALLOC!R294,FUNCALLOC!R281,FUNCALLOC!R257,FUNCALLOC!R245)-SUM(FUNCALLOC!R341:'FUNCALLOC'!R342)-SUM(FUNCALLOC!R248:R250,FUNCALLOC!R253:R254) -> 0 | R52: =SUM(FUNCALLOC!S367,FUNCALLOC!S359,FUNCALLOC!S348,FUNCALLOC!S333,FUNCALLOC!S305,FUNCALLOC!S294,FUNCALLOC!S281,FUNCALLOC!S257,FUNCALLOC!S245)-SUM(FUNCALLOC!S341:'FUNCALLOC'!S342)-SUM(FUNCALLOC!S248:S250,FUNCALLOC!S253:S254) -> 16015757.42 | S52: =SUM(FUNCALLOC!T367,FUNCALLOC!T359,FUNCALLOC!T348,FUNCALLOC!T333,FUNCALLOC!T305,FUNCALLOC!T294,FUNCALLOC!T281,FUNCALLOC!T257,FUNCALLOC!T245)-SUM(FUNCALLOC!T341:'FUNCALLOC'!T342)-SUM(FUNCALLOC!T248:T250,FUNCALLOC!T253:T254) -> 152969.1003 | T52: =SUM(FUNCALLOC!U367,FUNCALLOC!U359,FUNCALLOC!U348,FUNCALLOC!U333,FUNCALLOC!U305,FUNCALLOC!U294,FUNCALLOC!U281,FUNCALLOC!U257,FUNCALLOC!U245)-SUM(FUNCALLOC!U341:'FUNCALLOC'!U342)-SUM(FUNCALLOC!U248:U250,FUNCALLOC!U253:U254) -> 8134861.34 | U52: =SUM(FUNCALLOC!V367,FUNCALLOC!V359,FUNCALLOC!V348,FUNCALLOC!V333,FUNCALLOC!V305,FUNCALLOC!V294,FUNCALLOC!V281,FUNCALLOC!V257,FUNCALLOC!V245)-SUM(FUNCALLOC!V341:'FUNCALLOC'!V342)-SUM(FUNCALLOC!V248:V250,FUNCALLOC!V253:V254) -> 4354300.331 | V52: =SUM(FUNCALLOC!W367,FUNCALLOC!W359,FUNCALLOC!W348,FUNCALLOC!W333,FUNCALLOC!W305,FUNCALLOC!W294,FUNCALLOC!W281,FUNCALLOC!W257,FUNCALLOC!W245)-SUM(FUNCALLOC!W341:'FUNCALLOC'!W342)-SUM(FUNCALLOC!W248:W250,FUNCALLOC!W253:W254) -> 721089.6956 | W52: =SUM(FUNCALLOC!X367,FUNCALLOC!X359,FUNCALLOC!X348,FUNCALLOC!X333,FUNCALLOC!X305,FUNCALLOC!X294,FUNCALLOC!X281,FUNCALLOC!X257,FUNCALLOC!X245)-SUM(FUNCALLOC!X341:'FUNCALLOC'!X342)-SUM(FUNCALLOC!X248:X250,FUNCALLOC!X253:X254) -> 0 | X52: =SUM(FUNCALLOC!Y367,FUNCALLOC!Y359,FUNCALLOC!Y348,FUNCALLOC!Y333,FUNCALLOC!Y305,FUNCALLOC!Y294,FUNCALLOC!Y281,FUNCALLOC!Y257,FUNCALLOC!Y245)-SUM(FUNCALLOC!Y341:'FUNCALLOC'!Y342)-SUM(FUNCALLOC!Y248:Y250,FUNCALLOC!Y253:Y254) -> 0 | Y52: =SUM(FUNCALLOC!Z367,FUNCALLOC!Z359,FUNCALLOC!Z348,FUNCALLOC!Z333,FUNCALLOC!Z305,FUNCALLOC!Z294,FUNCALLOC!Z281,FUNCALLOC!Z257,FUNCALLOC!Z245)-SUM(FUNCALLOC!Z341:'FUNCALLOC'!Z342)-SUM(FUNCALLOC!Z248:Z250,FUNCALLOC!Z253:Z254) -> 0 | Z52: =SUM(FUNCALLOC!AA367,FUNCALLOC!AA359,FUNCALLOC!AA348,FUNCALLOC!AA333,FUNCALLOC!AA305,FUNCALLOC!AA294,FUNCALLOC!AA281,FUNCALLOC!AA257,FUNCALLOC!AA245)-SUM(FUNCALLOC!AA341:'FUNCALLOC'!AA342)-SUM(FUNCALLOC!AA248:AA250,FUNCALLOC!AA253:AA254) -> 263310.7522 | AA52: =SUM(FUNCALLOC!AB367,FUNCALLOC!AB359,FUNCALLOC!AB348,FUNCALLOC!AB333,FUNCALLOC!AB305,FUNCALLOC!AB294,FUNCALLOC!AB281,FUNCALLOC!AB257,FUNCALLOC!AB245)-SUM(FUNCALLOC!AB341:'FUNCALLOC'!AB342)-SUM(FUNCALLOC!AB248:AB250,FUNCALLOC!AB253:AB254) -> 2455543.287 | AB52: =SUM(FUNCALLOC!AC367,FUNCALLOC!AC359,FUNCALLOC!AC348,FUNCALLOC!AC333,FUNCALLOC!AC305,FUNCALLOC!AC294,FUNCALLOC!AC281,FUNCALLOC!AC257,FUNCALLOC!AC245)-SUM(FUNCALLOC!AC341:'FUNCALLOC'!AC342)-SUM(FUNCALLOC!AC248:AC250,FUNCALLOC!AC253:AC254) -> 463290.2285 | AC52: =SUM(FUNCALLOC!AD367,FUNCALLOC!AD359,FUNCALLOC!AD348,FUNCALLOC!AD333,FUNCALLOC!AD305,FUNCALLOC!AD294,FUNCALLOC!AD281,FUNCALLOC!AD257,FUNCALLOC!AD245)-SUM(FUNCALLOC!AD341:'FUNCALLOC'!AD342)-SUM(FUNCALLOC!AD248:AD250,FUNCALLOC!AD253:AD254) -> 1214006.338 | AD52: =SUM(FUNCALLOC!AE367,FUNCALLOC!AE359,FUNCALLOC!AE348,FUNCALLOC!AE333,FUNCALLOC!AE305,FUNCALLOC!AE294,FUNCALLOC!AE281,FUNCALLOC!AE257,FUNCALLOC!AE245)-SUM(FUNCALLOC!AE341:'FUNCALLOC'!AE342)-SUM(FUNCALLOC!AE248:AE250,FUNCALLOC!AE253:AE254) -> 0 | AE52: =SUM(FUNCALLOC!AF367,FUNCALLOC!AF359,FUNCALLOC!AF348,FUNCALLOC!AF333,FUNCALLOC!AF305,FUNCALLOC!AF294,FUNCALLOC!AF281,FUNCALLOC!AF257,FUNCALLOC!AF245)-SUM(FUNCALLOC!AF341:'FUNCALLOC'!AF342)-SUM(FUNCALLOC!AF248:AF250,FUNCALLOC!AF253:AF254) -> 1537867.043 | AF52: =SUM(FUNCALLOC!AG367,FUNCALLOC!AG359,FUNCALLOC!AG348,FUNCALLOC!AG333,FUNCALLOC!AG305,FUNCALLOC!AG294,FUNCALLOC!AG281,FUNCALLOC!AG257,FUNCALLOC!AG245)-SUM(FUNCALLOC!AG341:'FUNCALLOC'!AG342)-SUM(FUNCALLOC!AG248:AG250,FUNCALLOC!AG253:AG254) -> 8440992.667 | AG52: =SUM(FUNCALLOC!AH367,FUNCALLOC!AH359,FUNCALLOC!AH348,FUNCALLOC!AH333,FUNCALLOC!AH305,FUNCALLOC!AH294,FUNCALLOC!AH281,FUNCALLOC!AH257,FUNCALLOC!AH245)-SUM(FUNCALLOC!AH341:'FUNCALLOC'!AH342)-SUM(FUNCALLOC!AH248:AH250,FUNCALLOC!AH253:AH254) -> 6043092.113 | AH52: =SUM(FUNCALLOC!AI367,FUNCALLOC!AI359,FUNCALLOC!AI348,FUNCALLOC!AI333,FUNCALLOC!AI305,FUNCALLOC!AI294,FUNCALLOC!AI281,FUNCALLOC!AI257,FUNCALLOC!AI245)-SUM(FUNCALLOC!AI341:'FUNCALLOC'!AI342)-SUM(FUNCALLOC!AI248:AI250,FUNCALLOC!AI253:AI254) -> 0 | AI52: =SUM(FUNCALLOC!AJ367,FUNCALLOC!AJ359,FUNCALLOC!AJ348,FUNCALLOC!AJ333,FUNCALLOC!AJ305,FUNCALLOC!AJ294,FUNCALLOC!AJ281,FUNCALLOC!AJ257,FUNCALLOC!AJ245)-SUM(FUNCALLOC!AJ341:'FUNCALLOC'!AJ342)-SUM(FUNCALLOC!AJ248:AJ250,FUNCALLOC!AJ253:AJ254) -> 0 | AJ52: =SUM(FUNCALLOC!AK367,FUNCALLOC!AK359,FUNCALLOC!AK348,FUNCALLOC!AK333,FUNCALLOC!AK305,FUNCALLOC!AK294,FUNCALLOC!AK281,FUNCALLOC!AK257,FUNCALLOC!AK245)-SUM(FUNCALLOC!AK341:'FUNCALLOC'!AK342)-SUM(FUNCALLOC!AK248:AK250,FUNCALLOC!AK253:AK254) -> 0 | AK52: =SUM(FUNCALLOC!AL367,FUNCALLOC!AL359,FUNCALLOC!AL348,FUNCALLOC!AL333,FUNCALLOC!AL305,FUNCALLOC!AL294,FUNCALLOC!AL281,FUNCALLOC!AL257,FUNCALLOC!AL245)-SUM(FUNCALLOC!AL341:'FUNCALLOC'!AL342)-SUM(FUNCALLOC!AL248:AL250,FUNCALLOC!AL253:AL254) -> 113489.2507 | AL52: =SUM(FUNCALLOC!AM367,FUNCALLOC!AM359,FUNCALLOC!AM348,FUNCALLOC!AM333,FUNCALLOC!AM305,FUNCALLOC!AM294,FUNCALLOC!AM281,FUNCALLOC!AM257,FUNCALLOC!AM245)-SUM(FUNCALLOC!AM341:'FUNCALLOC'!AM342)-SUM(FUNCALLOC!AM248:AM250,FUNCALLOC!AM253:AM254) -> 3656.514576 | AM52: =SUM(FUNCALLOC!AN367,FUNCALLOC!AN359,FUNCALLOC!AN348,FUNCALLOC!AN333,FUNCALLOC!AN305,FUNCALLOC!AN294,FUNCALLOC!AN281,FUNCALLOC!AN257,FUNCALLOC!AN245)-SUM(FUNCALLOC!AN341:'FUNCALLOC'!AN342)-SUM(FUNCALLOC!AN248:AN250,FUNCALLOC!AN253:AN254) -> 0 | AN52: =SUM(FUNCALLOC!AO367,FUNCALLOC!AO359,FUNCALLOC!AO348,FUNCALLOC!AO333,FUNCALLOC!AO305,FUNCALLOC!AO294,FUNCALLOC!AO281,FUNCALLOC!AO257,FUNCALLOC!AO245)-SUM(FUNCALLOC!AO341:'FUNCALLOC'!AO342)-SUM(FUNCALLOC!AO248:AO250,FUNCALLOC!AO253:AO254) -> 0 | AO52: =SUM(FUNCALLOC!AP367,FUNCALLOC!AP359,FUNCALLOC!AP348,FUNCALLOC!AP333,FUNCALLOC!AP305,FUNCALLOC!AP294,FUNCALLOC!AP281,FUNCALLOC!AP257,FUNCALLOC!AP245)-SUM(FUNCALLOC!AP341:'FUNCALLOC'!AP342)-SUM(FUNCALLOC!AP248:AP250,FUNCALLOC!AP253:AP254) -> 0 | AP52: =SUM(FUNCALLOC!AQ367,FUNCALLOC!AQ359,FUNCALLOC!AQ348,FUNCALLOC!AQ333,FUNCALLOC!AQ305,FUNCALLOC!AQ294,FUNCALLOC!AQ281,FUNCALLOC!AQ257,FUNCALLOC!AQ245)-SUM(FUNCALLOC!AQ341:'FUNCALLOC'!AQ342)-SUM(FUNCALLOC!AQ248:AQ250,FUNCALLOC!AQ253:AQ254) -> 0 | AQ52: =SUM(FUNCALLOC!AR367,FUNCALLOC!AR359,FUNCALLOC!AR348,FUNCALLOC!AR333,FUNCALLOC!AR305,FUNCALLOC!AR294,FUNCALLOC!AR281,FUNCALLOC!AR257,FUNCALLOC!AR245)-SUM(FUNCALLOC!AR341:'FUNCALLOC'!AR342)-SUM(FUNCALLOC!AR248:AR250,FUNCALLOC!AR253:AR254) -> 0 | AR52: =SUM(FUNCALLOC!AS367,FUNCALLOC!AS359,FUNCALLOC!AS348,FUNCALLOC!AS333,FUNCALLOC!AS305,FUNCALLOC!AS294,FUNCALLOC!AS281,FUNCALLOC!AS257,FUNCALLOC!AS245)-SUM(FUNCALLOC!AS341:'FUNCALLOC'!AS342)-SUM(FUNCALLOC!AS248:AS250,FUNCALLOC!AS253:AS254) -> 0 | AS52: =SUM(FUNCALLOC!AT367,FUNCALLOC!AT359,FUNCALLOC!AT348,FUNCALLOC!AT333,FUNCALLOC!AT305,FUNCALLOC!AT294,FUNCALLOC!AT281,FUNCALLOC!AT257,FUNCALLOC!AT245)-SUM(FUNCALLOC!AT341:'FUNCALLOC'!AT342)-SUM(FUNCALLOC!AT248:AT250,FUNCALLOC!AT253:AT254) -> 0 | AT52: =SUM(FUNCALLOC!AU367,FUNCALLOC!AU359,FUNCALLOC!AU348,FUNCALLOC!AU333,FUNCALLOC!AU305,FUNCALLOC!AU294,FUNCALLOC!AU281,FUNCALLOC!AU257,FUNCALLOC!AU245)-SUM(FUNCALLOC!AU341:'FUNCALLOC'!AU342)-SUM(FUNCALLOC!AU248:AU250,FUNCALLOC!AU253:AU254) -> 0 | AU52: =SUM(FUNCALLOC!AV367,FUNCALLOC!AV359,FUNCALLOC!AV348,FUNCALLOC!AV333,FUNCALLOC!AV305,FUNCALLOC!AV294,FUNCALLOC!AV281,FUNCALLOC!AV257,FUNCALLOC!AV245)-SUM(FUNCALLOC!AV341:'FUNCALLOC'!AV342)-SUM(FUNCALLOC!AV248:AV250,FUNCALLOC!AV253:AV254) -> 0 | AV52: =SUM(FUNCALLOC!AW367,FUNCALLOC!AW359,FUNCALLOC!AW348,FUNCALLOC!AW333,FUNCALLOC!AW305,FUNCALLOC!AW294,FUNCALLOC!AW281,FUNCALLOC!AW257,FUNCALLOC!AW245)-SUM(FUNCALLOC!AW341:'FUNCALLOC'!AW342)-SUM(FUNCALLOC!AW248:AW250,FUNCALLOC!AW253:AW254) -> 0 | AW52: =SUM(FUNCALLOC!AX367,FUNCALLOC!AX359,FUNCALLOC!AX348,FUNCALLOC!AX333,FUNCALLOC!AX305,FUNCALLOC!AX294,FUNCALLOC!AX281,FUNCALLOC!AX257,FUNCALLOC!AX245)-SUM(FUNCALLOC!AX341:'FUNCALLOC'!AX342)-SUM(FUNCALLOC!AX248:AX250,FUNCALLOC!AX253:AX254) -> 0 | AX52: =SUM(FUNCALLOC!AY367,FUNCALLOC!AY359,FUNCALLOC!AY348,FUNCALLOC!AY333,FUNCALLOC!AY305,FUNCALLOC!AY294,FUNCALLOC!AY281,FUNCALLOC!AY257,FUNCALLOC!AY245)-SUM(FUNCALLOC!AY341:'FUNCALLOC'!AY342)-SUM(FUNCALLOC!AY248:AY250,FUNCALLOC!AY253:AY254) -> 0 | AY52: =SUM(FUNCALLOC!AZ367,FUNCALLOC!AZ359,FUNCALLOC!AZ348,FUNCALLOC!AZ333,FUNCALLOC!AZ305,FUNCALLOC!AZ294,FUNCALLOC!AZ281,FUNCALLOC!AZ257,FUNCALLOC!AZ245)-SUM(FUNCALLOC!AZ341:'FUNCALLOC'!AZ342)-SUM(FUNCALLOC!AZ248:AZ250,FUNCALLOC!AZ253:AZ254) -> 0 | AZ52: =SUM(FUNCALLOC!BA367,FUNCALLOC!BA359,FUNCALLOC!BA348,FUNCALLOC!BA333,FUNCALLOC!BA305,FUNCALLOC!BA294,FUNCALLOC!BA281,FUNCALLOC!BA257,FUNCALLOC!BA245)-SUM(FUNCALLOC!BA341:'FUNCALLOC'!BA342)-SUM(FUNCALLOC!BA248:BA250,FUNCALLOC!BA253:BA254) -> 0 | BA52: =SUM(FUNCALLOC!BB367,FUNCALLOC!BB359,FUNCALLOC!BB348,FUNCALLOC!BB333,FUNCALLOC!BB305,FUNCALLOC!BB294,FUNCALLOC!BB281,FUNCALLOC!BB257,FUNCALLOC!BB245)-SUM(FUNCALLOC!BB341:'FUNCALLOC'!BB342)-SUM(FUNCALLOC!BB248:BB250,FUNCALLOC!BB253:BB254) -> 0 | BB52: =SUM(FUNCALLOC!BC367,FUNCALLOC!BC359,FUNCALLOC!BC348,FUNCALLOC!BC333,FUNCALLOC!BC305,FUNCALLOC!BC294,FUNCALLOC!BC281,FUNCALLOC!BC257,FUNCALLOC!BC245)-SUM(FUNCALLOC!BC341:'FUNCALLOC'!BC342)-SUM(FUNCALLOC!BC248:BC250,FUNCALLOC!BC253:BC254) -> 0 | BC52: =SUM(FUNCALLOC!BD367,FUNCALLOC!BD359,FUNCALLOC!BD348,FUNCALLOC!BD333,FUNCALLOC!BD305,FUNCALLOC!BD294,FUNCALLOC!BD281,FUNCALLOC!BD257,FUNCALLOC!BD245)-SUM(FUNCALLOC!BD341:'FUNCALLOC'!BD342)-SUM(FUNCALLOC!BD248:BD250,FUNCALLOC!BD253:BD254) -> 0 | BD52: =SUM(FUNCALLOC!BE367,FUNCALLOC!BE359,FUNCALLOC!BE348,FUNCALLOC!BE333,FUNCALLOC!BE305,FUNCALLOC!BE294,FUNCALLOC!BE281,FUNCALLOC!BE257,FUNCALLOC!BE245)-SUM(FUNCALLOC!BE341:'FUNCALLOC'!BE342)-SUM(FUNCALLOC!BE248:BE250,FUNCALLOC!BE253:BE254) -> 0 | BE52: =SUM(FUNCALLOC!BF367,FUNCALLOC!BF359,FUNCALLOC!BF348,FUNCALLOC!BF333,FUNCALLOC!BF305,FUNCALLOC!BF294,FUNCALLOC!BF281,FUNCALLOC!BF257,FUNCALLOC!BF245)-SUM(FUNCALLOC!BF341:'FUNCALLOC'!BF342)-SUM(FUNCALLOC!BF248:BF250,FUNCALLOC!BF253:BF254) -> 0 | BF52: =SUM(FUNCALLOC!BG367,FUNCALLOC!BG359,FUNCALLOC!BG348,FUNCALLOC!BG333,FUNCALLOC!BG305,FUNCALLOC!BG294,FUNCALLOC!BG281,FUNCALLOC!BG257,FUNCALLOC!BG245)-SUM(FUNCALLOC!BG341:'FUNCALLOC'!BG342)-SUM(FUNCALLOC!BG248:BG250,FUNCALLOC!BG253:BG254) -> 0 | BG52: =SUM(FUNCALLOC!BH367,FUNCALLOC!BH359,FUNCALLOC!BH348,FUNCALLOC!BH333,FUNCALLOC!BH305,FUNCALLOC!BH294,FUNCALLOC!BH281,FUNCALLOC!BH257,FUNCALLOC!BH245)-SUM(FUNCALLOC!BH341:'FUNCALLOC'!BH342)-SUM(FUNCALLOC!BH248:BH250,FUNCALLOC!BH253:BH254) -> 0
D53: =IF((D52=0)*OR($C52=0),0,D52/$C52) -> 0.002063517654 | E53: 0.03125755409 | F53: 0.2219328788 | G53: 0 | H53: 2.547925125e-05 | I53: 0.0351368277 | J53: 0.005528187889 | K53: 0.1054799019 | L53: 0.00516734462 | M53: -0.0007571561134 | N53: 0.007693074163 | O53: 0 | P53: 0 | Q53: 0 | R53: 0.1881788073 | S53: 0.001797326352 | T53: 0.09558139927 | U53: 0.05116130456 | V53: 0.008472518366 | W53: 0 | X53: 0 | Y53: 0 | Z53: 0.003093797066 | AA53: 0.02885166121 | AB53: 0.005443476719 | AC53: 0.01426409372 | AD53: 0 | AE53: 0.01806932874 | AF53: 0.09917832114 | AG53: 0.07100393922 | AH53: 0 | AI53: 0 | AJ53: 0 | AK53: 0.001333453753 | AL53: 4.296259826e-05 | AM53: 0 | AN53: 0 | AO53: 0 | AP53: 0 | AQ53: 0 | AR53: =IF((AR52=0)*OR($C52=0),0,AR52/$C52) -> 0 | AS53: 0 | AT53: 0 | AU53: 0 | AV53: 0 | AW53: 0 | AX53: 0 | AY53: 0 | AZ53: 0 | BA53: 0 | BB53: 0 | BC53: 0 | BD53: 0 | BE53: 0 | BF53: 0 | BG53: 0
A55: BASE | B55: Rate Base | C55: =SUM(D55:BG55) -> 2142648724 | D55: =FUNCALLOC!E229 -> 2304259.184 | E55: =FUNCALLOC!F229 -> 38831097.36 | F55: =FUNCALLOC!G229 -> 731760266.7 | G55: =FUNCALLOC!H229 -> 45744151.23 | H55: =FUNCALLOC!I229 -> 1733.606149 | I55: =FUNCALLOC!J229 -> 15075061.7 | J55: =FUNCALLOC!K229 -> 6020007.872 | K55: =FUNCALLOC!L229 -> 347789843.2 | L55: =FUNCALLOC!M229 -> 24084944.03 | M55: =FUNCALLOC!N229 -> -51516.83936 | N55: =FUNCALLOC!O229 -> 523436.1301 | O55: =FUNCALLOC!P229 -> 0 | P55: =FUNCALLOC!Q229 -> 0 | Q55: =FUNCALLOC!R229 -> 0 | R55: =FUNCALLOC!S229 -> 522694072.2 | S55: =FUNCALLOC!T229 -> 4992335.977 | T55: =FUNCALLOC!U229 -> 169081067.6 | U55: =FUNCALLOC!V229 -> 123147542.6 | V55: =FUNCALLOC!W229 -> 36814788.65 | W55: =FUNCALLOC!X229 -> 7052757.188 | X55: =FUNCALLOC!Y229 -> -13796257.84 | Y55: =FUNCALLOC!Z229 -> -13197398.87 | Z55: =FUNCALLOC!AA229 -> 31351706.2 | AA55: =FUNCALLOC!AB229 -> 1963064.643 | AB55: =FUNCALLOC!AC229 -> 2421254.333 | AC55: =FUNCALLOC!AD229 -> 3520585.991 | AD55: =FUNCALLOC!AE229 -> 23650143.09 | AE55: =FUNCALLOC!AF229 -> 1229435.634 | AF55: =FUNCALLOC!AG229 -> 7842261.101 | AG55: =FUNCALLOC!AH229 -> 20931195.94 | AH55: =FUNCALLOC!AI229 -> 0 | AI55: =FUNCALLOC!AJ229 -> 0 | AJ55: =FUNCALLOC!AK229 -> 0 | AK55: =FUNCALLOC!AL229 -> 90728.08309 | AL55: =FUNCALLOC!AM229 -> 3397.152818 | AM55: =FUNCALLOC!AN229 -> 772760.1759 | AN55: =FUNCALLOC!AO229 -> 0 | AO55: =FUNCALLOC!AP229 -> 0 | AP55: =FUNCALLOC!AQ229 -> 0 | AQ55: =FUNCALLOC!AR229 -> 0 | AR55: =FUNCALLOC!AS229 -> 0 | AS55: =FUNCALLOC!AT229 -> 0 | AT55: =FUNCALLOC!AU229 -> 0 | AU55: =FUNCALLOC!AV229 -> 0 | AV55: =FUNCALLOC!AW229 -> 0 | AW55: =FUNCALLOC!AX229 -> 0 | AX55: =FUNCALLOC!AY229 -> 0 | AY55: =FUNCALLOC!AZ229 -> 0 | AZ55: =FUNCALLOC!BA229 -> 0 | BA55: =FUNCALLOC!BB229 -> 0 | BB55: =FUNCALLOC!BC229 -> 0 | BC55: =FUNCALLOC!BD229 -> 0 | BD55: =FUNCALLOC!BE229 -> 0 | BE55: =FUNCALLOC!BF229 -> 0 | BF55: =FUNCALLOC!BG229 -> 0 | BG55: =FUNCALLOC!BI229 -> 0
D56: =IF((D55=0)*OR($C55=0),0,D55/$C55) -> 0.001075425551 | E56: 0.01812294144 | F56: 0.3415213415 | G56: 0.02134934705 | H56: 8.09094897e-07 | I56: 0.007035713103 | J56: 0.002809610275 | K56: 0.1623177142 | L56: 0.01124073385 | M56: -2.404353023e-05 | N56: 0.0002442939546 | O56: 0 | P56: 0 | Q56: 0 | R56: 0.2439476272 | S56: 0.002329983408 | T56: 0.0789121734 | U56: 0.05747444329 | V56: 0.01718190585 | W56: 0.003291606837 | X56: -0.006438879918 | Y56: -0.006159385212 | Z56: 0.01463221939 | AA56: 0.0009161859437 | AB56: 0.001130028598 | AC56: 0.001643099941 | AD56: 0.011037807 | AE56: 0.0005737924374 | AF56: 0.003660077834 | AG56: 0.009768841576 | AH56: 0 | AI56: 0 | AJ56: 0 | AK56: 4.234389056e-05 | AL56: 1.58549219e-06 | AM56: 0.0003606564936 | AN56: 0 | AO56: 0 | AP56: 0 | AQ56: 0 | AR56: =IF((AR55=0)*OR($C55=0),0,AR55/$C55) -> 0 | AS56: 0 | AT56: 0 | AU56: 0 | AV56: 0 | AW56: 0 | AX56: 0 | AY56: 0 | AZ56: 0 | BA56: 0 | BB56: 0 | BC56: 0 | BD56: 0 | BE56: 0 | BF56: 0 | BG56: 0
A58: MR_EXP | B58: Meter Reading Expenses | C58: =SUM(D58:BG58) -> 8127627.08 | D58: =FUNCALLOC!E337+FUNCALLOC!E338 -> 0 | E58: =FUNCALLOC!F337+FUNCALLOC!F338 -> 0 | F58: =FUNCALLOC!G337+FUNCALLOC!G338 -> 0 | G58: =FUNCALLOC!H337+FUNCALLOC!H338 -> 0 | H58: =FUNCALLOC!I337+FUNCALLOC!I338 -> 0 | I58: =FUNCALLOC!J337+FUNCALLOC!J338 -> 0 | J58: =FUNCALLOC!K337+FUNCALLOC!K338 -> 0 | K58: =FUNCALLOC!L337+FUNCALLOC!L338 -> 0 | L58: =FUNCALLOC!M337+FUNCALLOC!M338 -> 0 | M58: =FUNCALLOC!N337+FUNCALLOC!N338 -> 0 | N58: =FUNCALLOC!O337+FUNCALLOC!O338 -> 0 | O58: =FUNCALLOC!P337+FUNCALLOC!P338 -> 0 | P58: =FUNCALLOC!Q337+FUNCALLOC!Q338 -> 0 | Q58: =FUNCALLOC!R337+FUNCALLOC!R338 -> 0 | R58: =FUNCALLOC!S337+FUNCALLOC!S338 -> 0 | S58: =FUNCALLOC!T337+FUNCALLOC!T338 -> 0 | T58: =FUNCALLOC!U337+FUNCALLOC!U338 -> 0 | U58: =FUNCALLOC!V337+FUNCALLOC!V338 -> 0 | V58: =FUNCALLOC!W337+FUNCALLOC!W338 -> 0 | W58: =FUNCALLOC!X337+FUNCALLOC!X338 -> 0 | X58: =FUNCALLOC!Y337+FUNCALLOC!Y338 -> 0 | Y58: =FUNCALLOC!Z337+FUNCALLOC!Z338 -> 0 | Z58: =FUNCALLOC!AA337+FUNCALLOC!AA338 -> 0 | AA58: =FUNCALLOC!AB337+FUNCALLOC!AB338 -> 0 | AB58: =FUNCALLOC!AC337+FUNCALLOC!AC338 -> 0 | AC58: =FUNCALLOC!AD337+FUNCALLOC!AD338 -> 0 | AD58: =FUNCALLOC!AE337+FUNCALLOC!AE338 -> 0 | AE58: =FUNCALLOC!AF337+FUNCALLOC!AF338 -> 0 | AF58: =FUNCALLOC!AG337+FUNCALLOC!AG338 -> 8124107.835 | AG58: =FUNCALLOC!AH337+FUNCALLOC!AH338 -> 0 | AH58: =FUNCALLOC!AI337+FUNCALLOC!AI338 -> 0 | AI58: =FUNCALLOC!AJ337+FUNCALLOC!AJ338 -> 0 | AJ58: =FUNCALLOC!AK337+FUNCALLOC!AK338 -> 0 | AK58: =FUNCALLOC!AL337+FUNCALLOC!AL338 -> 0 | AL58: =FUNCALLOC!AM337+FUNCALLOC!AM338 -> 3519.244701 | AM58: =FUNCALLOC!AN337+FUNCALLOC!AN338 -> 0 | AN58: =FUNCALLOC!AO337+FUNCALLOC!AO338 -> 0 | AO58: =FUNCALLOC!AP337+FUNCALLOC!AP338 -> 0 | AP58: =FUNCALLOC!AQ337+FUNCALLOC!AQ338 -> 0 | AQ58: =FUNCALLOC!AR337+FUNCALLOC!AR338 -> 0 | AR58: =FUNCALLOC!AS337+FUNCALLOC!AS338 -> 0 | AS58: =FUNCALLOC!AT337+FUNCALLOC!AT338 -> 0 | AT58: =FUNCALLOC!AU337+FUNCALLOC!AU338 -> 0 | AU58: =FUNCALLOC!AV337+FUNCALLOC!AV338 -> 0 | AV58: =FUNCALLOC!AW337+FUNCALLOC!AW338 -> 0 | AW58: =FUNCALLOC!AX337+FUNCALLOC!AX338 -> 0 | AX58: =FUNCALLOC!AY337+FUNCALLOC!AY338 -> 0 | AY58: =FUNCALLOC!AZ337+FUNCALLOC!AZ338 -> 0 | AZ58: =FUNCALLOC!BA337+FUNCALLOC!BA338 -> 0 | BA58: =FUNCALLOC!BB337+FUNCALLOC!BB338 -> 0 | BB58: 0 | BC58: 0 | BD58: 0 | BE58: 0 | BF58: 0 | BG58: 0
D59: =IF((D58=0)*OR($C58=0),0,D58/$C58) -> 0 | E59: 0 | F59: 0 | G59: 0 | H59: 0 | I59: 0 | J59: 0 | K59: 0 | L59: 0 | M59: 0 | N59: 0 | O59: 0 | P59: 0 | Q59: 0 | R59: 0 | S59: 0 | T59: 0 | U59: 0 | V59: 0 | W59: 0 | X59: 0 | Y59: 0 | Z59: 0 | AA59: 0 | AB59: 0 | AC59: 0 | AD59: 0 | AE59: 0 | AF59: 0.9995670022 | AG59: 0 | AH59: 0 | AI59: 0 | AJ59: =IF((AJ58=0)*OR($C58=0),0,AJ58/$C58) -> 0 | AK59: 0 | AL59: 0.0004329978069 | AM59: 0 | AN59: 0 | AO59: 0 | AP59: 0 | AQ59: 0 | AR59: 0 | AS59: 0 | AT59: 0 | AU59: 0 | AV59: 0 | AW59: 0 | AX59: 0 | AY59: 0 | AZ59: 0 | BA59: 0 | BB59: 0 | BC59: 0 | BD59: 0 | BE59: 0 | BF59: 0 | BG59: 0
A61: STOR_OML | B61: Undergroung Storage O&M Labor (Excluding JP Bal.) | C61: =SUM(D61:BG61) -> 831171.9911 | D61: =SUM(FUNCALLOC!E420:E424) -> 0 | E61: =SUM(FUNCALLOC!F420:F424) -> 831171.9911 | F61: =SUM(FUNCALLOC!G420:G424) -> 0 | G61: =SUM(FUNCALLOC!H420:H424) -> 0 | H61: =SUM(FUNCALLOC!I420:I424) -> 0 | I61: =SUM(FUNCALLOC!J420:J424) -> 0 | J61: =SUM(FUNCALLOC!K420:K424) -> 0 | K61: =SUM(FUNCALLOC!L420:L424) -> 0 | L61: =SUM(FUNCALLOC!M420:M424) -> 0 | M61: =SUM(FUNCALLOC!N420:N424) -> 0 | N61: =SUM(FUNCALLOC!O420:O424) -> 0 | O61: =SUM(FUNCALLOC!P420:P424) -> 0 | P61: =SUM(FUNCALLOC!Q420:Q424) -> 0 | Q61: =SUM(FUNCALLOC!R420:R424) -> 0 | R61: =SUM(FUNCALLOC!S420:S424) -> 0 | S61: =SUM(FUNCALLOC!T420:T424) -> 0 | T61: =SUM(FUNCALLOC!U420:U424) -> 0 | U61: =SUM(FUNCALLOC!V420:V424) -> 0 | V61: =SUM(FUNCALLOC!W420:W424) -> 0 | W61: =SUM(FUNCALLOC!X420:X424) -> 0 | X61: =SUM(FUNCALLOC!Y420:Y424) -> 0 | Y61: =SUM(FUNCALLOC!Z420:Z424) -> 0 | Z61: =SUM(FUNCALLOC!AA420:AA424) -> 0 | AA61: =SUM(FUNCALLOC!AB420:AB424) -> 0 | AB61: =SUM(FUNCALLOC!AC420:AC424) -> 0 | AC61: =SUM(FUNCALLOC!AD420:AD424) -> 0 | AD61: =SUM(FUNCALLOC!AE420:AE424) -> 0 | AE61: =SUM(FUNCALLOC!AF420:AF424) -> 0 | AF61: =SUM(FUNCALLOC!AG420:AG424) -> 0 | AG61: =SUM(FUNCALLOC!AH420:AH424) -> 0 | AH61: =SUM(FUNCALLOC!AI420:AI424) -> 0 | AI61: =SUM(FUNCALLOC!AJ420:AJ424) -> 0 | AJ61: =SUM(FUNCALLOC!AK420:AK424) -> 0 | AK61: =SUM(FUNCALLOC!AL420:AL424) -> 0 | AL61: =SUM(FUNCALLOC!AM420:AM424) -> 0 | AM61: =SUM(FUNCALLOC!AN420:AN424) -> 0 | AN61: =SUM(FUNCALLOC!AO420:AO424) -> 0 | AO61: =SUM(FUNCALLOC!AP420:AP424) -> 0 | AP61: =SUM(FUNCALLOC!AQ420:AQ424) -> 0 | AQ61: =SUM(FUNCALLOC!AR420:AR424) -> 0 | AR61: =SUM(FUNCALLOC!AS420:AS424) -> 0 | AS61: =SUM(FUNCALLOC!AT420:AT424) -> 0 | AT61: =SUM(FUNCALLOC!AU420:AU424) -> 0 | AU61: =SUM(FUNCALLOC!AV420:AV424) -> 0 | AV61: =SUM(FUNCALLOC!AW420:AW424) -> 0 | AW61: =SUM(FUNCALLOC!AX420:AX424) -> 0 | AX61: =SUM(FUNCALLOC!AY420:AY424) -> 0 | AY61: =SUM(FUNCALLOC!AZ420:AZ424) -> 0 | AZ61: =SUM(FUNCALLOC!BA420:BA424) -> 0 | BA61: =SUM(FUNCALLOC!BB420:BB424) -> 0 | BB61: =SUM(FUNCALLOC!BC420:BC424) -> 0 | BC61: =SUM(FUNCALLOC!BD420:BD424) -> 0 | BD61: =SUM(FUNCALLOC!BE420:BE424) -> 0 | BE61: =SUM(FUNCALLOC!BF420:BF424) -> 0 | BF61: =SUM(FUNCALLOC!BG420:BG424) -> 0 | BG61: =SUM(FUNCALLOC!BI420:BI424) -> 0
D62: =IF((D61=0)*OR($C61=0),0,D61/$C61) -> 0 | E62: 1 | F62: 0 | G62: 0 | H62: 0 | I62: 0 | J62: 0 | K62: 0 | L62: 0 | M62: 0 | N62: 0 | O62: 0 | P62: 0 | Q62: 0 | R62: 0 | S62: 0 | T62: 0 | U62: 0 | V62: 0 | W62: 0 | X62: 0 | Y62: 0 | Z62: 0 | AA62: 0 | AB62: 0 | AC62: 0 | AD62: 0 | AE62: 0 | AF62: 0 | AG62: 0 | AH62: 0 | AI62: 0 | AJ62: 0 | AK62: 0 | AL62: 0 | AM62: 0 | AN62: 0 | AO62: 0 | AP62: 0 | AQ62: 0 | AR62: =IF((AR61=0)*OR($C61=0),0,AR61/$C61) -> 0 | AS62: 0 | AT62: 0 | AU62: 0 | AV62: 0 | AW62: 0 | AX62: 0 | AY62: 0 | AZ62: 0 | BA62: 0 | BB62: 0 | BC62: 0 | BD62: 0 | BE62: 0 | BF62: 0 | BG62: 0
A64: GENPLT | B64: General Plant | C64: =SUM(D64:BG64) -> 186727923.1 | D64: =FUNCALLOC!E101 -> 435487.7316 | E64: =FUNCALLOC!F101 -> 3761925.422 | F64: =FUNCALLOC!G101 -> 46832950.83 | G64: =FUNCALLOC!H101 -> 1705737.643 | H64: =FUNCALLOC!I101 -> 0 | I64: =FUNCALLOC!J101 -> 6427339.103 | J64: =FUNCALLOC!K101 -> 195041.5095 | K64: =FUNCALLOC!L101 -> 22258689.59 | L64: =FUNCALLOC!M101 -> 1820151.216 | M64: =FUNCALLOC!N101 -> 0 | N64: =FUNCALLOC!O101 -> 0 | O64: =FUNCALLOC!P101 -> 0 | P64: =FUNCALLOC!Q101 -> 0 | Q64: =FUNCALLOC!R101 -> 0 | R64: =FUNCALLOC!S101 -> 39488875.61 | S64: =FUNCALLOC!T101 -> 377164.6646 | T64: =FUNCALLOC!U101 -> 19522739.46 | U64: =FUNCALLOC!V101 -> 12607745.56 | V64: =FUNCALLOC!W101 -> 3454609.245 | W64: =FUNCALLOC!X101 -> 0 | X64: =FUNCALLOC!Y101 -> 0 | Y64: =FUNCALLOC!Z101 -> 0 | Z64: =FUNCALLOC!AA101 -> 15779681.65 | AA64: =FUNCALLOC!AB101 -> 0 | AB64: =FUNCALLOC!AC101 -> 1039209.752 | AC64: =FUNCALLOC!AD101 -> 1292149.99 | AD64: =FUNCALLOC!AE101 -> 624039.6981 | AE64: =FUNCALLOC!AF101 -> 0 | AF64: =FUNCALLOC!AG101 -> 554434.3717 | AG64: =FUNCALLOC!AH101 -> 8158141.55 | AH64: =FUNCALLOC!AI101 -> 0 | AI64: =FUNCALLOC!AJ101 -> 0 | AJ64: =FUNCALLOC!AK101 -> 0 | AK64: =FUNCALLOC!AL101 -> 0 | AL64: =FUNCALLOC!AM101 -> 240.1728613 | AM64: =FUNCALLOC!AN101 -> 391568.334 | AN64: =FUNCALLOC!AO101 -> 0 | AO64: =FUNCALLOC!AP101 -> 0 | AP64: =FUNCALLOC!AQ101 -> 0 | AQ64: =FUNCALLOC!AR101 -> 0 | AR64: =FUNCALLOC!AS101 -> 0 | AS64: =FUNCALLOC!AT101 -> 0 | AT64: =FUNCALLOC!AU101 -> 0 | AU64: =FUNCALLOC!AV101 -> 0 | AV64: =FUNCALLOC!AW101 -> 0 | AW64: =FUNCALLOC!AX101 -> 0 | AX64: =FUNCALLOC!AY101 -> 0 | AY64: =FUNCALLOC!AZ101 -> 0 | AZ64: =FUNCALLOC!BA101 -> 0 | BA64: =FUNCALLOC!BB101 -> 0 | BB64: =FUNCALLOC!BC101 -> 0 | BC64: =FUNCALLOC!BD101 -> 0 | BD64: =FUNCALLOC!BE101 -> 0 | BE64: =FUNCALLOC!BF101 -> 0 | BF64: =FUNCALLOC!BG101 -> 0 | BG64: =FUNCALLOC!BI101 -> 0
D65: =IF((D64=0)*OR($C64=0),0,D64/$C64) -> 0.002332204656 | E65: 0.02014656062 | F65: 0.2508085028 | G65: 0.009134882533 | H65: 0 | I65: 0.03442087823 | J65: 0.00104452246 | K65: 0.1192038621 | L65: 0.009747611314 | M65: 0 | N65: 0 | O65: 0 | P65: 0 | Q65: 0 | R65: 0.2114781493 | S65: 0.002019862152 | T65: 0.1045517946 | U65: 0.06751933698 | V65: 0.01850076404 | W65: 0 | X65: 0 | Y65: 0 | Z65: 0.08450627729 | AA65: 0 | AB65: 0.005565368769 | AC65: 0.006919961241 | AD65: 0.003341973111 | AE65: 0 | AF65: 0.00296920976 | AG65: 0.04368999245 | AH65: 0 | AI65: 0 | AJ65: 0 | AK65: 0 | AL65: 1.286218244e-06 | AM65: 0.002096999353 | AN65: 0 | AO65: 0 | AP65: 0 | AQ65: 0 | AR65: =IF((AR64=0)*OR($C64=0),0,AR64/$C64) -> 0 | AS65: 0 | AT65: 0 | AU65: 0 | AV65: 0 | AW65: 0 | AX65: 0 | AY65: 0 | AZ65: 0 | BA65: 0 | BB65: 0 | BC65: 0 | BD65: 0 | BE65: 0 | BF65: 0 | BG65: 0
A67: DSERV | B67: Distribution Service Plant (Account 380) | C67: =SUM(D67:BG67) -> 1176420000 | D67: =SUM(FUNCALLOC!E71:E72) -> 0 | E67: =SUM(FUNCALLOC!F71:F72) -> 0 | F67: =SUM(FUNCALLOC!G71:G72) -> 0 | G67: =SUM(FUNCALLOC!H71:H72) -> 0 | H67: =SUM(FUNCALLOC!I71:I72) -> 0 | I67: =SUM(FUNCALLOC!J71:J72) -> 0 | J67: =SUM(FUNCALLOC!K71:K72) -> 0 | K67: =SUM(FUNCALLOC!L71:L72) -> 0 | L67: =SUM(FUNCALLOC!M71:M72) -> 0 | M67: =SUM(FUNCALLOC!N71:N72) -> 0 | N67: =SUM(FUNCALLOC!O71:O72) -> 0 | O67: =SUM(FUNCALLOC!P71:P72) -> 0 | P67: =SUM(FUNCALLOC!Q71:Q72) -> 0 | Q67: =SUM(FUNCALLOC!R71:R72) -> 0 | R67: =SUM(FUNCALLOC!S71:S72) -> 1165290125 | S67: =SUM(FUNCALLOC!T71:T72) -> 11129875.24 | T67: =SUM(FUNCALLOC!U71:U72) -> 0 | U67: =SUM(FUNCALLOC!V71:V72) -> 0 | V67: =SUM(FUNCALLOC!W71:W72) -> 0 | W67: =SUM(FUNCALLOC!X71:X72) -> 0 | X67: =SUM(FUNCALLOC!Y71:Y72) -> 0 | Y67: =SUM(FUNCALLOC!Z71:Z72) -> 0 | Z67: =SUM(FUNCALLOC!AA71:AA72) -> 0 | AA67: =SUM(FUNCALLOC!AB71:AB72) -> 0 | AB67: =SUM(FUNCALLOC!AC71:AC72) -> 0 | AC67: =SUM(FUNCALLOC!AD71:AD72) -> 0 | AD67: =SUM(FUNCALLOC!AE71:AE72) -> 0 | AE67: =SUM(FUNCALLOC!AF71:AF72) -> 0 | AF67: =SUM(FUNCALLOC!AG71:AG72) -> 0 | AG67: =SUM(FUNCALLOC!AH71:AH72) -> 0 | AH67: =SUM(FUNCALLOC!AI71:AI72) -> 0 | AI67: =SUM(FUNCALLOC!AJ71:AJ72) -> 0 | AJ67: =SUM(FUNCALLOC!AK71:AK72) -> 0 | AK67: =SUM(FUNCALLOC!AL71:AL72) -> 0 | AL67: =SUM(FUNCALLOC!AM71:AM72) -> 0 | AM67: =SUM(FUNCALLOC!AN71:AN72) -> 0 | AN67: =SUM(FUNCALLOC!AO71:AO72) -> 0 | AO67: =SUM(FUNCALLOC!AP71:AP72) -> 0 | AP67: =SUM(FUNCALLOC!AQ71:AQ72) -> 0 | AQ67: =SUM(FUNCALLOC!AR71:AR72) -> 0 | AR67: =SUM(FUNCALLOC!AS71:AS72) -> 0 | AS67: =SUM(FUNCALLOC!AT71:AT72) -> 0 | AT67: =SUM(FUNCALLOC!AU71:AU72) -> 0 | AU67: =SUM(FUNCALLOC!AV71:AV72) -> 0 | AV67: =SUM(FUNCALLOC!AW71:AW72) -> 0 | AW67: =SUM(FUNCALLOC!AX71:AX72) -> 0 | AX67: =SUM(FUNCALLOC!AY71:AY72) -> 0 | AY67: =SUM(FUNCALLOC!AZ71:AZ72) -> 0 | AZ67: =SUM(FUNCALLOC!BA71:BA72) -> 0 | BA67: =SUM(FUNCALLOC!BB71:BB72) -> 0 | BB67: =SUM(FUNCALLOC!BC71:BC72) -> 0 | BC67: =SUM(FUNCALLOC!BD71:BD72) -> 0 | BD67: =SUM(FUNCALLOC!BE71:BE72) -> 0 | BE67: =SUM(FUNCALLOC!BF71:BF72) -> 0 | BF67: =SUM(FUNCALLOC!BG71:BG72) -> 0 | BG67: =SUM(FUNCALLOC!BI71:BI72) -> 0
D68: =IF((D67=0)*OR($C67=0),0,D67/$C67) -> 0 | E68: 0 | F68: 0 | G68: 0 | H68: 0 | I68: 0 | J68: 0 | K68: 0 | L68: 0 | M68: 0 | N68: 0 | O68: 0 | P68: 0 | Q68: 0 | R68: 0.9905391992 | S68: 0.009460800771 | T68: 0 | U68: 0 | V68: 0 | W68: 0 | X68: 0 | Y68: 0 | Z68: 0 | AA68: 0 | AB68: 0 | AC68: 0 | AD68: 0 | AE68: 0 | AF68: 0 | AG68: 0 | AH68: 0 | AI68: 0 | AJ68: 0 | AK68: 0 | AL68: 0 | AM68: 0 | AN68: 0 | AO68: 0 | AP68: 0 | AQ68: 0 | AR68: =IF((AR67=0)*OR($C67=0),0,AR67/$C67) -> 0 | AS68: 0 | AT68: 0 | AU68: 0 | AV68: 0 | AW68: 0 | AX68: 0 | AY68: 0 | AZ68: 0 | BA68: 0 | BB68: 0 | BC68: 0 | BD68: 0 | BE68: 0 | BF68: 0 | BG68: 0
A70: DMAINS_SERV | B70: Distribution Mains & Services Plant (Accounts 376 & 380) | C70: =SUM(D70:BG70) -> 3163199120 | D70: =SUM(FUNCALLOC!E66:E67,FUNCALLOC!E71:E72) -> 0 | E70: =SUM(FUNCALLOC!F66:F67,FUNCALLOC!F71:F72) -> 0 | F70: =SUM(FUNCALLOC!G66:G67,FUNCALLOC!G71:G72) -> 1346714715 | G70: =SUM(FUNCALLOC!H66:H67,FUNCALLOC!H71:H72) -> 0 | H70: =SUM(FUNCALLOC!I66:I67,FUNCALLOC!I71:I72) -> 0 | I70: =SUM(FUNCALLOC!J66:J67,FUNCALLOC!J71:J72) -> 0 | J70: =SUM(FUNCALLOC!K66:K67,FUNCALLOC!K71:K72) -> 0 | K70: =SUM(FUNCALLOC!L66:L67,FUNCALLOC!L71:L72) -> 640064405 | L70: =SUM(FUNCALLOC!M66:M67,FUNCALLOC!M71:M72) -> 0 | M70: =SUM(FUNCALLOC!N66:N67,FUNCALLOC!N71:N72) -> 0 | N70: =SUM(FUNCALLOC!O66:O67,FUNCALLOC!O71:O72) -> 0 | O70: =SUM(FUNCALLOC!P66:P67,FUNCALLOC!P71:P72) -> 0 | P70: =SUM(FUNCALLOC!Q66:Q67,FUNCALLOC!Q71:Q72) -> 0 | Q70: =SUM(FUNCALLOC!R66:R67,FUNCALLOC!R71:R72) -> 0 | R70: =SUM(FUNCALLOC!S66:S67,FUNCALLOC!S71:S72) -> 1165290125 | S70: =SUM(FUNCALLOC!T66:T67,FUNCALLOC!T71:T72) -> 11129875.24 | T70: =SUM(FUNCALLOC!U66:U67,FUNCALLOC!U71:U72) -> 0 | U70: =SUM(FUNCALLOC!V66:V67,FUNCALLOC!V71:V72) -> 0 | V70: =SUM(FUNCALLOC!W66:W67,FUNCALLOC!W71:W72) -> 0 | W70: =SUM(FUNCALLOC!X66:X67,FUNCALLOC!X71:X72) -> 0 | X70: =SUM(FUNCALLOC!Y66:Y67,FUNCALLOC!Y71:Y72) -> 0 | Y70: =SUM(FUNCALLOC!Z66:Z67,FUNCALLOC!Z71:Z72) -> 0 | Z70: =SUM(FUNCALLOC!AA66:AA67,FUNCALLOC!AA71:AA72) -> 0 | AA70: =SUM(FUNCALLOC!AB66:AB67,FUNCALLOC!AB71:AB72) -> 0 | AB70: =SUM(FUNCALLOC!AC66:AC67,FUNCALLOC!AC71:AC72) -> 0 | AC70: =SUM(FUNCALLOC!AD66:AD67,FUNCALLOC!AD71:AD72) -> 0 | AD70: =SUM(FUNCALLOC!AE66:AE67,FUNCALLOC!AE71:AE72) -> 0 | AE70: =SUM(FUNCALLOC!AF66:AF67,FUNCALLOC!AF71:AF72) -> 0 | AF70: =SUM(FUNCALLOC!AG66:AG67,FUNCALLOC!AG71:AG72) -> 0 | AG70: =SUM(FUNCALLOC!AH66:AH67,FUNCALLOC!AH71:AH72) -> 0 | AH70: =SUM(FUNCALLOC!AI66:AI67,FUNCALLOC!AI71:AI72) -> 0 | AI70: =SUM(FUNCALLOC!AJ66:AJ67,FUNCALLOC!AJ71:AJ72) -> 0 | AJ70: =SUM(FUNCALLOC!AK66:AK67,FUNCALLOC!AK71:AK72) -> 0 | AK70: =SUM(FUNCALLOC!AL66:AL67,FUNCALLOC!AL71:AL72) -> 0 | AL70: =SUM(FUNCALLOC!AM66:AM67,FUNCALLOC!AM71:AM72) -> 0 | AM70: =SUM(FUNCALLOC!AN66:AN67,FUNCALLOC!AN71:AN72) -> 0 | AN70: =SUM(FUNCALLOC!AO66:AO67,FUNCALLOC!AO71:AO72) -> 0 | AO70: =SUM(FUNCALLOC!AP66:AP67,FUNCALLOC!AP71:AP72) -> 0 | AP70: =SUM(FUNCALLOC!AQ66:AQ67,FUNCALLOC!AQ71:AQ72) -> 0 | AQ70: =SUM(FUNCALLOC!AR66:AR67,FUNCALLOC!AR71:AR72) -> 0 | AR70: =SUM(FUNCALLOC!AS66:AS67,FUNCALLOC!AS71:AS72) -> 0 | AS70: =SUM(FUNCALLOC!AT66:AT67,FUNCALLOC!AT71:AT72) -> 0 | AT70: =SUM(FUNCALLOC!AU66:AU67,FUNCALLOC!AU71:AU72) -> 0 | AU70: =SUM(FUNCALLOC!AV66:AV67,FUNCALLOC!AV71:AV72) -> 0 | AV70: =SUM(FUNCALLOC!AW66:AW67,FUNCALLOC!AW71:AW72) -> 0 | AW70: =SUM(FUNCALLOC!AX66:AX67,FUNCALLOC!AX71:AX72) -> 0 | AX70: =SUM(FUNCALLOC!AY66:AY67,FUNCALLOC!AY71:AY72) -> 0 | AY70: =SUM(FUNCALLOC!AZ66:AZ67,FUNCALLOC!AZ71:AZ72) -> 0 | AZ70: =SUM(FUNCALLOC!BA66:BA67,FUNCALLOC!BA71:BA72) -> 0 | BA70: =SUM(FUNCALLOC!BB66:BB67,FUNCALLOC!BB71:BB72) -> 0 | BB70: =SUM(FUNCALLOC!BC66:BC67,FUNCALLOC!BC71:BC72) -> 0 | BC70: =SUM(FUNCALLOC!BD66:BD67,FUNCALLOC!BD71:BD72) -> 0 | BD70: =SUM(FUNCALLOC!BE66:BE67,FUNCALLOC!BE71:BE72) -> 0 | BE70: =SUM(FUNCALLOC!BF66:BF67,FUNCALLOC!BF71:BF72) -> 0 | BF70: =SUM(FUNCALLOC!BG66:BG67,FUNCALLOC!BG71:BG72) -> 0 | BG70: =SUM(FUNCALLOC!BH66:BH67,FUNCALLOC!BH71:BH72) -> 0
D71: =IF((D70=0)*OR($C70=0),0,D70/$C70) -> 0 | E71: 0 | F71: 0.4257445276 | G71: 0 | H71: 0 | I71: 0 | J71: 0 | K71: 0.2023471747 | L71: 0 | M71: 0 | N71: 0 | O71: 0 | P71: 0 | Q71: 0 | R71: 0.3683897474 | S71: 0.003518550309 | T71: 0 | U71: 0 | V71: 0 | W71: 0 | X71: 0 | Y71: 0 | Z71: 0 | AA71: 0 | AB71: 0 | AC71: 0 | AD71: 0 | AE71: 0 | AF71: 0 | AG71: 0 | AH71: 0 | AI71: 0 | AJ71: 0 | AK71: 0 | AL71: 0 | AM71: 0 | AN71: 0 | AO71: 0 | AP71: 0 | AQ71: 0 | AR71: =IF((AR70=0)*OR($C70=0),0,AR70/$C70) -> 0 | AS71: 0 | AT71: 0 | AU71: 0 | AV71: 0 | AW71: 0 | AX71: 0 | AY71: 0 | AZ71: 0 | BA71: 0 | BB71: 0 | BC71: 0 | BD71: 0 | BE71: 0 | BF71: 0 | BG71: 0
A73: NETPLT | B73: Net Plant - Prod., Stor. (x JP Bal.), Trans., Distr. | C73: =SUM(D73:BG73) -> 2427676194 | D73: =FUNCALLOC!E28+SUM(FUNCALLOC!E32:'FUNCALLOC'!E39)+FUNCALLOC!E49+FUNCALLOC!E60+FUNCALLOC!E83+FUNCALLOC!E132+SUM(FUNCALLOC!E136:'FUNCALLOC'!E143)+FUNCALLOC!E154+FUNCALLOC!E165+FUNCALLOC!E188 -> 2031000 | E73: =FUNCALLOC!F28+SUM(FUNCALLOC!F32:'FUNCALLOC'!F39)+FUNCALLOC!F49+FUNCALLOC!F60+FUNCALLOC!F83+FUNCALLOC!F132+SUM(FUNCALLOC!F136:'FUNCALLOC'!F143)+FUNCALLOC!F154+FUNCALLOC!F165+FUNCALLOC!F188 -> 29314725.65 | F73: =FUNCALLOC!G28+SUM(FUNCALLOC!G32:'FUNCALLOC'!G39)+FUNCALLOC!G49+FUNCALLOC!G60+FUNCALLOC!G83+FUNCALLOC!G132+SUM(FUNCALLOC!G136:'FUNCALLOC'!G143)+FUNCALLOC!G154+FUNCALLOC!G165+FUNCALLOC!G188 -> 879786189.9 | G73: =FUNCALLOC!H28+SUM(FUNCALLOC!H32:'FUNCALLOC'!H39)+FUNCALLOC!H49+FUNCALLOC!H60+FUNCALLOC!H83+FUNCALLOC!H132+SUM(FUNCALLOC!H136:'FUNCALLOC'!H143)+FUNCALLOC!H154+FUNCALLOC!H165+FUNCALLOC!H188 -> 59539505.91 | H73: =FUNCALLOC!I28+SUM(FUNCALLOC!I32:'FUNCALLOC'!I39)+FUNCALLOC!I49+FUNCALLOC!I60+FUNCALLOC!I83+FUNCALLOC!I132+SUM(FUNCALLOC!I136:'FUNCALLOC'!I143)+FUNCALLOC!I154+FUNCALLOC!I165+FUNCALLOC!I188 -> 0 | I73: =FUNCALLOC!J28+SUM(FUNCALLOC!J32:'FUNCALLOC'!J39)+FUNCALLOC!J49+FUNCALLOC!J60+FUNCALLOC!J83+FUNCALLOC!J132+SUM(FUNCALLOC!J136:'FUNCALLOC'!J143)+FUNCALLOC!J154+FUNCALLOC!J165+FUNCALLOC!J188 -> 0 | J73: =FUNCALLOC!K28+SUM(FUNCALLOC!K32:'FUNCALLOC'!K39)+FUNCALLOC!K49+FUNCALLOC!K60+FUNCALLOC!K83+FUNCALLOC!K132+SUM(FUNCALLOC!K136:'FUNCALLOC'!K143)+FUNCALLOC!K154+FUNCALLOC!K165+FUNCALLOC!K188 -> 0 | K73: =FUNCALLOC!L28+SUM(FUNCALLOC!L32:'FUNCALLOC'!L39)+FUNCALLOC!L49+FUNCALLOC!L60+FUNCALLOC!L83+FUNCALLOC!L132+SUM(FUNCALLOC!L136:'FUNCALLOC'!L143)+FUNCALLOC!L154+FUNCALLOC!L165+FUNCALLOC!L188 -> 418143366.1 | L73: =FUNCALLOC!M28+SUM(FUNCALLOC!M32:'FUNCALLOC'!M39)+FUNCALLOC!M49+FUNCALLOC!M60+FUNCALLOC!M83+FUNCALLOC!M132+SUM(FUNCALLOC!M136:'FUNCALLOC'!M143)+FUNCALLOC!M154+FUNCALLOC!M165+FUNCALLOC!M188 -> 28297840.66 | M73: =FUNCALLOC!N28+SUM(FUNCALLOC!N32:'FUNCALLOC'!N39)+FUNCALLOC!N49+FUNCALLOC!N60+FUNCALLOC!N83+FUNCALLOC!N132+SUM(FUNCALLOC!N136:'FUNCALLOC'!N143)+FUNCALLOC!N154+FUNCALLOC!N165+FUNCALLOC!N188 -> 0 | N73: =FUNCALLOC!O28+SUM(FUNCALLOC!O32:'FUNCALLOC'!O39)+FUNCALLOC!O49+FUNCALLOC!O60+FUNCALLOC!O83+FUNCALLOC!O132+SUM(FUNCALLOC!O136:'FUNCALLOC'!O143)+FUNCALLOC!O154+FUNCALLOC!O165+FUNCALLOC!O188 -> 0 | O73: =FUNCALLOC!P28+SUM(FUNCALLOC!P32:'FUNCALLOC'!P39)+FUNCALLOC!P49+FUNCALLOC!P60+FUNCALLOC!P83+FUNCALLOC!P132+SUM(FUNCALLOC!P136:'FUNCALLOC'!P143)+FUNCALLOC!P154+FUNCALLOC!P165+FUNCALLOC!P188 -> 0 | P73: =FUNCALLOC!Q28+SUM(FUNCALLOC!Q32:'FUNCALLOC'!Q39)+FUNCALLOC!Q49+FUNCALLOC!Q60+FUNCALLOC!Q83+FUNCALLOC!Q132+SUM(FUNCALLOC!Q136:'FUNCALLOC'!Q143)+FUNCALLOC!Q154+FUNCALLOC!Q165+FUNCALLOC!Q188 -> 0 | Q73: =FUNCALLOC!R28+SUM(FUNCALLOC!R32:'FUNCALLOC'!R39)+FUNCALLOC!R49+FUNCALLOC!R60+FUNCALLOC!R83+FUNCALLOC!R132+SUM(FUNCALLOC!R136:'FUNCALLOC'!R143)+FUNCALLOC!R154+FUNCALLOC!R165+FUNCALLOC!R188 -> 0 | R73: =FUNCALLOC!S28+SUM(FUNCALLOC!S32:'FUNCALLOC'!S39)+FUNCALLOC!S49+FUNCALLOC!S60+FUNCALLOC!S83+FUNCALLOC!S132+SUM(FUNCALLOC!S136:'FUNCALLOC'!S143)+FUNCALLOC!S154+FUNCALLOC!S165+FUNCALLOC!S188 -> 617110062.6 | S73: =FUNCALLOC!T28+SUM(FUNCALLOC!T32:'FUNCALLOC'!T39)+FUNCALLOC!T49+FUNCALLOC!T60+FUNCALLOC!T83+FUNCALLOC!T132+SUM(FUNCALLOC!T136:'FUNCALLOC'!T143)+FUNCALLOC!T154+FUNCALLOC!T165+FUNCALLOC!T188 -> 5894118.436 | T73: =FUNCALLOC!U28+SUM(FUNCALLOC!U32:'FUNCALLOC'!U39)+FUNCALLOC!U49+FUNCALLOC!U60+FUNCALLOC!U83+FUNCALLOC!U132+SUM(FUNCALLOC!U136:'FUNCALLOC'!U143)+FUNCALLOC!U154+FUNCALLOC!U165+FUNCALLOC!U188 -> 173598271 | U73: =FUNCALLOC!V28+SUM(FUNCALLOC!V32:'FUNCALLOC'!V39)+FUNCALLOC!V49+FUNCALLOC!V60+FUNCALLOC!V83+FUNCALLOC!V132+SUM(FUNCALLOC!V136:'FUNCALLOC'!V143)+FUNCALLOC!V154+FUNCALLOC!V165+FUNCALLOC!V188 -> 132817197.6 | V73: =FUNCALLOC!W28+SUM(FUNCALLOC!W32:'FUNCALLOC'!W39)+FUNCALLOC!W49+FUNCALLOC!W60+FUNCALLOC!W83+FUNCALLOC!W132+SUM(FUNCALLOC!W136:'FUNCALLOC'!W143)+FUNCALLOC!W154+FUNCALLOC!W165+FUNCALLOC!W188 -> 40752577.84 | W73: =FUNCALLOC!X28+SUM(FUNCALLOC!X32:'FUNCALLOC'!X39)+FUNCALLOC!X49+FUNCALLOC!X60+FUNCALLOC!X83+FUNCALLOC!X132+SUM(FUNCALLOC!X136:'FUNCALLOC'!X143)+FUNCALLOC!X154+FUNCALLOC!X165+FUNCALLOC!X188 -> 9394857.08 | X73: =FUNCALLOC!Y28+SUM(FUNCALLOC!Y32:'FUNCALLOC'!Y39)+FUNCALLOC!Y49+FUNCALLOC!Y60+FUNCALLOC!Y83+FUNCALLOC!Y132+SUM(FUNCALLOC!Y136:'FUNCALLOC'!Y143)+FUNCALLOC!Y154+FUNCALLOC!Y165+FUNCALLOC!Y188 -> 0 | Y73: =FUNCALLOC!Z28+SUM(FUNCALLOC!Z32:'FUNCALLOC'!Z39)+FUNCALLOC!Z49+FUNCALLOC!Z60+FUNCALLOC!Z83+FUNCALLOC!Z132+SUM(FUNCALLOC!Z136:'FUNCALLOC'!Z143)+FUNCALLOC!Z154+FUNCALLOC!Z165+FUNCALLOC!Z188 -> 0 | Z73: =FUNCALLOC!AA28+SUM(FUNCALLOC!AA32:'FUNCALLOC'!AA39)+FUNCALLOC!AA49+FUNCALLOC!AA60+FUNCALLOC!AA83+FUNCALLOC!AA132+SUM(FUNCALLOC!AA136:'FUNCALLOC'!AA143)+FUNCALLOC!AA154+FUNCALLOC!AA165+FUNCALLOC!AA188 -> 0 | AA73: =FUNCALLOC!AB28+SUM(FUNCALLOC!AB32:'FUNCALLOC'!AB39)+FUNCALLOC!AB49+FUNCALLOC!AB60+FUNCALLOC!AB83+FUNCALLOC!AB132+SUM(FUNCALLOC!AB136:'FUNCALLOC'!AB143)+FUNCALLOC!AB154+FUNCALLOC!AB165+FUNCALLOC!AB188 -> 0 | AB73: =FUNCALLOC!AC28+SUM(FUNCALLOC!AC32:'FUNCALLOC'!AC39)+FUNCALLOC!AC49+FUNCALLOC!AC60+FUNCALLOC!AC83+FUNCALLOC!AC132+SUM(FUNCALLOC!AC136:'FUNCALLOC'!AC143)+FUNCALLOC!AC154+FUNCALLOC!AC165+FUNCALLOC!AC188 -> 0 | AC73: =FUNCALLOC!AD28+SUM(FUNCALLOC!AD32:'FUNCALLOC'!AD39)+FUNCALLOC!AD49+FUNCALLOC!AD60+FUNCALLOC!AD83+FUNCALLOC!AD132+SUM(FUNCALLOC!AD136:'FUNCALLOC'!AD143)+FUNCALLOC!AD154+FUNCALLOC!AD165+FUNCALLOC!AD188 -> 0 | AD73: =FUNCALLOC!AE28+SUM(FUNCALLOC!AE32:'FUNCALLOC'!AE39)+FUNCALLOC!AE49+FUNCALLOC!AE60+FUNCALLOC!AE83+FUNCALLOC!AE132+SUM(FUNCALLOC!AE136:'FUNCALLOC'!AE143)+FUNCALLOC!AE154+FUNCALLOC!AE165+FUNCALLOC!AE188 -> 30996480.97 | AE73: =FUNCALLOC!AF28+SUM(FUNCALLOC!AF32:'FUNCALLOC'!AF39)+FUNCALLOC!AF49+FUNCALLOC!AF60+FUNCALLOC!AF83+FUNCALLOC!AF132+SUM(FUNCALLOC!AF136:'FUNCALLOC'!AF143)+FUNCALLOC!AF154+FUNCALLOC!AF165+FUNCALLOC!AF188 -> 0 | AF73: =FUNCALLOC!AG28+SUM(FUNCALLOC!AG32:'FUNCALLOC'!AG39)+FUNCALLOC!AG49+FUNCALLOC!AG60+FUNCALLOC!AG83+FUNCALLOC!AG132+SUM(FUNCALLOC!AG136:'FUNCALLOC'!AG143)+FUNCALLOC!AG154+FUNCALLOC!AG165+FUNCALLOC!AG188 -> 0 | AG73: =FUNCALLOC!AH28+SUM(FUNCALLOC!AH32:'FUNCALLOC'!AH39)+FUNCALLOC!AH49+FUNCALLOC!AH60+FUNCALLOC!AH83+FUNCALLOC!AH132+SUM(FUNCALLOC!AH136:'FUNCALLOC'!AH143)+FUNCALLOC!AH154+FUNCALLOC!AH165+FUNCALLOC!AH188 -> 0 | AH73: =FUNCALLOC!AI28+SUM(FUNCALLOC!AI32:'FUNCALLOC'!AI39)+FUNCALLOC!AI49+FUNCALLOC!AI60+FUNCALLOC!AI83+FUNCALLOC!AI132+SUM(FUNCALLOC!AI136:'FUNCALLOC'!AI143)+FUNCALLOC!AI154+FUNCALLOC!AI165+FUNCALLOC!AI188 -> 0 | AI73: =FUNCALLOC!AJ28+SUM(FUNCALLOC!AJ32:'FUNCALLOC'!AJ39)+FUNCALLOC!AJ49+FUNCALLOC!AJ60+FUNCALLOC!AJ83+FUNCALLOC!AJ132+SUM(FUNCALLOC!AJ136:'FUNCALLOC'!AJ143)+FUNCALLOC!AJ154+FUNCALLOC!AJ165+FUNCALLOC!AJ188 -> 0 | AJ73: =FUNCALLOC!AK28+SUM(FUNCALLOC!AK32:'FUNCALLOC'!AK39)+FUNCALLOC!AK49+FUNCALLOC!AK60+FUNCALLOC!AK83+FUNCALLOC!AK132+SUM(FUNCALLOC!AK136:'FUNCALLOC'!AK143)+FUNCALLOC!AK154+FUNCALLOC!AK165+FUNCALLOC!AK188 -> 0 | AK73: =FUNCALLOC!AL28+SUM(FUNCALLOC!AL32:'FUNCALLOC'!AL39)+FUNCALLOC!AL49+FUNCALLOC!AL60+FUNCALLOC!AL83+FUNCALLOC!AL132+SUM(FUNCALLOC!AL136:'FUNCALLOC'!AL143)+FUNCALLOC!AL154+FUNCALLOC!AL165+FUNCALLOC!AL188 -> 0 | AL73: =FUNCALLOC!AM28+SUM(FUNCALLOC!AM32:'FUNCALLOC'!AM39)+FUNCALLOC!AM49+FUNCALLOC!AM60+FUNCALLOC!AM83+FUNCALLOC!AM132+SUM(FUNCALLOC!AM136:'FUNCALLOC'!AM143)+FUNCALLOC!AM154+FUNCALLOC!AM165+FUNCALLOC!AM188 -> 0 | AM73: =FUNCALLOC!AN28+SUM(FUNCALLOC!AN32:'FUNCALLOC'!AN39)+FUNCALLOC!AN49+FUNCALLOC!AN60+FUNCALLOC!AN83+FUNCALLOC!AN132+SUM(FUNCALLOC!AN136:'FUNCALLOC'!AN143)+FUNCALLOC!AN154+FUNCALLOC!AN165+FUNCALLOC!AN188 -> 0 | AN73: =FUNCALLOC!AO28+SUM(FUNCALLOC!AO32:'FUNCALLOC'!AO39)+FUNCALLOC!AO49+FUNCALLOC!AO60+FUNCALLOC!AO83+FUNCALLOC!AO132+SUM(FUNCALLOC!AO136:'FUNCALLOC'!AO143)+FUNCALLOC!AO154+FUNCALLOC!AO165+FUNCALLOC!AO188 -> 0 | AO73: =FUNCALLOC!AP28+SUM(FUNCALLOC!AP32:'FUNCALLOC'!AP39)+FUNCALLOC!AP49+FUNCALLOC!AP60+FUNCALLOC!AP83+FUNCALLOC!AP132+SUM(FUNCALLOC!AP136:'FUNCALLOC'!AP143)+FUNCALLOC!AP154+FUNCALLOC!AP165+FUNCALLOC!AP188 -> 0 | AP73: =FUNCALLOC!AQ28+SUM(FUNCALLOC!AQ32:'FUNCALLOC'!AQ39)+FUNCALLOC!AQ49+FUNCALLOC!AQ60+FUNCALLOC!AQ83+FUNCALLOC!AQ132+SUM(FUNCALLOC!AQ136:'FUNCALLOC'!AQ143)+FUNCALLOC!AQ154+FUNCALLOC!AQ165+FUNCALLOC!AQ188 -> 0 | AQ73: =FUNCALLOC!AR28+SUM(FUNCALLOC!AR32:'FUNCALLOC'!AR39)+FUNCALLOC!AR49+FUNCALLOC!AR60+FUNCALLOC!AR83+FUNCALLOC!AR132+SUM(FUNCALLOC!AR136:'FUNCALLOC'!AR143)+FUNCALLOC!AR154+FUNCALLOC!AR165+FUNCALLOC!AR188 -> 0 | AR73: =FUNCALLOC!AS28+SUM(FUNCALLOC!AS32:'FUNCALLOC'!AS39)+FUNCALLOC!AS49+FUNCALLOC!AS60+FUNCALLOC!AS83+FUNCALLOC!AS132+SUM(FUNCALLOC!AS136:'FUNCALLOC'!AS143)+FUNCALLOC!AS154+FUNCALLOC!AS165+FUNCALLOC!AS188 -> 0 | AS73: =FUNCALLOC!AT28+SUM(FUNCALLOC!AT32:'FUNCALLOC'!AT39)+FUNCALLOC!AT49+FUNCALLOC!AT60+FUNCALLOC!AT83+FUNCALLOC!AT132+SUM(FUNCALLOC!AT136:'FUNCALLOC'!AT143)+FUNCALLOC!AT154+FUNCALLOC!AT165+FUNCALLOC!AT188 -> 0 | AT73: =FUNCALLOC!AU28+SUM(FUNCALLOC!AU32:'FUNCALLOC'!AU39)+FUNCALLOC!AU49+FUNCALLOC!AU60+FUNCALLOC!AU83+FUNCALLOC!AU132+SUM(FUNCALLOC!AU136:'FUNCALLOC'!AU143)+FUNCALLOC!AU154+FUNCALLOC!AU165+FUNCALLOC!AU188 -> 0 | AU73: =FUNCALLOC!AV28+SUM(FUNCALLOC!AV32:'FUNCALLOC'!AV39)+FUNCALLOC!AV49+FUNCALLOC!AV60+FUNCALLOC!AV83+FUNCALLOC!AV132+SUM(FUNCALLOC!AV136:'FUNCALLOC'!AV143)+FUNCALLOC!AV154+FUNCALLOC!AV165+FUNCALLOC!AV188 -> 0 | AV73: =FUNCALLOC!AW28+SUM(FUNCALLOC!AW32:'FUNCALLOC'!AW39)+FUNCALLOC!AW49+FUNCALLOC!AW60+FUNCALLOC!AW83+FUNCALLOC!AW132+SUM(FUNCALLOC!AW136:'FUNCALLOC'!AW143)+FUNCALLOC!AW154+FUNCALLOC!AW165+FUNCALLOC!AW188 -> 0 | AW73: =FUNCALLOC!AX28+SUM(FUNCALLOC!AX32:'FUNCALLOC'!AX39)+FUNCALLOC!AX49+FUNCALLOC!AX60+FUNCALLOC!AX83+FUNCALLOC!AX132+SUM(FUNCALLOC!AX136:'FUNCALLOC'!AX143)+FUNCALLOC!AX154+FUNCALLOC!AX165+FUNCALLOC!AX188 -> 0 | AX73: =FUNCALLOC!AY28+SUM(FUNCALLOC!AY32:'FUNCALLOC'!AY39)+FUNCALLOC!AY49+FUNCALLOC!AY60+FUNCALLOC!AY83+FUNCALLOC!AY132+SUM(FUNCALLOC!AY136:'FUNCALLOC'!AY143)+FUNCALLOC!AY154+FUNCALLOC!AY165+FUNCALLOC!AY188 -> 0 | AY73: =FUNCALLOC!AZ28+SUM(FUNCALLOC!AZ32:'FUNCALLOC'!AZ39)+FUNCALLOC!AZ49+FUNCALLOC!AZ60+FUNCALLOC!AZ83+FUNCALLOC!AZ132+SUM(FUNCALLOC!AZ136:'FUNCALLOC'!AZ143)+FUNCALLOC!AZ154+FUNCALLOC!AZ165+FUNCALLOC!AZ188 -> 0 | AZ73: =FUNCALLOC!BA28+SUM(FUNCALLOC!BA32:'FUNCALLOC'!BA39)+FUNCALLOC!BA49+FUNCALLOC!BA60+FUNCALLOC!BA83+FUNCALLOC!BA132+SUM(FUNCALLOC!BA136:'FUNCALLOC'!BA143)+FUNCALLOC!BA154+FUNCALLOC!BA165+FUNCALLOC!BA188 -> 0 | BA73: =FUNCALLOC!BB28+SUM(FUNCALLOC!BB32:'FUNCALLOC'!BB39)+FUNCALLOC!BB49+FUNCALLOC!BB60+FUNCALLOC!BB83+FUNCALLOC!BB132+SUM(FUNCALLOC!BB136:'FUNCALLOC'!BB143)+FUNCALLOC!BB154+FUNCALLOC!BB165+FUNCALLOC!BB188 -> 0 | BB73: =FUNCALLOC!BC28+SUM(FUNCALLOC!BC32:'FUNCALLOC'!BC39)+FUNCALLOC!BC49+FUNCALLOC!BC60+FUNCALLOC!BC83+FUNCALLOC!BC132+SUM(FUNCALLOC!BC136:'FUNCALLOC'!BC143)+FUNCALLOC!BC154+FUNCALLOC!BC165+FUNCALLOC!BC188 -> 0 | BC73: =FUNCALLOC!BD28+SUM(FUNCALLOC!BD32:'FUNCALLOC'!BD39)+FUNCALLOC!BD49+FUNCALLOC!BD60+FUNCALLOC!BD83+FUNCALLOC!BD132+SUM(FUNCALLOC!BD136:'FUNCALLOC'!BD143)+FUNCALLOC!BD154+FUNCALLOC!BD165+FUNCALLOC!BD188 -> 0 | BD73: =FUNCALLOC!BE28+SUM(FUNCALLOC!BE32:'FUNCALLOC'!BE39)+FUNCALLOC!BE49+FUNCALLOC!BE60+FUNCALLOC!BE83+FUNCALLOC!BE132+SUM(FUNCALLOC!BE136:'FUNCALLOC'!BE143)+FUNCALLOC!BE154+FUNCALLOC!BE165+FUNCALLOC!BE188 -> 0 | BE73: =FUNCALLOC!BF28+SUM(FUNCALLOC!BF32:'FUNCALLOC'!BF39)+FUNCALLOC!BF49+FUNCALLOC!BF60+FUNCALLOC!BF83+FUNCALLOC!BF132+SUM(FUNCALLOC!BF136:'FUNCALLOC'!BF143)+FUNCALLOC!BF154+FUNCALLOC!BF165+FUNCALLOC!BF188 -> 0 | BF73: =FUNCALLOC!BG28+SUM(FUNCALLOC!BG32:'FUNCALLOC'!BG39)+FUNCALLOC!BG49+FUNCALLOC!BG60+FUNCALLOC!BG83+FUNCALLOC!BG132+SUM(FUNCALLOC!BG136:'FUNCALLOC'!BG143)+FUNCALLOC!BG154+FUNCALLOC!BG165+FUNCALLOC!BG188 -> 0 | BG73: =FUNCALLOC!BI28+SUM(FUNCALLOC!BI32:'FUNCALLOC'!BI39)+FUNCALLOC!BI49+FUNCALLOC!BI60+FUNCALLOC!BI83+FUNCALLOC!BI132+SUM(FUNCALLOC!BI136:'FUNCALLOC'!BI143)+FUNCALLOC!BI154+FUNCALLOC!BI165+FUNCALLOC!BI188 -> 0
D74: =IF((D73=0)*OR($C73=0),0,D73/$C73) -> 0.0008366025112 | E74: 0.01207522063 | F74: 0.3623984913 | G74: 0.02452530781 | H74: 0 | I74: 0 | J74: 0 | K74: 0.1722401724 | L74: 0.01165634887 | M74: 0 | N74: 0 | O74: 0 | P74: 0 | Q74: 0 | R74: 0.2541978474 | S74: 0.002427884926 | T74: 0.07150800072 | U74: 0.05470960168 | V74: 0.01678666123 | W74: 0.003869897108 | X74: 0 | Y74: 0 | Z74: 0 | AA74: 0 | AB74: 0 | AC74: 0 | AD74: 0.01276796348 | AE74: 0 | AF74: 0 | AG74: 0 | AH74: 0 | AI74: 0 | AJ74: 0 | AK74: 0 | AL74: 0 | AM74: 0 | AN74: 0 | AO74: 0 | AP74: 0 | AQ74: 0 | AR74: =IF((AR73=0)*OR($C73=0),0,AR73/$C73) -> 0 | AS74: 0 | AT74: 0 | AU74: 0 | AV74: 0 | AW74: 0 | AX74: 0 | AY74: 0 | AZ74: 0 | BA74: 0 | BB74: 0 | BC74: 0 | BD74: 0 | BE74: 0 | BF74: 0 | BG74: 0
A76: LNGPLT | B76: Local Storage (LNG) Plant | C76: =SUM(D76:BG76) -> 14499000 | D76: =FUNCALLOC!E49 -> 0 | E76: =FUNCALLOC!F49 -> 14499000 | F76: =FUNCALLOC!G49 -> 0 | G76: =FUNCALLOC!H49 -> 0 | H76: =FUNCALLOC!I49 -> 0 | I76: =FUNCALLOC!J49 -> 0 | J76: =FUNCALLOC!K49 -> 0 | K76: =FUNCALLOC!L49 -> 0 | L76: =FUNCALLOC!M49 -> 0 | M76: =FUNCALLOC!N49 -> 0 | N76: =FUNCALLOC!O49 -> 0 | O76: =FUNCALLOC!P49 -> 0 | P76: =FUNCALLOC!Q49 -> 0 | Q76: =FUNCALLOC!R49 -> 0 | R76: =FUNCALLOC!S49 -> 0 | S76: =FUNCALLOC!T49 -> 0 | T76: =FUNCALLOC!U49 -> 0 | U76: =FUNCALLOC!V49 -> 0 | V76: =FUNCALLOC!W49 -> 0 | W76: =FUNCALLOC!X49 -> 0 | X76: =FUNCALLOC!Y49 -> 0 | Y76: =FUNCALLOC!Z49 -> 0 | Z76: =FUNCALLOC!AA49 -> 0 | AA76: =FUNCALLOC!AB49 -> 0 | AB76: =FUNCALLOC!AC49 -> 0 | AC76: =FUNCALLOC!AD49 -> 0 | AD76: =FUNCALLOC!AE49 -> 0 | AE76: =FUNCALLOC!AF49 -> 0 | AF76: =FUNCALLOC!AG49 -> 0 | AG76: =FUNCALLOC!AH49 -> 0 | AH76: =FUNCALLOC!AI49 -> 0 | AI76: =FUNCALLOC!AJ49 -> 0 | AJ76: =FUNCALLOC!AK49 -> 0 | AK76: =FUNCALLOC!AL49 -> 0 | AL76: =FUNCALLOC!AM49 -> 0 | AM76: =FUNCALLOC!AN49 -> 0 | AN76: =FUNCALLOC!AO49 -> 0 | AO76: =FUNCALLOC!AP49 -> 0 | AP76: =FUNCALLOC!AQ49 -> 0 | AQ76: =FUNCALLOC!AR49 -> 0 | AR76: =FUNCALLOC!AS49 -> 0 | AS76: =FUNCALLOC!AT49 -> 0 | AT76: =FUNCALLOC!AU49 -> 0 | AU76: =FUNCALLOC!AV49 -> 0 | AV76: =FUNCALLOC!AW49 -> 0 | AW76: =FUNCALLOC!AX49 -> 0 | AX76: =FUNCALLOC!AY49 -> 0 | AY76: =FUNCALLOC!AZ49 -> 0 | AZ76: =FUNCALLOC!BA49 -> 0 | BA76: =FUNCALLOC!BB49 -> 0 | BB76: =FUNCALLOC!BC49 -> 0 | BC76: =FUNCALLOC!BD49 -> 0 | BD76: =FUNCALLOC!BE49 -> 0 | BE76: =FUNCALLOC!BF49 -> 0 | BF76: =FUNCALLOC!BG49 -> 0 | BG76: =FUNCALLOC!BI49 -> 0
D77: =IF((D76=0)*OR($C76=0),0,D76/$C76) -> 0 | E77: 1 | F77: 0 | G77: 0 | H77: 0 | I77: 0 | J77: 0 | K77: 0 | L77: 0 | M77: 0 | N77: 0 | O77: 0 | P77: 0 | Q77: 0 | R77: 0 | S77: 0 | T77: 0 | U77: 0 | V77: 0 | W77: 0 | X77: 0 | Y77: 0 | Z77: 0 | AA77: 0 | AB77: 0 | AC77: 0 | AD77: 0 | AE77: 0 | AF77: 0 | AG77: 0 | AH77: 0 | AI77: 0 | AJ77: 0 | AK77: 0 | AL77: 0 | AM77: 0 | AN77: 0 | AO77: 0 | AP77: 0 | AQ77: 0 | AR77: =IF((AR76=0)*OR($C76=0),0,AR76/$C76) -> 0 | AS77: 0 | AT77: 0 | AU77: 0 | AV77: 0 | AW77: 0 | AX77: 0 | AY77: 0 | AZ77: 0 | BA77: 0 | BB77: 0 | BC77: 0 | BD77: 0 | BE77: 0 | BF77: 0 | BG77: 0
A79: DISTOM | B79: Distribution O&M Operating Exp. (Accounts 871 - 879) | C79: =SUM(D79:BG79) -> 26747555.19 | D79: =SUM(FUNCALLOC!E309:E314) -> 0 | E79: =SUM(FUNCALLOC!F309:F314) -> 0 | F79: =SUM(FUNCALLOC!G309:G314) -> 7730779.565 | G79: =SUM(FUNCALLOC!H309:H314) -> 0 | H79: =SUM(FUNCALLOC!I309:I314) -> 0 | I79: =SUM(FUNCALLOC!J309:J314) -> 1234611.542 | J79: =SUM(FUNCALLOC!K309:K314) -> 0 | K79: =SUM(FUNCALLOC!L309:L314) -> 3674272.484 | L79: =SUM(FUNCALLOC!M309:M314) -> 256555.1382 | M79: =SUM(FUNCALLOC!N309:N314) -> 0 | N79: =SUM(FUNCALLOC!O309:O314) -> 0 | O79: =SUM(FUNCALLOC!P309:P314) -> 0 | P79: =SUM(FUNCALLOC!Q309:Q314) -> 0 | Q79: =SUM(FUNCALLOC!R309:R314) -> 0 | R79: =SUM(FUNCALLOC!S309:S314) -> 6689316.589 | S79: =SUM(FUNCALLOC!T309:T314) -> 63890.74919 | T79: =SUM(FUNCALLOC!U309:U314) -> 4136502.011 | U79: =SUM(FUNCALLOC!V309:V314) -> 2559625.773 | V79: =SUM(FUNCALLOC!W309:W314) -> 402001.3361 | W79: =SUM(FUNCALLOC!X309:X314) -> 0 | X79: =SUM(FUNCALLOC!Y309:Y314) -> 0 | Y79: =SUM(FUNCALLOC!Z309:Z314) -> 0 | Z79: =SUM(FUNCALLOC!AA309:AA314) -> 0 | AA79: =SUM(FUNCALLOC!AB309:AB314) -> 0 | AB79: =SUM(FUNCALLOC!AC309:AC314) -> 0 | AC79: =SUM(FUNCALLOC!AD309:AD314) -> 0 | AD79: =SUM(FUNCALLOC!AE309:AE314) -> 0 | AE79: =SUM(FUNCALLOC!AF309:AF314) -> 0 | AF79: =SUM(FUNCALLOC!AG309:AG314) -> 0 | AG79: =SUM(FUNCALLOC!AH309:AH314) -> 0 | AH79: =SUM(FUNCALLOC!AI309:AI314) -> 0 | AI79: =SUM(FUNCALLOC!AJ309:AJ314) -> 0 | AJ79: =SUM(FUNCALLOC!AK309:AK314) -> 0 | AK79: =SUM(FUNCALLOC!AL309:AL314) -> 0 | AL79: =SUM(FUNCALLOC!AM309:AM314) -> 0 | AM79: =SUM(FUNCALLOC!AN309:AN314) -> 0 | AN79: =SUM(FUNCALLOC!AO309:AO314) -> 0 | AO79: =SUM(FUNCALLOC!AP309:AP314) -> 0 | AP79: =SUM(FUNCALLOC!AQ309:AQ314) -> 0 | AQ79: =SUM(FUNCALLOC!AR309:AR314) -> 0 | AR79: =SUM(FUNCALLOC!AS309:AS314) -> 0 | AS79: =SUM(FUNCALLOC!AT309:AT314) -> 0 | AT79: =SUM(FUNCALLOC!AU309:AU314) -> 0 | AU79: =SUM(FUNCALLOC!AV309:AV314) -> 0 | AV79: =SUM(FUNCALLOC!AW309:AW314) -> 0 | AW79: =SUM(FUNCALLOC!AX309:AX314) -> 0 | AX79: =SUM(FUNCALLOC!AY309:AY314) -> 0 | AY79: =SUM(FUNCALLOC!AZ309:AZ314) -> 0 | AZ79: =SUM(FUNCALLOC!BA309:BA314) -> 0 | BA79: =SUM(FUNCALLOC!BB309:BB314) -> 0 | BB79: =SUM(FUNCALLOC!BC309:BC314) -> 0 | BC79: =SUM(FUNCALLOC!BD309:BD314) -> 0 | BD79: =SUM(FUNCALLOC!BE309:BE314) -> 0 | BE79: =SUM(FUNCALLOC!BF309:BF314) -> 0 | BF79: =SUM(FUNCALLOC!BG309:BG314) -> 0 | BG79: =SUM(FUNCALLOC!BH309:BH314) -> 0
D80: =IF((D79=0)*OR($C79=0),0,D79/$C79) -> 0 | E80: 0 | F80: 0.2890275209 | G80: 0 | H80: 0 | I80: 0.0461579211 | J80: 0 | K80: 0.1373685355 | L80: 0.009591722921 | M80: 0 | N80: 0 | O80: 0 | P80: 0 | Q80: 0 | R80: 0.2500907669 | S80: 0.002388657533 | T80: 0.1546497234 | U80: 0.09569569088 | V80: 0.01502946095 | W80: 0 | X80: 0 | Y80: 0 | Z80: 0 | AA80: 0 | AB80: 0 | AC80: 0 | AD80: 0 | AE80: 0 | AF80: 0 | AG80: 0 | AH80: 0 | AI80: 0 | AJ80: 0 | AK80: 0 | AL80: 0 | AM80: 0 | AN80: 0 | AO80: 0 | AP80: 0 | AQ80: 0 | AR80: =IF((AR79=0)*OR($C79=0),0,AR79/$C79) -> 0 | AS80: 0 | AT80: 0 | AU80: 0 | AV80: 0 | AW80: 0 | AX80: 0 | AY80: 0 | AZ80: 0 | BA80: 0 | BB80: 0 | BC80: 0 | BD80: 0 | BE80: 0 | BF80: 0 | BG80: 0
A82: DMAINT | B82: Distr. O&M Maintenance (Accounts 887 - 893) | C82: =SUM(D82:BG82) -> 15587933.94 | D82: =SUM(FUNCALLOC!E319:E323) -> 0 | E82: =SUM(FUNCALLOC!F319:F323) -> 0 | F82: =SUM(FUNCALLOC!G319:G323) -> 5949885.808 | G82: =SUM(FUNCALLOC!H319:H323) -> 0 | H82: =SUM(FUNCALLOC!I319:I323) -> 0 | I82: =SUM(FUNCALLOC!J319:J323) -> 825235.1062 | J82: =SUM(FUNCALLOC!K319:K323) -> 0 | K82: =SUM(FUNCALLOC!L319:L323) -> 2827852.162 | L82: =SUM(FUNCALLOC!M319:M323) -> 0 | M82: =SUM(FUNCALLOC!N319:N323) -> 0 | N82: =SUM(FUNCALLOC!O319:O323) -> 0 | O82: =SUM(FUNCALLOC!P319:P323) -> 0 | P82: =SUM(FUNCALLOC!Q319:Q323) -> 0 | Q82: =SUM(FUNCALLOC!R319:R323) -> 0 | R82: =SUM(FUNCALLOC!S319:S323) -> 4852247.03 | S82: =SUM(FUNCALLOC!T319:T323) -> 46344.59947 | T82: =SUM(FUNCALLOC!U319:U323) -> 1085653.572 | U82: =SUM(FUNCALLOC!V319:V323) -> 0 | V82: =SUM(FUNCALLOC!W319:W323) -> 715.6656116 | W82: =SUM(FUNCALLOC!X319:X323) -> 0 | X82: =SUM(FUNCALLOC!Y319:Y323) -> 0 | Y82: =SUM(FUNCALLOC!Z319:Z323) -> 0 | Z82: =SUM(FUNCALLOC!AA319:AA323) -> 0 | AA82: =SUM(FUNCALLOC!AB319:AB323) -> 0 | AB82: =SUM(FUNCALLOC!AC319:AC323) -> 0 | AC82: =SUM(FUNCALLOC!AD319:AD323) -> 0 | AD82: =SUM(FUNCALLOC!AE319:AE323) -> 0 | AE82: =SUM(FUNCALLOC!AF319:AF323) -> 0 | AF82: =SUM(FUNCALLOC!AG319:AG323) -> 0 | AG82: =SUM(FUNCALLOC!AH319:AH323) -> 0 | AH82: =SUM(FUNCALLOC!AI319:AI323) -> 0 | AI82: =SUM(FUNCALLOC!AJ319:AJ323) -> 0 | AJ82: =SUM(FUNCALLOC!AK319:AK323) -> 0 | AK82: =SUM(FUNCALLOC!AL319:AL323) -> 0 | AL82: =SUM(FUNCALLOC!AM319:AM323) -> 0 | AM82: =SUM(FUNCALLOC!AN319:AN323) -> 0 | AN82: =SUM(FUNCALLOC!AO319:AO323) -> 0 | AO82: =SUM(FUNCALLOC!AP319:AP323) -> 0 | AP82: =SUM(FUNCALLOC!AQ319:AQ323) -> 0 | AQ82: =SUM(FUNCALLOC!AR319:AR323) -> 0 | AR82: =SUM(FUNCALLOC!AS319:AS323) -> 0 | AS82: =SUM(FUNCALLOC!AT319:AT323) -> 0 | AT82: =SUM(FUNCALLOC!AU319:AU323) -> 0 | AU82: =SUM(FUNCALLOC!AV319:AV323) -> 0 | AV82: =SUM(FUNCALLOC!AW319:AW323) -> 0 | AW82: =SUM(FUNCALLOC!AX319:AX323) -> 0 | AX82: =SUM(FUNCALLOC!AY319:AY323) -> 0 | AY82: =SUM(FUNCALLOC!AZ319:AZ323) -> 0 | AZ82: =SUM(FUNCALLOC!BA319:BA323) -> 0 | BA82: =SUM(FUNCALLOC!BB319:BB323) -> 0 | BB82: =SUM(FUNCALLOC!BC319:BC323) -> 0 | BC82: =SUM(FUNCALLOC!BD319:BD323) -> 0 | BD82: =SUM(FUNCALLOC!BE319:BE323) -> 0 | BE82: =SUM(FUNCALLOC!BF319:BF323) -> 0 | BF82: =SUM(FUNCALLOC!BG319:BG323) -> 0 | BG82: =SUM(FUNCALLOC!BH319:BH323) -> 0
D83: =IF((D82=0)*OR($C82=0),0,D82/$C82) -> 0 | E83: 0 | F83: 0.3816981666 | G83: 0 | H83: 0 | I83: 0.05294063403 | J83: 0 | K83: 0.1814128911 | L83: 0 | M83: 0 | N83: 0 | O83: 0 | P83: 0 | Q83: 0 | R83: 0.3112822423 | S83: 0.002973107253 | T83: 0.06964704725 | U83: 0 | V83: 4.59115117e-05 | W83: 0 | X83: 0 | Y83: 0 | Z83: 0 | AA83: 0 | AB83: 0 | AC83: 0 | AD83: 0 | AE83: 0 | AF83: 0 | AG83: 0 | AH83: 0 | AI83: 0 | AJ83: 0 | AK83: 0 | AL83: 0 | AM83: 0 | AN83: 0 | AO83: 0 | AP83: 0 | AQ83: 0 | AR83: =IF((AR82=0)*OR($C82=0),0,AR82/$C82) -> 0 | AS83: 0 | AT83: 0 | AU83: 0 | AV83: 0 | AW83: 0 | AX83: 0 | AY83: 0 | AZ83: 0 | BA83: 0 | BB83: 0 | BC83: 0 | BD83: 0 | BE83: 0 | BF83: 0 | BG83: 0
A85: EXP_903 | B85: Customer Collection & Record Expenses (Account 903) | C85: =SUM(D85:BG85) -> 17299362.03 | D85: =SUM(FUNCALLOC!E340:E342) -> 0 | E85: =SUM(FUNCALLOC!F340:F342) -> 0 | F85: =SUM(FUNCALLOC!G340:G342) -> 0 | G85: =SUM(FUNCALLOC!H340:H342) -> 0 | H85: =SUM(FUNCALLOC!I340:I342) -> 0 | I85: =SUM(FUNCALLOC!J340:J342) -> 0 | J85: =SUM(FUNCALLOC!K340:K342) -> 0 | K85: =SUM(FUNCALLOC!L340:L342) -> 0 | L85: =SUM(FUNCALLOC!M340:M342) -> 0 | M85: =SUM(FUNCALLOC!N340:N342) -> 0 | N85: =SUM(FUNCALLOC!O340:O342) -> 0 | O85: =SUM(FUNCALLOC!P340:P342) -> 0 | P85: =SUM(FUNCALLOC!Q340:Q342) -> 0 | Q85: =SUM(FUNCALLOC!R340:R342) -> 0 | R85: =SUM(FUNCALLOC!S340:S342) -> 0 | S85: =SUM(FUNCALLOC!T340:T342) -> 0 | T85: =SUM(FUNCALLOC!U340:U342) -> 0 | U85: =SUM(FUNCALLOC!V340:V342) -> 0 | V85: =SUM(FUNCALLOC!W340:W342) -> 0 | W85: =SUM(FUNCALLOC!X340:X342) -> 0 | X85: =SUM(FUNCALLOC!Y340:Y342) -> 0 | Y85: =SUM(FUNCALLOC!Z340:Z342) -> 0 | Z85: =SUM(FUNCALLOC!AA340:AA342) -> 11200431.04 | AA85: =SUM(FUNCALLOC!AB340:AB342) -> 0 | AB85: =SUM(FUNCALLOC!AC340:AC342) -> 0 | AC85: =SUM(FUNCALLOC!AD340:AD342) -> 0 | AD85: =SUM(FUNCALLOC!AE340:AE342) -> 0 | AE85: =SUM(FUNCALLOC!AF340:AF342) -> 0 | AF85: =SUM(FUNCALLOC!AG340:AG342) -> 0 | AG85: =SUM(FUNCALLOC!AH340:AH342) -> 5816227.3 | AH85: =SUM(FUNCALLOC!AI340:AI342) -> 0 | AI85: =SUM(FUNCALLOC!AJ340:AJ342) -> 0 | AJ85: =SUM(FUNCALLOC!AK340:AK342) -> 0 | AK85: =SUM(FUNCALLOC!AL340:AL342) -> 0 | AL85: =SUM(FUNCALLOC!AM340:AM342) -> 0 | AM85: =SUM(FUNCALLOC!AN340:AN342) -> 282703.6963 | AN85: =SUM(FUNCALLOC!AO340:AO342) -> 0 | AO85: =SUM(FUNCALLOC!AP340:AP342) -> 0 | AP85: =SUM(FUNCALLOC!AQ340:AQ342) -> 0 | AQ85: =SUM(FUNCALLOC!AR340:AR342) -> 0 | AR85: =SUM(FUNCALLOC!AS340:AS342) -> 0 | AS85: =SUM(FUNCALLOC!AT340:AT342) -> 0 | AT85: =SUM(FUNCALLOC!AU340:AU342) -> 0 | AU85: =SUM(FUNCALLOC!AV340:AV342) -> 0 | AV85: =SUM(FUNCALLOC!AW340:AW342) -> 0 | AW85: =SUM(FUNCALLOC!AX340:AX342) -> 0 | AX85: =SUM(FUNCALLOC!AY340:AY342) -> 0 | AY85: =SUM(FUNCALLOC!AZ340:AZ342) -> 0 | AZ85: =SUM(FUNCALLOC!BA340:BA342) -> 0 | BA85: =SUM(FUNCALLOC!BB339,FUNCALLOC!BB344,FUNCALLOC!BB345) -> 0 | BB85: =SUM(FUNCALLOC!BC339:BC340) -> 0 | BC85: =SUM(FUNCALLOC!BD339:BD340) -> 0 | BD85: =SUM(FUNCALLOC!BE339:BE340) -> 0 | BE85: =SUM(FUNCALLOC!BF339:BF340) -> 0 | BF85: =SUM(FUNCALLOC!BG339:BG340) -> 0 | BG85: =SUM(FUNCALLOC!BI339:BI340) -> 0
D86: =IF((D85=0)*OR($C85=0),0,D85/$C85) -> 0 | E86: 0 | F86: 0 | G86: 0 | H86: 0 | I86: 0 | J86: 0 | K86: 0 | L86: 0 | M86: 0 | N86: 0 | O86: 0 | P86: 0 | Q86: 0 | R86: 0 | S86: 0 | T86: 0 | U86: 0 | V86: 0 | W86: 0 | X86: 0 | Y86: 0 | Z86: 0.6474476351 | AA86: 0 | AB86: 0 | AC86: 0 | AD86: 0 | AE86: 0 | AF86: 0 | AG86: 0.3362105081 | AH86: 0 | AI86: 0 | AJ86: =IF((AJ85=0)*OR($C85=0),0,AJ85/$C85) -> 0 | AK86: 0 | AL86: 0 | AM86: 0.01634185675 | AN86: 0 | AO86: 0 | AP86: 0 | AQ86: 0 | AR86: 0 | AS86: 0 | AT86: 0 | AU86: 0 | AV86: 0 | AW86: 0 | AX86: 0 | AY86: 0 | AZ86: 0 | BA86: 0 | BB86: 0 | BC86: 0 | BD86: 0 | BE86: 0 | BF86: 0 | BG86: 0
A88: EXP_908 | B88: Customer Assistance Expenses (Account 908) | C88: =SUM(D88:BG88) -> 580841.6925 | D88: =SUM(FUNCALLOC!E351:E353,FUNCALLOC!E355) -> 0 | E88: =SUM(FUNCALLOC!F351:F353,FUNCALLOC!F355) -> 0 | F88: =SUM(FUNCALLOC!G351:G353,FUNCALLOC!G355) -> 0 | G88: =SUM(FUNCALLOC!H351:H353,FUNCALLOC!H355) -> 0 | H88: =SUM(FUNCALLOC!I351:I353,FUNCALLOC!I355) -> 0 | I88: =SUM(FUNCALLOC!J351:J353,FUNCALLOC!J355) -> 0 | J88: =SUM(FUNCALLOC!K351:K353,FUNCALLOC!K355) -> 0 | K88: =SUM(FUNCALLOC!L351:L353,FUNCALLOC!L355) -> 0 | L88: =SUM(FUNCALLOC!M351:M353,FUNCALLOC!M355) -> 0 | M88: =SUM(FUNCALLOC!N351:N353,FUNCALLOC!N355) -> 0 | N88: =SUM(FUNCALLOC!O351:O353,FUNCALLOC!O355) -> 0 | O88: =SUM(FUNCALLOC!P351:P353,FUNCALLOC!P355) -> 0 | P88: =SUM(FUNCALLOC!Q351:Q353,FUNCALLOC!Q355) -> 0 | Q88: =SUM(FUNCALLOC!R351:R353,FUNCALLOC!R355) -> 0 | R88: =SUM(FUNCALLOC!S351:S353,FUNCALLOC!S355) -> 0 | S88: =SUM(FUNCALLOC!T351:T353,FUNCALLOC!T355) -> 0 | T88: =SUM(FUNCALLOC!U351:U353,FUNCALLOC!U355) -> 0 | U88: =SUM(FUNCALLOC!V351:V353,FUNCALLOC!V355) -> 0 | V88: =SUM(FUNCALLOC!W351:W353,FUNCALLOC!W355) -> 0 | W88: =SUM(FUNCALLOC!X351:X353,FUNCALLOC!X355) -> 0 | X88: =SUM(FUNCALLOC!Y351:Y353,FUNCALLOC!Y355) -> 0 | Y88: =SUM(FUNCALLOC!Z351:Z353,FUNCALLOC!Z355) -> 0 | Z88: =SUM(FUNCALLOC!AA351:AA353,FUNCALLOC!AA355) -> 117551.4639 | AA88: =SUM(FUNCALLOC!AB351:AB353,FUNCALLOC!AB355) -> 0 | AB88: =SUM(FUNCALLOC!AC351:AC353,FUNCALLOC!AC355) -> 463290.2285 | AC88: =SUM(FUNCALLOC!AD351:AD353,FUNCALLOC!AD355) -> 0 | AD88: =SUM(FUNCALLOC!AE351:AE353,FUNCALLOC!AE355) -> 0 | AE88: =SUM(FUNCALLOC!AF351:AF353,FUNCALLOC!AF355) -> 0 | AF88: =SUM(FUNCALLOC!AG351:AG353,FUNCALLOC!AG355) -> 0 | AG88: =SUM(FUNCALLOC!AH351:AH353,FUNCALLOC!AH355) -> 0 | AH88: =SUM(FUNCALLOC!AI351:AI353,FUNCALLOC!AI355) -> 0 | AI88: =SUM(FUNCALLOC!AJ351:AJ353,FUNCALLOC!AJ355) -> 0 | AJ88: =SUM(FUNCALLOC!AK351:AK353,FUNCALLOC!AK355) -> 0 | AK88: =SUM(FUNCALLOC!AL351:AL353,FUNCALLOC!AL355) -> 0 | AL88: =SUM(FUNCALLOC!AM351:AM353,FUNCALLOC!AM355) -> 0 | AM88: =SUM(FUNCALLOC!AN351:AN353,FUNCALLOC!AN355) -> 0 | AN88: =SUM(FUNCALLOC!AO351:AO353,FUNCALLOC!AO355) -> 0 | AO88: =SUM(FUNCALLOC!AP351:AP353,FUNCALLOC!AP355) -> 0 | AP88: =SUM(FUNCALLOC!AQ351:AQ353,FUNCALLOC!AQ355) -> 0 | AQ88: =SUM(FUNCALLOC!AR351:AR353,FUNCALLOC!AR355) -> 0 | AR88: =SUM(FUNCALLOC!AS351:AS353,FUNCALLOC!AS355) -> 0 | AS88: =SUM(FUNCALLOC!AT351:AT353,FUNCALLOC!AT355) -> 0 | AT88: =SUM(FUNCALLOC!AU351:AU353,FUNCALLOC!AU355) -> 0 | AU88: =SUM(FUNCALLOC!AV351:AV353,FUNCALLOC!AV355) -> 0 | AV88: =SUM(FUNCALLOC!AW351:AW353,FUNCALLOC!AW355) -> 0 | AW88: =SUM(FUNCALLOC!AX351:AX353,FUNCALLOC!AX355) -> 0 | AX88: =SUM(FUNCALLOC!AY351:AY353,FUNCALLOC!AY355) -> 0 | AY88: =SUM(FUNCALLOC!AZ351:AZ353,FUNCALLOC!AZ355) -> 0 | AZ88: =SUM(FUNCALLOC!BA351:BA353,FUNCALLOC!BA355) -> 0 | BA88: =SUM(FUNCALLOC!BB351:BB353,FUNCALLOC!BB355) -> 0 | BB88: =SUM(FUNCALLOC!BC351:BC353,FUNCALLOC!BC355) -> 0 | BC88: =SUM(FUNCALLOC!BD351:BD353,FUNCALLOC!BD355) -> 0 | BD88: =SUM(FUNCALLOC!BE351:BE353,FUNCALLOC!BE355) -> 0 | BE88: =SUM(FUNCALLOC!BF351:BF353,FUNCALLOC!BF355) -> 0 | BF88: =SUM(FUNCALLOC!BG351:BG353,FUNCALLOC!BG355) -> 0 | BG88: =SUM(FUNCALLOC!BH351:BH353,FUNCALLOC!BH355) -> 0
D89: =IF((D88=0)*OR($C88=0),0,D88/$C88) -> 0 | E89: 0 | F89: 0 | G89: 0 | H89: 0 | I89: 0 | J89: 0 | K89: 0 | L89: 0 | M89: 0 | N89: 0 | O89: 0 | P89: 0 | Q89: 0 | R89: 0 | S89: 0 | T89: 0 | U89: 0 | V89: 0 | W89: 0 | X89: 0 | Y89: 0 | Z89: 0.2023812434 | AA89: 0 | AB89: 0.7976187566 | AC89: 0 | AD89: 0 | AE89: 0 | AF89: 0 | AG89: 0 | AH89: 0 | AI89: 0 | AJ89: =IF((AJ88=0)*OR($C88=0),0,AJ88/$C88) -> 0 | AK89: 0 | AL89: 0 | AM89: 0 | AN89: 0 | AO89: 0 | AP89: 0 | AQ89: 0 | AR89: 0 | AS89: 0 | AT89: 0 | AU89: 0 | AV89: 0 | AW89: 0 | AX89: 0 | AY89: 0 | AZ89: 0 | BA89: 0 | BB89: 0 | BC89: 0 | BD89: 0 | BE89: 0 | BF89: 0 | BG89: 0
A91: EXP_912 | B91: Demonstrating & Selling Expenses (Account 912) | C91: =SUM(D91:BG91) -> -214062.15 | D91: =SUM(FUNCALLOC!E362:E363) -> 0 | E91: =SUM(FUNCALLOC!F362:F363) -> 0 | F91: =SUM(FUNCALLOC!G362:G363) -> 0 | G91: =SUM(FUNCALLOC!H362:H363) -> 0 | H91: =SUM(FUNCALLOC!I362:I363) -> 0 | I91: =SUM(FUNCALLOC!J362:J363) -> 0 | J91: =SUM(FUNCALLOC!K362:K363) -> 0 | K91: =SUM(FUNCALLOC!L362:L363) -> 0 | L91: =SUM(FUNCALLOC!M362:M363) -> 0 | M91: =SUM(FUNCALLOC!N362:N363) -> 0 | N91: =SUM(FUNCALLOC!O362:O363) -> 0 | O91: =SUM(FUNCALLOC!P362:P363) -> 0 | P91: =SUM(FUNCALLOC!Q362:Q363) -> 0 | Q91: =SUM(FUNCALLOC!R362:R363) -> 0 | R91: =SUM(FUNCALLOC!S362:S363) -> 0 | S91: =SUM(FUNCALLOC!T362:T363) -> 0 | T91: =SUM(FUNCALLOC!U362:U363) -> 0 | U91: =SUM(FUNCALLOC!V362:V363) -> 0 | V91: =SUM(FUNCALLOC!W362:W363) -> 0 | W91: =SUM(FUNCALLOC!X362:X363) -> 0 | X91: =SUM(FUNCALLOC!Y362:Y363) -> 0 | Y91: =SUM(FUNCALLOC!Z362:Z363) -> 0 | Z91: =SUM(FUNCALLOC!AA362:AA363) -> 0 | AA91: =SUM(FUNCALLOC!AB362:AB363) -> 0 | AB91: =SUM(FUNCALLOC!AC362:AC363) -> 0 | AC91: =SUM(FUNCALLOC!AD362:AD363) -> -214062.15 | AD91: =SUM(FUNCALLOC!AE362:AE363) -> 0 | AE91: =SUM(FUNCALLOC!AF362:AF363) -> 0 | AF91: =SUM(FUNCALLOC!AG362:AG363) -> 0 | AG91: =SUM(FUNCALLOC!AH362:AH363) -> 0 | AH91: =SUM(FUNCALLOC!AI362:AI363) -> 0 | AI91: =SUM(FUNCALLOC!AJ362:AJ363) -> 0 | AJ91: =SUM(FUNCALLOC!AK362:AK363) -> 0 | AK91: =SUM(FUNCALLOC!AL362:AL363) -> 0 | AL91: =SUM(FUNCALLOC!AM362:AM363) -> 0 | AM91: =SUM(FUNCALLOC!AN362:AN363) -> 0 | AN91: =SUM(FUNCALLOC!AO362:AO363) -> 0 | AO91: =SUM(FUNCALLOC!AP362:AP363) -> 0 | AP91: =SUM(FUNCALLOC!AQ362:AQ363) -> 0 | AQ91: =SUM(FUNCALLOC!AR362:AR363) -> 0 | AR91: =SUM(FUNCALLOC!AS362:AS363) -> 0 | AS91: =SUM(FUNCALLOC!AT362:AT363) -> 0 | AT91: =SUM(FUNCALLOC!AU362:AU363) -> 0 | AU91: =SUM(FUNCALLOC!AV362:AV363) -> 0 | AV91: =SUM(FUNCALLOC!AW362:AW363) -> 0 | AW91: =SUM(FUNCALLOC!AX362:AX363) -> 0 | AX91: =SUM(FUNCALLOC!AY362:AY363) -> 0 | AY91: =SUM(FUNCALLOC!AZ362:AZ363) -> 0 | AZ91: =SUM(FUNCALLOC!BA362:BA363) -> 0 | BA91: =SUM(FUNCALLOC!BB362:BB363) -> 0 | BB91: =SUM(FUNCALLOC!BC362:BC363) -> 0 | BC91: =SUM(FUNCALLOC!BD362:BD363) -> 0 | BD91: =SUM(FUNCALLOC!BE362:BE363) -> 0 | BE91: =SUM(FUNCALLOC!BF362:BF363) -> 0 | BF91: =SUM(FUNCALLOC!BG362:BG363) -> 0 | BG91: =SUM(FUNCALLOC!BI362:BI363) -> 0
D92: =IF((D91=0)*OR($C91=0),0,D91/$C91) -> 0 | E92: 0 | F92: 0 | G92: 0 | H92: 0 | I92: 0 | J92: 0 | K92: 0 | L92: 0 | M92: 0 | N92: 0 | O92: 0 | P92: 0 | Q92: 0 | R92: 0 | S92: 0 | T92: 0 | U92: 0 | V92: 0 | W92: 0 | X92: 0 | Y92: 0 | Z92: 0 | AA92: 0 | AB92: 0 | AC92: 1 | AD92: 0 | AE92: 0 | AF92: 0 | AG92: 0 | AH92: 0 | AI92: 0 | AJ92: =IF((AJ91=0)*OR($C91=0),0,AJ91/$C91) -> 0 | AK92: 0 | AL92: 0 | AM92: 0 | AN92: 0 | AO92: 0 | AP92: 0 | AQ92: 0 | AR92: 0 | AS92: 0 | AT92: 0 | AU92: 0 | AV92: 0 | AW92: 0 | AX92: 0 | AY92: 0 | AZ92: 0 | BA92: 0 | BB92: 0 | BC92: 0 | BD92: 0 | BE92: 0 | BF92: 0 | BG92: 0
A94: LSTORPT | B94: Local Storage Plant | C94: =SUM(D94:BG94) -> 14499000 | D94: 0 | E94: =SUM(FUNCALLOC!F43:F47) -> 14499000 | F94: 0 | G94: 0 | H94: 0 | I94: 0 | J94: 0 | K94: 0 | L94: 0 | M94: 0 | N94: 0 | O94: 0 | P94: 0 | Q94: 0 | R94: 0 | S94: 0 | T94: 0 | U94: 0 | V94: 0 | W94: 0 | X94: 0 | Y94: 0 | Z94: 0 | AA94: 0 | AB94: 0 | AC94: 0 | AD94: 0 | AE94: 0 | AF94: 0 | AG94: 0 | AH94: 0 | AI94: 0 | AJ94: 0 | AK94: 0 | AL94: 0 | AM94: 0 | AN94: 0 | AO94: 0 | AP94: 0 | AQ94: 0 | AR94: 0 | AS94: 0 | AT94: 0 | AU94: 0 | AV94: 0 | AW94: 0 | AX94: 0 | AY94: 0 | AZ94: 0 | BA94: 0 | BB94: 0 | BC94: 0 | BD94: 0 | BE94: 0 | BF94: 0 | BG94: 0
A95: ~ | D95: =IF((D94=0)*OR($C94=0),0,D94/$C94) -> 0 | E95: 1 | F95: 0 | G95: 0 | H95: 0 | I95: 0 | J95: 0 | K95: 0 | L95: 0 | M95: 0 | N95: 0 | O95: 0 | P95: 0 | Q95: 0 | R95: 0 | S95: 0 | T95: 0 | U95: 0 | V95: 0 | W95: 0 | X95: 0 | Y95: 0 | Z95: 0 | AA95: 0 | AB95: 0 | AC95: 0 | AD95: 0 | AE95: 0 | AF95: 0 | AG95: 0 | AH95: 0 | AI95: 0 | AJ95: =IF((AJ94=0)*OR($C94=0),0,AJ94/$C94) -> 0 | AK95: 0 | AL95: 0 | AM95: 0 | AN95: 0 | AO95: 0 | AP95: 0 | AQ95: 0 | AR95: 0 | AS95: 0 | AT95: 0 | AU95: 0 | AV95: 0 | AW95: 0 | AX95: 0 | AY95: 0 | AZ95: 0 | BA95: 0 | BB95: 0 | BC95: 0 | BD95: 0 | BE95: 0 | BF95: 0 | BG95: 0
A96: ~
A97: ~ | C97: =SUM(D97:BG97) -> 0 | D97: 0 | E97: 0 | F97: 0 | G97: 0 | H97: 0 | I97: 0 | J97: 0 | K97: 0 | L97: 0 | M97: 0 | N97: 0 | O97: 0 | P97: 0 | Q97: 0 | R97: 0 | S97: 0 | T97: 0 | U97: 0 | V97: 0 | W97: 0 | X97: 0 | Y97: 0 | Z97: 0 | AA97: 0 | AB97: 0 | AC97: 0 | AD97: 0 | AE97: 0 | AF97: 0 | AG97: 0 | AH97: 0 | AI97: 0 | AJ97: 0 | AK97: 0 | AL97: 0 | AM97: 0 | AN97: 0 | AO97: 0 | AP97: 0 | AQ97: 0 | AR97: 0 | AS97: 0 | AT97: 0 | AU97: 0 | AV97: 0 | AW97: 0 | AX97: 0 | AY97: 0 | AZ97: 0 | BA97: 0 | BB97: 0 | BC97: 0 | BD97: 0 | BE97: 0 | BF97: 0 | BG97: 0
A98: ~ | D98: =IF((D97=0)*OR($C97=0),0,D97/$C97) -> 0 | E98: 0 | F98: 0 | G98: 0 | H98: 0 | I98: 0 | J98: 0 | K98: 0 | L98: 0 | M98: 0 | N98: 0 | O98: 0 | P98: 0 | Q98: 0 | R98: 0 | S98: 0 | T98: 0 | U98: 0 | V98: 0 | W98: 0 | X98: 0 | Y98: 0 | Z98: 0 | AA98: 0 | AB98: 0 | AC98: 0 | AD98: 0 | AE98: 0 | AF98: 0 | AG98: 0 | AH98: 0 | AI98: 0 | AJ98: =IF((AJ97=0)*OR($C97=0),0,AJ97/$C97) -> 0 | AK98: 0 | AL98: 0 | AM98: 0 | AN98: 0 | AO98: 0 | AP98: 0 | AQ98: 0 | AR98: 0 | AS98: 0 | AT98: 0 | AU98: 0 | AV98: 0 | AW98: 0 | AX98: 0 | AY98: 0 | AZ98: 0 | BA98: 0 | BB98: 0 | BC98: 0 | BD98: 0 | BE98: 0 | BF98: 0 | BG98: 0
A99: ~

Sheet ACCOUNTS
A1: Account Inputs
A3: No. | B3: Account Description | C3: =CHOOSE(INPUTS!$C$11,INPUTS!$B$5,INPUTS!$B$6,INPUTS!$B$7,INPUTS!$B$8) -> Proposed Test Year | D3: Pro Forma Test Year - MarHin | E3: Direct Input - Margin | F3: Restatement Adjustments - Margin Only | G3: Pro Forma Adjustments - Margin Only | H3: Removal of Gas Cost | I3: Revenue Change - Margin Only | J3: Adjusted Test Year | L3: Function | M3: Classifier | N3: =INPUTS!$B$35 -> DEM | O3: =INPUTS!$B$36 -> COM | P3: =INPUTS!$B$37 -> CUS | Q3: =INPUTS!$B$38 -> DIRS | R3: =INPUTS!$B$39 -> DIRT | S3: =INPUTS!$B$40 -> ~ | U3: Internal
A6: RATE BASE
A7: Plant-in-Service
B9: Intangible Plant
A10: 301 | B10: Organization | C10: =CHOOSE(INPUTS!$C$11,E10,SUM(E10:F10),D10,SUM(D10,I10)) -> 159000 | D10: =SUM(E10:H10) -> 159000 | E10: =[4]ACCOUNTS!E10 -> 158692 | F10: =[4]ACCOUNTS!F10 -> 308 | G10: =[4]ACCOUNTS!G10 -> 0 | H10: =[4]ACCOUNTS!H10 -> 0 | I10: =[4]ACCOUNTS!I10 -> 0 | J10: =D10+I10 -> 159000 | U10: PLT
A11: 302 | B11: Franchise and Consents | C11: =CHOOSE(INPUTS!$C$11,E11,SUM(E11:F11),D11,SUM(D11,I11)) -> 532382 | D11: =SUM(E11:H11) -> 532382 | E11: =[4]ACCOUNTS!E11 -> 531986.5884 | F11: =[4]ACCOUNTS!F11 -> 395.4116 | G11: =[4]ACCOUNTS!G11 -> 0 | H11: =[4]ACCOUNTS!H11 -> 0 | I11: =[4]ACCOUNTS!I11 -> 0 | J11: =D11+I11 -> 532382 | U11: PLT
A12: 303 | B12: Misc. Intangible | C12: =CHOOSE(INPUTS!$C$11,E12,SUM(E12:F12),D12,SUM(D12,I12)) -> 210883065.6 | D12: =SUM(E12:H12) -> 210883065.6 | E12: =[4]ACCOUNTS!E12 -> 138841301.1 | F12: =[4]ACCOUNTS!F12 -> 51330505.12 | G12: =[4]ACCOUNTS!G12 -> 20711259.33 | H12: =[4]ACCOUNTS!H12 -> 0 | I12: =[4]ACCOUNTS!I12 -> 0 | J12: 210883065.6 | U12: OML
B13: Sub-total | C13: =SUM(C10:C12) -> 211574447.6 | D13: 211574447.6 | E13: 139531979.7 | F13: 51331208.53 | G13: 20711259.33 | H13: =SUM(H10:H12) -> 0 | I13: 0 | J13: 211574447.6
B15: Production and Gathering Plant
A16: 304 | B16: Land and Land Rights | C16: =CHOOSE(INPUTS!$C$11,E16,SUM(E16:F16),D16,SUM(D16,I16)) -> 153000 | D16: =SUM(E16:H16) -> 153000 | E16: =[4]ACCOUNTS!E16 -> 153211 | F16: =[4]ACCOUNTS!F16 -> -211 | G16: =[4]ACCOUNTS!G16 -> 0 | H16: =[4]ACCOUNTS!H16 -> 0 | I16: =[4]ACCOUNTS!I16 -> 0 | J16: =D16+I16 -> 153000 | U16: PRODPT
A17: 305 | B17: Structures and Improvements | C17: =CHOOSE(INPUTS!$C$11,E17,SUM(E17:F17),D17,SUM(D17,I17)) -> 508000 | D17: 508000 | E17: =[4]ACCOUNTS!E17 -> 508738 | F17: =[4]ACCOUNTS!F17 -> -738 | G17: =[4]ACCOUNTS!G17 -> 0 | H17: =[4]ACCOUNTS!H17 -> 0 | I17: =[4]ACCOUNTS!I17 -> 0 | J17: 508000 | U17: PRODPT
A18: 311 | B18: Liquefied Petroleum Gas Equipment | C18: =CHOOSE(INPUTS!$C$11,E18,SUM(E18:F18),D18,SUM(D18,I18)) -> 6070000 | D18: 6070000 | E18: =[4]ACCOUNTS!E18 -> 6070282 | F18: =[4]ACCOUNTS!F18 -> -282 | G18: =[4]ACCOUNTS!G18 -> 0 | H18: =[4]ACCOUNTS!H18 -> 0 | I18: =[4]ACCOUNTS!I18 -> 0 | J18: 6070000 | L18: F_PRODU | M18: DEM | N18: PDAYXT
A19: 320 | B19: Other Equipment | C19: =CHOOSE(INPUTS!$C$11,E19,SUM(E19:F19),D19,SUM(D19,I19)) -> 5000 | D19: 5000 | E19: =[4]ACCOUNTS!E19 -> 4853 | F19: =[4]ACCOUNTS!F19 -> 147 | G19: =[4]ACCOUNTS!G19 -> 0 | H19: =[4]ACCOUNTS!H19 -> 0 | I19: =[4]ACCOUNTS!I19 -> 0 | J19: 5000 | L19: F_PRODU | M19: DEM | N19: PDAYXT
B20: Natural Gas Production Plant | C20: =CHOOSE(INPUTS!$C$11,E20,SUM(E20:F20),D20,SUM(D20,I20)) -> 1646000 | D20: 1646000 | E20: =[4]ACCOUNTS!E20 -> 2972515 | F20: =[4]ACCOUNTS!F20 -> -1326515 | G20: =[4]ACCOUNTS!G20 -> 0 | H20: =[4]ACCOUNTS!H20 -> 0 | I20: =[4]ACCOUNTS!I20 -> 0 | J20: 1646000 | L20: F_PRODU | M20: DEM | N20: PDAYXT
A21: ~ | B21: ~ | C21: =CHOOSE(INPUTS!$C$11,E21,SUM(E21:F21),D21,SUM(D21,I21)) -> 0 | D21: 0 | E21: =[4]ACCOUNTS!E21 -> 0 | F21: =[4]ACCOUNTS!F21 -> 0 | G21: =[4]ACCOUNTS!G21 -> 0 | H21: =[4]ACCOUNTS!H21 -> 0 | I21: =[4]ACCOUNTS!I21 -> 0 | J21: 0
A22: ~ | B22: ~ | C22: =CHOOSE(INPUTS!$C$11,E22,SUM(E22:F22),D22,SUM(D22,I22)) -> 0 | D22: 0 | E22: =[4]ACCOUNTS!E22 -> 0 | F22: =[4]ACCOUNTS!F22 -> 0 | G22: =[4]ACCOUNTS!G22 -> 0 | H22: =[4]ACCOUNTS!H22 -> 0 | I22: =[4]ACCOUNTS!I22 -> 0 | J22: 0
A23: ~ | B23: ~ | C23: =CHOOSE(INPUTS!$C$11,E23,SUM(E23:F23),D23,SUM(D23,I23)) -> 0 | D23: 0 | E23: =[4]ACCOUNTS!E23 -> 0 | F23: =[4]ACCOUNTS!F23 -> 0 | G23: =[4]ACCOUNTS!G23 -> 0 | H23: =[4]ACCOUNTS!H23 -> 0 | I23: =[4]ACCOUNTS!I23 -> 0 | J23: 0
A24: ~ | B24: ~ | C24: =CHOOSE(INPUTS!$C$11,E24,SUM(E24:F24),D24,SUM(D24,I24)) -> 0 | D24: 0 | E24: =[4]ACCOUNTS!E24 -> 0 | F24: =[4]ACCOUNTS!F24 -> 0 | G24: =[4]ACCOUNTS!G24 -> 0 | H24: =[4]ACCOUNTS!H24 -> 0 | I24: =[4]ACCOUNTS!I24 -> 0 | J24: 0
A25: ~ | B25: ~ | C25: =CHOOSE(INPUTS!$C$11,E25,SUM(E25:F25),D25,SUM(D25,I25)) -> 0 | D25: 0 | E25: =[4]ACCOUNTS!E25 -> 0 | F25: =[4]ACCOUNTS!F25 -> 0 | G25: =[4]ACCOUNTS!G25 -> 0 | H25: =[4]ACCOUNTS!H25 -> 0 | I25: =[4]ACCOUNTS!I25 -> 0 | J25: 0
A26: ~ | B26: ~ | C26: =CHOOSE(INPUTS!$C$11,E26,SUM(E26:F26),D26,SUM(D26,I26)) -> 0 | D26: 0 | E26: =[4]ACCOUNTS!E26 -> 0 | F26: =[4]ACCOUNTS!F26 -> 0 | G26: =[4]ACCOUNTS!G26 -> 0 | H26: =[4]ACCOUNTS!H26 -> 0 | I26: =[4]ACCOUNTS!I26 -> 0 | J26: 0
A27: ~ | B27: ~ | C27: =CHOOSE(INPUTS!$C$11,E27,SUM(E27:F27),D27,SUM(D27,I27)) -> 0 | D27: 0 | E27: =[4]ACCOUNTS!E27 -> 0 | F27: =[4]ACCOUNTS!F27 -> 0 | G27: =[4]ACCOUNTS!G27 -> 0 | H27: =[4]ACCOUNTS!H27 -> 0 | I27: =[4]ACCOUNTS!I27 -> 0 | J27: 0
B28: Sub-total | C28: =SUM(C16:C27) -> 8382000 | D28: =SUM(D16:D27) -> 8382000 | E28: 9709599 | F28: -1327599 | G28: 0 | H28: =SUM(H16:H27) -> 0 | I28: 0 | J28: 8382000
B30: Natural Gas Underground Storage
B31: JP Storage Balancing - DIR | C31: =CHOOSE(INPUTS!$C$11,E31,SUM(E31:F31),D31,SUM(D31,I31)) -> 10074750 | D31: =SUM(E31:H31) -> 10074750 | E31: =[4]ACCOUNTS!E31 -> 9746113.02 | F31: =[4]ACCOUNTS!F31 -> 328636.98 | G31: =[4]ACCOUNTS!G31 -> 0 | H31: =[4]ACCOUNTS!H31 -> 0 | I31: =[4]ACCOUNTS!I31 -> 0 | J31: =D31+I31 -> 10074750 | L31: F_STORG | M31: COM | O31: COM_1
A32: 350 | B32: Land and Land Rights | C32: =CHOOSE(INPUTS!$C$11,E32,SUM(E32:F32),D32,SUM(D32,I32)) -> 1090200 | D32: 1090200 | E32: =[4]ACCOUNTS!E32 -> 1087030.52 | F32: =[4]ACCOUNTS!F32 -> 3169.48 | G32: =[4]ACCOUNTS!G32 -> 0 | H32: =[4]ACCOUNTS!H32 -> 0 | I32: =[4]ACCOUNTS!I32 -> 0 | J32: 1090200 | L32: F_STORG | M32: DEM | N32: SEAS3_DEM
A33: 351 | B33: Structures and Improvements | C33: =CHOOSE(INPUTS!$C$11,E33,SUM(E33:F33),D33,SUM(D33,I33)) -> 865050 | D33: 865050 | E33: =[4]ACCOUNTS!E33 -> 815898.57 | F33: =[4]ACCOUNTS!F33 -> 49151.43 | G33: =[4]ACCOUNTS!G33 -> 0 | H33: =[4]ACCOUNTS!H33 -> 0 | I33: =[4]ACCOUNTS!I33 -> 0 | J33: 865050 | L33: F_STORG | M33: DEM | N33: SEAS3_DEM
A34: 352 | B34: Wells | C34: =CHOOSE(INPUTS!$C$11,E34,SUM(E34:F34),D34,SUM(D34,I34)) -> 15389990 | D34: 15389990 | E34: =[4]ACCOUNTS!E34 -> 14484546.51 | F34: =[4]ACCOUNTS!F34 -> 905443.49 | G34: =[4]ACCOUNTS!G34 -> 0 | H34: =[4]ACCOUNTS!H34 -> 0 | I34: =[4]ACCOUNTS!I34 -> 0 | J34: 15389990 | L34: F_STORG | M34: DEM | N34: SEAS3_DEM
A35: 353 | B35: Lines | C35: =CHOOSE(INPUTS!$C$11,E35,SUM(E35:F35),D35,SUM(D35,I35)) -> 2491660 | D35: 2491660 | E35: =[4]ACCOUNTS!E35 -> 2491253.15 | F35: =[4]ACCOUNTS!F35 -> 406.85 | G35: =[4]ACCOUNTS!G35 -> 0 | H35: =[4]ACCOUNTS!H35 -> 0 | I35: =[4]ACCOUNTS!I35 -> 0 | J35: 2491660 | L35: F_STORG | M35: DEM | N35: SEAS3_DEM
A36: 354 | B36: Compressor Equipment | C36: =CHOOSE(INPUTS!$C$11,E36,SUM(E36:F36),D36,SUM(D36,I36)) -> 15047130 | D36: 15047130 | E36: =[4]ACCOUNTS!E36 -> 14870825.7 | F36: =[4]ACCOUNTS!F36 -> 176304.3 | G36: =[4]ACCOUNTS!G36 -> 0 | H36: =[4]ACCOUNTS!H36 -> 0 | I36: =[4]ACCOUNTS!I36 -> 0 | J36: 15047130 | L36: F_STORG | M36: DEM | N36: SEAS3_DEM
A37: 355 | B37: Measuring and Regulating Equipment | C37: =CHOOSE(INPUTS!$C$11,E37,SUM(E37:F37),D37,SUM(D37,I37)) -> 451090 | D37: 451090 | E37: =[4]ACCOUNTS!E37 -> 451086.05 | F37: =[4]ACCOUNTS!F37 -> 3.95 | G37: =[4]ACCOUNTS!G37 -> 0 | H37: =[4]ACCOUNTS!H37 -> 0 | I37: =[4]ACCOUNTS!I37 -> 0 | J37: 451090 | L37: F_STORG | M37: DEM | N37: SEAS3_DEM
A38: 356 | B38: Purification Equipment | C38: =CHOOSE(INPUTS!$C$11,E38,SUM(E38:F38),D38,SUM(D38,I38)) -> 2231750 | D38: 2231750 | E38: =[4]ACCOUNTS!E38 -> 2139164.37 | F38: =[4]ACCOUNTS!F38 -> 92585.63 | G38: =[4]ACCOUNTS!G38 -> 0 | H38: =[4]ACCOUNTS!H38 -> 0 | I38: =[4]ACCOUNTS!I38 -> 0 | J38: 2231750 | L38: F_STORG | M38: DEM | N38: SEAS3_DEM
A39: 357 | B39: Other Equipment | C39: =CHOOSE(INPUTS!$C$11,E39,SUM(E39:F39),D39,SUM(D39,I39)) -> 333380 | D39: 333380 | E39: =[4]ACCOUNTS!E39 -> 324144.11 | F39: =[4]ACCOUNTS!F39 -> 9235.89 | G39: =[4]ACCOUNTS!G39 -> 0 | H39: =[4]ACCOUNTS!H39 -> 0 | I39: =[4]ACCOUNTS!I39 -> 0 | J39: 333380 | L39: F_STORG | M39: DEM | N39: SEAS3_DEM
B40: Sub-total | C40: =SUM(C31:C39) -> 47975000 | D40: 47975000 | E40: 46410062 | F40: 1564938 | G40: 0 | H40: =SUM(H31:H39) -> 0 | I40: 0 | J40: 47975000
B42: Natural Gas Local Storage
A43: 360 | B43: Land & Land Rights | C43: =CHOOSE(INPUTS!$C$11,E43,SUM(E43:F43),D43,SUM(D43,I43)) -> 1705000 | D43: =SUM(E43:H43) -> 1705000 | E43: =[4]ACCOUNTS!E43 -> 1704569 | F43: =[4]ACCOUNTS!F43 -> 431 | G43: =[4]ACCOUNTS!G43 -> 0 | H43: =[4]ACCOUNTS!H43 -> 0 | I43: =[4]ACCOUNTS!I43 -> 0 | J43: =D43+I43 -> 1705000 | L43: F_STORG | M43: DEM | N43: SEAS3_DEM
A44: 361 | B44: Structures & improvement | C44: =CHOOSE(INPUTS!$C$11,E44,SUM(E44:F44),D44,SUM(D44,I44)) -> 4156000 | D44: 4156000 | E44: =[4]ACCOUNTS!E44 -> 4155602 | F44: =[4]ACCOUNTS!F44 -> 398 | G44: =[4]ACCOUNTS!G44 -> 0 | H44: =[4]ACCOUNTS!H44 -> 0 | I44: =[4]ACCOUNTS!I44 -> 0 | J44: 4156000 | L44: F_STORG | M44: DEM | N44: SEAS3_DEM
A45: 362 | B45: Gas Holders | C45: =CHOOSE(INPUTS!$C$11,E45,SUM(E45:F45),D45,SUM(D45,I45)) -> 3683000 | D45: 3683000 | E45: =[4]ACCOUNTS!E45 -> 3683221 | F45: =[4]ACCOUNTS!F45 -> -221 | G45: =[4]ACCOUNTS!G45 -> 0 | H45: =[4]ACCOUNTS!H45 -> 0 | I45: =[4]ACCOUNTS!I45 -> 0 | J45: 3683000 | L45: F_STORG | M45: DEM | N45: SEAS3_DEM
A46: 363 | B46: Purification Equipment | C46: =CHOOSE(INPUTS!$C$11,E46,SUM(E46:F46),D46,SUM(D46,I46)) -> 3984000 | D46: 3984000 | E46: =[4]ACCOUNTS!E46 -> 3984039 | F46: =[4]ACCOUNTS!F46 -> -39 | G46: =[4]ACCOUNTS!G46 -> 0 | H46: =[4]ACCOUNTS!H46 -> 0 | I46: =[4]ACCOUNTS!I46 -> 0 | J46: 3984000 | L46: F_STORG | M46: DEM | N46: SEAS3_DEM
A47: 364 | B47: Terminating & Processing | C47: =CHOOSE(INPUTS!$C$11,E47,SUM(E47:F47),D47,SUM(D47,I47)) -> 971000 | D47: 971000 | E47: =[4]ACCOUNTS!E47 -> 1219684 | F47: =[4]ACCOUNTS!F47 -> -248684 | G47: =[4]ACCOUNTS!G47 -> 0 | H47: =[4]ACCOUNTS!H47 -> 0 | I47: =[4]ACCOUNTS!I47 -> 0 | J47: 971000 | L47: F_STORG | M47: DEM | N47: SEAS3_DEM
A48: ~ | B48: ~ | C48: =CHOOSE(INPUTS!$C$11,E48,SUM(E48:F48),D48,SUM(D48,I48)) -> 0 | D48: 0 | E48: =[4]ACCOUNTS!E48 -> 0 | F48: =[4]ACCOUNTS!F48 -> 0 | G48: =[4]ACCOUNTS!G48 -> 0 | H48: =[4]ACCOUNTS!H48 -> 0 | I48: =[4]ACCOUNTS!I48 -> 0 | J48: 0
B49: Sub-total | C49: =SUM(C43:C48) -> 14499000 | D49: =SUM(D43:D48) -> 14499000 | E49: 14747115 | F49: -248115 | G49: 0 | H49: =SUM(H43:H48) -> 0 | I49: 0 | J49: 14499000
B51: Transmission Plant
A52: 365 | B52: Land and Land Rights | C52: =CHOOSE(INPUTS!$C$11,E52,SUM(E52:F52),D52,SUM(D52,I52)) -> 0 | D52: =SUM(E52:H52) -> 0 | E52: =[4]ACCOUNTS!E52 -> 0 | F52: =[4]ACCOUNTS!F52 -> 0 | G52: =[4]ACCOUNTS!G52 -> 0 | H52: =[4]ACCOUNTS!H52 -> 0 | I52: =[4]ACCOUNTS!I52 -> 0 | J52: =D52+I52 -> 0
A53: 366 | B53: Structures and Improvements | C53: =CHOOSE(INPUTS!$C$11,E53,SUM(E53:F53),D53,SUM(D53,I53)) -> 0 | D53: 0 | E53: =[4]ACCOUNTS!E53 -> 0 | F53: =[4]ACCOUNTS!F53 -> 0 | G53: =[4]ACCOUNTS!G53 -> 0 | H53: =[4]ACCOUNTS!H53 -> 0 | I53: =[4]ACCOUNTS!I53 -> 0 | J53: 0
A54: 367 | B54: Mains | C54: =CHOOSE(INPUTS!$C$11,E54,SUM(E54:F54),D54,SUM(D54,I54)) -> 0 | D54: 0 | E54: =[4]ACCOUNTS!E54 -> 0 | F54: =[4]ACCOUNTS!F54 -> 0 | G54: =[4]ACCOUNTS!G54 -> 0 | H54: =[4]ACCOUNTS!H54 -> 0 | I54: =[4]ACCOUNTS!I54 -> 0 | J54: 0
A55: 369 | B55: M&R Station Equipment | C55: =CHOOSE(INPUTS!$C$11,E55,SUM(E55:F55),D55,SUM(D55,I55)) -> 0 | D55: 0 | E55: =[4]ACCOUNTS!E55 -> 0 | F55: =[4]ACCOUNTS!F55 -> 0 | G55: =[4]ACCOUNTS!G55 -> 0 | H55: =[4]ACCOUNTS!H55 -> 0 | I55: =[4]ACCOUNTS!I55 -> 0 | J55: 0
A56: 372 | B56: Easements | C56: =CHOOSE(INPUTS!$C$11,E56,SUM(E56:F56),D56,SUM(D56,I56)) -> 0 | D56: 0 | E56: =[4]ACCOUNTS!E56 -> 0 | F56: =[4]ACCOUNTS!F56 -> 0 | G56: =[4]ACCOUNTS!G56 -> 0 | H56: =[4]ACCOUNTS!H56 -> 0 | I56: =[4]ACCOUNTS!I56 -> 0 | J56: 0
A57: ~ | B57: ~ | C57: =CHOOSE(INPUTS!$C$11,E57,SUM(E57:F57),D57,SUM(D57,I57)) -> 0 | D57: 0 | E57: =[4]ACCOUNTS!E57 -> 0 | F57: =[4]ACCOUNTS!F57 -> 0 | G57: =[4]ACCOUNTS!G57 -> 0 | H57: =[4]ACCOUNTS!H57 -> 0 | I57: =[4]ACCOUNTS!I57 -> 0 | J57: 0
A58: ~ | B58: ~ | C58: =CHOOSE(INPUTS!$C$11,E58,SUM(E58:F58),D58,SUM(D58,I58)) -> 0 | D58: 0 | E58: =[4]ACCOUNTS!E58 -> 0 | F58: =[4]ACCOUNTS!F58 -> 0 | G58: =[4]ACCOUNTS!G58 -> 0 | H58: =[4]ACCOUNTS!H58 -> 0 | I58: =[4]ACCOUNTS!I58 -> 0 | J58: 0
A59: ~ | B59: ~ | C59: =CHOOSE(INPUTS!$C$11,E59,SUM(E59:F59),D59,SUM(D59,I59)) -> 0 | D59: 0 | E59: =[4]ACCOUNTS!E59 -> 0 | F59: =[4]ACCOUNTS!F59 -> 0 | G59: =[4]ACCOUNTS!G59 -> 0 | H59: =[4]ACCOUNTS!H59 -> 0 | I59: =[4]ACCOUNTS!I59 -> 0 | J59: 0
B60: Sub-total | C60: =SUM(C52:C59) -> 0 | D60: 0 | E60: 0 | F60: 0 | G60: 0 | H60: =SUM(H52:H59) -> 0 | I60: 0 | J60: 0
B62: Distribution Plant
A63: 373 | B63: Easements | C63: =CHOOSE(INPUTS!$C$11,E63,SUM(E63:F63),D63,SUM(D63,I63)) -> 0 | D63: =SUM(E63:H63) -> 0 | E63: =[4]ACCOUNTS!E63 -> 0 | F63: =[4]ACCOUNTS!F63 -> 0 | G63: =[4]ACCOUNTS!G63 -> 0 | H63: =[4]ACCOUNTS!H63 -> 0 | I63: =[4]ACCOUNTS!I63 -> 0 | J63: =D63+I63 -> 0 | U63: DISTPT
A64: 374 | B64: Land and Land Rights | C64: =CHOOSE(INPUTS!$C$11,E64,SUM(E64:F64),D64,SUM(D64,I64)) -> 24123000 | D64: 24123000 | E64: =[4]ACCOUNTS!E64 -> 24124977 | F64: =[4]ACCOUNTS!F64 -> -1977 | G64: =[4]ACCOUNTS!G64 -> 0 | H64: =[4]ACCOUNTS!H64 -> 0 | I64: =[4]ACCOUNTS!I64 -> 0 | J64: 24123000 | U64: DISTPT
A65: 375 | B65: Structures and Improvements | C65: =CHOOSE(INPUTS!$C$11,E65,SUM(E65:F65),D65,SUM(D65,I65)) -> 45726445.39 | D65: 45726445.39 | E65: =[4]ACCOUNTS!E65 -> 38688433 | F65: =[4]ACCOUNTS!F65 -> -1373433 | G65: =[4]ACCOUNTS!G65 -> 8411445.39 | H65: =[4]ACCOUNTS!H65 -> 0 | I65: =[4]ACCOUNTS!I65 -> 0 | J65: 45726445.39 | U65: DISTPT
A66: 376 | B66: Mains | C66: =CHOOSE(INPUTS!$C$11,E66,SUM(E66:F66),D66,SUM(D66,I66)) -> 640064405 | D66: 640064405 | E66: =[4]ACCOUNTS!E66 -> 616458907.6 | F66: =[4]ACCOUNTS!F66 -> 23605497.31 | G66: =[4]ACCOUNTS!G66 -> 0 | H66: =[4]ACCOUNTS!H66 -> 0 | I66: =[4]ACCOUNTS!I66 -> 0 | J66: 640064405 | L66: F_DISTR | M66: COM | O66: A_MAINS
A67: 376 | B67: Mains - Peak | C67: =CHOOSE(INPUTS!$C$11,E67,SUM(E67:F67),D67,SUM(D67,I67)) -> 1346714715 | D67: 1346714715 | E67: =[4]ACCOUNTS!E67 -> 1297048040 | F67: =[4]ACCOUNTS!F67 -> 49666674.69 | G67: =[4]ACCOUNTS!G67 -> 0 | H67: =[4]ACCOUNTS!H67 -> 0 | I67: =[4]ACCOUNTS!I67 -> 0 | J67: 1346714715 | L67: F_DISTR | M67: DEM | N67: P_MAINS
A68: 376 | B68: Mains - LNG Related | C68: =CHOOSE(INPUTS!$C$11,E68,SUM(E68:F68),D68,SUM(D68,I68)) -> 31525879.94 | D68: 31525879.94 | E68: =[4]ACCOUNTS!E68 -> 31525879.94 | F68: =[4]ACCOUNTS!F68 -> 0 | G68: =[4]ACCOUNTS!G68 -> 0 | H68: =[4]ACCOUNTS!H68 -> 0 | I68: =[4]ACCOUNTS!I68 -> 0 | J68: 31525879.94 | L68: F_STORG | M68: DIRS | Q68: LNGMAINS
A69: 378 | B69: Meas. & Reg. Station Equip.- Gen. | C69: =CHOOSE(INPUTS!$C$11,E69,SUM(E69:F69),D69,SUM(D69,I69)) -> 40955789.63 | D69: 40955789.63 | E69: =[4]ACCOUNTS!E69 -> 39659194.56 | F69: =[4]ACCOUNTS!F69 -> 1296595.068 | G69: =[4]ACCOUNTS!G69 -> 0 | H69: =[4]ACCOUNTS!H69 -> 0 | I69: =[4]ACCOUNTS!I69 -> 0 | J69: 40955789.63 | L69: F_DISTR | M69: COM | O69: COM_1
A70: 378 | B70: Meas. & Reg. Station Equip.- Peak | C70: =CHOOSE(INPUTS!$C$11,E70,SUM(E70:F70),D70,SUM(D70,I70)) -> 86172210.37 | D70: 86172210.37 | E70: =[4]ACCOUNTS!E70 -> 83444135.44 | F70: =[4]ACCOUNTS!F70 -> 2728074.932 | G70: =[4]ACCOUNTS!G70 -> 0 | H70: =[4]ACCOUNTS!H70 -> 0 | I70: =[4]ACCOUNTS!I70 -> 0 | J70: 86172210.37 | L70: F_DISTR | M70: DEM | N70: PDAY
A71: 380 | B71: Services | C71: =CHOOSE(INPUTS!$C$11,E71,SUM(E71:F71),D71,SUM(D71,I71)) -> 1165290125 | D71: 1165290125 | E71: =[4]ACCOUNTS!E71 -> 1119431425 | F71: =[4]ACCOUNTS!F71 -> 45858700.11 | G71: =[4]ACCOUNTS!G71 -> 0 | H71: =[4]ACCOUNTS!H71 -> 0 | I71: =[4]ACCOUNTS!I71 -> 0 | J71: 1165290125 | L71: F_DISTR | M71: CUS | P71: SERV
A72: 380 | B72: Services - DIR | C72: =CHOOSE(INPUTS!$C$11,E72,SUM(E72:F72),D72,SUM(D72,I72)) -> 11129875.24 | D72: 11129875.24 | E72: =[4]ACCOUNTS!E72 -> 10691871.35 | F72: =[4]ACCOUNTS!F72 -> 438003.8929 | G72: =[4]ACCOUNTS!G72 -> 0 | H72: =[4]ACCOUNTS!H72 -> 0 | I72: =[4]ACCOUNTS!I72 -> 0 | J72: 11129875.24 | L72: F_DISTR | M72: CUS | P72: DIR_380
A73: 381 | B73: Meters | C73: =CHOOSE(INPUTS!$C$11,E73,SUM(E73:F73),D73,SUM(D73,I73)) -> 132138614 | D73: 132138614 | E73: =[4]ACCOUNTS!E73 -> 95351368 | F73: =[4]ACCOUNTS!F73 -> 7174632 | G73: =[4]ACCOUNTS!G73 -> 29612613.96 | H73: =[4]ACCOUNTS!H73 -> 0 | I73: =[4]ACCOUNTS!I73 -> 0 | J73: 132138614 | L73: F_DISTR | M73: CUS | P73: MTRS_CUS
A74: 382 | B74: Meter Installations | C74: =CHOOSE(INPUTS!$C$11,E74,SUM(E74:F74),D74,SUM(D74,I74)) -> 182836000 | D74: 182836000 | E74: =[4]ACCOUNTS!E74 -> 188524609 | F74: =[4]ACCOUNTS!F74 -> -5688609 | G74: =[4]ACCOUNTS!G74 -> 0 | H74: =[4]ACCOUNTS!H74 -> 0 | I74: =[4]ACCOUNTS!I74 -> 0 | J74: 182836000 | L74: F_DISTR | M74: CUS | P74: MTRS_INST
A75: 383 | B75: House Regulators | C75: =CHOOSE(INPUTS!$C$11,E75,SUM(E75:F75),D75,SUM(D75,I75)) -> 17726000 | D75: 17726000 | E75: =[4]ACCOUNTS!E75 -> 17528638 | F75: =[4]ACCOUNTS!F75 -> 197362 | G75: =[4]ACCOUNTS!G75 -> 0 | H75: =[4]ACCOUNTS!H75 -> 0 | I75: =[4]ACCOUNTS!I75 -> 0 | J75: 17726000 | L75: F_DISTR | M75: CUS | P75: MTRS_CUS
A76: 384 | B76: House Regulators Installations | C76: =CHOOSE(INPUTS!$C$11,E76,SUM(E76:F76),D76,SUM(D76,I76)) -> 83089000 | D76: 83089000 | E76: =[4]ACCOUNTS!E76 -> 83109687 | F76: =[4]ACCOUNTS!F76 -> -20687 | G76: =[4]ACCOUNTS!G76 -> 0 | H76: =[4]ACCOUNTS!H76 -> 0 | I76: =[4]ACCOUNTS!I76 -> 0 | J76: 83089000 | L76: F_DISTR | M76: CUS | P76: MTRS_CUS
A77: 385 | B77: Indust. Meas. & Reg. Station Equip. | C77: =CHOOSE(INPUTS!$C$11,E77,SUM(E77:F77),D77,SUM(D77,I77)) -> 43475000 | D77: 43475000 | E77: =[4]ACCOUNTS!E77 -> 41338703 | F77: =[4]ACCOUNTS!F77 -> 2136297 | G77: =[4]ACCOUNTS!G77 -> 0 | H77: =[4]ACCOUNTS!H77 -> 0 | I77: =[4]ACCOUNTS!I77 -> 0 | J77: 43475000 | L77: F_DISTR | M77: CUS | P77: MTRS_385
A78: 386 | B78: Rental Property on Customers Premise | C78: =CHOOSE(INPUTS!$C$11,E78,SUM(E78:F78),D78,SUM(D78,I78)) -> 20144000 | D78: 20144000 | E78: =[4]ACCOUNTS!E78 -> 18280847 | F78: =[4]ACCOUNTS!F78 -> 1863153 | G78: =[4]ACCOUNTS!G78 -> 0 | H78: =[4]ACCOUNTS!H78 -> 0 | I78: =[4]ACCOUNTS!I78 -> 0 | J78: 20144000 | L78: F_DISTR | M78: CUS | P78: DIR_386
A79: 387 | B79: Other Equipment | C79: =CHOOSE(INPUTS!$C$11,E79,SUM(E79:F79),D79,SUM(D79,I79)) -> 5000000 | D79: 5000000 | E79: =[4]ACCOUNTS!E79 -> 5024638 | F79: =[4]ACCOUNTS!F79 -> -24638 | G79: =[4]ACCOUNTS!G79 -> 0 | H79: =[4]ACCOUNTS!H79 -> 0 | I79: =[4]ACCOUNTS!I79 -> 0 | J79: 5000000 | U79: DISTPT
A80: 388 | B80: ARO | C80: =CHOOSE(INPUTS!$C$11,E80,SUM(E80:F80),D80,SUM(D80,I80)) -> 10127000 | D80: 10127000 | E80: =[4]ACCOUNTS!E80 -> 9777523 | F80: =[4]ACCOUNTS!F80 -> 349477 | G80: =[4]ACCOUNTS!G80 -> 0 | H80: =[4]ACCOUNTS!H80 -> 0 | I80: =[4]ACCOUNTS!I80 -> 0 | J80: 10127000 | U80: DISTPT
A81: ~ | B81: ~ | C81: =CHOOSE(INPUTS!$C$11,E81,SUM(E81:F81),D81,SUM(D81,I81)) -> 0 | D81: 0 | E81: =[4]ACCOUNTS!E81 -> 0 | F81: =[4]ACCOUNTS!F81 -> 0 | G81: =[4]ACCOUNTS!G81 -> 0 | H81: =[4]ACCOUNTS!H81 -> 0 | I81: =[4]ACCOUNTS!I81 -> 0 | J81: 0
A82: ~ | B82: ~ | C82: =CHOOSE(INPUTS!$C$11,E82,SUM(E82:F82),D82,SUM(D82,I82)) -> 0 | D82: 0 | E82: =[4]ACCOUNTS!E82 -> 0 | F82: =[4]ACCOUNTS!F82 -> 0 | G82: =[4]ACCOUNTS!G82 -> 0 | H82: =[4]ACCOUNTS!H82 -> 0 | I82: =[4]ACCOUNTS!I82 -> 0 | J82: 0
B83: Sub-total | C83: =SUM(C63:C82) -> 3886238059 | D83: 3886238059 | E83: =SUM(E63:E82) -> 3720008877 | F83: 128205123 | G83: 38024059.35 | H83: =SUM(H63:H82) -> 0 | I83: 0 | J83: 3886238059
B85: General Plant
A86: 389 | B86: Land and Land Rights | C86: =CHOOSE(INPUTS!$C$11,E86,SUM(E86:F86),D86,SUM(D86,I86)) -> 15709776.7 | D86: =SUM(E86:H86) -> 15709776.7 | E86: =[4]ACCOUNTS!E86 -> 15685126.54 | F86: =[4]ACCOUNTS!F86 -> 24650.1621 | G86: =[4]ACCOUNTS!G86 -> 0 | H86: =[4]ACCOUNTS!H86 -> 0 | I86: =[4]ACCOUNTS!I86 -> 0 | J86: =D86+I86 -> 15709776.7 | U86: PLTXR
A87: 390 | B87: Structures and Improvements | C87: =CHOOSE(INPUTS!$C$11,E87,SUM(E87:F87),D87,SUM(D87,I87)) -> 57456126.4 | D87: 57456126.4 | E87: =[4]ACCOUNTS!E87 -> 52238628.36 | F87: =[4]ACCOUNTS!F87 -> 5217498.041 | G87: =[4]ACCOUNTS!G87 -> 0 | H87: =[4]ACCOUNTS!H87 -> 0 | I87: =[4]ACCOUNTS!I87 -> 0 | J87: 57456126.4 | U87: PLTXR
A88: 391 | B88: Office Furniture and Equipment | C88: =CHOOSE(INPUTS!$C$11,E88,SUM(E88:F88),D88,SUM(D88,I88)) -> 49327662.5 | D88: 49327662.5 | E88: =[4]ACCOUNTS!E88 -> 42509038.28 | F88: =[4]ACCOUNTS!F88 -> 6818624.225 | G88: =[4]ACCOUNTS!G88 -> 0 | H88: =[4]ACCOUNTS!H88 -> 0 | I88: =[4]ACCOUNTS!I88 -> 0 | J88: 49327662.5 | U88: OML
A89: 392 | B89: Transportation Equipment | C89: =CHOOSE(INPUTS!$C$11,E89,SUM(E89:F89),D89,SUM(D89,I89)) -> 8294501.9 | D89: 8294501.9 | E89: =[4]ACCOUNTS!E89 -> 8413111.295 | F89: =[4]ACCOUNTS!F89 -> -118609.395 | G89: =[4]ACCOUNTS!G89 -> 0 | H89: =[4]ACCOUNTS!H89 -> 0 | I89: =[4]ACCOUNTS!I89 -> 0 | J89: 8294501.9 | U89: OML
A90: 390.1 | B90: LeaseHolds | C90: =CHOOSE(INPUTS!$C$11,E90,SUM(E90:F90),D90,SUM(D90,I90)) -> 12461689.8 | D90: 12461689.8 | E90: =[4]ACCOUNTS!E90 -> 14205672.15 | F90: =[4]ACCOUNTS!F90 -> -1743982.349 | G90: =[4]ACCOUNTS!G90 -> 0 | H90: =[4]ACCOUNTS!H90 -> 0 | I90: =[4]ACCOUNTS!I90 -> 0 | J90: 12461689.8 | U90: OML
A91: ~ | B91: ~ | C91: =CHOOSE(INPUTS!$C$11,E91,SUM(E91:F91),D91,SUM(D91,I91)) -> 0 | D91: 0 | E91: =[4]ACCOUNTS!E91 -> 0 | F91: =[4]ACCOUNTS!F91 -> 0 | G91: =[4]ACCOUNTS!G91 -> 0 | H91: =[4]ACCOUNTS!H91 -> 0 | I91: =[4]ACCOUNTS!I91 -> 0 | J91: 0 | L91: F_DISTR | M91: DEM | N91: SEAS3_DEM
A92: 393 | B92: Stores Equipment | C92: =CHOOSE(INPUTS!$C$11,E92,SUM(E92:F92),D92,SUM(D92,I92)) -> 31443.3 | D92: 31443.3 | E92: =[4]ACCOUNTS!E92 -> 31299.9456 | F92: =[4]ACCOUNTS!F92 -> 143.3544 | G92: =[4]ACCOUNTS!G92 -> 0 | H92: =[4]ACCOUNTS!H92 -> 0 | I92: =[4]ACCOUNTS!I92 -> 0 | J92: 31443.3 | U92: PLTXR
A93: 394 | B93: Tools, Shop, and Garage Equipment | C93: =CHOOSE(INPUTS!$C$11,E93,SUM(E93:F93),D93,SUM(D93,I93)) -> 8079221.5 | D93: 8079221.5 | E93: =[4]ACCOUNTS!E93 -> 7667306.134 | F93: =[4]ACCOUNTS!F93 -> 411915.3664 | G93: =[4]ACCOUNTS!G93 -> 0 | H93: =[4]ACCOUNTS!H93 -> 0 | I93: =[4]ACCOUNTS!I93 -> 0 | J93: 8079221.5 | U93: OML
A94: ~ | B94: ~ | C94: =CHOOSE(INPUTS!$C$11,E94,SUM(E94:F94),D94,SUM(D94,I94)) -> 0 | D94: 0 | E94: =[4]ACCOUNTS!E94 -> 0 | F94: =[4]ACCOUNTS!F94 -> 0 | G94: =[4]ACCOUNTS!G94 -> 0 | H94: =[4]ACCOUNTS!H94 -> 0 | I94: =[4]ACCOUNTS!I94 -> 0 | J94: 0
A95: ~ | B95: ~ | C95: =CHOOSE(INPUTS!$C$11,E95,SUM(E95:F95),D95,SUM(D95,I95)) -> 0 | D95: 0 | E95: =[4]ACCOUNTS!E95 -> 0 | F95: =[4]ACCOUNTS!F95 -> 0 | G95: =[4]ACCOUNTS!G95 -> 0 | H95: =[4]ACCOUNTS!H95 -> 0 | I95: =[4]ACCOUNTS!I95 -> 0 | J95: 0 | L95: F_DISTR | M95: DEM | N95: SEAS3_DEM
A96: 395 | B96: Laboratory Equipment | C96: =CHOOSE(INPUTS!$C$11,E96,SUM(E96:F96),D96,SUM(D96,I96)) -> 2751000 | D96: 2751000 | E96: =[4]ACCOUNTS!E96 -> 2762800 | F96: =[4]ACCOUNTS!F96 -> -11800 | G96: =[4]ACCOUNTS!G96 -> 0 | H96: =[4]ACCOUNTS!H96 -> 0 | I96: =[4]ACCOUNTS!I96 -> 0 | J96: 2751000 | U96: PLTXR
A97: 396 | B97: Power Operated Equipment | C97: =CHOOSE(INPUTS!$C$11,E97,SUM(E97:F97),D97,SUM(D97,I97)) -> 268798.7 | D97: 268798.7 | E97: =[4]ACCOUNTS!E97 -> 239117.2084 | F97: =[4]ACCOUNTS!F97 -> 29681.4916 | G97: =[4]ACCOUNTS!G97 -> 0 | H97: =[4]ACCOUNTS!H97 -> 0 | I97: =[4]ACCOUNTS!I97 -> 0 | J97: 268798.7 | U97: PLTXR
A98: 397 | B98: Communication Equipment | C98: =CHOOSE(INPUTS!$C$11,E98,SUM(E98:F98),D98,SUM(D98,I98)) -> 31664604.4 | D98: 31664604.4 | E98: =[4]ACCOUNTS!E98 -> 30490053.2 | F98: =[4]ACCOUNTS!F98 -> 1174551.202 | G98: =[4]ACCOUNTS!G98 -> 0 | H98: =[4]ACCOUNTS!H98 -> 0 | I98: =[4]ACCOUNTS!I98 -> 0 | J98: 31664604.4 | U98: OML
A99: 398 | B99: Misc. Equipment | C99: =CHOOSE(INPUTS!$C$11,E99,SUM(E99:F99),D99,SUM(D99,I99)) -> 513709.8 | D99: 513709.8 | E99: =[4]ACCOUNTS!E99 -> 513321.276 | F99: =[4]ACCOUNTS!F99 -> 388.524 | G99: =[4]ACCOUNTS!G99 -> 0 | H99: =[4]ACCOUNTS!H99 -> 0 | I99: =[4]ACCOUNTS!I99 -> 0 | J99: 513709.8 | U99: OML
A100: 399 | B100: Other Intangible Property | C100: =CHOOSE(INPUTS!$C$11,E100,SUM(E100:F100),D100,SUM(D100,I100)) -> 169388.1 | D100: 169388.1 | E100: =[4]ACCOUNTS!E100 -> 7060.2042 | F100: =[4]ACCOUNTS!F100 -> 162327.8958 | G100: =[4]ACCOUNTS!G100 -> 0 | H100: =[4]ACCOUNTS!H100 -> 0 | I100: =[4]ACCOUNTS!I100 -> 0 | J100: 169388.1 | U100: OML
B101: Sub-total | C101: =SUM(C86:C100) -> 186727923.1 | D101: =SUM(D86:D100) -> 186727923.1 | E101: 174762534.6 | F101: 11965388.52 | G101: 0 | H101: =SUM(H86:H100) -> 0 | I101: 0 | J101: 186727923.1
B103: Other Assets
A104: 114 | B104: Plant Acquisition Adjustment | C104: =CHOOSE(INPUTS!$C$11,E104,SUM(E104:F104),D104,SUM(D104,I104)) -> 0 | D104: =SUM(E104:H104) -> 0 | E104: =[4]ACCOUNTS!E104 -> 0 | F104: =[4]ACCOUNTS!F104 -> 0 | G104: =[4]ACCOUNTS!G104 -> 0 | H104: =[4]ACCOUNTS!H104 -> 0 | I104: =[4]ACCOUNTS!I104 -> 0 | J104: =D104+I104 -> 0 | U104: DISTPT
A105: ~ | B105: ~ | C105: =CHOOSE(INPUTS!$C$11,E105,SUM(E105:F105),D105,SUM(D105,I105)) -> 0 | D105: =SUM(E105:H105) -> 0 | E105: =[4]ACCOUNTS!E105 -> 0 | F105: =[4]ACCOUNTS!F105 -> 0 | G105: =[4]ACCOUNTS!G105 -> 0 | H105: =[4]ACCOUNTS!H105 -> 0 | I105: =[4]ACCOUNTS!I105 -> 0 | J105: 0
A106: ~ | B106: ~ | C106: =CHOOSE(INPUTS!$C$11,E106,SUM(E106:F106),D106,SUM(D106,I106)) -> 0 | D106: =SUM(E106:H106) -> 0 | E106: =[4]ACCOUNTS!E106 -> 0 | F106: =[4]ACCOUNTS!F106 -> 0 | G106: =[4]ACCOUNTS!G106 -> 0 | H106: =[4]ACCOUNTS!H106 -> 0 | I106: =[4]ACCOUNTS!I106 -> 0 | J106: 0
B107: Sub-total | C107: =SUM(C104:C106) -> 0 | D107: 0 | E107: 0 | F107: 0 | G107: 0 | H107: =SUM(H104:H106) -> 0 | I107: 0 | J107: 0
B109: TOTAL PLANT-IN-SERVICE | C109: =SUM(C107,C101,C83,C60,C49,C40,C28,C13) -> 4355396430 | D109: 4355396430 | E109: 4105170167 | F109: 191490944 | G109: 58735318.68 | H109: =SUM(H107,H101,H83,H60,H49,H40,H28,H13) -> 0 | I109: 0 | J109: 4355396430
A111: Accumulated Reserve
B113: Intangible Plant
A114: 301 | B114: Organization | C114: =CHOOSE(INPUTS!$C$11,E114,SUM(E114:F114),D114,SUM(D114,I114)) -> 0 | D114: =SUM(E114:H114) -> 0 | E114: =[4]ACCOUNTS!E114 -> 0 | F114: =[4]ACCOUNTS!F114 -> 0 | G114: =[4]ACCOUNTS!G114 -> 0 | H114: =[4]ACCOUNTS!H114 -> 0 | I114: =[4]ACCOUNTS!I114 -> 0 | J114: =D114+I114 -> 0 | U114: PLT
A115: 302 | B115: Franchise and Consents | C115: =CHOOSE(INPUTS!$C$11,E115,SUM(E115:F115),D115,SUM(D115,I115)) -> -231182.5061 | D115: =SUM(E115:H115) -> -231182.5061 | E115: =[4]ACCOUNTS!E115 -> -210038.9007 | F115: =[4]ACCOUNTS!F115 -> -21143.60541 | G115: =[4]ACCOUNTS!G115 -> 0 | H115: =[4]ACCOUNTS!H115 -> 0 | I115: =[4]ACCOUNTS!I115 -> 0 | J115: -231182.5061 | U115: PLT
A116: 303 | B116: Misc. Intangible | C116: =CHOOSE(INPUTS!$C$11,E116,SUM(E116:F116),D116,SUM(D116,I116)) -> -73056708.51 | D116: =SUM(E116:H116) -> -73056708.51 | E116: =[4]ACCOUNTS!E116 -> -47184771.58 | F116: =[4]ACCOUNTS!F116 -> -19346456.77 | G116: =[4]ACCOUNTS!G116 -> -6525480.157 | H116: =[4]ACCOUNTS!H116 -> 0 | I116: =[4]ACCOUNTS!I116 -> 0 | J116: -73056708.51 | U116: OML
B117: Sub-total | C117: =SUM(C114:C116) -> -73287891.02 | D117: -73287891.02 | E117: -47394810.48 | F117: -19367600.38 | G117: -6525480.157 | H117: =SUM(H114:H116) -> 0 | I117: 0 | J117: -73287891.02
B119: Production and Gathering Plant
A120: 304 | B120: Land and Land Rights | C120: =CHOOSE(INPUTS!$C$11,E120,SUM(E120:F120),D120,SUM(D120,I120)) -> 0 | D120: =SUM(E120:H120) -> 0 | E120: =[4]ACCOUNTS!E120 -> 0 | F120: =[4]ACCOUNTS!F120 -> 0 | G120: =[4]ACCOUNTS!G120 -> 0 | H120: =[4]ACCOUNTS!H120 -> 0 | I120: =[4]ACCOUNTS!I120 -> 0 | J120: =D120+I120 -> 0 | U120: PRODPT
A121: 305 | B121: Structures and Improvements | C121: =CHOOSE(INPUTS!$C$11,E121,SUM(E121:F121),D121,SUM(D121,I121)) -> -493000 | D121: -493000 | E121: =[4]ACCOUNTS!E121 -> -492661 | F121: =[4]ACCOUNTS!F121 -> -339 | G121: =[4]ACCOUNTS!G121 -> 0 | H121: =[4]ACCOUNTS!H121 -> 0 | I121: =[4]ACCOUNTS!I121 -> 0 | J121: -493000 | U121: PRODPT
A122: 311 | B122: Liquefied Petroleum Gas Equipment | C122: =CHOOSE(INPUTS!$C$11,E122,SUM(E122:F122),D122,SUM(D122,I122)) -> -5857000 | D122: -5857000 | E122: =[4]ACCOUNTS!E122 -> -5839216 | F122: =[4]ACCOUNTS!F122 -> -17784 | G122: =[4]ACCOUNTS!G122 -> 0 | H122: =[4]ACCOUNTS!H122 -> 0 | I122: =[4]ACCOUNTS!I122 -> 0 | J122: -5857000 | L122: F_PRODU | M122: DEM | N122: PDAYXT
A123: 320 | B123: Other Equipment | C123: =CHOOSE(INPUTS!$C$11,E123,SUM(E123:F123),D123,SUM(D123,I123)) -> -1000 | D123: -1000 | E123: =[4]ACCOUNTS!E123 -> -902 | F123: =[4]ACCOUNTS!F123 -> -98 | G123: =[4]ACCOUNTS!G123 -> 0 | H123: =[4]ACCOUNTS!H123 -> 0 | I123: =[4]ACCOUNTS!I123 -> 0 | J123: -1000 | L123: F_PRODU | M123: DEM | N123: PDAYXT
A124: ~ | B124: ~ | C124: =CHOOSE(INPUTS!$C$11,E124,SUM(E124:F124),D124,SUM(D124,I124)) -> 0 | D124: 0 | E124: =[4]ACCOUNTS!E124 -> 0 | F124: =[4]ACCOUNTS!F124 -> 0 | G124: =[4]ACCOUNTS!G124 -> 0 | H124: =[4]ACCOUNTS!H124 -> 0 | I124: =[4]ACCOUNTS!I124 -> 0 | J124: 0
A125: ~ | B125: ~ | C125: =CHOOSE(INPUTS!$C$11,E125,SUM(E125:F125),D125,SUM(D125,I125)) -> 0 | D125: 0 | E125: =[4]ACCOUNTS!E125 -> 0 | F125: =[4]ACCOUNTS!F125 -> 0 | G125: =[4]ACCOUNTS!G125 -> 0 | H125: =[4]ACCOUNTS!H125 -> 0 | I125: =[4]ACCOUNTS!I125 -> 0 | J125: 0
A126: ~ | B126: ~ | C126: =CHOOSE(INPUTS!$C$11,E126,SUM(E126:F126),D126,SUM(D126,I126)) -> 0 | D126: 0 | E126: =[4]ACCOUNTS!E126 -> 0 | F126: =[4]ACCOUNTS!F126 -> 0 | G126: =[4]ACCOUNTS!G126 -> 0 | H126: =[4]ACCOUNTS!H126 -> 0 | I126: =[4]ACCOUNTS!I126 -> 0 | J126: 0
A127: ~ | B127: ~ | C127: =CHOOSE(INPUTS!$C$11,E127,SUM(E127:F127),D127,SUM(D127,I127)) -> 0 | D127: 0 | E127: =[4]ACCOUNTS!E127 -> 0 | F127: =[4]ACCOUNTS!F127 -> 0 | G127: =[4]ACCOUNTS!G127 -> 0 | H127: =[4]ACCOUNTS!H127 -> 0 | I127: =[4]ACCOUNTS!I127 -> 0 | J127: 0
A128: ~ | B128: ~ | C128: =CHOOSE(INPUTS!$C$11,E128,SUM(E128:F128),D128,SUM(D128,I128)) -> 0 | D128: 0 | E128: =[4]ACCOUNTS!E128 -> 0 | F128: =[4]ACCOUNTS!F128 -> 0 | G128: =[4]ACCOUNTS!G128 -> 0 | H128: =[4]ACCOUNTS!H128 -> 0 | I128: =[4]ACCOUNTS!I128 -> 0 | J128: 0
A129: ~ | B129: ~ | C129: =CHOOSE(INPUTS!$C$11,E129,SUM(E129:F129),D129,SUM(D129,I129)) -> 0 | D129: 0 | E129: =[4]ACCOUNTS!E129 -> 0 | F129: =[4]ACCOUNTS!F129 -> 0 | G129: =[4]ACCOUNTS!G129 -> 0 | H129: =[4]ACCOUNTS!H129 -> 0 | I129: =[4]ACCOUNTS!I129 -> 0 | J129: 0
A130: ~ | B130: ~ | C130: =CHOOSE(INPUTS!$C$11,E130,SUM(E130:F130),D130,SUM(D130,I130)) -> 0 | D130: 0 | E130: =[4]ACCOUNTS!E130 -> 0 | F130: =[4]ACCOUNTS!F130 -> 0 | G130: =[4]ACCOUNTS!G130 -> 0 | H130: =[4]ACCOUNTS!H130 -> 0 | I130: =[4]ACCOUNTS!I130 -> 0 | J130: 0
A131: ~ | B131: ~ | C131: =CHOOSE(INPUTS!$C$11,E131,SUM(E131:F131),D131,SUM(D131,I131)) -> 0 | D131: 0 | E131: =[4]ACCOUNTS!E131 -> 0 | F131: =[4]ACCOUNTS!F131 -> 0 | G131: =[4]ACCOUNTS!G131 -> 0 | H131: =[4]ACCOUNTS!H131 -> 0 | I131: =[4]ACCOUNTS!I131 -> 0 | J131: 0
B132: Sub-total | C132: =SUM(C120:C131) -> -6351000 | D132: -6351000 | E132: =SUM(E120:E131) -> -6332779 | F132: -18221 | G132: 0 | H132: =SUM(H120:H131) -> 0 | I132: 0 | J132: -6351000
B134: Natural Gas Underground Storage
B135: JP Storage Balancing - DIR | C135: =CHOOSE(INPUTS!$C$11,E135,SUM(E135:F135),D135,SUM(D135,I135)) -> -4550491.121 | D135: =SUM(E135:H135) -> -4550491.121 | E135: =[4]ACCOUNTS!E135 -> -4426377.06 | F135: =[4]ACCOUNTS!F135 -> -124114.0614 | G135: =[4]ACCOUNTS!G135 -> 0 | H135: =[4]ACCOUNTS!H135 -> 0 | I135: =[4]ACCOUNTS!I135 -> 0 | J135: =D135+I135 -> -4550491.121 | L135: F_STORG | M135: COM | O135: COM_1
A136: 350 | B136: Land and Land Rights | C136: =CHOOSE(INPUTS!$C$11,E136,SUM(E136:F136),D136,SUM(D136,I136)) -> -4740 | D136: -4740 | E136: =[4]ACCOUNTS!E136 -> -4522.75 | F136: =[4]ACCOUNTS!F136 -> -217.25 | G136: =[4]ACCOUNTS!G136 -> 0 | H136: =[4]ACCOUNTS!H136 -> 0 | I136: =[4]ACCOUNTS!I136 -> 0 | J136: -4740 | L136: F_STORG | M136: DEM | N136: SEAS3_DEM
A137: 351 | B137: Structures and Improvements | C137: =CHOOSE(INPUTS!$C$11,E137,SUM(E137:F137),D137,SUM(D137,I137)) -> -377674.9524 | D137: -377674.9524 | E137: =[4]ACCOUNTS!E137 -> -367011.09 | F137: =[4]ACCOUNTS!F137 -> -10663.8624 | G137: =[4]ACCOUNTS!G137 -> 0 | H137: =[4]ACCOUNTS!H137 -> 0 | I137: =[4]ACCOUNTS!I137 -> 0 | J137: -377674.9524 | L137: F_STORG | M137: DEM | N137: SEAS3_DEM
A138: 352 | B138: Wells | C138: =CHOOSE(INPUTS!$C$11,E138,SUM(E138:F138),D138,SUM(D138,I138)) -> -8050584.918 | D138: -8050584.918 | E138: =[4]ACCOUNTS!E138 -> -7902875.6 | F138: =[4]ACCOUNTS!F138 -> -147709.3178 | G138: =[4]ACCOUNTS!G138 -> 0 | H138: =[4]ACCOUNTS!H138 -> 0 | I138: =[4]ACCOUNTS!I138 -> 0 | J138: -8050584.918 | L138: F_STORG | M138: DEM | N138: SEAS3_DEM
A139: 353 | B139: Lines | C139: =CHOOSE(INPUTS!$C$11,E139,SUM(E139:F139),D139,SUM(D139,I139)) -> -1452021.177 | D139: -1452021.177 | E139: =[4]ACCOUNTS!E139 -> -1424329.71 | F139: =[4]ACCOUNTS!F139 -> -27691.4671 | G139: =[4]ACCOUNTS!G139 -> 0 | H139: =[4]ACCOUNTS!H139 -> 0 | I139: =[4]ACCOUNTS!I139 -> 0 | J139: -1452021.177 | L139: F_STORG | M139: DEM | N139: SEAS3_DEM
A140: 354 | B140: Compressor Equipment | C140: =CHOOSE(INPUTS!$C$11,E140,SUM(E140:F140),D140,SUM(D140,I140)) -> -6012392.052 | D140: -6012392.052 | E140: =[4]ACCOUNTS!E140 -> -5781020.13 | F140: =[4]ACCOUNTS!F140 -> -231371.9215 | G140: =[4]ACCOUNTS!G140 -> 0 | H140: =[4]ACCOUNTS!H140 -> 0 | I140: =[4]ACCOUNTS!I140 -> 0 | J140: -6012392.052 | L140: F_STORG | M140: DEM | N140: SEAS3_DEM
A141: 355 | B141: Measuring and Regulating Equipment | C141: =CHOOSE(INPUTS!$C$11,E141,SUM(E141:F141),D141,SUM(D141,I141)) -> -233049.9131 | D141: -233049.9131 | E141: =[4]ACCOUNTS!E141 -> -223395.41 | F141: =[4]ACCOUNTS!F141 -> -9654.5031 | G141: =[4]ACCOUNTS!G141 -> 0 | H141: =[4]ACCOUNTS!H141 -> 0 | I141: =[4]ACCOUNTS!I141 -> 0 | J141: -233049.9131 | L141: F_STORG | M141: DEM | N141: SEAS3_DEM
A142: 356 | B142: Purification Equipment | C142: =CHOOSE(INPUTS!$C$11,E142,SUM(E142:F142),D142,SUM(D142,I142)) -> -948062.5127 | D142: -948062.5127 | E142: =[4]ACCOUNTS!E142 -> -916433.18 | F142: =[4]ACCOUNTS!F142 -> -31629.3327 | G142: =[4]ACCOUNTS!G142 -> 0 | H142: =[4]ACCOUNTS!H142 -> 0 | I142: =[4]ACCOUNTS!I142 -> 0 | J142: -948062.5127 | L142: F_STORG | M142: DEM | N142: SEAS3_DEM
A143: 357 | B143: Other Equipment | C143: =CHOOSE(INPUTS!$C$11,E143,SUM(E143:F143),D143,SUM(D143,I143)) -> -39988.694 | D143: -39988.694 | E143: =[4]ACCOUNTS!E143 -> -32021.07 | F143: =[4]ACCOUNTS!F143 -> -7967.624 | G143: =[4]ACCOUNTS!G143 -> 0 | H143: =[4]ACCOUNTS!H143 -> 0 | I143: =[4]ACCOUNTS!I143 -> 0 | J143: -39988.694 | L143: F_STORG | M143: DEM | N143: SEAS3_DEM
B144: Sub-total | C144: =SUM(C135:C143) -> -21669005.34 | D144: =SUM(D135:D143) -> -21669005.34 | E144: -21077986 | F144: -591019.34 | G144: 0 | H144: =SUM(H135:H143) -> 0 | I144: 0 | J144: -21669005.34
B146: Natural Gas Local Storage
A147: 360 | B147: Land & Land Rights | C147: =CHOOSE(INPUTS!$C$11,E147,SUM(E147:F147),D147,SUM(D147,I147)) -> 0 | D147: =SUM(E147:H147) -> 0 | E147: =[4]ACCOUNTS!E147 -> 0 | F147: =[4]ACCOUNTS!F147 -> 0 | G147: =[4]ACCOUNTS!G147 -> 0 | H147: =[4]ACCOUNTS!H147 -> 0 | I147: =[4]ACCOUNTS!I147 -> 0 | J147: =D147+I147 -> 0 | L147: F_STORG | M147: DEM | N147: SEAS3_DEM
A148: 361 | B148: Structures & improvement | C148: =CHOOSE(INPUTS!$C$11,E148,SUM(E148:F148),D148,SUM(D148,I148)) -> -1723000.05 | D148: -1723000.05 | E148: =[4]ACCOUNTS!E148 -> -1670827 | F148: =[4]ACCOUNTS!F148 -> -52173.05 | G148: =[4]ACCOUNTS!G148 -> 0 | H148: =[4]ACCOUNTS!H148 -> 0 | I148: =[4]ACCOUNTS!I148 -> 0 | J148: -1723000.05 | L148: F_STORG | M148: DEM | N148: SEAS3_DEM
A149: 362 | B149: Gas Holders | C149: =CHOOSE(INPUTS!$C$11,E149,SUM(E149:F149),D149,SUM(D149,I149)) -> -1611000.02 | D149: -1611000.02 | E149: =[4]ACCOUNTS!E149 -> -1546608 | F149: =[4]ACCOUNTS!F149 -> -64392.02 | G149: =[4]ACCOUNTS!G149 -> 0 | H149: =[4]ACCOUNTS!H149 -> 0 | I149: =[4]ACCOUNTS!I149 -> 0 | J149: -1611000.02 | L149: F_STORG | M149: DEM | N149: SEAS3_DEM
A150: 363 | B150: Purification Equipment | C150: =CHOOSE(INPUTS!$C$11,E150,SUM(E150:F150),D150,SUM(D150,I150)) -> -1987000.06 | D150: -1987000.06 | E150: =[4]ACCOUNTS!E150 -> -1934946 | F150: =[4]ACCOUNTS!F150 -> -52054.06 | G150: =[4]ACCOUNTS!G150 -> 0 | H150: =[4]ACCOUNTS!H150 -> 0 | I150: =[4]ACCOUNTS!I150 -> 0 | J150: -1987000.06 | L150: F_STORG | M150: DEM | N150: SEAS3_DEM
A151: 364 | B151: Terminating & Processing | C151: =CHOOSE(INPUTS!$C$11,E151,SUM(E151:F151),D151,SUM(D151,I151)) -> -645010 | D151: -645010 | E151: =[4]ACCOUNTS!E151 -> -633939 | F151: =[4]ACCOUNTS!F151 -> -11071 | G151: =[4]ACCOUNTS!G151 -> 0 | H151: =[4]ACCOUNTS!H151 -> 0 | I151: =[4]ACCOUNTS!I151 -> 0 | J151: -645010 | L151: F_STORG | M151: DEM | N151: SEAS3_DEM
A152: ~ | B152: ~ | C152: =CHOOSE(INPUTS!$C$11,E152,SUM(E152:F152),D152,SUM(D152,I152)) -> 0 | D152: 0 | E152: =[4]ACCOUNTS!E152 -> 0 | F152: =[4]ACCOUNTS!F152 -> 0 | G152: =[4]ACCOUNTS!G152 -> 0 | H152: =[4]ACCOUNTS!H152 -> 0 | I152: =[4]ACCOUNTS!I152 -> 0 | J152: 0
A153: ~ | B153: ~ | C153: =CHOOSE(INPUTS!$C$11,E153,SUM(E153:F153),D153,SUM(D153,I153)) -> 0 | D153: 0 | E153: =[4]ACCOUNTS!E153 -> 0 | F153: =[4]ACCOUNTS!F153 -> 0 | G153: =[4]ACCOUNTS!G153 -> 0 | H153: =[4]ACCOUNTS!H153 -> 0 | I153: =[4]ACCOUNTS!I153 -> 0 | J153: 0
B154: Sub-total | C154: =SUM(C147:C153) -> -5966010.13 | D154: =SUM(D147:D153) -> -5966010.13 | E154: -5786320 | F154: -179690.13 | G154: 0 | H154: =SUM(H147:H153) -> 0 | I154: 0 | J154: -5966010.13
B156: Transmission Plant
A157: 365 | B157: Land and Land Rights | C157: =CHOOSE(INPUTS!$C$11,E157,SUM(E157:F157),D157,SUM(D157,I157)) -> 0 | D157: =SUM(E157:H157) -> 0 | E157: =[4]ACCOUNTS!E157 -> 0 | F157: =[4]ACCOUNTS!F157 -> 0 | G157: =[4]ACCOUNTS!G157 -> 0 | H157: =[4]ACCOUNTS!H157 -> 0 | I157: =[4]ACCOUNTS!I157 -> 0 | J157: =D157+I157 -> 0
A158: 366 | B158: Structures and Improvements | C158: =CHOOSE(INPUTS!$C$11,E158,SUM(E158:F158),D158,SUM(D158,I158)) -> 0 | D158: 0 | E158: =[4]ACCOUNTS!E158 -> 0 | F158: =[4]ACCOUNTS!F158 -> 0 | G158: =[4]ACCOUNTS!G158 -> 0 | H158: =[4]ACCOUNTS!H158 -> 0 | I158: =[4]ACCOUNTS!I158 -> 0 | J158: 0
A159: 367 | B159: Mains | C159: =CHOOSE(INPUTS!$C$11,E159,SUM(E159:F159),D159,SUM(D159,I159)) -> 0 | D159: 0 | E159: =[4]ACCOUNTS!E159 -> 0 | F159: =[4]ACCOUNTS!F159 -> 0 | G159: =[4]ACCOUNTS!G159 -> 0 | H159: =[4]ACCOUNTS!H159 -> 0 | I159: =[4]ACCOUNTS!I159 -> 0 | J159: 0
A160: 369 | B160: M&R Station Equipment | C160: =CHOOSE(INPUTS!$C$11,E160,SUM(E160:F160),D160,SUM(D160,I160)) -> 0 | D160: 0 | E160: =[4]ACCOUNTS!E160 -> 0 | F160: =[4]ACCOUNTS!F160 -> 0 | G160: =[4]ACCOUNTS!G160 -> 0 | H160: =[4]ACCOUNTS!H160 -> 0 | I160: =[4]ACCOUNTS!I160 -> 0 | J160: 0
A161: 372 | B161: Easements | C161: =CHOOSE(INPUTS!$C$11,E161,SUM(E161:F161),D161,SUM(D161,I161)) -> 0 | D161: 0 | E161: =[4]ACCOUNTS!E161 -> 0 | F161: =[4]ACCOUNTS!F161 -> 0 | G161: =[4]ACCOUNTS!G161 -> 0 | H161: =[4]ACCOUNTS!H161 -> 0 | I161: =[4]ACCOUNTS!I161 -> 0 | J161: 0
A162: ~ | B162: ~ | C162: =CHOOSE(INPUTS!$C$11,E162,SUM(E162:F162),D162,SUM(D162,I162)) -> 0 | D162: 0 | E162: =[4]ACCOUNTS!E162 -> 0 | F162: =[4]ACCOUNTS!F162 -> 0 | G162: =[4]ACCOUNTS!G162 -> 0 | H162: =[4]ACCOUNTS!H162 -> 0 | I162: =[4]ACCOUNTS!I162 -> 0 | J162: 0
A163: ~ | B163: ~ | C163: =CHOOSE(INPUTS!$C$11,E163,SUM(E163:F163),D163,SUM(D163,I163)) -> 0 | D163: 0 | E163: =[4]ACCOUNTS!E163 -> 0 | F163: =[4]ACCOUNTS!F163 -> 0 | G163: =[4]ACCOUNTS!G163 -> 0 | H163: =[4]ACCOUNTS!H163 -> 0 | I163: =[4]ACCOUNTS!I163 -> 0 | J163: 0
A164: ~ | B164: ~ | C164: =CHOOSE(INPUTS!$C$11,E164,SUM(E164:F164),D164,SUM(D164,I164)) -> 0 | D164: 0 | E164: =[4]ACCOUNTS!E164 -> 0 | F164: =[4]ACCOUNTS!F164 -> 0 | G164: =[4]ACCOUNTS!G164 -> 0 | H164: =[4]ACCOUNTS!H164 -> 0 | I164: =[4]ACCOUNTS!I164 -> 0 | J164: 0
B165: Sub-total | C165: =SUM(C157:C164) -> 0 | D165: 0 | E165: 0 | F165: 0 | G165: 0 | H165: =SUM(H157:H164) -> 0 | I165: 0 | J165: 0
B167: Distribution Plant
A168: 373 | B168: Easements | C168: =CHOOSE(INPUTS!$C$11,E168,SUM(E168:F168),D168,SUM(D168,I168)) -> 0 | D168: =SUM(E168:H168) -> 0 | E168: =[4]ACCOUNTS!E168 -> 0 | F168: =[4]ACCOUNTS!F168 -> 0 | G168: =[4]ACCOUNTS!G168 -> 0 | H168: =[4]ACCOUNTS!H168 -> 0 | I168: =[4]ACCOUNTS!I168 -> 0 | J168: =D168+I168 -> 0 | U168: DISTPT
A169: 374 | B169: Land and Land Rights | C169: =CHOOSE(INPUTS!$C$11,E169,SUM(E169:F169),D169,SUM(D169,I169)) -> -2458000 | D169: -2458000 | E169: =[4]ACCOUNTS!E169 -> -2353222 | F169: =[4]ACCOUNTS!F169 -> -104778 | G169: =[4]ACCOUNTS!G169 -> 0 | H169: =[4]ACCOUNTS!H169 -> 0 | I169: =[4]ACCOUNTS!I169 -> 0 | J169: -2458000 | U169: DISTPT
A170: 375 | B170: Structures and Improvements | C170: =CHOOSE(INPUTS!$C$11,E170,SUM(E170:F170),D170,SUM(D170,I170)) -> -13216353.24 | D170: -13216353.24 | E170: =[4]ACCOUNTS!E170 -> -7424022 | F170: =[4]ACCOUNTS!F170 -> 154213.68 | G170: =[4]ACCOUNTS!G170 -> -5946544.916 | H170: =[4]ACCOUNTS!H170 -> 0 | I170: =[4]ACCOUNTS!I170 -> 0 | J170: -13216353.24 | U170: DISTPT
A171: 376 | B171: Mains | C171: =CHOOSE(INPUTS!$C$11,E171,SUM(E171:F171),D171,SUM(D171,I171)) -> -233451005.6 | D171: -233451005.6 | E171: =[4]ACCOUNTS!E171 -> -226678998.5 | F171: =[4]ACCOUNTS!F171 -> -6772007.134 | G171: =[4]ACCOUNTS!G171 -> 0 | H171: =[4]ACCOUNTS!H171 -> 0 | I171: =[4]ACCOUNTS!I171 -> 0 | J171: -233451005.6 | L171: F_DISTR | M171: COM | O171: A_MAINS
A172: 376 | B172: Mains - Peak | C172: =CHOOSE(INPUTS!$C$11,E172,SUM(E172:F172),D172,SUM(D172,I172)) -> -491187921.2 | D172: -491187921.2 | E172: =[4]ACCOUNTS!E172 -> -476939414.9 | F172: =[4]ACCOUNTS!F172 -> -14248506.23 | G172: =[4]ACCOUNTS!G172 -> 0 | H172: =[4]ACCOUNTS!H172 -> 0 | I172: =[4]ACCOUNTS!I172 -> 0 | J172: -491187921.2 | L172: F_DISTR | M172: DEM | N172: P_MAINS
A173: 376 | B173: Mains - LNG Related | C173: =CHOOSE(INPUTS!$C$11,E173,SUM(E173:F173),D173,SUM(D173,I173)) -> -1097298.61 | D173: -1097298.61 | E173: =[4]ACCOUNTS!E173 -> -1097298.61 | F173: =[4]ACCOUNTS!F173 -> 0 | G173: =[4]ACCOUNTS!G173 -> 0 | H173: =[4]ACCOUNTS!H173 -> 0 | I173: =[4]ACCOUNTS!I173 -> 0 | J173: -1097298.61 | L173: F_STORG | M173: DIRS | Q173: LNGMAINS
A174: 378 | B174: Meas. & Reg. Station Equip.- Gen. | C174: =CHOOSE(INPUTS!$C$11,E174,SUM(E174:F174),D174,SUM(D174,I174)) -> -13395716.74 | D174: -13395716.74 | E174: =[4]ACCOUNTS!E174 -> -12563520.29 | F174: =[4]ACCOUNTS!F174 -> -832196.4457 | G174: =[4]ACCOUNTS!G174 -> 0 | H174: =[4]ACCOUNTS!H174 -> 0 | I174: =[4]ACCOUNTS!I174 -> 0 | J174: -13395716.74 | L174: F_DISTR | M174: COM | O174: COM_1
A175: 378 | B175: Meas. & Reg. Station Equip.- Peak | C175: =CHOOSE(INPUTS!$C$11,E175,SUM(E175:F175),D175,SUM(D175,I175)) -> -28184990 | D175: -28184990 | E175: =[4]ACCOUNTS!E175 -> -26434023.71 | F175: =[4]ACCOUNTS!F175 -> -1750966.294 | G175: =[4]ACCOUNTS!G175 -> 0 | H175: =[4]ACCOUNTS!H175 -> 0 | I175: =[4]ACCOUNTS!I175 -> 0 | J175: -28184990 | L175: F_DISTR | M175: DEM | N175: PDAY
A176: 380 | B176: Services | C176: =CHOOSE(INPUTS!$C$11,E176,SUM(E176:F176),D176,SUM(D176,I176)) -> -569171319.1 | D176: -569171319.1 | E176: =[4]ACCOUNTS!E176 -> -554927801.4 | F176: =[4]ACCOUNTS!F176 -> -14243517.65 | G176: =[4]ACCOUNTS!G176 -> 0 | H176: =[4]ACCOUNTS!H176 -> 0 | I176: =[4]ACCOUNTS!I176 -> 0 | J176: -569171319.1 | L176: F_DISTR | M176: CUS | P176: SERV
A177: 380 | B177: Services - DIR | C177: =CHOOSE(INPUTS!$C$11,E177,SUM(E177:F177),D177,SUM(D177,I177)) -> -5436247.711 | D177: -5436247.711 | E177: =[4]ACCOUNTS!E177 -> -5300205.56 | F177: =[4]ACCOUNTS!F177 -> -136042.1504 | G177: =[4]ACCOUNTS!G177 -> 0 | H177: =[4]ACCOUNTS!H177 -> 0 | I177: =[4]ACCOUNTS!I177 -> 0 | J177: -5436247.711 | L177: F_DISTR | M177: CUS | P177: DIR_380
A178: 381 | B178: Meters | C178: =CHOOSE(INPUTS!$C$11,E178,SUM(E178:F178),D178,SUM(D178,I178)) -> -26013626.03 | D178: -26013626.03 | E178: =[4]ACCOUNTS!E178 -> -22399392 | F178: =[4]ACCOUNTS!F178 -> -1581052.76 | G178: =[4]ACCOUNTS!G178 -> -2033181.266 | H178: =[4]ACCOUNTS!H178 -> 0 | I178: =[4]ACCOUNTS!I178 -> 0 | J178: -26013626.03 | L178: F_DISTR | M178: CUS | P178: MTRS_CUS
A179: 382 | B179: Meter Installations | C179: =CHOOSE(INPUTS!$C$11,E179,SUM(E179:F179),D179,SUM(D179,I179)) -> -53312366.3 | D179: -53312366.3 | E179: =[4]ACCOUNTS!E179 -> -52102356 | F179: =[4]ACCOUNTS!F179 -> -1210010.3 | G179: =[4]ACCOUNTS!G179 -> 0 | H179: =[4]ACCOUNTS!H179 -> 0 | I179: =[4]ACCOUNTS!I179 -> 0 | J179: -53312366.3 | L179: F_DISTR | M179: CUS | P179: MTRS_INST
A180: 383 | B180: House Regulators | C180: =CHOOSE(INPUTS!$C$11,E180,SUM(E180:F180),D180,SUM(D180,I180)) -> -7987443.66 | D180: -7987443.66 | E180: =[4]ACCOUNTS!E180 -> -8050339 | F180: =[4]ACCOUNTS!F180 -> 62895.34 | G180: =[4]ACCOUNTS!G180 -> 0 | H180: =[4]ACCOUNTS!H180 -> 0 | I180: =[4]ACCOUNTS!I180 -> 0 | J180: -7987443.66 | L180: F_DISTR | M180: CUS | P180: MTRS_CUS
A181: 384 | B181: House Regulators Installations | C181: =CHOOSE(INPUTS!$C$11,E181,SUM(E181:F181),D181,SUM(D181,I181)) -> -29550643.81 | D181: -29550643.81 | E181: =[4]ACCOUNTS!E181 -> -28830681 | F181: =[4]ACCOUNTS!F181 -> -719962.81 | G181: =[4]ACCOUNTS!G181 -> 0 | H181: =[4]ACCOUNTS!H181 -> 0 | I181: =[4]ACCOUNTS!I181 -> 0 | J181: -29550643.81 | L181: F_DISTR | M181: CUS | P181: MTRS_CUS
A182: 385 | B182: Indust. Meas. & Reg. Station Equip. | C182: =CHOOSE(INPUTS!$C$11,E182,SUM(E182:F182),D182,SUM(D182,I182)) -> -3505570.39 | D182: -3505570.39 | E182: =[4]ACCOUNTS!E182 -> -2066624 | F182: =[4]ACCOUNTS!F182 -> -1438946.39 | G182: =[4]ACCOUNTS!G182 -> 0 | H182: =[4]ACCOUNTS!H182 -> 0 | I182: =[4]ACCOUNTS!I182 -> 0 | J182: -3505570.39 | L182: F_DISTR | M182: CUS | P182: MTRS_385
A183: 386 | B183: Rental Property on Customers Premise | C183: =CHOOSE(INPUTS!$C$11,E183,SUM(E183:F183),D183,SUM(D183,I183)) -> -10749142.92 | D183: -10749142.92 | E183: =[4]ACCOUNTS!E183 -> -9098446 | F183: =[4]ACCOUNTS!F183 -> -1650696.92 | G183: =[4]ACCOUNTS!G183 -> 0 | H183: =[4]ACCOUNTS!H183 -> 0 | I183: =[4]ACCOUNTS!I183 -> 0 | J183: -10749142.92 | L183: F_DISTR | M183: CUS | P183: DIR_386
A184: 387 | B184: Other Equipment | C184: =CHOOSE(INPUTS!$C$11,E184,SUM(E184:F184),D184,SUM(D184,I184)) -> -252063.11 | D184: -252063.11 | E184: =[4]ACCOUNTS!E184 -> 16946 | F184: =[4]ACCOUNTS!F184 -> -269009.11 | G184: =[4]ACCOUNTS!G184 -> 0 | H184: =[4]ACCOUNTS!H184 -> 0 | I184: =[4]ACCOUNTS!I184 -> 0 | J184: -252063.11 | U184: DISTPT
A185: 388 | B185: ARO | C185: =CHOOSE(INPUTS!$C$11,E185,SUM(E185:F185),D185,SUM(D185,I185)) -> -937883 | D185: -937883 | E185: =[4]ACCOUNTS!E185 -> -858119 | F185: =[4]ACCOUNTS!F185 -> -79764 | G185: =[4]ACCOUNTS!G185 -> 0 | H185: =[4]ACCOUNTS!H185 -> 0 | I185: =[4]ACCOUNTS!I185 -> 0 | J185: -937883 | U185: DISTPT
A186: ~ | B186: ~ | C186: =CHOOSE(INPUTS!$C$11,E186,SUM(E186:F186),D186,SUM(D186,I186)) -> 0 | D186: 0 | E186: =[4]ACCOUNTS!E186 -> 0 | F186: =[4]ACCOUNTS!F186 -> 0 | G186: =[4]ACCOUNTS!G186 -> 0 | H186: =[4]ACCOUNTS!H186 -> 0 | I186: =[4]ACCOUNTS!I186 -> 0 | J186: 0
A187: ~ | B187: ~ | C187: =CHOOSE(INPUTS!$C$11,E187,SUM(E187:F187),D187,SUM(D187,I187)) -> 0 | D187: 0 | E187: =[4]ACCOUNTS!E187 -> 0 | F187: =[4]ACCOUNTS!F187 -> 0 | G187: =[4]ACCOUNTS!G187 -> 0 | H187: =[4]ACCOUNTS!H187 -> 0 | I187: =[4]ACCOUNTS!I187 -> 0 | J187: 0
B188: Sub-total | C188: =SUM(C168:C187) -> -1489907591 | D188: -1489907591 | E188: =SUM(E168:E187) -> -1437107518 | F188: -44820347.17 | G188: =SUM(G168:G187) -> -7979726.182 | H188: =SUM(H168:H187) -> 0 | I188: 0 | J188: -1489907591
B190: General Plant
A191: 389 | B191: Land and Land Rights | C191: =CHOOSE(INPUTS!$C$11,E191,SUM(E191:F191),D191,SUM(D191,I191)) -> -747201 | D191: =SUM(E191:H191) -> -747201 | E191: =[4]ACCOUNTS!E191 -> -707949.6186 | F191: =[4]ACCOUNTS!F191 -> -39251.3814 | G191: =[4]ACCOUNTS!G191 -> 0 | H191: =[4]ACCOUNTS!H191 -> 0 | I191: =[4]ACCOUNTS!I191 -> 0 | J191: =D191+I191 -> -747201 | U191: PLTXR
A192: 390 | B192: Structures and Improvements | C192: =CHOOSE(INPUTS!$C$11,E192,SUM(E192:F192),D192,SUM(D192,I192)) -> -16882131.28 | D192: -16882131.28 | E192: =[4]ACCOUNTS!E192 -> -15756149.77 | F192: =[4]ACCOUNTS!F192 -> -1125981.511 | G192: =[4]ACCOUNTS!G192 -> 0 | H192: =[4]ACCOUNTS!H192 -> 0 | I192: =[4]ACCOUNTS!I192 -> 0 | J192: -16882131.28 | U192: PLTXR
A193: 391 | B193: Office Furniture and Equipment | C193: =CHOOSE(INPUTS!$C$11,E193,SUM(E193:F193),D193,SUM(D193,I193)) -> -15029905.51 | D193: -15029905.51 | E193: =[4]ACCOUNTS!E193 -> -12401693.64 | F193: =[4]ACCOUNTS!F193 -> -2628211.874 | G193: =[4]ACCOUNTS!G193 -> 0 | H193: =[4]ACCOUNTS!H193 -> 0 | I193: =[4]ACCOUNTS!I193 -> 0 | J193: -15029905.51 | U193: OML
A194: 392 | B194: Transportation Equipment | C194: =CHOOSE(INPUTS!$C$11,E194,SUM(E194:F194),D194,SUM(D194,I194)) -> -6140468.869 | D194: -6140468.869 | E194: =[4]ACCOUNTS!E194 -> -6223927.404 | F194: =[4]ACCOUNTS!F194 -> 83458.53498 | G194: =[4]ACCOUNTS!G194 -> 0 | H194: =[4]ACCOUNTS!H194 -> 0 | I194: =[4]ACCOUNTS!I194 -> 0 | J194: -6140468.869 | U194: OML
A195: 390.1 | B195: Leaseholds | C195: =CHOOSE(INPUTS!$C$11,E195,SUM(E195:F195),D195,SUM(D195,I195)) -> -10397228.86 | D195: -10397228.86 | E195: =[4]ACCOUNTS!E195 -> -11797624.55 | F195: =[4]ACCOUNTS!F195 -> 1400395.685 | G195: =[4]ACCOUNTS!G195 -> 0 | H195: =[4]ACCOUNTS!H195 -> 0 | I195: =[4]ACCOUNTS!I195 -> 0 | J195: -10397228.86 | U195: PLTXR
A196: ~ | B196: ~ | C196: =CHOOSE(INPUTS!$C$11,E196,SUM(E196:F196),D196,SUM(D196,I196)) -> 0 | D196: 0 | E196: =[4]ACCOUNTS!E196 -> 0 | F196: =[4]ACCOUNTS!F196 -> 0 | G196: =[4]ACCOUNTS!G196 -> 0 | H196: =[4]ACCOUNTS!H196 -> 0 | I196: =[4]ACCOUNTS!I196 -> 0 | J196: 0
A197: 393 | B197: Stores Equipment | C197: =CHOOSE(INPUTS!$C$11,E197,SUM(E197:F197),D197,SUM(D197,I197)) -> 602.187272 | D197: 602.187272 | E197: =[4]ACCOUNTS!E197 -> -971.8311 | F197: =[4]ACCOUNTS!F197 -> 1574.018372 | G197: =[4]ACCOUNTS!G197 -> 0 | H197: =[4]ACCOUNTS!H197 -> 0 | I197: =[4]ACCOUNTS!I197 -> 0 | J197: 602.187272 | U197: PLTXR
A198: 394 | B198: Tools, Shop, and Garage Equipment | C198: =CHOOSE(INPUTS!$C$11,E198,SUM(E198:F198),D198,SUM(D198,I198)) -> -1952215.762 | D198: -1952215.762 | E198: =[4]ACCOUNTS!E198 -> -1812440.151 | F198: =[4]ACCOUNTS!F198 -> -139775.6104 | G198: =[4]ACCOUNTS!G198 -> 0 | H198: =[4]ACCOUNTS!H198 -> 0 | I198: =[4]ACCOUNTS!I198 -> 0 | J198: -1952215.762 | U198: OML
A199: ~ | B199: ~ | C199: =CHOOSE(INPUTS!$C$11,E199,SUM(E199:F199),D199,SUM(D199,I199)) -> 0 | D199: 0 | E199: =[4]ACCOUNTS!E199 -> 0 | F199: =[4]ACCOUNTS!F199 -> 0 | G199: =[4]ACCOUNTS!G199 -> 0 | H199: =[4]ACCOUNTS!H199 -> 0 | I199: =[4]ACCOUNTS!I199 -> 0 | J199: 0
A200: ~ | B200: ~ | C200: =CHOOSE(INPUTS!$C$11,E200,SUM(E200:F200),D200,SUM(D200,I200)) -> 0 | D200: 0 | E200: =[4]ACCOUNTS!E200 -> 0 | F200: =[4]ACCOUNTS!F200 -> 0 | G200: =[4]ACCOUNTS!G200 -> 0 | H200: =[4]ACCOUNTS!H200 -> 0 | I200: =[4]ACCOUNTS!I200 -> 0 | J200: 0
A201: 395 | B201: Laboratory Equipment | C201: =CHOOSE(INPUTS!$C$11,E201,SUM(E201:F201),D201,SUM(D201,I201)) -> -1142247.75 | D201: -1142247.75 | E201: =[4]ACCOUNTS!E201 -> -1332075 | F201: =[4]ACCOUNTS!F201 -> 189827.25 | G201: =[4]ACCOUNTS!G201 -> 0 | H201: =[4]ACCOUNTS!H201 -> 0 | I201: =[4]ACCOUNTS!I201 -> 0 | J201: -1142247.75 | U201: PLTXR
A202: 396 | B202: Power Operated Equipment | C202: =CHOOSE(INPUTS!$C$11,E202,SUM(E202:F202),D202,SUM(D202,I202)) -> -307859.5567 | D202: -307859.5567 | E202: =[4]ACCOUNTS!E202 -> -343032.6807 | F202: =[4]ACCOUNTS!F202 -> 35173.12403 | G202: =[4]ACCOUNTS!G202 -> 0 | H202: =[4]ACCOUNTS!H202 -> 0 | I202: =[4]ACCOUNTS!I202 -> 0 | J202: -307859.5567 | U202: PLTXR
A203: 397 | B203: Communication Equipment | C203: =CHOOSE(INPUTS!$C$11,E203,SUM(E203:F203),D203,SUM(D203,I203)) -> -6590070.349 | D203: -6590070.349 | E203: =[4]ACCOUNTS!E203 -> -5502380.735 | F203: =[4]ACCOUNTS!F203 -> -1087689.614 | G203: =[4]ACCOUNTS!G203 -> 0 | H203: =[4]ACCOUNTS!H203 -> 0 | I203: =[4]ACCOUNTS!I203 -> 0 | J203: -6590070.349 | U203: OML
A204: 398 | B204: Misc. Equipment | C204: =CHOOSE(INPUTS!$C$11,E204,SUM(E204:F204),D204,SUM(D204,I204)) -> -522926.5672 | D204: -522926.5672 | E204: =[4]ACCOUNTS!E204 -> -564362.9339 | F204: =[4]ACCOUNTS!F204 -> 41436.36671 | G204: =[4]ACCOUNTS!G204 -> 0 | H204: =[4]ACCOUNTS!H204 -> 0 | I204: =[4]ACCOUNTS!I204 -> 0 | J204: -522926.5672 | U204: OML
A205: 399 | B205: Other Intangible Plant | C205: =CHOOSE(INPUTS!$C$11,E205,SUM(E205:F205),D205,SUM(D205,I205)) -> -8508.2 | D205: -8508.2 | E205: =[4]ACCOUNTS!E205 -> -29.7528 | F205: =[4]ACCOUNTS!F205 -> -8478.4472 | G205: =[4]ACCOUNTS!G205 -> 0 | H205: =[4]ACCOUNTS!H205 -> 0 | I205: =[4]ACCOUNTS!I205 -> 0 | J205: -8508.2 | U205: OML
B206: Sub-total | C206: =SUM(C191:C205) -> -59720161.52 | D206: -59720161.52 | E206: -56442638.06 | F206: -3277523.458 | G206: 0 | H206: =SUM(H191:H205) -> 0 | I206: 0 | J206: -59720161.52
B208: Other Assets
A209: 108 | B209: Retirement Work in Progress | C209: =CHOOSE(INPUTS!$C$11,E209,SUM(E209:F209),D209,SUM(D209,I209)) -> 4758525.689 | D209: =SUM(E209:H209) -> 4758525.689 | E209: =[4]ACCOUNTS!E209 -> 4346875.37 | F209: =[4]ACCOUNTS!F209 -> 411650.3194 | G209: =[4]ACCOUNTS!G209 -> 0 | H209: =[4]ACCOUNTS!H209 -> 0 | I209: =[4]ACCOUNTS!I209 -> 0 | J209: =D209+I209 -> 4758525.689 | U209: DISTPT
A210: 230 | B210: Asset Retirment Obligations | C210: =CHOOSE(INPUTS!$C$11,E210,SUM(E210:F210),D210,SUM(D210,I210)) -> -11895651.41 | D210: =SUM(E210:H210) -> -11895651.41 | E210: =[4]ACCOUNTS!E210 -> -12275185.18 | F210: =[4]ACCOUNTS!F210 -> 379533.7728 | G210: =[4]ACCOUNTS!G210 -> 0 | H210: =[4]ACCOUNTS!H210 -> 0 | I210: =[4]ACCOUNTS!I210 -> 0 | J210: -11895651.41 | U210: DISTPT
A211: 253 | B211: Landlord Incentives | C211: =CHOOSE(INPUTS!$C$11,E211,SUM(E211:F211),D211,SUM(D211,I211)) -> -1089266.345 | D211: =SUM(E211:H211) -> -1089266.345 | E211: =[4]ACCOUNTS!E211 -> -1396180.578 | F211: =[4]ACCOUNTS!F211 -> 306914.2329 | G211: =[4]ACCOUNTS!G211 -> 0 | H211: =[4]ACCOUNTS!H211 -> 0 | I211: =[4]ACCOUNTS!I211 -> 0 | J211: -1089266.345 | U211: DISTPT
A212: 182.3 | B212: Gas Rental Equip & Pipe | C212: =CHOOSE(INPUTS!$C$11,E212,SUM(E212:F212),D212,SUM(D212,I212)) -> 0 | D212: =SUM(E212:H212) -> 0 | E212: =[4]ACCOUNTS!E212 -> 0 | F212: =[4]ACCOUNTS!F212 -> 0 | G212: =[4]ACCOUNTS!G212 -> 0 | H212: =[4]ACCOUNTS!H212 -> 0 | I212: =[4]ACCOUNTS!I212 -> 0 | J212: 0 | U212: DISTPT
B213: Other | C213: =CHOOSE(INPUTS!$C$11,E213,SUM(E213:F213),D213,SUM(D213,I213)) -> 8496290.072 | D213: =SUM(E213:H213) -> 8496290.072 | E213: =[4]ACCOUNTS!E213 -> 446913.1854 | F213: =[4]ACCOUNTS!F213 -> 8049376.887 | G213: =[4]ACCOUNTS!G213 -> 0 | H213: =[4]ACCOUNTS!H213 -> 0 | I213: =[4]ACCOUNTS!I213 -> 0 | J213: 8496290.072 | U213: DISTPT
B214: Sub-total | C214: =SUM(C209:C213) -> 269898.0109 | D214: 269898.0109 | E214: -8877577.201 | F214: 9147475.212 | G214: 0 | H214: =SUM(H209:H213) -> 0 | I214: 0 | J214: 269898.0109
B216: TOTAL ACCUMULATED RESERVE | C216: =SUM(C214,C206,C188,C165,C154,C144,C132,C117) -> -1656631761 | D216: -1656631761 | E216: -1583019629 | F216: -59106926.27 | G216: -14505206.34 | H216: =SUM(H214,H206,H188,H165,H154,H144,H132,H117) -> 0 | I216: 0 | J216: -1656631761
A218: Rate Base Adjustments and Working Capital
B220: Other Rate Base
A221: n/a | B221: Customer Advances for Construction | C221: =CHOOSE(INPUTS!$C$11,E221,SUM(E221:F221),D221,SUM(D221,I221)) -> -13796257.84 | D221: =SUM(E221:H221) -> -13796257.84 | E221: =[4]ACCOUNTS!E221 -> -16686141.97 | F221: =[4]ACCOUNTS!F221 -> 2889884.132 | G221: =[4]ACCOUNTS!G221 -> 0 | H221: =[4]ACCOUNTS!H221 -> 0 | I221: =[4]ACCOUNTS!I221 -> 0 | J221: =D221+I221 -> -13796257.84 | L221: F_DISTR | M221: CUS | P221: DIR_252
A222: n/a | B222: Gas Stored Underground - Non current | C222: =CHOOSE(INPUTS!$C$11,E222,SUM(E222:F222),D222,SUM(D222,I222)) -> 8654564.47 | D222: 8654564.47 | E222: =[4]ACCOUNTS!E222 -> 8654564.47 | F222: =[4]ACCOUNTS!F222 -> 0 | G222: =[4]ACCOUNTS!G222 -> 0 | H222: =[4]ACCOUNTS!H222 -> 0 | I222: =[4]ACCOUNTS!I222 -> 0 | J222: 8654564.47 | L222: F_STORG | M222: DEM | N222: SEAS3_DEM
A223: n/a | B223: CIAC - Accum. Def. FIT. | C223: =CHOOSE(INPUTS!$C$11,E223,SUM(E223:F223),D223,SUM(D223,I223)) -> 0 | D223: 0 | E223: =[4]ACCOUNTS!E223 -> 0 | F223: =[4]ACCOUNTS!F223 -> 0 | G223: =[4]ACCOUNTS!G223 -> 0 | H223: =[4]ACCOUNTS!H223 -> 0 | I223: =[4]ACCOUNTS!I223 -> 0 | J223: 0 | L223: F_DISTR | M223: CUS | P223: DIR_252
A224: n/a | B224: Customer Deposit | C224: =CHOOSE(INPUTS!$C$11,E224,SUM(E224:F224),D224,SUM(D224,I224)) -> -13197398.87 | D224: -13197398.87 | E224: =[4]ACCOUNTS!E224 -> -13266320.19 | F224: =[4]ACCOUNTS!F224 -> 68921.32464 | G224: =[4]ACCOUNTS!G224 -> 0 | H224: =[4]ACCOUNTS!H224 -> 0 | I224: =[4]ACCOUNTS!I224 -> 0 | J224: -13197398.87 | L224: F_DISTR | M224: CUS | P224: DIR_235
... 392 more rows

Sheet CLASS
A1: Classification
A2: =CHOOSE(INPUTS!$C$11,INPUTS!$B$5,INPUTS!$B$6,INPUTS!$B$7,INPUTS!$B$8,INPUTS!$B$9) -> Proposed Test Year | C2: Line Ref. | E2: 4 | F2: =E2+1 -> 5 | G2: =F2+1 -> 6 | H2: =G2+1 -> 7 | I2: =H2+1 -> 8 | J2: =I2+1 -> 9
A3: No. | B3: Account Description | C3: Amount | E3: =CLASSIFIERS!D3 -> DEM | F3: =CLASSIFIERS!E3 -> COM | G3: =CLASSIFIERS!F3 -> CUS | H3: =CLASSIFIERS!G3 -> DIRS | I3: =CLASSIFIERS!H3 -> DIRT | J3: =CLASSIFIERS!I3 -> ~ | L3: Internal | N3: =E3 -> DEM | O3: COM | P3: CUS | Q3: DIRS | R3: DIRT | S3: ~
D4: =SUM(E4:L4)-C4 -> 0
D5: 0
A6: =ACCOUNTS!A6 -> RATE BASE | D6: 0
A7: =ACCOUNTS!A7 -> Plant-in-Service | D7: 0
D8: 0 | N8: F_PRODU_PDAYXT
B9: =ACCOUNTS!B9 -> Intangible Plant | D9: 0
A10: =ACCOUNTS!A10 -> 301 | B10: =ACCOUNTS!B10 -> Organization | C10: =ACCOUNTS!C10 -> 159000 | D10: 0 | E10: =IF(ACCOUNTS!$M10="",0,$C10*(INDEX(INDIRECT(ACCOUNTS!$M10),1,E$2))) -> 0 | F10: =IF(ACCOUNTS!$M10="",0,$C10*(INDEX(INDIRECT(ACCOUNTS!$M10),1,F$2))) -> 0 | G10: =IF(ACCOUNTS!$M10="",0,$C10*(INDEX(INDIRECT(ACCOUNTS!$M10),1,G$2))) -> 0 | H10: =IF(ACCOUNTS!$M10="",0,$C10*(INDEX(INDIRECT(ACCOUNTS!$M10),1,H$2))) -> 0 | I10: =IF(ACCOUNTS!$M10="",0,$C10*(INDEX(INDIRECT(ACCOUNTS!$M10),1,I$2))) -> 0 | J10: =IF(ACCOUNTS!$M10="",0,$C10*(INDEX(INDIRECT(ACCOUNTS!$M10),1,J$2))) -> 0 | L10: =IF(ACCOUNTS!$U10="",0,$C10) -> 159000 | N10: =IF(ACCOUNTS!N10<>"",CONCATENATE(ACCOUNTS!$L10,"_",ACCOUNTS!N10)," ") ->  | O10: =IF(ACCOUNTS!O10<>"",CONCATENATE(ACCOUNTS!$L10,"_",ACCOUNTS!O10)," ") ->  | P10: =IF(ACCOUNTS!P10<>"",CONCATENATE(ACCOUNTS!$L10,"_",ACCOUNTS!P10)," ") ->  | Q10: =IF(ACCOUNTS!Q10<>"",CONCATENATE(ACCOUNTS!$L10,"_",ACCOUNTS!Q10)," ") ->  | R10: =IF(ACCOUNTS!R10<>"",CONCATENATE(ACCOUNTS!$L10,"_",ACCOUNTS!R10)," ") ->  | S10: =IF(ACCOUNTS!S10<>"",CONCATENATE(ACCOUNTS!$L10,"_",ACCOUNTS!S10)," ") -> 
A11: =ACCOUNTS!A11 -> 302 | B11: =ACCOUNTS!B11 -> Franchise and Consents | C11: =ACCOUNTS!C11 -> 532382 | D11: 0 | E11: =IF(ACCOUNTS!$M11="",0,$C11*(INDEX(INDIRECT(ACCOUNTS!$M11),1,E$2))) -> 0 | F11: =IF(ACCOUNTS!$M11="",0,$C11*(INDEX(INDIRECT(ACCOUNTS!$M11),1,F$2))) -> 0 | G11: =IF(ACCOUNTS!$M11="",0,$C11*(INDEX(INDIRECT(ACCOUNTS!$M11),1,G$2))) -> 0 | H11: =IF(ACCOUNTS!$M11="",0,$C11*(INDEX(INDIRECT(ACCOUNTS!$M11),1,H$2))) -> 0 | I11: =IF(ACCOUNTS!$M11="",0,$C11*(INDEX(INDIRECT(ACCOUNTS!$M11),1,I$2))) -> 0 | J11: =IF(ACCOUNTS!$M11="",0,$C11*(INDEX(INDIRECT(ACCOUNTS!$M11),1,J$2))) -> 0 | L11: =IF(ACCOUNTS!$U11="",0,$C11) -> 532382 | N11: =IF(ACCOUNTS!N11<>"",CONCATENATE(ACCOUNTS!$L11,"_",ACCOUNTS!N11)," ") ->  | O11: =IF(ACCOUNTS!O11<>"",CONCATENATE(ACCOUNTS!$L11,"_",ACCOUNTS!O11)," ") ->  | P11: =IF(ACCOUNTS!P11<>"",CONCATENATE(ACCOUNTS!$L11,"_",ACCOUNTS!P11)," ") ->  | Q11: =IF(ACCOUNTS!Q11<>"",CONCATENATE(ACCOUNTS!$L11,"_",ACCOUNTS!Q11)," ") ->  | R11: =IF(ACCOUNTS!R11<>"",CONCATENATE(ACCOUNTS!$L11,"_",ACCOUNTS!R11)," ") ->  | S11: =IF(ACCOUNTS!S11<>"",CONCATENATE(ACCOUNTS!$L11,"_",ACCOUNTS!S11)," ") -> 
A12: =ACCOUNTS!A12 -> 303 | B12: =ACCOUNTS!B12 -> Misc. Intangible | C12: =ACCOUNTS!C12 -> 210883065.6 | D12: 0 | E12: =IF(ACCOUNTS!$M12="",0,$C12*(INDEX(INDIRECT(ACCOUNTS!$M12),1,E$2))) -> 0 | F12: =IF(ACCOUNTS!$M12="",0,$C12*(INDEX(INDIRECT(ACCOUNTS!$M12),1,F$2))) -> 0 | G12: =IF(ACCOUNTS!$M12="",0,$C12*(INDEX(INDIRECT(ACCOUNTS!$M12),1,G$2))) -> 0 | H12: =IF(ACCOUNTS!$M12="",0,$C12*(INDEX(INDIRECT(ACCOUNTS!$M12),1,H$2))) -> 0 | I12: =IF(ACCOUNTS!$M12="",0,$C12*(INDEX(INDIRECT(ACCOUNTS!$M12),1,I$2))) -> 0 | J12: =IF(ACCOUNTS!$M12="",0,$C12*(INDEX(INDIRECT(ACCOUNTS!$M12),1,J$2))) -> 0 | L12: =IF(ACCOUNTS!$U12="",0,$C12) -> 210883065.6 | N12: =IF(ACCOUNTS!N12<>"",CONCATENATE(ACCOUNTS!$L12,"_",ACCOUNTS!N12)," ") ->  | O12: =IF(ACCOUNTS!O12<>"",CONCATENATE(ACCOUNTS!$L12,"_",ACCOUNTS!O12)," ") ->  | P12: =IF(ACCOUNTS!P12<>"",CONCATENATE(ACCOUNTS!$L12,"_",ACCOUNTS!P12)," ") ->  | Q12: =IF(ACCOUNTS!Q12<>"",CONCATENATE(ACCOUNTS!$L12,"_",ACCOUNTS!Q12)," ") ->  | R12: =IF(ACCOUNTS!R12<>"",CONCATENATE(ACCOUNTS!$L12,"_",ACCOUNTS!R12)," ") ->  | S12: =IF(ACCOUNTS!S12<>"",CONCATENATE(ACCOUNTS!$L12,"_",ACCOUNTS!S12)," ") -> 
B13: =ACCOUNTS!B13 -> Sub-total | C13: =SUM(C10:C12) -> 211574447.6 | D13: 0 | E13: =SUM(E10:E12) -> 0 | F13: 0 | G13: 0 | H13: 0 | I13: 0 | J13: 0 | L13: 211574447.6
D14: 0
B15: =ACCOUNTS!B15 -> Production and Gathering Plant | D15: 0
A16: =ACCOUNTS!A16 -> 304 | B16: =ACCOUNTS!B16 -> Land and Land Rights | C16: =ACCOUNTS!C16 -> 153000 | D16: =SUM(E16:L16)-C16 -> 0 | E16: =IF(ACCOUNTS!$M16="",0,$C16*(INDEX(INDIRECT(ACCOUNTS!$M16),1,E$2))) -> 0 | F16: =IF(ACCOUNTS!$M16="",0,$C16*(INDEX(INDIRECT(ACCOUNTS!$M16),1,F$2))) -> 0 | G16: =IF(ACCOUNTS!$M16="",0,$C16*(INDEX(INDIRECT(ACCOUNTS!$M16),1,G$2))) -> 0 | H16: =IF(ACCOUNTS!$M16="",0,$C16*(INDEX(INDIRECT(ACCOUNTS!$M16),1,H$2))) -> 0 | I16: =IF(ACCOUNTS!$M16="",0,$C16*(INDEX(INDIRECT(ACCOUNTS!$M16),1,I$2))) -> 0 | J16: =IF(ACCOUNTS!$M16="",0,$C16*(INDEX(INDIRECT(ACCOUNTS!$M16),1,J$2))) -> 0 | L16: =IF(ACCOUNTS!$U16="",0,$C16) -> 153000 | N16: =IF(ACCOUNTS!N16<>"",CONCATENATE(ACCOUNTS!$L16,"_",ACCOUNTS!N16)," ") ->  | O16: =IF(ACCOUNTS!O16<>"",CONCATENATE(ACCOUNTS!$L16,"_",ACCOUNTS!O16)," ") ->  | P16: =IF(ACCOUNTS!P16<>"",CONCATENATE(ACCOUNTS!$L16,"_",ACCOUNTS!P16)," ") ->  | Q16: =IF(ACCOUNTS!Q16<>"",CONCATENATE(ACCOUNTS!$L16,"_",ACCOUNTS!Q16)," ") ->  | R16: =IF(ACCOUNTS!R16<>"",CONCATENATE(ACCOUNTS!$L16,"_",ACCOUNTS!R16)," ") ->  | S16: =IF(ACCOUNTS!S16<>"",CONCATENATE(ACCOUNTS!$L16,"_",ACCOUNTS!S16)," ") -> 
A17: =ACCOUNTS!A17 -> 305 | B17: =ACCOUNTS!B17 -> Structures and Improvements | C17: =ACCOUNTS!C17 -> 508000 | D17: 0 | E17: =IF(ACCOUNTS!$M17="",0,$C17*(INDEX(INDIRECT(ACCOUNTS!$M17),1,E$2))) -> 0 | F17: =IF(ACCOUNTS!$M17="",0,$C17*(INDEX(INDIRECT(ACCOUNTS!$M17),1,F$2))) -> 0 | G17: =IF(ACCOUNTS!$M17="",0,$C17*(INDEX(INDIRECT(ACCOUNTS!$M17),1,G$2))) -> 0 | H17: =IF(ACCOUNTS!$M17="",0,$C17*(INDEX(INDIRECT(ACCOUNTS!$M17),1,H$2))) -> 0 | I17: =IF(ACCOUNTS!$M17="",0,$C17*(INDEX(INDIRECT(ACCOUNTS!$M17),1,I$2))) -> 0 | J17: =IF(ACCOUNTS!$M17="",0,$C17*(INDEX(INDIRECT(ACCOUNTS!$M17),1,J$2))) -> 0 | L17: =IF(ACCOUNTS!$U17="",0,$C17) -> 508000 | N17: =IF(ACCOUNTS!N17<>"",CONCATENATE(ACCOUNTS!$L17,"_",ACCOUNTS!N17)," ") ->  | O17: =IF(ACCOUNTS!O17<>"",CONCATENATE(ACCOUNTS!$L17,"_",ACCOUNTS!O17)," ") ->  | P17: =IF(ACCOUNTS!P17<>"",CONCATENATE(ACCOUNTS!$L17,"_",ACCOUNTS!P17)," ") ->  | Q17: =IF(ACCOUNTS!Q17<>"",CONCATENATE(ACCOUNTS!$L17,"_",ACCOUNTS!Q17)," ") ->  | R17: =IF(ACCOUNTS!R17<>"",CONCATENATE(ACCOUNTS!$L17,"_",ACCOUNTS!R17)," ") ->  | S17: =IF(ACCOUNTS!S17<>"",CONCATENATE(ACCOUNTS!$L17,"_",ACCOUNTS!S17)," ") -> 
A18: =ACCOUNTS!A18 -> 311 | B18: =ACCOUNTS!B18 -> Liquefied Petroleum Gas Equipment | C18: =ACCOUNTS!C18 -> 6070000 | D18: 0 | E18: =IF(ACCOUNTS!$M18="",0,$C18*(INDEX(INDIRECT(ACCOUNTS!$M18),1,E$2))) -> 6070000 | F18: =IF(ACCOUNTS!$M18="",0,$C18*(INDEX(INDIRECT(ACCOUNTS!$M18),1,F$2))) -> 0 | G18: =IF(ACCOUNTS!$M18="",0,$C18*(INDEX(INDIRECT(ACCOUNTS!$M18),1,G$2))) -> 0 | H18: =IF(ACCOUNTS!$M18="",0,$C18*(INDEX(INDIRECT(ACCOUNTS!$M18),1,H$2))) -> 0 | I18: =IF(ACCOUNTS!$M18="",0,$C18*(INDEX(INDIRECT(ACCOUNTS!$M18),1,I$2))) -> 0 | J18: =IF(ACCOUNTS!$M18="",0,$C18*(INDEX(INDIRECT(ACCOUNTS!$M18),1,J$2))) -> 0 | L18: =IF(ACCOUNTS!$U18="",0,$C18) -> 0 | N18: =IF(ACCOUNTS!N18<>"",CONCATENATE(ACCOUNTS!$L18,"_",ACCOUNTS!N18)," ") -> F_PRODU_PDAYXT | O18: =IF(ACCOUNTS!O18<>"",CONCATENATE(ACCOUNTS!$L18,"_",ACCOUNTS!O18)," ") ->  | P18: =IF(ACCOUNTS!P18<>"",CONCATENATE(ACCOUNTS!$L18,"_",ACCOUNTS!P18)," ") ->  | Q18: =IF(ACCOUNTS!Q18<>"",CONCATENATE(ACCOUNTS!$L18,"_",ACCOUNTS!Q18)," ") ->  | R18: =IF(ACCOUNTS!R18<>"",CONCATENATE(ACCOUNTS!$L18,"_",ACCOUNTS!R18)," ") ->  | S18: =IF(ACCOUNTS!S18<>"",CONCATENATE(ACCOUNTS!$L18,"_",ACCOUNTS!S18)," ") -> 
A19: =ACCOUNTS!A19 -> 320 | B19: =ACCOUNTS!B19 -> Other Equipment | C19: =ACCOUNTS!C19 -> 5000 | D19: 0 | E19: =IF(ACCOUNTS!$M19="",0,$C19*(INDEX(INDIRECT(ACCOUNTS!$M19),1,E$2))) -> 5000 | F19: =IF(ACCOUNTS!$M19="",0,$C19*(INDEX(INDIRECT(ACCOUNTS!$M19),1,F$2))) -> 0 | G19: =IF(ACCOUNTS!$M19="",0,$C19*(INDEX(INDIRECT(ACCOUNTS!$M19),1,G$2))) -> 0 | H19: =IF(ACCOUNTS!$M19="",0,$C19*(INDEX(INDIRECT(ACCOUNTS!$M19),1,H$2))) -> 0 | I19: =IF(ACCOUNTS!$M19="",0,$C19*(INDEX(INDIRECT(ACCOUNTS!$M19),1,I$2))) -> 0 | J19: =IF(ACCOUNTS!$M19="",0,$C19*(INDEX(INDIRECT(ACCOUNTS!$M19),1,J$2))) -> 0 | L19: =IF(ACCOUNTS!$U19="",0,$C19) -> 0 | N19: =IF(ACCOUNTS!N19<>"",CONCATENATE(ACCOUNTS!$L19,"_",ACCOUNTS!N19)," ") -> F_PRODU_PDAYXT | O19: =IF(ACCOUNTS!O19<>"",CONCATENATE(ACCOUNTS!$L19,"_",ACCOUNTS!O19)," ") ->  | P19: =IF(ACCOUNTS!P19<>"",CONCATENATE(ACCOUNTS!$L19,"_",ACCOUNTS!P19)," ") ->  | Q19: =IF(ACCOUNTS!Q19<>"",CONCATENATE(ACCOUNTS!$L19,"_",ACCOUNTS!Q19)," ") ->  | R19: =IF(ACCOUNTS!R19<>"",CONCATENATE(ACCOUNTS!$L19,"_",ACCOUNTS!R19)," ") ->  | S19: =IF(ACCOUNTS!S19<>"",CONCATENATE(ACCOUNTS!$L19,"_",ACCOUNTS!S19)," ") -> 
A20: =ACCOUNTS!A20 -> 0 | B20: =ACCOUNTS!B20 -> Natural Gas Production Plant | C20: =ACCOUNTS!C20 -> 1646000 | D20: 0 | E20: =IF(ACCOUNTS!$M20="",0,$C20*(INDEX(INDIRECT(ACCOUNTS!$M20),1,E$2))) -> 1646000 | F20: =IF(ACCOUNTS!$M20="",0,$C20*(INDEX(INDIRECT(ACCOUNTS!$M20),1,F$2))) -> 0 | G20: =IF(ACCOUNTS!$M20="",0,$C20*(INDEX(INDIRECT(ACCOUNTS!$M20),1,G$2))) -> 0 | H20: =IF(ACCOUNTS!$M20="",0,$C20*(INDEX(INDIRECT(ACCOUNTS!$M20),1,H$2))) -> 0 | I20: =IF(ACCOUNTS!$M20="",0,$C20*(INDEX(INDIRECT(ACCOUNTS!$M20),1,I$2))) -> 0 | J20: =IF(ACCOUNTS!$M20="",0,$C20*(INDEX(INDIRECT(ACCOUNTS!$M20),1,J$2))) -> 0 | L20: =IF(ACCOUNTS!$U20="",0,$C20) -> 0 | N20: =IF(ACCOUNTS!N20<>"",CONCATENATE(ACCOUNTS!$L20,"_",ACCOUNTS!N20)," ") -> F_PRODU_PDAYXT | O20: =IF(ACCOUNTS!O20<>"",CONCATENATE(ACCOUNTS!$L20,"_",ACCOUNTS!O20)," ") ->  | P20: =IF(ACCOUNTS!P20<>"",CONCATENATE(ACCOUNTS!$L20,"_",ACCOUNTS!P20)," ") ->  | Q20: =IF(ACCOUNTS!Q20<>"",CONCATENATE(ACCOUNTS!$L20,"_",ACCOUNTS!Q20)," ") ->  | R20: =IF(ACCOUNTS!R20<>"",CONCATENATE(ACCOUNTS!$L20,"_",ACCOUNTS!R20)," ") ->  | S20: =IF(ACCOUNTS!S20<>"",CONCATENATE(ACCOUNTS!$L20,"_",ACCOUNTS!S20)," ") -> 
A21: =ACCOUNTS!A21 -> ~ | B21: =ACCOUNTS!B21 -> ~ | C21: =ACCOUNTS!C21 -> 0 | D21: 0 | E21: =IF(ACCOUNTS!$M21="",0,$C21*(INDEX(INDIRECT(ACCOUNTS!$M21),1,E$2))) -> 0 | F21: =IF(ACCOUNTS!$M21="",0,$C21*(INDEX(INDIRECT(ACCOUNTS!$M21),1,F$2))) -> 0 | G21: =IF(ACCOUNTS!$M21="",0,$C21*(INDEX(INDIRECT(ACCOUNTS!$M21),1,G$2))) -> 0 | H21: =IF(ACCOUNTS!$M21="",0,$C21*(INDEX(INDIRECT(ACCOUNTS!$M21),1,H$2))) -> 0 | I21: =IF(ACCOUNTS!$M21="",0,$C21*(INDEX(INDIRECT(ACCOUNTS!$M21),1,I$2))) -> 0 | J21: =IF(ACCOUNTS!$M21="",0,$C21*(INDEX(INDIRECT(ACCOUNTS!$M21),1,J$2))) -> 0 | L21: =IF(ACCOUNTS!$U21="",0,$C21) -> 0 | N21: =IF(ACCOUNTS!N21<>"",CONCATENATE(ACCOUNTS!$L21,"_",ACCOUNTS!N21)," ") ->  | O21: =IF(ACCOUNTS!O21<>"",CONCATENATE(ACCOUNTS!$L21,"_",ACCOUNTS!O21)," ") ->  | P21: =IF(ACCOUNTS!P21<>"",CONCATENATE(ACCOUNTS!$L21,"_",ACCOUNTS!P21)," ") ->  | Q21: =IF(ACCOUNTS!Q21<>"",CONCATENATE(ACCOUNTS!$L21,"_",ACCOUNTS!Q21)," ") ->  | R21: =IF(ACCOUNTS!R21<>"",CONCATENATE(ACCOUNTS!$L21,"_",ACCOUNTS!R21)," ") ->  | S21: =IF(ACCOUNTS!S21<>"",CONCATENATE(ACCOUNTS!$L21,"_",ACCOUNTS!S21)," ") -> 
A22: =ACCOUNTS!A22 -> ~ | B22: =ACCOUNTS!B22 -> ~ | C22: =ACCOUNTS!C22 -> 0 | D22: 0 | E22: =IF(ACCOUNTS!$M22="",0,$C22*(INDEX(INDIRECT(ACCOUNTS!$M22),1,E$2))) -> 0 | F22: =IF(ACCOUNTS!$M22="",0,$C22*(INDEX(INDIRECT(ACCOUNTS!$M22),1,F$2))) -> 0 | G22: =IF(ACCOUNTS!$M22="",0,$C22*(INDEX(INDIRECT(ACCOUNTS!$M22),1,G$2))) -> 0 | H22: =IF(ACCOUNTS!$M22="",0,$C22*(INDEX(INDIRECT(ACCOUNTS!$M22),1,H$2))) -> 0 | I22: =IF(ACCOUNTS!$M22="",0,$C22*(INDEX(INDIRECT(ACCOUNTS!$M22),1,I$2))) -> 0 | J22: =IF(ACCOUNTS!$M22="",0,$C22*(INDEX(INDIRECT(ACCOUNTS!$M22),1,J$2))) -> 0 | L22: =IF(ACCOUNTS!$U22="",0,$C22) -> 0 | N22: =IF(ACCOUNTS!N22<>"",CONCATENATE(ACCOUNTS!$L22,"_",ACCOUNTS!N22)," ") ->  | O22: =IF(ACCOUNTS!O22<>"",CONCATENATE(ACCOUNTS!$L22,"_",ACCOUNTS!O22)," ") ->  | P22: =IF(ACCOUNTS!P22<>"",CONCATENATE(ACCOUNTS!$L22,"_",ACCOUNTS!P22)," ") ->  | Q22: =IF(ACCOUNTS!Q22<>"",CONCATENATE(ACCOUNTS!$L22,"_",ACCOUNTS!Q22)," ") ->  | R22: =IF(ACCOUNTS!R22<>"",CONCATENATE(ACCOUNTS!$L22,"_",ACCOUNTS!R22)," ") ->  | S22: =IF(ACCOUNTS!S22<>"",CONCATENATE(ACCOUNTS!$L22,"_",ACCOUNTS!S22)," ") -> 
A23: =ACCOUNTS!A23 -> ~ | B23: =ACCOUNTS!B23 -> ~ | C23: =ACCOUNTS!C23 -> 0 | D23: 0 | E23: =IF(ACCOUNTS!$M23="",0,$C23*(INDEX(INDIRECT(ACCOUNTS!$M23),1,E$2))) -> 0 | F23: =IF(ACCOUNTS!$M23="",0,$C23*(INDEX(INDIRECT(ACCOUNTS!$M23),1,F$2))) -> 0 | G23: =IF(ACCOUNTS!$M23="",0,$C23*(INDEX(INDIRECT(ACCOUNTS!$M23),1,G$2))) -> 0 | H23: =IF(ACCOUNTS!$M23="",0,$C23*(INDEX(INDIRECT(ACCOUNTS!$M23),1,H$2))) -> 0 | I23: =IF(ACCOUNTS!$M23="",0,$C23*(INDEX(INDIRECT(ACCOUNTS!$M23),1,I$2))) -> 0 | J23: =IF(ACCOUNTS!$M23="",0,$C23*(INDEX(INDIRECT(ACCOUNTS!$M23),1,J$2))) -> 0 | L23: =IF(ACCOUNTS!$U23="",0,$C23) -> 0 | N23: =IF(ACCOUNTS!N23<>"",CONCATENATE(ACCOUNTS!$L23,"_",ACCOUNTS!N23)," ") ->  | O23: =IF(ACCOUNTS!O23<>"",CONCATENATE(ACCOUNTS!$L23,"_",ACCOUNTS!O23)," ") ->  | P23: =IF(ACCOUNTS!P23<>"",CONCATENATE(ACCOUNTS!$L23,"_",ACCOUNTS!P23)," ") ->  | Q23: =IF(ACCOUNTS!Q23<>"",CONCATENATE(ACCOUNTS!$L23,"_",ACCOUNTS!Q23)," ") ->  | R23: =IF(ACCOUNTS!R23<>"",CONCATENATE(ACCOUNTS!$L23,"_",ACCOUNTS!R23)," ") ->  | S23: =IF(ACCOUNTS!S23<>"",CONCATENATE(ACCOUNTS!$L23,"_",ACCOUNTS!S23)," ") -> 
A24: =ACCOUNTS!A24 -> ~ | B24: =ACCOUNTS!B24 -> ~ | C24: =ACCOUNTS!C24 -> 0 | D24: 0 | E24: =IF(ACCOUNTS!$M24="",0,$C24*(INDEX(INDIRECT(ACCOUNTS!$M24),1,E$2))) -> 0 | F24: =IF(ACCOUNTS!$M24="",0,$C24*(INDEX(INDIRECT(ACCOUNTS!$M24),1,F$2))) -> 0 | G24: =IF(ACCOUNTS!$M24="",0,$C24*(INDEX(INDIRECT(ACCOUNTS!$M24),1,G$2))) -> 0 | H24: =IF(ACCOUNTS!$M24="",0,$C24*(INDEX(INDIRECT(ACCOUNTS!$M24),1,H$2))) -> 0 | I24: =IF(ACCOUNTS!$M24="",0,$C24*(INDEX(INDIRECT(ACCOUNTS!$M24),1,I$2))) -> 0 | J24: =IF(ACCOUNTS!$M24="",0,$C24*(INDEX(INDIRECT(ACCOUNTS!$M24),1,J$2))) -> 0 | L24: =IF(ACCOUNTS!$U24="",0,$C24) -> 0 | N24: =IF(ACCOUNTS!N24<>"",CONCATENATE(ACCOUNTS!$L24,"_",ACCOUNTS!N24)," ") ->  | O24: =IF(ACCOUNTS!O24<>"",CONCATENATE(ACCOUNTS!$L24,"_",ACCOUNTS!O24)," ") ->  | P24: =IF(ACCOUNTS!P24<>"",CONCATENATE(ACCOUNTS!$L24,"_",ACCOUNTS!P24)," ") ->  | Q24: =IF(ACCOUNTS!Q24<>"",CONCATENATE(ACCOUNTS!$L24,"_",ACCOUNTS!Q24)," ") ->  | R24: =IF(ACCOUNTS!R24<>"",CONCATENATE(ACCOUNTS!$L24,"_",ACCOUNTS!R24)," ") ->  | S24: =IF(ACCOUNTS!S24<>"",CONCATENATE(ACCOUNTS!$L24,"_",ACCOUNTS!S24)," ") -> 
A25: =ACCOUNTS!A25 -> ~ | B25: =ACCOUNTS!B25 -> ~ | C25: =ACCOUNTS!C25 -> 0 | D25: 0 | E25: =IF(ACCOUNTS!$M25="",0,$C25*(INDEX(INDIRECT(ACCOUNTS!$M25),1,E$2))) -> 0 | F25: =IF(ACCOUNTS!$M25="",0,$C25*(INDEX(INDIRECT(ACCOUNTS!$M25),1,F$2))) -> 0 | G25: =IF(ACCOUNTS!$M25="",0,$C25*(INDEX(INDIRECT(ACCOUNTS!$M25),1,G$2))) -> 0 | H25: =IF(ACCOUNTS!$M25="",0,$C25*(INDEX(INDIRECT(ACCOUNTS!$M25),1,H$2))) -> 0 | I25: =IF(ACCOUNTS!$M25="",0,$C25*(INDEX(INDIRECT(ACCOUNTS!$M25),1,I$2))) -> 0 | J25: =IF(ACCOUNTS!$M25="",0,$C25*(INDEX(INDIRECT(ACCOUNTS!$M25),1,J$2))) -> 0 | L25: =IF(ACCOUNTS!$U25="",0,$C25) -> 0 | N25: =IF(ACCOUNTS!N25<>"",CONCATENATE(ACCOUNTS!$L25,"_",ACCOUNTS!N25)," ") ->  | O25: =IF(ACCOUNTS!O25<>"",CONCATENATE(ACCOUNTS!$L25,"_",ACCOUNTS!O25)," ") ->  | P25: =IF(ACCOUNTS!P25<>"",CONCATENATE(ACCOUNTS!$L25,"_",ACCOUNTS!P25)," ") ->  | Q25: =IF(ACCOUNTS!Q25<>"",CONCATENATE(ACCOUNTS!$L25,"_",ACCOUNTS!Q25)," ") ->  | R25: =IF(ACCOUNTS!R25<>"",CONCATENATE(ACCOUNTS!$L25,"_",ACCOUNTS!R25)," ") ->  | S25: =IF(ACCOUNTS!S25<>"",CONCATENATE(ACCOUNTS!$L25,"_",ACCOUNTS!S25)," ") -> 
A26: =ACCOUNTS!A26 -> ~ | B26: =ACCOUNTS!B26 -> ~ | C26: =ACCOUNTS!C26 -> 0 | D26: 0 | E26: =IF(ACCOUNTS!$M26="",0,$C26*(INDEX(INDIRECT(ACCOUNTS!$M26),1,E$2))) -> 0 | F26: =IF(ACCOUNTS!$M26="",0,$C26*(INDEX(INDIRECT(ACCOUNTS!$M26),1,F$2))) -> 0 | G26: =IF(ACCOUNTS!$M26="",0,$C26*(INDEX(INDIRECT(ACCOUNTS!$M26),1,G$2))) -> 0 | H26: =IF(ACCOUNTS!$M26="",0,$C26*(INDEX(INDIRECT(ACCOUNTS!$M26),1,H$2))) -> 0 | I26: =IF(ACCOUNTS!$M26="",0,$C26*(INDEX(INDIRECT(ACCOUNTS!$M26),1,I$2))) -> 0 | J26: =IF(ACCOUNTS!$M26="",0,$C26*(INDEX(INDIRECT(ACCOUNTS!$M26),1,J$2))) -> 0 | L26: =IF(ACCOUNTS!$U26="",0,$C26) -> 0 | N26: =IF(ACCOUNTS!N26<>"",CONCATENATE(ACCOUNTS!$L26,"_",ACCOUNTS!N26)," ") ->  | O26: =IF(ACCOUNTS!O26<>"",CONCATENATE(ACCOUNTS!$L26,"_",ACCOUNTS!O26)," ") ->  | P26: =IF(ACCOUNTS!P26<>"",CONCATENATE(ACCOUNTS!$L26,"_",ACCOUNTS!P26)," ") ->  | Q26: =IF(ACCOUNTS!Q26<>"",CONCATENATE(ACCOUNTS!$L26,"_",ACCOUNTS!Q26)," ") ->  | R26: =IF(ACCOUNTS!R26<>"",CONCATENATE(ACCOUNTS!$L26,"_",ACCOUNTS!R26)," ") ->  | S26: =IF(ACCOUNTS!S26<>"",CONCATENATE(ACCOUNTS!$L26,"_",ACCOUNTS!S26)," ") -> 
A27: =ACCOUNTS!A27 -> ~ | B27: =ACCOUNTS!B27 -> ~ | C27: =ACCOUNTS!C27 -> 0 | D27: 0 | E27: =IF(ACCOUNTS!$M27="",0,$C27*(INDEX(INDIRECT(ACCOUNTS!$M27),1,E$2))) -> 0 | F27: =IF(ACCOUNTS!$M27="",0,$C27*(INDEX(INDIRECT(ACCOUNTS!$M27),1,F$2))) -> 0 | G27: =IF(ACCOUNTS!$M27="",0,$C27*(INDEX(INDIRECT(ACCOUNTS!$M27),1,G$2))) -> 0 | H27: =IF(ACCOUNTS!$M27="",0,$C27*(INDEX(INDIRECT(ACCOUNTS!$M27),1,H$2))) -> 0 | I27: =IF(ACCOUNTS!$M27="",0,$C27*(INDEX(INDIRECT(ACCOUNTS!$M27),1,I$2))) -> 0 | J27: =IF(ACCOUNTS!$M27="",0,$C27*(INDEX(INDIRECT(ACCOUNTS!$M27),1,J$2))) -> 0 | L27: =IF(ACCOUNTS!$U27="",0,$C27) -> 0 | N27: =IF(ACCOUNTS!N27<>"",CONCATENATE(ACCOUNTS!$L27,"_",ACCOUNTS!N27)," ") ->  | O27: =IF(ACCOUNTS!O27<>"",CONCATENATE(ACCOUNTS!$L27,"_",ACCOUNTS!O27)," ") ->  | P27: =IF(ACCOUNTS!P27<>"",CONCATENATE(ACCOUNTS!$L27,"_",ACCOUNTS!P27)," ") ->  | Q27: =IF(ACCOUNTS!Q27<>"",CONCATENATE(ACCOUNTS!$L27,"_",ACCOUNTS!Q27)," ") ->  | R27: =IF(ACCOUNTS!R27<>"",CONCATENATE(ACCOUNTS!$L27,"_",ACCOUNTS!R27)," ") ->  | S27: =IF(ACCOUNTS!S27<>"",CONCATENATE(ACCOUNTS!$L27,"_",ACCOUNTS!S27)," ") -> 
B28: =ACCOUNTS!B28 -> Sub-total | C28: =SUM(C16:C27) -> 8382000 | D28: =SUM(E28:L28)-C28 -> 0 | E28: =SUM(E16:E27) -> 7721000 | F28: =SUM(F16:F27) -> 0 | G28: 0 | H28: 0 | I28: 0 | J28: 0 | L28: 661000
D29: 0
B30: =ACCOUNTS!B30 -> Natural Gas Underground Storage | D30: 0
A31: =ACCOUNTS!A31 -> 0 | B31: =ACCOUNTS!B31 -> JP Storage Balancing - DIR | C31: =ACCOUNTS!C31 -> 10074750 | D31: 0 | E31: =IF(ACCOUNTS!$M31="",0,$C31*(INDEX(INDIRECT(ACCOUNTS!$M31),1,E$2))) -> 0 | F31: =IF(ACCOUNTS!$M31="",0,$C31*(INDEX(INDIRECT(ACCOUNTS!$M31),1,F$2))) -> 10074750 | G31: =IF(ACCOUNTS!$M31="",0,$C31*(INDEX(INDIRECT(ACCOUNTS!$M31),1,G$2))) -> 0 | H31: =IF(ACCOUNTS!$M31="",0,$C31*(INDEX(INDIRECT(ACCOUNTS!$M31),1,H$2))) -> 0 | I31: =IF(ACCOUNTS!$M31="",0,$C31*(INDEX(INDIRECT(ACCOUNTS!$M31),1,I$2))) -> 0 | J31: =IF(ACCOUNTS!$M31="",0,$C31*(INDEX(INDIRECT(ACCOUNTS!$M31),1,J$2))) -> 0 | L31: =IF(ACCOUNTS!$U31="",0,$C31) -> 0 | N31: =IF(ACCOUNTS!N31<>"",CONCATENATE(ACCOUNTS!$L31,"_",ACCOUNTS!N31)," ") ->  | O31: =IF(ACCOUNTS!O31<>"",CONCATENATE(ACCOUNTS!$L31,"_",ACCOUNTS!O31)," ") -> F_STORG_COM_1 | P31: =IF(ACCOUNTS!P31<>"",CONCATENATE(ACCOUNTS!$L31,"_",ACCOUNTS!P31)," ") ->  | Q31: =IF(ACCOUNTS!Q31<>"",CONCATENATE(ACCOUNTS!$L31,"_",ACCOUNTS!Q31)," ") ->  | R31: =IF(ACCOUNTS!R31<>"",CONCATENATE(ACCOUNTS!$L31,"_",ACCOUNTS!R31)," ") ->  | S31: =IF(ACCOUNTS!S31<>"",CONCATENATE(ACCOUNTS!$L31,"_",ACCOUNTS!S31)," ") -> 
A32: =ACCOUNTS!A32 -> 350 | B32: =ACCOUNTS!B32 -> Land and Land Rights | C32: =ACCOUNTS!C32 -> 1090200 | D32: 0 | E32: =IF(ACCOUNTS!$M32="",0,$C32*(INDEX(INDIRECT(ACCOUNTS!$M32),1,E$2))) -> 1090200 | F32: =IF(ACCOUNTS!$M32="",0,$C32*(INDEX(INDIRECT(ACCOUNTS!$M32),1,F$2))) -> 0 | G32: =IF(ACCOUNTS!$M32="",0,$C32*(INDEX(INDIRECT(ACCOUNTS!$M32),1,G$2))) -> 0 | H32: =IF(ACCOUNTS!$M32="",0,$C32*(INDEX(INDIRECT(ACCOUNTS!$M32),1,H$2))) -> 0 | I32: =IF(ACCOUNTS!$M32="",0,$C32*(INDEX(INDIRECT(ACCOUNTS!$M32),1,I$2))) -> 0 | J32: =IF(ACCOUNTS!$M32="",0,$C32*(INDEX(INDIRECT(ACCOUNTS!$M32),1,J$2))) -> 0 | L32: =IF(ACCOUNTS!$U32="",0,$C32) -> 0 | N32: =IF(ACCOUNTS!N32<>"",CONCATENATE(ACCOUNTS!$L32,"_",ACCOUNTS!N32)," ") -> F_STORG_SEAS3_DEM | O32: =IF(ACCOUNTS!O32<>"",CONCATENATE(ACCOUNTS!$L32,"_",ACCOUNTS!O32)," ") ->  | P32: =IF(ACCOUNTS!P32<>"",CONCATENATE(ACCOUNTS!$L32,"_",ACCOUNTS!P32)," ") ->  | Q32: =IF(ACCOUNTS!Q32<>"",CONCATENATE(ACCOUNTS!$L32,"_",ACCOUNTS!Q32)," ") ->  | R32: =IF(ACCOUNTS!R32<>"",CONCATENATE(ACCOUNTS!$L32,"_",ACCOUNTS!R32)," ") ->  | S32: =IF(ACCOUNTS!S32<>"",CONCATENATE(ACCOUNTS!$L32,"_",ACCOUNTS!S32)," ") -> 
A33: =ACCOUNTS!A33 -> 351 | B33: =ACCOUNTS!B33 -> Structures and Improvements | C33: =ACCOUNTS!C33 -> 865050 | D33: =SUM(E33:L33)-C33 -> 0 | E33: =IF(ACCOUNTS!$M33="",0,$C33*(INDEX(INDIRECT(ACCOUNTS!$M33),1,E$2))) -> 865050 | F33: =IF(ACCOUNTS!$M33="",0,$C33*(INDEX(INDIRECT(ACCOUNTS!$M33),1,F$2))) -> 0 | G33: =IF(ACCOUNTS!$M33="",0,$C33*(INDEX(INDIRECT(ACCOUNTS!$M33),1,G$2))) -> 0 | H33: =IF(ACCOUNTS!$M33="",0,$C33*(INDEX(INDIRECT(ACCOUNTS!$M33),1,H$2))) -> 0 | I33: =IF(ACCOUNTS!$M33="",0,$C33*(INDEX(INDIRECT(ACCOUNTS!$M33),1,I$2))) -> 0 | J33: =IF(ACCOUNTS!$M33="",0,$C33*(INDEX(INDIRECT(ACCOUNTS!$M33),1,J$2))) -> 0 | L33: =IF(ACCOUNTS!$U33="",0,$C33) -> 0 | N33: =IF(ACCOUNTS!N33<>"",CONCATENATE(ACCOUNTS!$L33,"_",ACCOUNTS!N33)," ") -> F_STORG_SEAS3_DEM | O33: =IF(ACCOUNTS!O33<>"",CONCATENATE(ACCOUNTS!$L33,"_",ACCOUNTS!O33)," ") ->  | P33: =IF(ACCOUNTS!P33<>"",CONCATENATE(ACCOUNTS!$L33,"_",ACCOUNTS!P33)," ") ->  | Q33: =IF(ACCOUNTS!Q33<>"",CONCATENATE(ACCOUNTS!$L33,"_",ACCOUNTS!Q33)," ") ->  | R33: =IF(ACCOUNTS!R33<>"",CONCATENATE(ACCOUNTS!$L33,"_",ACCOUNTS!R33)," ") ->  | S33: =IF(ACCOUNTS!S33<>"",CONCATENATE(ACCOUNTS!$L33,"_",ACCOUNTS!S33)," ") -> 
A34: =ACCOUNTS!A34 -> 352 | B34: =ACCOUNTS!B34 -> Wells | C34: =ACCOUNTS!C34 -> 15389990 | D34: 0 | E34: =IF(ACCOUNTS!$M34="",0,$C34*(INDEX(INDIRECT(ACCOUNTS!$M34),1,E$2))) -> 15389990 | F34: =IF(ACCOUNTS!$M34="",0,$C34*(INDEX(INDIRECT(ACCOUNTS!$M34),1,F$2))) -> 0 | G34: =IF(ACCOUNTS!$M34="",0,$C34*(INDEX(INDIRECT(ACCOUNTS!$M34),1,G$2))) -> 0 | H34: =IF(ACCOUNTS!$M34="",0,$C34*(INDEX(INDIRECT(ACCOUNTS!$M34),1,H$2))) -> 0 | I34: =IF(ACCOUNTS!$M34="",0,$C34*(INDEX(INDIRECT(ACCOUNTS!$M34),1,I$2))) -> 0 | J34: =IF(ACCOUNTS!$M34="",0,$C34*(INDEX(INDIRECT(ACCOUNTS!$M34),1,J$2))) -> 0 | L34: =IF(ACCOUNTS!$U34="",0,$C34) -> 0 | N34: =IF(ACCOUNTS!N34<>"",CONCATENATE(ACCOUNTS!$L34,"_",ACCOUNTS!N34)," ") -> F_STORG_SEAS3_DEM | O34: =IF(ACCOUNTS!O34<>"",CONCATENATE(ACCOUNTS!$L34,"_",ACCOUNTS!O34)," ") ->  | P34: =IF(ACCOUNTS!P34<>"",CONCATENATE(ACCOUNTS!$L34,"_",ACCOUNTS!P34)," ") ->  | Q34: =IF(ACCOUNTS!Q34<>"",CONCATENATE(ACCOUNTS!$L34,"_",ACCOUNTS!Q34)," ") ->  | R34: =IF(ACCOUNTS!R34<>"",CONCATENATE(ACCOUNTS!$L34,"_",ACCOUNTS!R34)," ") ->  | S34: =IF(ACCOUNTS!S34<>"",CONCATENATE(ACCOUNTS!$L34,"_",ACCOUNTS!S34)," ") -> 
A35: =ACCOUNTS!A35 -> 353 | B35: =ACCOUNTS!B35 -> Lines | C35: =ACCOUNTS!C35 -> 2491660 | D35: 0 | E35: =IF(ACCOUNTS!$M35="",0,$C35*(INDEX(INDIRECT(ACCOUNTS!$M35),1,E$2))) -> 2491660 | F35: =IF(ACCOUNTS!$M35="",0,$C35*(INDEX(INDIRECT(ACCOUNTS!$M35),1,F$2))) -> 0 | G35: =IF(ACCOUNTS!$M35="",0,$C35*(INDEX(INDIRECT(ACCOUNTS!$M35),1,G$2))) -> 0 | H35: =IF(ACCOUNTS!$M35="",0,$C35*(INDEX(INDIRECT(ACCOUNTS!$M35),1,H$2))) -> 0 | I35: =IF(ACCOUNTS!$M35="",0,$C35*(INDEX(INDIRECT(ACCOUNTS!$M35),1,I$2))) -> 0 | J35: =IF(ACCOUNTS!$M35="",0,$C35*(INDEX(INDIRECT(ACCOUNTS!$M35),1,J$2))) -> 0 | L35: =IF(ACCOUNTS!$U35="",0,$C35) -> 0 | N35: =IF(ACCOUNTS!N35<>"",CONCATENATE(ACCOUNTS!$L35,"_",ACCOUNTS!N35)," ") -> F_STORG_SEAS3_DEM | O35: =IF(ACCOUNTS!O35<>"",CONCATENATE(ACCOUNTS!$L35,"_",ACCOUNTS!O35)," ") ->  | P35: =IF(ACCOUNTS!P35<>"",CONCATENATE(ACCOUNTS!$L35,"_",ACCOUNTS!P35)," ") ->  | Q35: =IF(ACCOUNTS!Q35<>"",CONCATENATE(ACCOUNTS!$L35,"_",ACCOUNTS!Q35)," ") ->  | R35: =IF(ACCOUNTS!R35<>"",CONCATENATE(ACCOUNTS!$L35,"_",ACCOUNTS!R35)," ") ->  | S35: =IF(ACCOUNTS!S35<>"",CONCATENATE(ACCOUNTS!$L35,"_",ACCOUNTS!S35)," ") -> 
A36: =ACCOUNTS!A36 -> 354 | B36: =ACCOUNTS!B36 -> Compressor Equipment | C36: =ACCOUNTS!C36 -> 15047130 | D36: 0 | E36: =IF(ACCOUNTS!$M36="",0,$C36*(INDEX(INDIRECT(ACCOUNTS!$M36),1,E$2))) -> 15047130 | F36: =IF(ACCOUNTS!$M36="",0,$C36*(INDEX(INDIRECT(ACCOUNTS!$M36),1,F$2))) -> 0 | G36: =IF(ACCOUNTS!$M36="",0,$C36*(INDEX(INDIRECT(ACCOUNTS!$M36),1,G$2))) -> 0 | H36: =IF(ACCOUNTS!$M36="",0,$C36*(INDEX(INDIRECT(ACCOUNTS!$M36),1,H$2))) -> 0 | I36: =IF(ACCOUNTS!$M36="",0,$C36*(INDEX(INDIRECT(ACCOUNTS!$M36),1,I$2))) -> 0 | J36: =IF(ACCOUNTS!$M36="",0,$C36*(INDEX(INDIRECT(ACCOUNTS!$M36),1,J$2))) -> 0 | L36: =IF(ACCOUNTS!$U36="",0,$C36) -> 0 | N36: =IF(ACCOUNTS!N36<>"",CONCATENATE(ACCOUNTS!$L36,"_",ACCOUNTS!N36)," ") -> F_STORG_SEAS3_DEM | O36: =IF(ACCOUNTS!O36<>"",CONCATENATE(ACCOUNTS!$L36,"_",ACCOUNTS!O36)," ") ->  | P36: =IF(ACCOUNTS!P36<>"",CONCATENATE(ACCOUNTS!$L36,"_",ACCOUNTS!P36)," ") ->  | Q36: =IF(ACCOUNTS!Q36<>"",CONCATENATE(ACCOUNTS!$L36,"_",ACCOUNTS!Q36)," ") ->  | R36: =IF(ACCOUNTS!R36<>"",CONCATENATE(ACCOUNTS!$L36,"_",ACCOUNTS!R36)," ") ->  | S36: =IF(ACCOUNTS!S36<>"",CONCATENATE(ACCOUNTS!$L36,"_",ACCOUNTS!S36)," ") -> 
A37: =ACCOUNTS!A37 -> 355 | B37: =ACCOUNTS!B37 -> Measuring and Regulating Equipment | C37: =ACCOUNTS!C37 -> 451090 | D37: 0 | E37: =IF(ACCOUNTS!$M37="",0,$C37*(INDEX(INDIRECT(ACCOUNTS!$M37),1,E$2))) -> 451090 | F37: =IF(ACCOUNTS!$M37="",0,$C37*(INDEX(INDIRECT(ACCOUNTS!$M37),1,F$2))) -> 0 | G37: =IF(ACCOUNTS!$M37="",0,$C37*(INDEX(INDIRECT(ACCOUNTS!$M37),1,G$2))) -> 0 | H37: =IF(ACCOUNTS!$M37="",0,$C37*(INDEX(INDIRECT(ACCOUNTS!$M37),1,H$2))) -> 0 | I37: =IF(ACCOUNTS!$M37="",0,$C37*(INDEX(INDIRECT(ACCOUNTS!$M37),1,I$2))) -> 0 | J37: =IF(ACCOUNTS!$M37="",0,$C37*(INDEX(INDIRECT(ACCOUNTS!$M37),1,J$2))) -> 0 | L37: =IF(ACCOUNTS!$U37="",0,$C37) -> 0 | N37: =IF(ACCOUNTS!N37<>"",CONCATENATE(ACCOUNTS!$L37,"_",ACCOUNTS!N37)," ") -> F_STORG_SEAS3_DEM | O37: =IF(ACCOUNTS!O37<>"",CONCATENATE(ACCOUNTS!$L37,"_",ACCOUNTS!O37)," ") ->  | P37: =IF(ACCOUNTS!P37<>"",CONCATENATE(ACCOUNTS!$L37,"_",ACCOUNTS!P37)," ") ->  | Q37: =IF(ACCOUNTS!Q37<>"",CONCATENATE(ACCOUNTS!$L37,"_",ACCOUNTS!Q37)," ") ->  | R37: =IF(ACCOUNTS!R37<>"",CONCATENATE(ACCOUNTS!$L37,"_",ACCOUNTS!R37)," ") ->  | S37: =IF(ACCOUNTS!S37<>"",CONCATENATE(ACCOUNTS!$L37,"_",ACCOUNTS!S37)," ") -> 
A38: =ACCOUNTS!A38 -> 356 | B38: =ACCOUNTS!B38 -> Purification Equipment | C38: =ACCOUNTS!C38 -> 2231750 | D38: 0 | E38: =IF(ACCOUNTS!$M38="",0,$C38*(INDEX(INDIRECT(ACCOUNTS!$M38),1,E$2))) -> 2231750 | F38: =IF(ACCOUNTS!$M38="",0,$C38*(INDEX(INDIRECT(ACCOUNTS!$M38),1,F$2))) -> 0 | G38: =IF(ACCOUNTS!$M38="",0,$C38*(INDEX(INDIRECT(ACCOUNTS!$M38),1,G$2))) -> 0 | H38: =IF(ACCOUNTS!$M38="",0,$C38*(INDEX(INDIRECT(ACCOUNTS!$M38),1,H$2))) -> 0 | I38: =IF(ACCOUNTS!$M38="",0,$C38*(INDEX(INDIRECT(ACCOUNTS!$M38),1,I$2))) -> 0 | J38: =IF(ACCOUNTS!$M38="",0,$C38*(INDEX(INDIRECT(ACCOUNTS!$M38),1,J$2))) -> 0 | L38: =IF(ACCOUNTS!$U38="",0,$C38) -> 0 | N38: =IF(ACCOUNTS!N38<>"",CONCATENATE(ACCOUNTS!$L38,"_",ACCOUNTS!N38)," ") -> F_STORG_SEAS3_DEM | O38: =IF(ACCOUNTS!O38<>"",CONCATENATE(ACCOUNTS!$L38,"_",ACCOUNTS!O38)," ") ->  | P38: =IF(ACCOUNTS!P38<>"",CONCATENATE(ACCOUNTS!$L38,"_",ACCOUNTS!P38)," ") ->  | Q38: =IF(ACCOUNTS!Q38<>"",CONCATENATE(ACCOUNTS!$L38,"_",ACCOUNTS!Q38)," ") ->  | R38: =IF(ACCOUNTS!R38<>"",CONCATENATE(ACCOUNTS!$L38,"_",ACCOUNTS!R38)," ") ->  | S38: =IF(ACCOUNTS!S38<>"",CONCATENATE(ACCOUNTS!$L38,"_",ACCOUNTS!S38)," ") -> 
A39: =ACCOUNTS!A39 -> 357 | B39: =ACCOUNTS!B39 -> Other Equipment | C39: =ACCOUNTS!C39 -> 333380 | D39: =SUM(E39:L39)-C39 -> 0 | E39: =IF(ACCOUNTS!$M39="",0,$C39*(INDEX(INDIRECT(ACCOUNTS!$M39),1,E$2))) -> 333380 | F39: =IF(ACCOUNTS!$M39="",0,$C39*(INDEX(INDIRECT(ACCOUNTS!$M39),1,F$2))) -> 0 | G39: =IF(ACCOUNTS!$M39="",0,$C39*(INDEX(INDIRECT(ACCOUNTS!$M39),1,G$2))) -> 0 | H39: =IF(ACCOUNTS!$M39="",0,$C39*(INDEX(INDIRECT(ACCOUNTS!$M39),1,H$2))) -> 0 | I39: =IF(ACCOUNTS!$M39="",0,$C39*(INDEX(INDIRECT(ACCOUNTS!$M39),1,I$2))) -> 0 | J39: =IF(ACCOUNTS!$M39="",0,$C39*(INDEX(INDIRECT(ACCOUNTS!$M39),1,J$2))) -> 0 | L39: =IF(ACCOUNTS!$U39="",0,$C39) -> 0 | N39: =IF(ACCOUNTS!N39<>"",CONCATENATE(ACCOUNTS!$L39,"_",ACCOUNTS!N39)," ") -> F_STORG_SEAS3_DEM | O39: =IF(ACCOUNTS!O39<>"",CONCATENATE(ACCOUNTS!$L39,"_",ACCOUNTS!O39)," ") ->  | P39: =IF(ACCOUNTS!P39<>"",CONCATENATE(ACCOUNTS!$L39,"_",ACCOUNTS!P39)," ") ->  | Q39: =IF(ACCOUNTS!Q39<>"",CONCATENATE(ACCOUNTS!$L39,"_",ACCOUNTS!Q39)," ") ->  | R39: =IF(ACCOUNTS!R39<>"",CONCATENATE(ACCOUNTS!$L39,"_",ACCOUNTS!R39)," ") ->  | S39: =IF(ACCOUNTS!S39<>"",CONCATENATE(ACCOUNTS!$L39,"_",ACCOUNTS!S39)," ") -> 
B40: =ACCOUNTS!B40 -> Sub-total | C40: =SUM(C31:C39) -> 47975000 | D40: 0 | E40: =SUM(E31:E39) -> 37900250 | F40: 10074750 | G40: 0 | H40: 0 | I40: 0 | J40: 0 | L40: =SUM(L31:L39) -> 0
D41: 0
B42: =ACCOUNTS!B42 -> Natural Gas Local Storage | D42: 0
A43: =ACCOUNTS!A43 -> 360 | B43: =ACCOUNTS!B43 -> Land & Land Rights | C43: =ACCOUNTS!C43 -> 1705000 | D43: 0 | E43: =IF(ACCOUNTS!$M43="",0,$C43*(INDEX(INDIRECT(ACCOUNTS!$M43),1,E$2))) -> 1705000 | F43: =IF(ACCOUNTS!$M43="",0,$C43*(INDEX(INDIRECT(ACCOUNTS!$M43),1,F$2))) -> 0 | G43: =IF(ACCOUNTS!$M43="",0,$C43*(INDEX(INDIRECT(ACCOUNTS!$M43),1,G$2))) -> 0 | H43: =IF(ACCOUNTS!$M43="",0,$C43*(INDEX(INDIRECT(ACCOUNTS!$M43),1,H$2))) -> 0 | I43: =IF(ACCOUNTS!$M43="",0,$C43*(INDEX(INDIRECT(ACCOUNTS!$M43),1,I$2))) -> 0 | J43: =IF(ACCOUNTS!$M43="",0,$C43*(INDEX(INDIRECT(ACCOUNTS!$M43),1,J$2))) -> 0 | L43: =IF(ACCOUNTS!$U43="",0,$C43) -> 0 | N43: =IF(ACCOUNTS!N43<>"",CONCATENATE(ACCOUNTS!$L43,"_",ACCOUNTS!N43)," ") -> F_STORG_SEAS3_DEM | O43: =IF(ACCOUNTS!O43<>"",CONCATENATE(ACCOUNTS!$L43,"_",ACCOUNTS!O43)," ") ->  | P43: =IF(ACCOUNTS!P43<>"",CONCATENATE(ACCOUNTS!$L43,"_",ACCOUNTS!P43)," ") ->  | Q43: =IF(ACCOUNTS!Q43<>"",CONCATENATE(ACCOUNTS!$L43,"_",ACCOUNTS!Q43)," ") ->  | R43: =IF(ACCOUNTS!R43<>"",CONCATENATE(ACCOUNTS!$L43,"_",ACCOUNTS!R43)," ") ->  | S43: =IF(ACCOUNTS!S43<>"",CONCATENATE(ACCOUNTS!$L43,"_",ACCOUNTS!S43)," ") -> 
A44: =ACCOUNTS!A44 -> 361 | B44: =ACCOUNTS!B44 -> Structures & improvement | C44: =ACCOUNTS!C44 -> 4156000 | D44: 0 | E44: =IF(ACCOUNTS!$M44="",0,$C44*(INDEX(INDIRECT(ACCOUNTS!$M44),1,E$2))) -> 4156000 | F44: =IF(ACCOUNTS!$M44="",0,$C44*(INDEX(INDIRECT(ACCOUNTS!$M44),1,F$2))) -> 0 | G44: =IF(ACCOUNTS!$M44="",0,$C44*(INDEX(INDIRECT(ACCOUNTS!$M44),1,G$2))) -> 0 | H44: =IF(ACCOUNTS!$M44="",0,$C44*(INDEX(INDIRECT(ACCOUNTS!$M44),1,H$2))) -> 0 | I44: =IF(ACCOUNTS!$M44="",0,$C44*(INDEX(INDIRECT(ACCOUNTS!$M44),1,I$2))) -> 0 | J44: =IF(ACCOUNTS!$M44="",0,$C44*(INDEX(INDIRECT(ACCOUNTS!$M44),1,J$2))) -> 0 | L44: =IF(ACCOUNTS!$U44="",0,$C44) -> 0 | N44: =IF(ACCOUNTS!N44<>"",CONCATENATE(ACCOUNTS!$L44,"_",ACCOUNTS!N44)," ") -> F_STORG_SEAS3_DEM | O44: =IF(ACCOUNTS!O44<>"",CONCATENATE(ACCOUNTS!$L44,"_",ACCOUNTS!O44)," ") ->  | P44: =IF(ACCOUNTS!P44<>"",CONCATENATE(ACCOUNTS!$L44,"_",ACCOUNTS!P44)," ") ->  | Q44: =IF(ACCOUNTS!Q44<>"",CONCATENATE(ACCOUNTS!$L44,"_",ACCOUNTS!Q44)," ") ->  | R44: =IF(ACCOUNTS!R44<>"",CONCATENATE(ACCOUNTS!$L44,"_",ACCOUNTS!R44)," ") ->  | S44: =IF(ACCOUNTS!S44<>"",CONCATENATE(ACCOUNTS!$L44,"_",ACCOUNTS!S44)," ") -> 
A45: =ACCOUNTS!A45 -> 362 | B45: =ACCOUNTS!B45 -> Gas Holders | C45: =ACCOUNTS!C45 -> 3683000 | D45: 0 | E45: =IF(ACCOUNTS!$M45="",0,$C45*(INDEX(INDIRECT(ACCOUNTS!$M45),1,E$2))) -> 3683000 | F45: =IF(ACCOUNTS!$M45="",0,$C45*(INDEX(INDIRECT(ACCOUNTS!$M45),1,F$2))) -> 0 | G45: =IF(ACCOUNTS!$M45="",0,$C45*(INDEX(INDIRECT(ACCOUNTS!$M45),1,G$2))) -> 0 | H45: =IF(ACCOUNTS!$M45="",0,$C45*(INDEX(INDIRECT(ACCOUNTS!$M45),1,H$2))) -> 0 | I45: =IF(ACCOUNTS!$M45="",0,$C45*(INDEX(INDIRECT(ACCOUNTS!$M45),1,I$2))) -> 0 | J45: =IF(ACCOUNTS!$M45="",0,$C45*(INDEX(INDIRECT(ACCOUNTS!$M45),1,J$2))) -> 0 | L45: =IF(ACCOUNTS!$U45="",0,$C45) -> 0 | N45: =IF(ACCOUNTS!N45<>"",CONCATENATE(ACCOUNTS!$L45,"_",ACCOUNTS!N45)," ") -> F_STORG_SEAS3_DEM | O45: =IF(ACCOUNTS!O45<>"",CONCATENATE(ACCOUNTS!$L45,"_",ACCOUNTS!O45)," ") ->  | P45: =IF(ACCOUNTS!P45<>"",CONCATENATE(ACCOUNTS!$L45,"_",ACCOUNTS!P45)," ") ->  | Q45: =IF(ACCOUNTS!Q45<>"",CONCATENATE(ACCOUNTS!$L45,"_",ACCOUNTS!Q45)," ") ->  | R45: =IF(ACCOUNTS!R45<>"",CONCATENATE(ACCOUNTS!$L45,"_",ACCOUNTS!R45)," ") ->  | S45: =IF(ACCOUNTS!S45<>"",CONCATENATE(ACCOUNTS!$L45,"_",ACCOUNTS!S45)," ") -> 
A46: =ACCOUNTS!A46 -> 363 | B46: =ACCOUNTS!B46 -> Purification Equipment | C46: =ACCOUNTS!C46 -> 3984000 | D46: 0 | E46: =IF(ACCOUNTS!$M46="",0,$C46*(INDEX(INDIRECT(ACCOUNTS!$M46),1,E$2))) -> 3984000 | F46: =IF(ACCOUNTS!$M46="",0,$C46*(INDEX(INDIRECT(ACCOUNTS!$M46),1,F$2))) -> 0 | G46: =IF(ACCOUNTS!$M46="",0,$C46*(INDEX(INDIRECT(ACCOUNTS!$M46),1,G$2))) -> 0 | H46: =IF(ACCOUNTS!$M46="",0,$C46*(INDEX(INDIRECT(ACCOUNTS!$M46),1,H$2))) -> 0 | I46: =IF(ACCOUNTS!$M46="",0,$C46*(INDEX(INDIRECT(ACCOUNTS!$M46),1,I$2))) -> 0 | J46: =IF(ACCOUNTS!$M46="",0,$C46*(INDEX(INDIRECT(ACCOUNTS!$M46),1,J$2))) -> 0 | L46: =IF(ACCOUNTS!$U46="",0,$C46) -> 0 | N46: =IF(ACCOUNTS!N46<>"",CONCATENATE(ACCOUNTS!$L46,"_",ACCOUNTS!N46)," ") -> F_STORG_SEAS3_DEM | O46: =IF(ACCOUNTS!O46<>"",CONCATENATE(ACCOUNTS!$L46,"_",ACCOUNTS!O46)," ") ->  | P46: =IF(ACCOUNTS!P46<>"",CONCATENATE(ACCOUNTS!$L46,"_",ACCOUNTS!P46)," ") ->  | Q46: =IF(ACCOUNTS!Q46<>"",CONCATENATE(ACCOUNTS!$L46,"_",ACCOUNTS!Q46)," ") ->  | R46: =IF(ACCOUNTS!R46<>"",CONCATENATE(ACCOUNTS!$L46,"_",ACCOUNTS!R46)," ") ->  | S46: =IF(ACCOUNTS!S46<>"",CONCATENATE(ACCOUNTS!$L46,"_",ACCOUNTS!S46)," ") -> 
A47: =ACCOUNTS!A47 -> 364 | B47: =ACCOUNTS!B47 -> Terminating & Processing | C47: =ACCOUNTS!C47 -> 971000 | D47: 0 | E47: =IF(ACCOUNTS!$M47="",0,$C47*(INDEX(INDIRECT(ACCOUNTS!$M47),1,E$2))) -> 971000 | F47: =IF(ACCOUNTS!$M47="",0,$C47*(INDEX(INDIRECT(ACCOUNTS!$M47),1,F$2))) -> 0 | G47: =IF(ACCOUNTS!$M47="",0,$C47*(INDEX(INDIRECT(ACCOUNTS!$M47),1,G$2))) -> 0 | H47: =IF(ACCOUNTS!$M47="",0,$C47*(INDEX(INDIRECT(ACCOUNTS!$M47),1,H$2))) -> 0 | I47: =IF(ACCOUNTS!$M47="",0,$C47*(INDEX(INDIRECT(ACCOUNTS!$M47),1,I$2))) -> 0 | J47: =IF(ACCOUNTS!$M47="",0,$C47*(INDEX(INDIRECT(ACCOUNTS!$M47),1,J$2))) -> 0 | L47: =IF(ACCOUNTS!$U47="",0,$C47) -> 0 | N47: =IF(ACCOUNTS!N47<>"",CONCATENATE(ACCOUNTS!$L47,"_",ACCOUNTS!N47)," ") -> F_STORG_SEAS3_DEM | O47: =IF(ACCOUNTS!O47<>"",CONCATENATE(ACCOUNTS!$L47,"_",ACCOUNTS!O47)," ") ->  | P47: =IF(ACCOUNTS!P47<>"",CONCATENATE(ACCOUNTS!$L47,"_",ACCOUNTS!P47)," ") ->  | Q47: =IF(ACCOUNTS!Q47<>"",CONCATENATE(ACCOUNTS!$L47,"_",ACCOUNTS!Q47)," ") ->  | R47: =IF(ACCOUNTS!R47<>"",CONCATENATE(ACCOUNTS!$L47,"_",ACCOUNTS!R47)," ") ->  | S47: =IF(ACCOUNTS!S47<>"",CONCATENATE(ACCOUNTS!$L47,"_",ACCOUNTS!S47)," ") -> 
A48: =ACCOUNTS!A48 -> ~ | B48: =ACCOUNTS!B48 -> ~ | C48: =ACCOUNTS!C48 -> 0 | D48: 0 | E48: =IF(ACCOUNTS!$M48="",0,$C48*(INDEX(INDIRECT(ACCOUNTS!$M48),1,E$2))) -> 0 | F48: =IF(ACCOUNTS!$M48="",0,$C48*(INDEX(INDIRECT(ACCOUNTS!$M48),1,F$2))) -> 0 | G48: =IF(ACCOUNTS!$M48="",0,$C48*(INDEX(INDIRECT(ACCOUNTS!$M48),1,G$2))) -> 0 | H48: =IF(ACCOUNTS!$M48="",0,$C48*(INDEX(INDIRECT(ACCOUNTS!$M48),1,H$2))) -> 0 | I48: =IF(ACCOUNTS!$M48="",0,$C48*(INDEX(INDIRECT(ACCOUNTS!$M48),1,I$2))) -> 0 | J48: =IF(ACCOUNTS!$M48="",0,$C48*(INDEX(INDIRECT(ACCOUNTS!$M48),1,J$2))) -> 0 | L48: =IF(ACCOUNTS!$U48="",0,$C48) -> 0 | N48: =IF(ACCOUNTS!N48<>"",CONCATENATE(ACCOUNTS!$L48,"_",ACCOUNTS!N48)," ") ->  | O48: =IF(ACCOUNTS!O48<>"",CONCATENATE(ACCOUNTS!$L48,"_",ACCOUNTS!O48)," ") ->  | P48: =IF(ACCOUNTS!P48<>"",CONCATENATE(ACCOUNTS!$L48,"_",ACCOUNTS!P48)," ") ->  | Q48: =IF(ACCOUNTS!Q48<>"",CONCATENATE(ACCOUNTS!$L48,"_",ACCOUNTS!Q48)," ") ->  | R48: =IF(ACCOUNTS!R48<>"",CONCATENATE(ACCOUNTS!$L48,"_",ACCOUNTS!R48)," ") ->  | S48: =IF(ACCOUNTS!S48<>"",CONCATENATE(ACCOUNTS!$L48,"_",ACCOUNTS!S48)," ") -> 
B49: =ACCOUNTS!B49 -> Sub-total | C49: =SUM(C43:C48) -> 14499000 | D49: 0 | E49: =SUM(E43:E48) -> 14499000 | F49: 0 | G49: 0 | H49: 0 | I49: 0 | J49: 0 | L49: =SUM(L43:L48) -> 0
D50: 0
B51: =ACCOUNTS!B51 -> Transmission Plant | D51: 0
A52: =ACCOUNTS!A52 -> 365 | B52: =ACCOUNTS!B52 -> Land and Land Rights | C52: =ACCOUNTS!C52 -> 0 | D52: 0 | E52: =IF(ACCOUNTS!$M52="",0,$C52*(INDEX(INDIRECT(ACCOUNTS!$M52),1,E$2))) -> 0 | F52: =IF(ACCOUNTS!$M52="",0,$C52*(INDEX(INDIRECT(ACCOUNTS!$M52),1,F$2))) -> 0 | G52: =IF(ACCOUNTS!$M52="",0,$C52*(INDEX(INDIRECT(ACCOUNTS!$M52),1,G$2))) -> 0 | H52: =IF(ACCOUNTS!$M52="",0,$C52*(INDEX(INDIRECT(ACCOUNTS!$M52),1,H$2))) -> 0 | I52: =IF(ACCOUNTS!$M52="",0,$C52*(INDEX(INDIRECT(ACCOUNTS!$M52),1,I$2))) -> 0 | J52: =IF(ACCOUNTS!$M52="",0,$C52*(INDEX(INDIRECT(ACCOUNTS!$M52),1,J$2))) -> 0 | L52: =IF(ACCOUNTS!$U52="",0,$C52) -> 0 | N52: =IF(ACCOUNTS!N52<>"",CONCATENATE(ACCOUNTS!$L52,"_",ACCOUNTS!N52)," ") ->  | O52: =IF(ACCOUNTS!O52<>"",CONCATENATE(ACCOUNTS!$L52,"_",ACCOUNTS!O52)," ") ->  | P52: =IF(ACCOUNTS!P52<>"",CONCATENATE(ACCOUNTS!$L52,"_",ACCOUNTS!P52)," ") ->  | Q52: =IF(ACCOUNTS!Q52<>"",CONCATENATE(ACCOUNTS!$L52,"_",ACCOUNTS!Q52)," ") ->  | R52: =IF(ACCOUNTS!R52<>"",CONCATENATE(ACCOUNTS!$L52,"_",ACCOUNTS!R52)," ") ->  | S52: =IF(ACCOUNTS!S52<>"",CONCATENATE(ACCOUNTS!$L52,"_",ACCOUNTS!S52)," ") -> 
A53: =ACCOUNTS!A53 -> 366 | B53: =ACCOUNTS!B53 -> Structures and Improvements | C53: =ACCOUNTS!C53 -> 0 | D53: 0 | E53: =IF(ACCOUNTS!$M53="",0,$C53*(INDEX(INDIRECT(ACCOUNTS!$M53),1,E$2))) -> 0 | F53: =IF(ACCOUNTS!$M53="",0,$C53*(INDEX(INDIRECT(ACCOUNTS!$M53),1,F$2))) -> 0 | G53: =IF(ACCOUNTS!$M53="",0,$C53*(INDEX(INDIRECT(ACCOUNTS!$M53),1,G$2))) -> 0 | H53: =IF(ACCOUNTS!$M53="",0,$C53*(INDEX(INDIRECT(ACCOUNTS!$M53),1,H$2))) -> 0 | I53: =IF(ACCOUNTS!$M53="",0,$C53*(INDEX(INDIRECT(ACCOUNTS!$M53),1,I$2))) -> 0 | J53: =IF(ACCOUNTS!$M53="",0,$C53*(INDEX(INDIRECT(ACCOUNTS!$M53),1,J$2))) -> 0 | L53: =IF(ACCOUNTS!$U53="",0,$C53) -> 0 | N53: =IF(ACCOUNTS!N53<>"",CONCATENATE(ACCOUNTS!$L53,"_",ACCOUNTS!N53)," ") ->  | O53: =IF(ACCOUNTS!O53<>"",CONCATENATE(ACCOUNTS!$L53,"_",ACCOUNTS!O53)," ") ->  | P53: =IF(ACCOUNTS!P53<>"",CONCATENATE(ACCOUNTS!$L53,"_",ACCOUNTS!P53)," ") ->  | Q53: =IF(ACCOUNTS!Q53<>"",CONCATENATE(ACCOUNTS!$L53,"_",ACCOUNTS!Q53)," ") ->  | R53: =IF(ACCOUNTS!R53<>"",CONCATENATE(ACCOUNTS!$L53,"_",ACCOUNTS!R53)," ") ->  | S53: =IF(ACCOUNTS!S53<>"",CONCATENATE(ACCOUNTS!$L53,"_",ACCOUNTS!S53)," ") -> 
A54: =ACCOUNTS!A54 -> 367 | B54: =ACCOUNTS!B54 -> Mains | C54: =ACCOUNTS!C54 -> 0 | D54: 0 | E54: =IF(ACCOUNTS!$M54="",0,$C54*(INDEX(INDIRECT(ACCOUNTS!$M54),1,E$2))) -> 0 | F54: =IF(ACCOUNTS!$M54="",0,$C54*(INDEX(INDIRECT(ACCOUNTS!$M54),1,F$2))) -> 0 | G54: =IF(ACCOUNTS!$M54="",0,$C54*(INDEX(INDIRECT(ACCOUNTS!$M54),1,G$2))) -> 0 | H54: =IF(ACCOUNTS!$M54="",0,$C54*(INDEX(INDIRECT(ACCOUNTS!$M54),1,H$2))) -> 0 | I54: =IF(ACCOUNTS!$M54="",0,$C54*(INDEX(INDIRECT(ACCOUNTS!$M54),1,I$2))) -> 0 | J54: =IF(ACCOUNTS!$M54="",0,$C54*(INDEX(INDIRECT(ACCOUNTS!$M54),1,J$2))) -> 0 | L54: =IF(ACCOUNTS!$U54="",0,$C54) -> 0 | N54: =IF(ACCOUNTS!N54<>"",CONCATENATE(ACCOUNTS!$L54,"_",ACCOUNTS!N54)," ") ->  | O54: =IF(ACCOUNTS!O54<>"",CONCATENATE(ACCOUNTS!$L54,"_",ACCOUNTS!O54)," ") ->  | P54: =IF(ACCOUNTS!P54<>"",CONCATENATE(ACCOUNTS!$L54,"_",ACCOUNTS!P54)," ") ->  | Q54: =IF(ACCOUNTS!Q54<>"",CONCATENATE(ACCOUNTS!$L54,"_",ACCOUNTS!Q54)," ") ->  | R54: =IF(ACCOUNTS!R54<>"",CONCATENATE(ACCOUNTS!$L54,"_",ACCOUNTS!R54)," ") ->  | S54: =IF(ACCOUNTS!S54<>"",CONCATENATE(ACCOUNTS!$L54,"_",ACCOUNTS!S54)," ") -> 
A55: =ACCOUNTS!A55 -> 369 | B55: =ACCOUNTS!B55 -> M&R Station Equipment | C55: =ACCOUNTS!C55 -> 0 | D55: 0 | E55: =IF(ACCOUNTS!$M55="",0,$C55*(INDEX(INDIRECT(ACCOUNTS!$M55),1,E$2))) -> 0 | F55: =IF(ACCOUNTS!$M55="",0,$C55*(INDEX(INDIRECT(ACCOUNTS!$M55),1,F$2))) -> 0 | G55: =IF(ACCOUNTS!$M55="",0,$C55*(INDEX(INDIRECT(ACCOUNTS!$M55),1,G$2))) -> 0 | H55: =IF(ACCOUNTS!$M55="",0,$C55*(INDEX(INDIRECT(ACCOUNTS!$M55),1,H$2))) -> 0 | I55: =IF(ACCOUNTS!$M55="",0,$C55*(INDEX(INDIRECT(ACCOUNTS!$M55),1,I$2))) -> 0 | J55: =IF(ACCOUNTS!$M55="",0,$C55*(INDEX(INDIRECT(ACCOUNTS!$M55),1,J$2))) -> 0 | L55: =IF(ACCOUNTS!$U55="",0,$C55) -> 0 | N55: =IF(ACCOUNTS!N55<>"",CONCATENATE(ACCOUNTS!$L55,"_",ACCOUNTS!N55)," ") ->  | O55: =IF(ACCOUNTS!O55<>"",CONCATENATE(ACCOUNTS!$L55,"_",ACCOUNTS!O55)," ") ->  | P55: =IF(ACCOUNTS!P55<>"",CONCATENATE(ACCOUNTS!$L55,"_",ACCOUNTS!P55)," ") ->  | Q55: =IF(ACCOUNTS!Q55<>"",CONCATENATE(ACCOUNTS!$L55,"_",ACCOUNTS!Q55)," ") ->  | R55: =IF(ACCOUNTS!R55<>"",CONCATENATE(ACCOUNTS!$L55,"_",ACCOUNTS!R55)," ") ->  | S55: =IF(ACCOUNTS!S55<>"",CONCATENATE(ACCOUNTS!$L55,"_",ACCOUNTS!S55)," ") -> 
A56: =ACCOUNTS!A56 -> 372 | B56: =ACCOUNTS!B56 -> Easements | C56: =ACCOUNTS!C56 -> 0 | D56: 0 | E56: =IF(ACCOUNTS!$M56="",0,$C56*(INDEX(INDIRECT(ACCOUNTS!$M56),1,E$2))) -> 0 | F56: =IF(ACCOUNTS!$M56="",0,$C56*(INDEX(INDIRECT(ACCOUNTS!$M56),1,F$2))) -> 0 | G56: =IF(ACCOUNTS!$M56="",0,$C56*(INDEX(INDIRECT(ACCOUNTS!$M56),1,G$2))) -> 0 | H56: =IF(ACCOUNTS!$M56="",0,$C56*(INDEX(INDIRECT(ACCOUNTS!$M56),1,H$2))) -> 0 | I56: =IF(ACCOUNTS!$M56="",0,$C56*(INDEX(INDIRECT(ACCOUNTS!$M56),1,I$2))) -> 0 | J56: =IF(ACCOUNTS!$M56="",0,$C56*(INDEX(INDIRECT(ACCOUNTS!$M56),1,J$2))) -> 0 | L56: =IF(ACCOUNTS!$U56="",0,$C56) -> 0 | N56: =IF(ACCOUNTS!N56<>"",CONCATENATE(ACCOUNTS!$L56,"_",ACCOUNTS!N56)," ") ->  | O56: =IF(ACCOUNTS!O56<>"",CONCATENATE(ACCOUNTS!$L56,"_",ACCOUNTS!O56)," ") ->  | P56: =IF(ACCOUNTS!P56<>"",CONCATENATE(ACCOUNTS!$L56,"_",ACCOUNTS!P56)," ") ->  | Q56: =IF(ACCOUNTS!Q56<>"",CONCATENATE(ACCOUNTS!$L56,"_",ACCOUNTS!Q56)," ") ->  | R56: =IF(ACCOUNTS!R56<>"",CONCATENATE(ACCOUNTS!$L56,"_",ACCOUNTS!R56)," ") ->  | S56: =IF(ACCOUNTS!S56<>"",CONCATENATE(ACCOUNTS!$L56,"_",ACCOUNTS!S56)," ") -> 
A57: =ACCOUNTS!A57 -> ~ | B57: =ACCOUNTS!B57 -> ~ | C57: =ACCOUNTS!C57 -> 0 | D57: 0 | E57: =IF(ACCOUNTS!$M57="",0,$C57*(INDEX(INDIRECT(ACCOUNTS!$M57),1,E$2))) -> 0 | F57: =IF(ACCOUNTS!$M57="",0,$C57*(INDEX(INDIRECT(ACCOUNTS!$M57),1,F$2))) -> 0 | G57: =IF(ACCOUNTS!$M57="",0,$C57*(INDEX(INDIRECT(ACCOUNTS!$M57),1,G$2))) -> 0 | H57: =IF(ACCOUNTS!$M57="",0,$C57*(INDEX(INDIRECT(ACCOUNTS!$M57),1,H$2))) -> 0 | I57: =IF(ACCOUNTS!$M57="",0,$C57*(INDEX(INDIRECT(ACCOUNTS!$M57),1,I$2))) -> 0 | J57: =IF(ACCOUNTS!$M57="",0,$C57*(INDEX(INDIRECT(ACCOUNTS!$M57),1,J$2))) -> 0 | L57: =IF(ACCOUNTS!$U57="",0,$C57) -> 0 | N57: =IF(ACCOUNTS!N57<>"",CONCATENATE(ACCOUNTS!$L57,"_",ACCOUNTS!N57)," ") ->  | O57: =IF(ACCOUNTS!O57<>"",CONCATENATE(ACCOUNTS!$L57,"_",ACCOUNTS!O57)," ") ->  | P57: =IF(ACCOUNTS!P57<>"",CONCATENATE(ACCOUNTS!$L57,"_",ACCOUNTS!P57)," ") ->  | Q57: =IF(ACCOUNTS!Q57<>"",CONCATENATE(ACCOUNTS!$L57,"_",ACCOUNTS!Q57)," ") ->  | R57: =IF(ACCOUNTS!R57<>"",CONCATENATE(ACCOUNTS!$L57,"_",ACCOUNTS!R57)," ") ->  | S57: =IF(ACCOUNTS!S57<>"",CONCATENATE(ACCOUNTS!$L57,"_",ACCOUNTS!S57)," ") -> 
A58: =ACCOUNTS!A58 -> ~ | B58: =ACCOUNTS!B58 -> ~ | C58: =ACCOUNTS!C58 -> 0 | D58: 0 | E58: =IF(ACCOUNTS!$M58="",0,$C58*(INDEX(INDIRECT(ACCOUNTS!$M58),1,E$2))) -> 0 | F58: =IF(ACCOUNTS!$M58="",0,$C58*(INDEX(INDIRECT(ACCOUNTS!$M58),1,F$2))) -> 0 | G58: =IF(ACCOUNTS!$M58="",0,$C58*(INDEX(INDIRECT(ACCOUNTS!$M58),1,G$2))) -> 0 | H58: =IF(ACCOUNTS!$M58="",0,$C58*(INDEX(INDIRECT(ACCOUNTS!$M58),1,H$2))) -> 0 | I58: =IF(ACCOUNTS!$M58="",0,$C58*(INDEX(INDIRECT(ACCOUNTS!$M58),1,I$2))) -> 0 | J58: =IF(ACCOUNTS!$M58="",0,$C58*(INDEX(INDIRECT(ACCOUNTS!$M58),1,J$2))) -> 0 | L58: =IF(ACCOUNTS!$U58="",0,$C58) -> 0 | N58: =IF(ACCOUNTS!N58<>"",CONCATENATE(ACCOUNTS!$L58,"_",ACCOUNTS!N58)," ") ->  | O58: =IF(ACCOUNTS!O58<>"",CONCATENATE(ACCOUNTS!$L58,"_",ACCOUNTS!O58)," ") ->  | P58: =IF(ACCOUNTS!P58<>"",CONCATENATE(ACCOUNTS!$L58,"_",ACCOUNTS!P58)," ") ->  | Q58: =IF(ACCOUNTS!Q58<>"",CONCATENATE(ACCOUNTS!$L58,"_",ACCOUNTS!Q58)," ") ->  | R58: =IF(ACCOUNTS!R58<>"",CONCATENATE(ACCOUNTS!$L58,"_",ACCOUNTS!R58)," ") ->  | S58: =IF(ACCOUNTS!S58<>"",CONCATENATE(ACCOUNTS!$L58,"_",ACCOUNTS!S58)," ") -> 
A59: =ACCOUNTS!A59 -> ~ | B59: =ACCOUNTS!B59 -> ~ | C59: =ACCOUNTS!C59 -> 0 | D59: 0 | E59: =IF(ACCOUNTS!$M59="",0,$C59*(INDEX(INDIRECT(ACCOUNTS!$M59),1,E$2))) -> 0 | F59: =IF(ACCOUNTS!$M59="",0,$C59*(INDEX(INDIRECT(ACCOUNTS!$M59),1,F$2))) -> 0 | G59: =IF(ACCOUNTS!$M59="",0,$C59*(INDEX(INDIRECT(ACCOUNTS!$M59),1,G$2))) -> 0 | H59: =IF(ACCOUNTS!$M59="",0,$C59*(INDEX(INDIRECT(ACCOUNTS!$M59),1,H$2))) -> 0 | I59: =IF(ACCOUNTS!$M59="",0,$C59*(INDEX(INDIRECT(ACCOUNTS!$M59),1,I$2))) -> 0 | J59: =IF(ACCOUNTS!$M59="",0,$C59*(INDEX(INDIRECT(ACCOUNTS!$M59),1,J$2))) -> 0 | L59: =IF(ACCOUNTS!$U59="",0,$C59) -> 0 | N59: =IF(ACCOUNTS!N59<>"",CONCATENATE(ACCOUNTS!$L59,"_",ACCOUNTS!N59)," ") ->  | O59: =IF(ACCOUNTS!O59<>"",CONCATENATE(ACCOUNTS!$L59,"_",ACCOUNTS!O59)," ") ->  | P59: =IF(ACCOUNTS!P59<>"",CONCATENATE(ACCOUNTS!$L59,"_",ACCOUNTS!P59)," ") ->  | Q59: =IF(ACCOUNTS!Q59<>"",CONCATENATE(ACCOUNTS!$L59,"_",ACCOUNTS!Q59)," ") ->  | R59: =IF(ACCOUNTS!R59<>"",CONCATENATE(ACCOUNTS!$L59,"_",ACCOUNTS!R59)," ") ->  | S59: =IF(ACCOUNTS!S59<>"",CONCATENATE(ACCOUNTS!$L59,"_",ACCOUNTS!S59)," ") -> 
B60: =ACCOUNTS!B60 -> Sub-total | C60: =SUM(C52:C59) -> 0 | D60: 0 | E60: =SUM(E52:E59) -> 0 | F60: 0 | G60: 0 | H60: 0 | I60: 0 | J60: 0 | L60: 0
D61: 0
B62: =ACCOUNTS!B62 -> Distribution Plant | D62: 0
A63: =ACCOUNTS!A63 -> 373 | B63: =ACCOUNTS!B63 -> Easements | C63: =ACCOUNTS!C63 -> 0 | D63: 0 | E63: =IF(ACCOUNTS!$M63="",0,$C63*(INDEX(INDIRECT(ACCOUNTS!$M63),1,E$2))) -> 0 | F63: =IF(ACCOUNTS!$M63="",0,$C63*(INDEX(INDIRECT(ACCOUNTS!$M63),1,F$2))) -> 0 | G63: =IF(ACCOUNTS!$M63="",0,$C63*(INDEX(INDIRECT(ACCOUNTS!$M63),1,G$2))) -> 0 | H63: =IF(ACCOUNTS!$M63="",0,$C63*(INDEX(INDIRECT(ACCOUNTS!$M63),1,H$2))) -> 0 | I63: =IF(ACCOUNTS!$M63="",0,$C63*(INDEX(INDIRECT(ACCOUNTS!$M63),1,I$2))) -> 0 | J63: =IF(ACCOUNTS!$M63="",0,$C63*(INDEX(INDIRECT(ACCOUNTS!$M63),1,J$2))) -> 0 | L63: =IF(ACCOUNTS!$U63="",0,$C63) -> 0 | N63: =IF(ACCOUNTS!N63<>"",CONCATENATE(ACCOUNTS!$L63,"_",ACCOUNTS!N63)," ") ->  | O63: =IF(ACCOUNTS!O63<>"",CONCATENATE(ACCOUNTS!$L63,"_",ACCOUNTS!O63)," ") ->  | P63: =IF(ACCOUNTS!P63<>"",CONCATENATE(ACCOUNTS!$L63,"_",ACCOUNTS!P63)," ") ->  | Q63: =IF(ACCOUNTS!Q63<>"",CONCATENATE(ACCOUNTS!$L63,"_",ACCOUNTS!Q63)," ") ->  | R63: =IF(ACCOUNTS!R63<>"",CONCATENATE(ACCOUNTS!$L63,"_",ACCOUNTS!R63)," ") ->  | S63: =IF(ACCOUNTS!S63<>"",CONCATENATE(ACCOUNTS!$L63,"_",ACCOUNTS!S63)," ") -> 
A64: =ACCOUNTS!A64 -> 374 | B64: =ACCOUNTS!B64 -> Land and Land Rights | C64: =ACCOUNTS!C64 -> 24123000 | D64: 0 | E64: =IF(ACCOUNTS!$M64="",0,$C64*(INDEX(INDIRECT(ACCOUNTS!$M64),1,E$2))) -> 0 | F64: =IF(ACCOUNTS!$M64="",0,$C64*(INDEX(INDIRECT(ACCOUNTS!$M64),1,F$2))) -> 0 | G64: =IF(ACCOUNTS!$M64="",0,$C64*(INDEX(INDIRECT(ACCOUNTS!$M64),1,G$2))) -> 0 | H64: =IF(ACCOUNTS!$M64="",0,$C64*(INDEX(INDIRECT(ACCOUNTS!$M64),1,H$2))) -> 0 | I64: =IF(ACCOUNTS!$M64="",0,$C64*(INDEX(INDIRECT(ACCOUNTS!$M64),1,I$2))) -> 0 | J64: =IF(ACCOUNTS!$M64="",0,$C64*(INDEX(INDIRECT(ACCOUNTS!$M64),1,J$2))) -> 0 | L64: =IF(ACCOUNTS!$U64="",0,$C64) -> 24123000 | N64: =IF(ACCOUNTS!N64<>"",CONCATENATE(ACCOUNTS!$L64,"_",ACCOUNTS!N64)," ") ->  | O64: =IF(ACCOUNTS!O64<>"",CONCATENATE(ACCOUNTS!$L64,"_",ACCOUNTS!O64)," ") ->  | P64: =IF(ACCOUNTS!P64<>"",CONCATENATE(ACCOUNTS!$L64,"_",ACCOUNTS!P64)," ") ->  | Q64: =IF(ACCOUNTS!Q64<>"",CONCATENATE(ACCOUNTS!$L64,"_",ACCOUNTS!Q64)," ") ->  | R64: =IF(ACCOUNTS!R64<>"",CONCATENATE(ACCOUNTS!$L64,"_",ACCOUNTS!R64)," ") ->  | S64: =IF(ACCOUNTS!S64<>"",CONCATENATE(ACCOUNTS!$L64,"_",ACCOUNTS!S64)," ") -> 
A65: =ACCOUNTS!A65 -> 375 | B65: =ACCOUNTS!B65 -> Structures and Improvements | C65: =ACCOUNTS!C65 -> 45726445.39 | D65: =SUM(E65:L65)-C65 -> 0 | E65: =IF(ACCOUNTS!$M65="",0,$C65*(INDEX(INDIRECT(ACCOUNTS!$M65),1,E$2))) -> 0 | F65: =IF(ACCOUNTS!$M65="",0,$C65*(INDEX(INDIRECT(ACCOUNTS!$M65),1,F$2))) -> 0 | G65: =IF(ACCOUNTS!$M65="",0,$C65*(INDEX(INDIRECT(ACCOUNTS!$M65),1,G$2))) -> 0 | H65: =IF(ACCOUNTS!$M65="",0,$C65*(INDEX(INDIRECT(ACCOUNTS!$M65),1,H$2))) -> 0 | I65: =IF(ACCOUNTS!$M65="",0,$C65*(INDEX(INDIRECT(ACCOUNTS!$M65),1,I$2))) -> 0 | J65: =IF(ACCOUNTS!$M65="",0,$C65*(INDEX(INDIRECT(ACCOUNTS!$M65),1,J$2))) -> 0 | L65: =IF(ACCOUNTS!$U65="",0,$C65) -> 45726445.39 | N65: =IF(ACCOUNTS!N65<>"",CONCATENATE(ACCOUNTS!$L65,"_",ACCOUNTS!N65)," ") ->  | O65: =IF(ACCOUNTS!O65<>"",CONCATENATE(ACCOUNTS!$L65,"_",ACCOUNTS!O65)," ") ->  | P65: =IF(ACCOUNTS!P65<>"",CONCATENATE(ACCOUNTS!$L65,"_",ACCOUNTS!P65)," ") ->  | Q65: =IF(ACCOUNTS!Q65<>"",CONCATENATE(ACCOUNTS!$L65,"_",ACCOUNTS!Q65)," ") ->  | R65: =IF(ACCOUNTS!R65<>"",CONCATENATE(ACCOUNTS!$L65,"_",ACCOUNTS!R65)," ") ->  | S65: =IF(ACCOUNTS!S65<>"",CONCATENATE(ACCOUNTS!$L65,"_",ACCOUNTS!S65)," ") -> 
A66: =ACCOUNTS!A66 -> 376 | B66: =ACCOUNTS!B66 -> Mains | C66: =ACCOUNTS!C66 -> 640064405 | D66: 0 | E66: =IF(ACCOUNTS!$M66="",0,$C66*(INDEX(INDIRECT(ACCOUNTS!$M66),1,E$2))) -> 0 | F66: =IF(ACCOUNTS!$M66="",0,$C66*(INDEX(INDIRECT(ACCOUNTS!$M66),1,F$2))) -> 640064405 | G66: =IF(ACCOUNTS!$M66="",0,$C66*(INDEX(INDIRECT(ACCOUNTS!$M66),1,G$2))) -> 0 | H66: =IF(ACCOUNTS!$M66="",0,$C66*(INDEX(INDIRECT(ACCOUNTS!$M66),1,H$2))) -> 0 | I66: =IF(ACCOUNTS!$M66="",0,$C66*(INDEX(INDIRECT(ACCOUNTS!$M66),1,I$2))) -> 0 | J66: =IF(ACCOUNTS!$M66="",0,$C66*(INDEX(INDIRECT(ACCOUNTS!$M66),1,J$2))) -> 0 | L66: =IF(ACCOUNTS!$U66="",0,$C66) -> 0 | N66: =IF(ACCOUNTS!N66<>"",CONCATENATE(ACCOUNTS!$L66,"_",ACCOUNTS!N66)," ") ->  | O66: =IF(ACCOUNTS!O66<>"",CONCATENATE(ACCOUNTS!$L66,"_",ACCOUNTS!O66)," ") -> F_DISTR_A_MAINS | P66: =IF(ACCOUNTS!P66<>"",CONCATENATE(ACCOUNTS!$L66,"_",ACCOUNTS!P66)," ") ->  | Q66: =IF(ACCOUNTS!Q66<>"",CONCATENATE(ACCOUNTS!$L66,"_",ACCOUNTS!Q66)," ") ->  | R66: =IF(ACCOUNTS!R66<>"",CONCATENATE(ACCOUNTS!$L66,"_",ACCOUNTS!R66)," ") ->  | S66: =IF(ACCOUNTS!S66<>"",CONCATENATE(ACCOUNTS!$L66,"_",ACCOUNTS!S66)," ") -> 
A67: =ACCOUNTS!A67 -> 376 | B67: =ACCOUNTS!B67 -> Mains - Peak | C67: =ACCOUNTS!C67 -> 1346714715 | D67: =SUM(E67:L67)-C67 -> 0 | E67: =IF(ACCOUNTS!$M67="",0,$C67*(INDEX(INDIRECT(ACCOUNTS!$M67),1,E$2))) -> 1346714715 | F67: =IF(ACCOUNTS!$M67="",0,$C67*(INDEX(INDIRECT(ACCOUNTS!$M67),1,F$2))) -> 0 | G67: =IF(ACCOUNTS!$M67="",0,$C67*(INDEX(INDIRECT(ACCOUNTS!$M67),1,G$2))) -> 0 | H67: =IF(ACCOUNTS!$M67="",0,$C67*(INDEX(INDIRECT(ACCOUNTS!$M67),1,H$2))) -> 0 | I67: =IF(ACCOUNTS!$M67="",0,$C67*(INDEX(INDIRECT(ACCOUNTS!$M67),1,I$2))) -> 0 | J67: =IF(ACCOUNTS!$M67="",0,$C67*(INDEX(INDIRECT(ACCOUNTS!$M67),1,J$2))) -> 0 | L67: =IF(ACCOUNTS!$U67="",0,$C67) -> 0 | N67: =IF(ACCOUNTS!N67<>"",CONCATENATE(ACCOUNTS!$L67,"_",ACCOUNTS!N67)," ") -> F_DISTR_P_MAINS | O67: =IF(ACCOUNTS!O67<>"",CONCATENATE(ACCOUNTS!$L67,"_",ACCOUNTS!O67)," ") ->  | P67: =IF(ACCOUNTS!P67<>"",CONCATENATE(ACCOUNTS!$L67,"_",ACCOUNTS!P67)," ") ->  | Q67: =IF(ACCOUNTS!Q67<>"",CONCATENATE(ACCOUNTS!$L67,"_",ACCOUNTS!Q67)," ") ->  | R67: =IF(ACCOUNTS!R67<>"",CONCATENATE(ACCOUNTS!$L67,"_",ACCOUNTS!R67)," ") ->  | S67: =IF(ACCOUNTS!S67<>"",CONCATENATE(ACCOUNTS!$L67,"_",ACCOUNTS!S67)," ") -> 
